Workbook

Sheet Summary
B6: Summary
B9: SOP | G9: Project manager | M9: Produced by
B10: =IF(Calculator!$G$10="","-",Calculator!$G$10) -> IMSE50017 | G10: =IF(Calculator!$I$10="","-",Calculator!$I$10) -> Heather Taylor | M10: =IF(Calculator!$E$10="","-",Calculator!$E$10) -> VHJ
B12: Project name | G12: Date produced | M12: Reviewed by
B13: =IF(Calculator!$H$10="","-",Calculator!$H$10) -> Oxford FAS | G13: =IF(Calculator!$C$10="","-",Calculator!$C$10) -> 42583 | M13: =IF(Calculator!$F$10="","-",Calculator!$F$10) -> -

Sheet GraphData (hidden)
A1: Culmative Whole Life Carbon | D1: Whole Life Carbon by Asset | G1: Whole Life Carbon per New Build Stage | J1: Whole Life Operational Carbon per Asset | M1: Whole Life Use Carbon Operational stage | P1: Carbon by Stage | S1: Material Carbon | V1: Whole Life New Build per Asset
A2: Row Labels | B2: Whole Life carbon | D2: Row Labels | E2: Whole Life Carbon | G2: Values | J2: Row Labels | K2: Whole Life Operational Carbon | M2: Values | P2: Values | S2: Row Labels | T2: CO2e (t) | V2: Row Labels | W2: Sum of WLCDF
A3: 0 | B3: 1833.044016 | D3: (blank) | G3: Materials | H3: 1809.414504 | J3: (blank) | M3: Use | N3: 3.529220216 | P3: Capital Carbon | Q3: 1833.044016 | S3: Steel | T3: 1744.0524 | V3: (blank)
A4: 1 | B4: 2040.418827 | D4: Bridge - Pedestrian | E4: 10431.9905 | G4: Materials Transport | H4: 1.782736457 | J4: Bridge - Pedestrian | K4: 8106.078352 | M4: Maintenance | N4: 6732.681317 | P4: Operational Carbon | Q4: 8106.078352 | S4: Stone | T4: 3.081 | V4: Bridge - Pedestrian | W4: 10431.9905
A5: 2 | B5: 2323.466942 | D5: Grand Total | E5: 10431.9905 | G5: People Transport | H5: 10.04025464 | J5: Grand Total | K5: 8106.078352 | M5: Repair | N5: 1369.867814 | P5: Replacement Carbon | Q5: 722.436955 | S5: (blank) | T5: 0 | V5: Grand Total | W5: 10431.9905
A6: 3 | B6: 2517.053548 | G6: Plant Transport | H6: 0.2651105006 | M6: Energy | N6: 0 | P6: Refurbishment Carbon | Q6: 231.2395785 | S6: Concrete | T6: 37.225104
A7: 4 | B7: 2781.281992 | G7: Site Establishment | H7: 11.28874474 | P7: Demolition Carbon | Q7: 3.620167066 | S7: Timber | T7: 25.056
A8: 5 | B8: 2961.997159 | G8: Plant Use | H8: 0 | P8: Residual Carbon | Q8: -464.4285669 | S8: Grand Total | T8: 1809.414504
A9: 6 | B9: 3208.657239 | G9: Waste | H9: 0.2526656201
A10: 7 | B10: 3377.356782
A11: 8 | B11: 3607.616606
A12: 9 | B12: 3765.099434
A13: 10 | B13: 3980.049443
A14: 11 | B14: 4127.061349
A15: 12 | B15: 4327.719483
A16: 13 | B16: 4464.956669
A17: 14 | B17: 4652.273184
A18: 15 | B18: 4780.385567
A19: 16 | B19: 4955.247538
A20: 17 | B20: 5074.841818
A21: 18 | B21: 5238.077339
A22: 19 | B22: 5349.719878
A23: 20 | B23: 5614.582169
A24: 21 | B24: 5718.801675
A25: 22 | B25: 5861.052001
A26: 23 | B26: 5958.342024
A27: 24 | B27: 6091.134226
A28: 25 | B28: 6181.955504
A29: 26 | B29: 6305.918445
A30: 27 | B30: 6390.70108
A31: 28 | B31: 6506.421812
A32: 29 | B32: 6585.567309
A33: 30 | B33: 7014.264161
A34: 31 | B34: 7100.114574
A35: 32 | B35: 7217.861554
A36: 33 | B36: 7298.783802
A37: 34 | B37: 7409.771623
A38: 35 | B38: 7486.048603
A39: 36 | B39: 7590.665269
A40: 37 | B40: 7662.563639
A41: 38 | B41: 7761.17488
A42: 39 | B42: 7828.945989
A43: 40 | B43: 7949.378946
A44: 41 | B44: 8013.259716
A45: 42 | B45: 8100.874527
A46: 43 | B46: 8161.088279
A47: 44 | B47: 8243.673642
A48: 45 | B48: 8300.430879
A49: 46 | B49: 8378.275503
A50: 47 | B50: 8431.774642
A51: 48 | B51: 8505.150667
A52: 49 | B52: 8555.578737
A53: 50 | B53: 8675.795738
A54: 51 | B54: 8723.32903
A55: 52 | B55: 8788.522678
A56: 53 | B56: 8833.327365
A57: 54 | B57: 8894.778631
A58: 55 | B58: 8937.011345
A59: 56 | B59: 8994.935057
A60: 57 | B60: 9034.74344
A61: 58 | B61: 9089.342094
A62: 59 | B62: 9126.865314
A63: 60 | B63: 9485.026983
A64: 61 | B64: 9520.396216
A65: 62 | B65: 9568.906413
A66: 63 | B66: 9602.245307
A67: 64 | B67: 9647.97082
A68: 65 | B68: 9679.395926
A69: 66 | B69: 9722.496607
A70: 67 | B70: 9752.117783
A71: 68 | B71: 9792.744309
A72: 69 | B72: 9820.665109
A73: 70 | B73: 9858.959506
A74: 71 | B74: 9885.277537
A75: 72 | B75: 9921.373679
A76: 73 | B76: 9946.180948
A77: 74 | B77: 9980.205024
A78: 75 | B78: 10003.58825
A79: 76 | B79: 10050.01061
A80: 77 | B80: 10082.07026
A81: 78 | B81: 10126.25573
A82: 79 | B82: 10156.77056
A83: 80 | B83: 10230.22576
A84: 81 | B84: 10259.27022
A85: 82 | B85: 10299.30007
A86: 83 | B86: 10326.945
A87: 84 | B87: 10365.04599
A88: 85 | B88: 10391.35884
A89: 86 | B89: 10427.62391
A90: 87 | B90: 10452.66886
A91: 88 | B91: 10487.18647
A92: 89 | B92: 10511.02461
A93: 90 | B93: 10641.40519
A94: 91 | B94: 10664.09467
A95: 92 | B95: 10695.36593
A96: 93 | B96: 10716.96211
A97: 94 | B97: 10746.72654
A98: 95 | B98: 10767.28209
A99: 96 | B99: 10795.61231
A100: 97 | B100: 10815.17738
A101: 98 | B101: 10842.14249
A102: 99 | B102: 10860.7648
A103: 100 | B103: 10431.9905
A104: (blank) | B104: 10431.9905
A105: Grand Total

Sheet FlatData (hidden)
A1: Asset ID | B1: Asset description | C1: Asset class | D1: Sub-Asset ref. | E1: Sub-Asset description | F1: Sub-Asset category | G1: Standard life | H1: Expected new build life | I1: Refurbishment type | J1: Expected refurbished Life | K1: First intervention | L1: Last Refurb | M1: Last Replace | N1: Remaining Life | O1: Last intervention | P1: Weighted Split | Q1: Materials | R1: Materials Transport | S1: People Transport | T1: Plant Transport | U1: Site Establishment | V1: Plant use | W1: Waste | X1: New Build Co2e | Y1: Use | Z1: Energy | AA1: Refurbishment | AB1: Den - Material Waste | AC1: Dem - Plant use | AD1: Dem - People | AE1: Year | AF1: Profile | AG1: Discount Factor | AH1: MaterialsDF | AI1: Materials TransportDF | AJ1: People TransportDF | AK1: Plant TransportDF | AL1: Site EstablishmentDF | AM1: Plant UseDF | AN1: WasteDF | AO1: CapitalDF | AP1: UseDF | AQ1: MaintenanceDF | AR1: RepairDF | AS1: EnergyDF | AT1: OP Co2eDF | AU1: RefurbDF | AV1: Dem - MaterialsDF | AW1: Dem - Plant | AX1: Dem - PeopleDf | AY1: ReplacementDF | AZ1: WLCDF | BA1: Residual | BB1: Replace Materials TransportDF | BC1: Replace People TransportDF | BD1: Replace Plant TransportDF | BE1: Replace MaterialsDF | BF1: Replace Site EstablishmentDF | BG1: Replace Plant UseDF | BH1: Replace WasteDF
A2: BridEA03 | B2: Footbridge | C2: Bridge - Pedestrian | D2: BridEA0333 | E2: Desk | F2: Bridges | G2: 60 | H2: 20 | I2: Moderate Refurbishment | J2: 10 | K2: New Build | L2: 113 | M2: 123 | N2: 100 | O2: 3 | P2: 883.5084 | Q2: 883.5084 | R2: 1.074176355 | S2: 4.902497072 | T2: 0.1294492521 | U2: 5.512114984 | V2: 0 | W2: 0.1206399085 | X2: 895.2472776 | Y2: 0.05490755123 | Z2: 0 | AA2: 223.8118194 | AB2: 2.292158261 | AC2: 0.06472462604 | AD2: 2.451248536 | AE2: 0 | AF2: 1 | AG2: =VLOOKUP(AE2,ValidationLists!$M$1:$N$102,2,FALSE) -> 1 | AH2: =IF(AE2=0,Q2*AG2,0) -> 883.5084 | AI2: =IF(AE2=0,R2*AG2,0) -> 1.074176355 | AJ2: =IF(AE2=0,S2*AG2,0) -> 4.902497072 | AK2: =IF(AE2=0,T2*AG2,0) -> 0.1294492521 | AL2: =IF(AE2=0,U2*AG2,0) -> 5.512114984 | AM2: =IF(AE2=0,V2*AG2,0) -> 0 | AN2: =IF(AE2=0,W2*AG2,0) -> 0.1206399085 | AO2: =IF(AE2=0,AH2+AI2+AJ2+AK2+AL2+AM2+AN2,0) -> 895.2472776 | AP2: =IF(OR(AF2=3,AF2=2,AF2=0),Y2*AG2,0) -> 0 | AQ2: =IF(OR(AF2=3,AF2=2,AF2=0),SUMIFS(FlatMaint!$Z$2:$Z$10000,FlatMaint!$A$2:$A$10000,D2,FlatMaint!$Y$2:$Y$10000,AE2)*AG2,0) -> 0 | AR2: =IF(OR(AF2=3,AF2=2,AF2=0),SUMIFS(FlatRepair!$Z$2:$Z$10000,FlatRepair!$A$2:$A$10000,D2,FlatRepair!$Y$2:$Y$10000,AE2)*AG2,0) -> 0 | AS2: =IF(OR(AF2=3,AF2=2,AF2=0),Z2*AG2,0) -> 0 | AT2: =AP2+AQ2+AR2+AS2 -> 0 | AU2: =IF(AF2=2,AA2*AG2,0) -> 0 | AV2: =IF(AF2=3,AB2*AG2,0) -> 0 | AW2: =IF(AF2=3,AC2*AG2,0) -> 0 | AX2: =IF(AF2=3,AD2*AG2,0) -> 0 | AY2: =IF($AF$2=3,BB2+BC2+BD2+BE2+BF2+BG2+BH2,BB2+BC2+BD2+BE2+BF2+BG2+BH2) -> 0 | AZ2: =AO2+AT2+AU2+AV2+AW2+AX2+AY2+BA2 -> 895.2472776 | BA2: =IFERROR(IF(AE2=100,IF(O2=3,(N2/H2)*(X2*AG2)*-1,(N2/M2)*(X2*AG2)*-1),0),0) -> 0 | BB2: =IF($AF2=3,IF($AF$2=2,(R2/SUMIF(Refurb_Poss_Tbl[Refurbishment Possible],I2,Refurb_Poss_Tbl[%]))*AG2,IF($AF$2=3,(R2*AG2)-AV2,R2*AG2)),0) -> 0 | BC2: =IF(AF2=3,IF($AF$2=2,(S2/SUMIF(Refurb_Poss_Tbl[Refurbishment Possible],I2,Refurb_Poss_Tbl[%]))*AG2,IF($AF$2=3,(S2*AG2)-AX2,S2*AG2)),0) -> 0 | BD2: =IF($AF2=3,IF($AF$2=2,(T2/SUMIF(Refurb_Poss_Tbl[Refurbishment Possible],I2,Refurb_Poss_Tbl[%]))*AG2,T2*$AG2),0) -> 0 | BE2: =IF($AF2=3,IF($AF$2=2,(Q2/SUMIF(Refurb_Poss_Tbl[Refurbishment Possible],I2,Refurb_Poss_Tbl[%]))*AG2,Q2*$AG2),0) -> 0 | BF2: =IF($AF2=3,IF($AF$2=2,(U2/SUMIF(Refurb_Poss_Tbl[Refurbishment Possible],I2,Refurb_Poss_Tbl[%]))*AG2,U2*$AG2),0) -> 0 | BG2: =IF($AF2=3,IF($AF$2=2,(V2/SUMIF(Refurb_Poss_Tbl[Refurbishment Possible],I2,Refurb_Poss_Tbl[%]))*AG2,IF($AF$2=3,(V2*AG2)-AW2,V2*AG2)),0) -> 0 | BH2: =IF($AF2=3,IF($AF$2=2,(W2/SUMIF(Refurb_Poss_Tbl[Refurbishment Possible],I2,Refurb_Poss_Tbl[%]))*AG2,W2*$AG2),0) -> 0
A3: BridEA03 | B3: Footbridge | C3: Bridge - Pedestrian | D3: BridEA0333 | E3: Desk | F3: Bridges | G3: 60 | H3: 20 | I3: Moderate Refurbishment | J3: 10 | K3: New Build | L3: 113 | M3: 123 | N3: 100 | O3: 3 | P3: 883.5084 | Q3: 883.5084 | R3: 1.074176355 | S3: 4.902497072 | T3: 0.1294492521 | U3: 5.512114984 | V3: 0 | W3: 0.1206399085 | X3: 895.2472776 | Y3: 0.05490755123 | Z3: 0 | AA3: 223.8118194 | AB3: 2.292158261 | AC3: 0.06472462604 | AD3: 2.451248536 | AE3: 1 | AF3: 0 | AG3: =VLOOKUP(AE3,ValidationLists!$M$1:$N$102,2,FALSE) -> 0.9661835749 | AH3: =IF(AE3=0,Q3*AG3,0) -> 0 | AI3: =IF(AE3=0,R3*AG3,0) -> 0 | AJ3: =IF(AE3=0,S3*AG3,0) -> 0 | AK3: =IF(AE3=0,T3*AG3,0) -> 0 | AL3: =IF(AE3=0,U3*AG3,0) -> 0 | AM3: =IF(AE3=0,V3*AG3,0) -> 0 | AN3: =IF(AE3=0,W3*AG3,0) -> 0 | AO3: =IF(AE3=0,AH3+AI3+AJ3+AK3+AL3+AM3+AN3,0) -> 0 | AP3: =IF(OR(AF3=3,AF3=2,AF3=0),Y3*AG3,0) -> 0.05305077414 | AQ3: =IF(OR(AF3=3,AF3=2,AF3=0),SUMIFS(FlatMaint!$Z$2:$Z$10000,FlatMaint!$A$2:$A$10000,D3,FlatMaint!$Y$2:$Y$10000,AE3)*AG3,0) -> 85.37790064 | AR3: =IF(OR(AF3=3,AF3=2,AF3=0),SUMIFS(FlatRepair!$Z$2:$Z$10000,FlatRepair!$A$2:$A$10000,D3,FlatRepair!$Y$2:$Y$10000,AE3)*AG3,0) -> 0 | AS3: =IF(OR(AF3=3,AF3=2,AF3=0),Z3*AG3,0) -> 0 | AT3: =AP3+AQ3+AR3+AS3 -> 85.43095141 | AU3: =IF(AF3=2,AA3*AG3,0) -> 0 | AV3: =IF(AF3=3,AB3*AG3,0) -> 0 | AW3: =IF(AF3=3,AC3*AG3,0) -> 0 | AX3: =IF(AF3=3,AD3*AG3,0) -> 0 | AY3: =IF($AF$2=3,BB3+BC3+BD3+BE3+BF3+BG3+BH3,BB3+BC3+BD3+BE3+BF3+BG3+BH3) -> 0 | AZ3: =AO3+AT3+AU3+AV3+AW3+AX3+AY3+BA3 -> 85.43095141 | BA3: =IFERROR(IF(AE3=100,IF(O3=3,(N3/H3)*(X3*AG3)*-1,(N3/M3)*(X3*AG3)*-1),0),0) -> 0 | BB3: =IF($AF3=3,IF($AF$2=2,(R3/SUMIF(Refurb_Poss_Tbl[Refurbishment Possible],I3,Refurb_Poss_Tbl[%]))*AG3,IF($AF$2=3,(R3*AG3)-AV3,R3*AG3)),0) -> 0 | BC3: =IF(AF3=3,IF($AF$2=2,(S3/SUMIF(Refurb_Poss_Tbl[Refurbishment Possible],I3,Refurb_Poss_Tbl[%]))*AG3,IF($AF$2=3,(S3*AG3)-AX3,S3*AG3)),0) -> 0 | BD3: =IF($AF3=3,IF($AF$2=2,(T3/SUMIF(Refurb_Poss_Tbl[Refurbishment Possible],I3,Refurb_Poss_Tbl[%]))*AG3,T3*$AG3),0) -> 0 | BE3: =IF($AF3=3,IF($AF$2=2,(Q3/SUMIF(Refurb_Poss_Tbl[Refurbishment Possible],I3,Refurb_Poss_Tbl[%]))*AG3,Q3*$AG3),0) -> 0 | BF3: =IF($AF3=3,IF($AF$2=2,(U3/SUMIF(Refurb_Poss_Tbl[Refurbishment Possible],I3,Refurb_Poss_Tbl[%]))*AG3,U3*$AG3),0) -> 0 | BG3: =IF($AF3=3,IF($AF$2=2,(V3/SUMIF(Refurb_Poss_Tbl[Refurbishment Possible],I3,Refurb_Poss_Tbl[%]))*AG3,IF($AF$2=3,(V3*AG3)-AW3,V3*AG3)),0) -> 0 | BH3: =IF($AF3=3,IF($AF$2=2,(W3/SUMIF(Refurb_Poss_Tbl[Refurbishment Possible],I3,Refurb_Poss_Tbl[%]))*AG3,W3*$AG3),0) -> 0
A4: BridEA03 | B4: Footbridge | C4: Bridge - Pedestrian | D4: BridEA0333 | E4: Desk | F4: Bridges | G4: 60 | H4: 20 | I4: Moderate Refurbishment | J4: 10 | K4: New Build | L4: 113 | M4: 123 | N4: 100 | O4: 3 | P4: 883.5084 | Q4: 883.5084 | R4: 1.074176355 | S4: 4.902497072 | T4: 0.1294492521 | U4: 5.512114984 | V4: 0 | W4: 0.1206399085 | X4: 895.2472776 | Y4: 0.05490755123 | Z4: 0 | AA4: 223.8118194 | AB4: 2.292158261 | AC4: 0.06472462604 | AD4: 2.451248536 | AE4: 2 | AF4: 0 | AG4: =VLOOKUP(AE4,ValidationLists!$M$1:$N$102,2,FALSE) -> 0.9335107004 | AH4: 0 | AI4: 0 | AJ4: 0 | AK4: 0 | AL4: 0 | AM4: 0 | AN4: 0 | AO4: 0 | AP4: 0.05125678661 | AQ4: =IF(OR(AF4=3,AF4=2,AF4=0),SUMIFS(FlatMaint!$Z$2:$Z$10000,FlatMaint!$A$2:$A$10000,D4,FlatMaint!$Y$2:$Y$10000,AE4)*AG4,0) -> 82.49072525 | AR4: =IF(OR(AF4=3,AF4=2,AF4=0),SUMIFS(FlatRepair!$Z$2:$Z$10000,FlatRepair!$A$2:$A$10000,D4,FlatRepair!$Y$2:$Y$10000,AE4)*AG4,0) -> 0 | AS4: 0 | AT4: 82.54198204 | AU4: 0 | AV4: 0 | AW4: 0 | AX4: 0 | AY4: 0 | AZ4: 82.54198204 | BA4: 0 | BB4: =IF($AF4=3,IF($AF$2=2,(R4/SUMIF(Refurb_Poss_Tbl[Refurbishment Possible],I4,Refurb_Poss_Tbl[%]))*AG4,IF($AF$2=3,(R4*AG4)-AV4,R4*AG4)),0) -> 0 | BC4: =IF(AF4=3,IF($AF$2=2,(S4/SUMIF(Refurb_Poss_Tbl[Refurbishment Possible],I4,Refurb_Poss_Tbl[%]))*AG4,IF($AF$2=3,(S4*AG4)-AX4,S4*AG4)),0) -> 0 | BD4: =IF($AF4=3,IF($AF$2=2,(T4/SUMIF(Refurb_Poss_Tbl[Refurbishment Possible],I4,Refurb_Poss_Tbl[%]))*AG4,T4*$AG4),0) -> 0 | BE4: =IF($AF4=3,IF($AF$2=2,(Q4/SUMIF(Refurb_Poss_Tbl[Refurbishment Possible],I4,Refurb_Poss_Tbl[%]))*AG4,Q4*$AG4),0) -> 0 | BF4: =IF($AF4=3,IF($AF$2=2,(U4/SUMIF(Refurb_Poss_Tbl[Refurbishment Possible],I4,Refurb_Poss_Tbl[%]))*AG4,U4*$AG4),0) -> 0 | BG4: =IF($AF4=3,IF($AF$2=2,(V4/SUMIF(Refurb_Poss_Tbl[Refurbishment Possible],I4,Refurb_Poss_Tbl[%]))*AG4,IF($AF$2=3,(V4*AG4)-AW4,V4*AG4)),0) -> 0 | BH4: =IF($AF4=3,IF($AF$2=2,(W4/SUMIF(Refurb_Poss_Tbl[Refurbishment Possible],I4,Refurb_Poss_Tbl[%]))*AG4,W4*$AG4),0) -> 0
A5: BridEA03 | B5: Footbridge | C5: Bridge - Pedestrian | D5: BridEA0333 | E5: Desk | F5: Bridges | G5: 60 | H5: 20 | I5: Moderate Refurbishment | J5: 10 | K5: New Build | L5: 113 | M5: 123 | N5: 100 | O5: 3 | P5: 883.5084 | Q5: 883.5084 | R5: 1.074176355 | S5: 4.902497072 | T5: 0.1294492521 | U5: 5.512114984 | V5: 0 | W5: 0.1206399085 | X5: 895.2472776 | Y5: 0.05490755123 | Z5: 0 | AA5: 223.8118194 | AB5: 2.292158261 | AC5: 0.06472462604 | AD5: 2.451248536 | AE5: 3 | AF5: 0 | AG5: =VLOOKUP(AE5,ValidationLists!$M$1:$N$102,2,FALSE) -> 0.9019427057 | AH5: 0 | AI5: 0 | AJ5: 0 | AK5: 0 | AL5: 0 | AM5: 0 | AN5: 0 | AO5: 0 | AP5: 0.04952346532 | AQ5: =IF(OR(AF5=3,AF5=2,AF5=0),SUMIFS(FlatMaint!$Z$2:$Z$10000,FlatMaint!$A$2:$A$10000,D5,FlatMaint!$Y$2:$Y$10000,AE5)*AG5,0) -> 79.70118382 | AR5: =IF(OR(AF5=3,AF5=2,AF5=0),SUMIFS(FlatRepair!$Z$2:$Z$10000,FlatRepair!$A$2:$A$10000,D5,FlatRepair!$Y$2:$Y$10000,AE5)*AG5,0) -> 0 | AS5: 0 | AT5: 79.75070728 | AU5: 0 | AV5: 0 | AW5: 0 | AX5: 0 | AY5: 0 | AZ5: 79.75070728 | BA5: 0 | BB5: =IF($AF5=3,IF($AF$2=2,(R5/SUMIF(Refurb_Poss_Tbl[Refurbishment Possible],I5,Refurb_Poss_Tbl[%]))*AG5,IF($AF$2=3,(R5*AG5)-AV5,R5*AG5)),0) -> 0 | BC5: =IF(AF5=3,IF($AF$2=2,(S5/SUMIF(Refurb_Poss_Tbl[Refurbishment Possible],I5,Refurb_Poss_Tbl[%]))*AG5,IF($AF$2=3,(S5*AG5)-AX5,S5*AG5)),0) -> 0 | BD5: =IF($AF5=3,IF($AF$2=2,(T5/SUMIF(Refurb_Poss_Tbl[Refurbishment Possible],I5,Refurb_Poss_Tbl[%]))*AG5,T5*$AG5),0) -> 0 | BE5: =IF($AF5=3,IF($AF$2=2,(Q5/SUMIF(Refurb_Poss_Tbl[Refurbishment Possible],I5,Refurb_Poss_Tbl[%]))*AG5,Q5*$AG5),0) -> 0 | BF5: =IF($AF5=3,IF($AF$2=2,(U5/SUMIF(Refurb_Poss_Tbl[Refurbishment Possible],I5,Refurb_Poss_Tbl[%]))*AG5,U5*$AG5),0) -> 0 | BG5: =IF($AF5=3,IF($AF$2=2,(V5/SUMIF(Refurb_Poss_Tbl[Refurbishment Possible],I5,Refurb_Poss_Tbl[%]))*AG5,IF($AF$2=3,(V5*AG5)-AW5,V5*AG5)),0) -> 0 | BH5: =IF($AF5=3,IF($AF$2=2,(W5/SUMIF(Refurb_Poss_Tbl[Refurbishment Possible],I5,Refurb_Poss_Tbl[%]))*AG5,W5*$AG5),0) -> 0
A6: BridEA03 | B6: Footbridge | C6: Bridge - Pedestrian | D6: BridEA0333 | E6: Desk | F6: Bridges | G6: 60 | H6: 20 | I6: Moderate Refurbishment | J6: 10 | K6: New Build | L6: 113 | M6: 123 | N6: 100 | O6: 3 | P6: 883.5084 | Q6: 883.5084 | R6: 1.074176355 | S6: 4.902497072 | T6: 0.1294492521 | U6: 5.512114984 | V6: 0 | W6: 0.1206399085 | X6: 895.2472776 | Y6: 0.05490755123 | Z6: 0 | AA6: 223.8118194 | AB6: 2.292158261 | AC6: 0.06472462604 | AD6: 2.451248536 | AE6: 4 | AF6: 0 | AG6: =VLOOKUP(AE6,ValidationLists!$M$1:$N$102,2,FALSE) -> 0.8714422277 | AH6: 0 | AI6: 0 | AJ6: 0 | AK6: 0 | AL6: 0 | AM6: 0 | AN6: 0 | AO6: 0 | AP6: 0.04784875876 | AQ6: =IF(OR(AF6=3,AF6=2,AF6=0),SUMIFS(FlatMaint!$Z$2:$Z$10000,FlatMaint!$A$2:$A$10000,D6,FlatMaint!$Y$2:$Y$10000,AE6)*AG6,0) -> 77.0059747 | AR6: =IF(OR(AF6=3,AF6=2,AF6=0),SUMIFS(FlatRepair!$Z$2:$Z$10000,FlatRepair!$A$2:$A$10000,D6,FlatRepair!$Y$2:$Y$10000,AE6)*AG6,0) -> 0 | AS6: 0 | AT6: 77.05382346 | AU6: 0 | AV6: 0 | AW6: 0 | AX6: 0 | AY6: 0 | AZ6: 77.05382346 | BA6: 0 | BB6: =IF($AF6=3,IF($AF$2=2,(R6/SUMIF(Refurb_Poss_Tbl[Refurbishment Possible],I6,Refurb_Poss_Tbl[%]))*AG6,IF($AF$2=3,(R6*AG6)-AV6,R6*AG6)),0) -> 0 | BC6: =IF(AF6=3,IF($AF$2=2,(S6/SUMIF(Refurb_Poss_Tbl[Refurbishment Possible],I6,Refurb_Poss_Tbl[%]))*AG6,IF($AF$2=3,(S6*AG6)-AX6,S6*AG6)),0) -> 0 | BD6: =IF($AF6=3,IF($AF$2=2,(T6/SUMIF(Refurb_Poss_Tbl[Refurbishment Possible],I6,Refurb_Poss_Tbl[%]))*AG6,T6*$AG6),0) -> 0 | BE6: =IF($AF6=3,IF($AF$2=2,(Q6/SUMIF(Refurb_Poss_Tbl[Refurbishment Possible],I6,Refurb_Poss_Tbl[%]))*AG6,Q6*$AG6),0) -> 0 | BF6: =IF($AF6=3,IF($AF$2=2,(U6/SUMIF(Refurb_Poss_Tbl[Refurbishment Possible],I6,Refurb_Poss_Tbl[%]))*AG6,U6*$AG6),0) -> 0 | BG6: =IF($AF6=3,IF($AF$2=2,(V6/SUMIF(Refurb_Poss_Tbl[Refurbishment Possible],I6,Refurb_Poss_Tbl[%]))*AG6,IF($AF$2=3,(V6*AG6)-AW6,V6*AG6)),0) -> 0 | BH6: =IF($AF6=3,IF($AF$2=2,(W6/SUMIF(Refurb_Poss_Tbl[Refurbishment Possible],I6,Refurb_Poss_Tbl[%]))*AG6,W6*$AG6),0) -> 0
A7: BridEA03 | B7: Footbridge | C7: Bridge - Pedestrian | D7: BridEA0333 | E7: Desk | F7: Bridges | G7: 60 | H7: 20 | I7: Moderate Refurbishment | J7: 10 | K7: New Build | L7: 113 | M7: 123 | N7: 100 | O7: 3 | P7: 883.5084 | Q7: 883.5084 | R7: 1.074176355 | S7: 4.902497072 | T7: 0.1294492521 | U7: 5.512114984 | V7: 0 | W7: 0.1206399085 | X7: 895.2472776 | Y7: 0.05490755123 | Z7: 0 | AA7: 223.8118194 | AB7: 2.292158261 | AC7: 0.06472462604 | AD7: 2.451248536 | AE7: 5 | AF7: 0 | AG7: =VLOOKUP(AE7,ValidationLists!$M$1:$N$102,2,FALSE) -> 0.8419731669 | AH7: 0 | AI7: 0 | AJ7: 0 | AK7: 0 | AL7: 0 | AM7: 0 | AN7: 0 | AO7: 0 | AP7: 0.0462306848 | AQ7: =IF(OR(AF7=3,AF7=2,AF7=0),SUMIFS(FlatMaint!$Z$2:$Z$10000,FlatMaint!$A$2:$A$10000,D7,FlatMaint!$Y$2:$Y$10000,AE7)*AG7,0) -> 74.40190793 | AR7: =IF(OR(AF7=3,AF7=2,AF7=0),SUMIFS(FlatRepair!$Z$2:$Z$10000,FlatRepair!$A$2:$A$10000,D7,FlatRepair!$Y$2:$Y$10000,AE7)*AG7,0) -> 0 | AS7: 0 | AT7: 74.44813861 | AU7: 0 | AV7: 0 | AW7: 0 | AX7: 0 | AY7: 0 | AZ7: 74.44813861 | BA7: 0 | BB7: =IF($AF7=3,IF($AF$2=2,(R7/SUMIF(Refurb_Poss_Tbl[Refurbishment Possible],I7,Refurb_Poss_Tbl[%]))*AG7,IF($AF$2=3,(R7*AG7)-AV7,R7*AG7)),0) -> 0 | BC7: =IF(AF7=3,IF($AF$2=2,(S7/SUMIF(Refurb_Poss_Tbl[Refurbishment Possible],I7,Refurb_Poss_Tbl[%]))*AG7,IF($AF$2=3,(S7*AG7)-AX7,S7*AG7)),0) -> 0 | BD7: =IF($AF7=3,IF($AF$2=2,(T7/SUMIF(Refurb_Poss_Tbl[Refurbishment Possible],I7,Refurb_Poss_Tbl[%]))*AG7,T7*$AG7),0) -> 0 | BE7: =IF($AF7=3,IF($AF$2=2,(Q7/SUMIF(Refurb_Poss_Tbl[Refurbishment Possible],I7,Refurb_Poss_Tbl[%]))*AG7,Q7*$AG7),0) -> 0 | BF7: =IF($AF7=3,IF($AF$2=2,(U7/SUMIF(Refurb_Poss_Tbl[Refurbishment Possible],I7,Refurb_Poss_Tbl[%]))*AG7,U7*$AG7),0) -> 0 | BG7: =IF($AF7=3,IF($AF$2=2,(V7/SUMIF(Refurb_Poss_Tbl[Refurbishment Possible],I7,Refurb_Poss_Tbl[%]))*AG7,IF($AF$2=3,(V7*AG7)-AW7,V7*AG7)),0) -> 0 | BH7: =IF($AF7=3,IF($AF$2=2,(W7/SUMIF(Refurb_Poss_Tbl[Refurbishment Possible],I7,Refurb_Poss_Tbl[%]))*AG7,W7*$AG7),0) -> 0
A8: BridEA03 | B8: Footbridge | C8: Bridge - Pedestrian | D8: BridEA0333 | E8: Desk | F8: Bridges | G8: 60 | H8: 20 | I8: Moderate Refurbishment | J8: 10 | K8: New Build | L8: 113 | M8: 123 | N8: 100 | O8: 3 | P8: 883.5084 | Q8: 883.5084 | R8: 1.074176355 | S8: 4.902497072 | T8: 0.1294492521 | U8: 5.512114984 | V8: 0 | W8: 0.1206399085 | X8: 895.2472776 | Y8: 0.05490755123 | Z8: 0 | AA8: 223.8118194 | AB8: 2.292158261 | AC8: 0.06472462604 | AD8: 2.451248536 | AE8: 6 | AF8: 0 | AG8: =VLOOKUP(AE8,ValidationLists!$M$1:$N$102,2,FALSE) -> 0.8135006443 | AH8: 0 | AI8: 0 | AJ8: 0 | AK8: 0 | AL8: 0 | AM8: 0 | AN8: 0 | AO8: 0 | AP8: 0.04466732831 | AQ8: =IF(OR(AF8=3,AF8=2,AF8=0),SUMIFS(FlatMaint!$Z$2:$Z$10000,FlatMaint!$A$2:$A$10000,D8,FlatMaint!$Y$2:$Y$10000,AE8)*AG8,0) -> 71.88590138 | AR8: =IF(OR(AF8=3,AF8=2,AF8=0),SUMIFS(FlatRepair!$Z$2:$Z$10000,FlatRepair!$A$2:$A$10000,D8,FlatRepair!$Y$2:$Y$10000,AE8)*AG8,0) -> 0 | AS8: 0 | AT8: 71.93056871 | AU8: 0 | AV8: 0 | AW8: 0 | AX8: 0 | AY8: 0 | AZ8: 71.93056871 | BA8: 0 | BB8: =IF($AF8=3,IF($AF$2=2,(R8/SUMIF(Refurb_Poss_Tbl[Refurbishment Possible],I8,Refurb_Poss_Tbl[%]))*AG8,IF($AF$2=3,(R8*AG8)-AV8,R8*AG8)),0) -> 0 | BC8: =IF(AF8=3,IF($AF$2=2,(S8/SUMIF(Refurb_Poss_Tbl[Refurbishment Possible],I8,Refurb_Poss_Tbl[%]))*AG8,IF($AF$2=3,(S8*AG8)-AX8,S8*AG8)),0) -> 0 | BD8: =IF($AF8=3,IF($AF$2=2,(T8/SUMIF(Refurb_Poss_Tbl[Refurbishment Possible],I8,Refurb_Poss_Tbl[%]))*AG8,T8*$AG8),0) -> 0 | BE8: =IF($AF8=3,IF($AF$2=2,(Q8/SUMIF(Refurb_Poss_Tbl[Refurbishment Possible],I8,Refurb_Poss_Tbl[%]))*AG8,Q8*$AG8),0) -> 0 | BF8: =IF($AF8=3,IF($AF$2=2,(U8/SUMIF(Refurb_Poss_Tbl[Refurbishment Possible],I8,Refurb_Poss_Tbl[%]))*AG8,U8*$AG8),0) -> 0 | BG8: =IF($AF8=3,IF($AF$2=2,(V8/SUMIF(Refurb_Poss_Tbl[Refurbishment Possible],I8,Refurb_Poss_Tbl[%]))*AG8,IF($AF$2=3,(V8*AG8)-AW8,V8*AG8)),0) -> 0 | BH8: =IF($AF8=3,IF($AF$2=2,(W8/SUMIF(Refurb_Poss_Tbl[Refurbishment Possible],I8,Refurb_Poss_Tbl[%]))*AG8,W8*$AG8),0) -> 0
A9: BridEA03 | B9: Footbridge | C9: Bridge - Pedestrian | D9: BridEA0333 | E9: Desk | F9: Bridges | G9: 60 | H9: 20 | I9: Moderate Refurbishment | J9: 10 | K9: New Build | L9: 113 | M9: 123 | N9: 100 | O9: 3 | P9: 883.5084 | Q9: 883.5084 | R9: 1.074176355 | S9: 4.902497072 | T9: 0.1294492521 | U9: 5.512114984 | V9: 0 | W9: 0.1206399085 | X9: 895.2472776 | Y9: 0.05490755123 | Z9: 0 | AA9: 223.8118194 | AB9: 2.292158261 | AC9: 0.06472462604 | AD9: 2.451248536 | AE9: 7 | AF9: 0 | AG9: =VLOOKUP(AE9,ValidationLists!$M$1:$N$102,2,FALSE) -> 0.7859909607 | AH9: 0 | AI9: 0 | AJ9: 0 | AK9: 0 | AL9: 0 | AM9: 0 | AN9: 0 | AO9: 0 | AP9: 0.04315683894 | AQ9: =IF(OR(AF9=3,AF9=2,AF9=0),SUMIFS(FlatMaint!$Z$2:$Z$10000,FlatMaint!$A$2:$A$10000,D9,FlatMaint!$Y$2:$Y$10000,AE9)*AG9,0) -> 69.45497718 | AR9: =IF(OR(AF9=3,AF9=2,AF9=0),SUMIFS(FlatRepair!$Z$2:$Z$10000,FlatRepair!$A$2:$A$10000,D9,FlatRepair!$Y$2:$Y$10000,AE9)*AG9,0) -> 0 | AS9: 0 | AT9: 69.49813402 | AU9: 0 | AV9: 0 | AW9: 0 | AX9: 0 | AY9: 0 | AZ9: 69.49813402 | BA9: 0 | BB9: =IF($AF9=3,IF($AF$2=2,(R9/SUMIF(Refurb_Poss_Tbl[Refurbishment Possible],I9,Refurb_Poss_Tbl[%]))*AG9,IF($AF$2=3,(R9*AG9)-AV9,R9*AG9)),0) -> 0 | BC9: =IF(AF9=3,IF($AF$2=2,(S9/SUMIF(Refurb_Poss_Tbl[Refurbishment Possible],I9,Refurb_Poss_Tbl[%]))*AG9,IF($AF$2=3,(S9*AG9)-AX9,S9*AG9)),0) -> 0 | BD9: =IF($AF9=3,IF($AF$2=2,(T9/SUMIF(Refurb_Poss_Tbl[Refurbishment Possible],I9,Refurb_Poss_Tbl[%]))*AG9,T9*$AG9),0) -> 0 | BE9: =IF($AF9=3,IF($AF$2=2,(Q9/SUMIF(Refurb_Poss_Tbl[Refurbishment Possible],I9,Refurb_Poss_Tbl[%]))*AG9,Q9*$AG9),0) -> 0 | BF9: =IF($AF9=3,IF($AF$2=2,(U9/SUMIF(Refurb_Poss_Tbl[Refurbishment Possible],I9,Refurb_Poss_Tbl[%]))*AG9,U9*$AG9),0) -> 0 | BG9: =IF($AF9=3,IF($AF$2=2,(V9/SUMIF(Refurb_Poss_Tbl[Refurbishment Possible],I9,Refurb_Poss_Tbl[%]))*AG9,IF($AF$2=3,(V9*AG9)-AW9,V9*AG9)),0) -> 0 | BH9: =IF($AF9=3,IF($AF$2=2,(W9/SUMIF(Refurb_Poss_Tbl[Refurbishment Possible],I9,Refurb_Poss_Tbl[%]))*AG9,W9*$AG9),0) -> 0
A10: BridEA03 | B10: Footbridge | C10: Bridge - Pedestrian | D10: BridEA0333 | E10: Desk | F10: Bridges | G10: 60 | H10: 20 | I10: Moderate Refurbishment | J10: 10 | K10: New Build | L10: 113 | M10: 123 | N10: 100 | O10: 3 | P10: 883.5084 | Q10: 883.5084 | R10: 1.074176355 | S10: 4.902497072 | T10: 0.1294492521 | U10: 5.512114984 | V10: 0 | W10: 0.1206399085 | X10: 895.2472776 | Y10: 0.05490755123 | Z10: 0 | AA10: 223.8118194 | AB10: 2.292158261 | AC10: 0.06472462604 | AD10: 2.451248536 | AE10: 8 | AF10: 0 | AG10: =VLOOKUP(AE10,ValidationLists!$M$1:$N$102,2,FALSE) -> 0.7594115562 | AH10: 0 | AI10: 0 | AJ10: 0 | AK10: 0 | AL10: 0 | AM10: 0 | AN10: 0 | AO10: 0 | AP10: 0.04169742893 | AQ10: =IF(OR(AF10=3,AF10=2,AF10=0),SUMIFS(FlatMaint!$Z$2:$Z$10000,FlatMaint!$A$2:$A$10000,D10,FlatMaint!$Y$2:$Y$10000,AE10)*AG10,0) -> 67.10625814 | AR10: =IF(OR(AF10=3,AF10=2,AF10=0),SUMIFS(FlatRepair!$Z$2:$Z$10000,FlatRepair!$A$2:$A$10000,D10,FlatRepair!$Y$2:$Y$10000,AE10)*AG10,0) -> 0 | AS10: 0 | AT10: 67.14795557 | AU10: 0 | AV10: 0 | AW10: 0 | AX10: 0 | AY10: 0 | AZ10: 67.14795557 | BA10: 0 | BB10: =IF($AF10=3,IF($AF$2=2,(R10/SUMIF(Refurb_Poss_Tbl[Refurbishment Possible],I10,Refurb_Poss_Tbl[%]))*AG10,IF($AF$2=3,(R10*AG10)-AV10,R10*AG10)),0) -> 0 | BC10: =IF(AF10=3,IF($AF$2=2,(S10/SUMIF(Refurb_Poss_Tbl[Refurbishment Possible],I10,Refurb_Poss_Tbl[%]))*AG10,IF($AF$2=3,(S10*AG10)-AX10,S10*AG10)),0) -> 0 | BD10: =IF($AF10=3,IF($AF$2=2,(T10/SUMIF(Refurb_Poss_Tbl[Refurbishment Possible],I10,Refurb_Poss_Tbl[%]))*AG10,T10*$AG10),0) -> 0 | BE10: =IF($AF10=3,IF($AF$2=2,(Q10/SUMIF(Refurb_Poss_Tbl[Refurbishment Possible],I10,Refurb_Poss_Tbl[%]))*AG10,Q10*$AG10),0) -> 0 | BF10: =IF($AF10=3,IF($AF$2=2,(U10/SUMIF(Refurb_Poss_Tbl[Refurbishment Possible],I10,Refurb_Poss_Tbl[%]))*AG10,U10*$AG10),0) -> 0 | BG10: =IF($AF10=3,IF($AF$2=2,(V10/SUMIF(Refurb_Poss_Tbl[Refurbishment Possible],I10,Refurb_Poss_Tbl[%]))*AG10,IF($AF$2=3,(V10*AG10)-AW10,V10*AG10)),0) -> 0 | BH10: =IF($AF10=3,IF($AF$2=2,(W10/SUMIF(Refurb_Poss_Tbl[Refurbishment Possible],I10,Refurb_Poss_Tbl[%]))*AG10,W10*$AG10),0) -> 0
A11: BridEA03 | B11: Footbridge | C11: Bridge - Pedestrian | D11: BridEA0333 | E11: Desk | F11: Bridges | G11: 60 | H11: 20 | I11: Moderate Refurbishment | J11: 10 | K11: New Build | L11: 113 | M11: 123 | N11: 100 | O11: 3 | P11: 883.5084 | Q11: 883.5084 | R11: 1.074176355 | S11: 4.902497072 | T11: 0.1294492521 | U11: 5.512114984 | V11: 0 | W11: 0.1206399085 | X11: 895.2472776 | Y11: 0.05490755123 | Z11: 0 | AA11: 223.8118194 | AB11: 2.292158261 | AC11: 0.06472462604 | AD11: 2.451248536 | AE11: 9 | AF11: 0 | AG11: =VLOOKUP(AE11,ValidationLists!$M$1:$N$102,2,FALSE) -> 0.7337309722 | AH11: 0 | AI11: 0 | AJ11: 0 | AK11: 0 | AL11: 0 | AM11: 0 | AN11: 0 | AO11: 0 | AP11: 0.04028737095 | AQ11: =IF(OR(AF11=3,AF11=2,AF11=0),SUMIFS(FlatMaint!$Z$2:$Z$10000,FlatMaint!$A$2:$A$10000,D11,FlatMaint!$Y$2:$Y$10000,AE11)*AG11,0) -> 64.83696439 | AR11: =IF(OR(AF11=3,AF11=2,AF11=0),SUMIFS(FlatRepair!$Z$2:$Z$10000,FlatRepair!$A$2:$A$10000,D11,FlatRepair!$Y$2:$Y$10000,AE11)*AG11,0) -> 0 | AS11: 0 | AT11: 64.87725176 | AU11: 0 | AV11: 0 | AW11: 0 | AX11: 0 | AY11: 0 | AZ11: 64.87725176 | BA11: 0 | BB11: =IF($AF11=3,IF($AF$2=2,(R11/SUMIF(Refurb_Poss_Tbl[Refurbishment Possible],I11,Refurb_Poss_Tbl[%]))*AG11,IF($AF$2=3,(R11*AG11)-AV11,R11*AG11)),0) -> 0 | BC11: =IF(AF11=3,IF($AF$2=2,(S11/SUMIF(Refurb_Poss_Tbl[Refurbishment Possible],I11,Refurb_Poss_Tbl[%]))*AG11,IF($AF$2=3,(S11*AG11)-AX11,S11*AG11)),0) -> 0 | BD11: =IF($AF11=3,IF($AF$2=2,(T11/SUMIF(Refurb_Poss_Tbl[Refurbishment Possible],I11,Refurb_Poss_Tbl[%]))*AG11,T11*$AG11),0) -> 0 | BE11: =IF($AF11=3,IF($AF$2=2,(Q11/SUMIF(Refurb_Poss_Tbl[Refurbishment Possible],I11,Refurb_Poss_Tbl[%]))*AG11,Q11*$AG11),0) -> 0 | BF11: =IF($AF11=3,IF($AF$2=2,(U11/SUMIF(Refurb_Poss_Tbl[Refurbishment Possible],I11,Refurb_Poss_Tbl[%]))*AG11,U11*$AG11),0) -> 0 | BG11: =IF($AF11=3,IF($AF$2=2,(V11/SUMIF(Refurb_Poss_Tbl[Refurbishment Possible],I11,Refurb_Poss_Tbl[%]))*AG11,IF($AF$2=3,(V11*AG11)-AW11,V11*AG11)),0) -> 0 | BH11: =IF($AF11=3,IF($AF$2=2,(W11/SUMIF(Refurb_Poss_Tbl[Refurbishment Possible],I11,Refurb_Poss_Tbl[%]))*AG11,W11*$AG11),0) -> 0
A12: BridEA03 | B12: Footbridge | C12: Bridge - Pedestrian | D12: BridEA0333 | E12: Desk | F12: Bridges | G12: 60 | H12: 20 | I12: Moderate Refurbishment | J12: 10 | K12: New Build | L12: 113 | M12: 123 | N12: 100 | O12: 3 | P12: 883.5084 | Q12: 883.5084 | R12: 1.074176355 | S12: 4.902497072 | T12: 0.1294492521 | U12: 5.512114984 | V12: 0 | W12: 0.1206399085 | X12: 895.2472776 | Y12: 0.05490755123 | Z12: 0 | AA12: 223.8118194 | AB12: 2.292158261 | AC12: 0.06472462604 | AD12: 2.451248536 | AE12: 10 | AF12: 0 | AG12: =VLOOKUP(AE12,ValidationLists!$M$1:$N$102,2,FALSE) -> 0.7089188137 | AH12: 0 | AI12: 0 | AJ12: 0 | AK12: 0 | AL12: 0 | AM12: 0 | AN12: 0 | AO12: 0 | AP12: 0.03892499608 | AQ12: =IF(OR(AF12=3,AF12=2,AF12=0),SUMIFS(FlatMaint!$Z$2:$Z$10000,FlatMaint!$A$2:$A$10000,D12,FlatMaint!$Y$2:$Y$10000,AE12)*AG12,0) -> 62.64441004 | AR12: =IF(OR(AF12=3,AF12=2,AF12=0),SUMIFS(FlatRepair!$Z$2:$Z$10000,FlatRepair!$A$2:$A$10000,D12,FlatRepair!$Y$2:$Y$10000,AE12)*AG12,0) -> 0 | AS12: 0 | AT12: 62.68333503 | AU12: 0 | AV12: 0 | AW12: 0 | AX12: 0 | AY12: 0 | AZ12: 62.68333503 | BA12: 0 | BB12: =IF($AF12=3,IF($AF$2=2,(R12/SUMIF(Refurb_Poss_Tbl[Refurbishment Possible],I12,Refurb_Poss_Tbl[%]))*AG12,IF($AF$2=3,(R12*AG12)-AV12,R12*AG12)),0) -> 0 | BC12: =IF(AF12=3,IF($AF$2=2,(S12/SUMIF(Refurb_Poss_Tbl[Refurbishment Possible],I12,Refurb_Poss_Tbl[%]))*AG12,IF($AF$2=3,(S12*AG12)-AX12,S12*AG12)),0) -> 0 | BD12: =IF($AF12=3,IF($AF$2=2,(T12/SUMIF(Refurb_Poss_Tbl[Refurbishment Possible],I12,Refurb_Poss_Tbl[%]))*AG12,T12*$AG12),0) -> 0 | BE12: =IF($AF12=3,IF($AF$2=2,(Q12/SUMIF(Refurb_Poss_Tbl[Refurbishment Possible],I12,Refurb_Poss_Tbl[%]))*AG12,Q12*$AG12),0) -> 0 | BF12: =IF($AF12=3,IF($AF$2=2,(U12/SUMIF(Refurb_Poss_Tbl[Refurbishment Possible],I12,Refurb_Poss_Tbl[%]))*AG12,U12*$AG12),0) -> 0 | BG12: =IF($AF12=3,IF($AF$2=2,(V12/SUMIF(Refurb_Poss_Tbl[Refurbishment Possible],I12,Refurb_Poss_Tbl[%]))*AG12,IF($AF$2=3,(V12*AG12)-AW12,V12*AG12)),0) -> 0 | BH12: =IF($AF12=3,IF($AF$2=2,(W12/SUMIF(Refurb_Poss_Tbl[Refurbishment Possible],I12,Refurb_Poss_Tbl[%]))*AG12,W12*$AG12),0) -> 0
A13: BridEA03 | B13: Footbridge | C13: Bridge - Pedestrian | D13: BridEA0333 | E13: Desk | F13: Bridges | G13: 60 | H13: 20 | I13: Moderate Refurbishment | J13: 10 | K13: New Build | L13: 113 | M13: 123 | N13: 100 | O13: 3 | P13: 883.5084 | Q13: 883.5084 | R13: 1.074176355 | S13: 4.902497072 | T13: 0.1294492521 | U13: 5.512114984 | V13: 0 | W13: 0.1206399085 | X13: 895.2472776 | Y13: 0.05490755123 | Z13: 0 | AA13: 223.8118194 | AB13: 2.292158261 | AC13: 0.06472462604 | AD13: 2.451248536 | AE13: 11 | AF13: 0 | AG13: =VLOOKUP(AE13,ValidationLists!$M$1:$N$102,2,FALSE) -> 0.6849457137 | AH13: 0 | AI13: 0 | AJ13: 0 | AK13: 0 | AL13: 0 | AM13: 0 | AN13: 0 | AO13: 0 | AP13: 0.03760869187 | AQ13: =IF(OR(AF13=3,AF13=2,AF13=0),SUMIFS(FlatMaint!$Z$2:$Z$10000,FlatMaint!$A$2:$A$10000,D13,FlatMaint!$Y$2:$Y$10000,AE13)*AG13,0) -> 60.52600004 | AR13: =IF(OR(AF13=3,AF13=2,AF13=0),SUMIFS(FlatRepair!$Z$2:$Z$10000,FlatRepair!$A$2:$A$10000,D13,FlatRepair!$Y$2:$Y$10000,AE13)*AG13,0) -> 0 | AS13: 0 | AT13: 60.56360873 | AU13: 0 | AV13: 0 | AW13: 0 | AX13: 0 | AY13: 0 | AZ13: 60.56360873 | BA13: 0 | BB13: =IF($AF13=3,IF($AF$2=2,(R13/SUMIF(Refurb_Poss_Tbl[Refurbishment Possible],I13,Refurb_Poss_Tbl[%]))*AG13,IF($AF$2=3,(R13*AG13)-AV13,R13*AG13)),0) -> 0 | BC13: =IF(AF13=3,IF($AF$2=2,(S13/SUMIF(Refurb_Poss_Tbl[Refurbishment Possible],I13,Refurb_Poss_Tbl[%]))*AG13,IF($AF$2=3,(S13*AG13)-AX13,S13*AG13)),0) -> 0 | BD13: =IF($AF13=3,IF($AF$2=2,(T13/SUMIF(Refurb_Poss_Tbl[Refurbishment Possible],I13,Refurb_Poss_Tbl[%]))*AG13,T13*$AG13),0) -> 0 | BE13: =IF($AF13=3,IF($AF$2=2,(Q13/SUMIF(Refurb_Poss_Tbl[Refurbishment Possible],I13,Refurb_Poss_Tbl[%]))*AG13,Q13*$AG13),0) -> 0 | BF13: =IF($AF13=3,IF($AF$2=2,(U13/SUMIF(Refurb_Poss_Tbl[Refurbishment Possible],I13,Refurb_Poss_Tbl[%]))*AG13,U13*$AG13),0) -> 0 | BG13: =IF($AF13=3,IF($AF$2=2,(V13/SUMIF(Refurb_Poss_Tbl[Refurbishment Possible],I13,Refurb_Poss_Tbl[%]))*AG13,IF($AF$2=3,(V13*AG13)-AW13,V13*AG13)),0) -> 0 | BH13: =IF($AF13=3,IF($AF$2=2,(W13/SUMIF(Refurb_Poss_Tbl[Refurbishment Possible],I13,Refurb_Poss_Tbl[%]))*AG13,W13*$AG13),0) -> 0
A14: BridEA03 | B14: Footbridge | C14: Bridge - Pedestrian | D14: BridEA0333 | E14: Desk | F14: Bridges | G14: 60 | H14: 20 | I14: Moderate Refurbishment | J14: 10 | K14: New Build | L14: 113 | M14: 123 | N14: 100 | O14: 3 | P14: 883.5084 | Q14: 883.5084 | R14: 1.074176355 | S14: 4.902497072 | T14: 0.1294492521 | U14: 5.512114984 | V14: 0 | W14: 0.1206399085 | X14: 895.2472776 | Y14: 0.05490755123 | Z14: 0 | AA14: 223.8118194 | AB14: 2.292158261 | AC14: 0.06472462604 | AD14: 2.451248536 | AE14: 12 | AF14: 0 | AG14: =VLOOKUP(AE14,ValidationLists!$M$1:$N$102,2,FALSE) -> 0.6617832983 | AH14: 0 | AI14: 0 | AJ14: 0 | AK14: 0 | AL14: 0 | AM14: 0 | AN14: 0 | AO14: 0 | AP14: 0.03633690036 | AQ14: =IF(OR(AF14=3,AF14=2,AF14=0),SUMIFS(FlatMaint!$Z$2:$Z$10000,FlatMaint!$A$2:$A$10000,D14,FlatMaint!$Y$2:$Y$10000,AE14)*AG14,0) -> 58.47922709 | AR14: =IF(OR(AF14=3,AF14=2,AF14=0),SUMIFS(FlatRepair!$Z$2:$Z$10000,FlatRepair!$A$2:$A$10000,D14,FlatRepair!$Y$2:$Y$10000,AE14)*AG14,0) -> 0 | AS14: 0 | AT14: 58.51556399 | AU14: 0 | AV14: 0 | AW14: 0 | AX14: 0 | AY14: 0 | AZ14: 58.51556399 | BA14: 0 | BB14: =IF($AF14=3,IF($AF$2=2,(R14/SUMIF(Refurb_Poss_Tbl[Refurbishment Possible],I14,Refurb_Poss_Tbl[%]))*AG14,IF($AF$2=3,(R14*AG14)-AV14,R14*AG14)),0) -> 0 | BC14: =IF(AF14=3,IF($AF$2=2,(S14/SUMIF(Refurb_Poss_Tbl[Refurbishment Possible],I14,Refurb_Poss_Tbl[%]))*AG14,IF($AF$2=3,(S14*AG14)-AX14,S14*AG14)),0) -> 0 | BD14: =IF($AF14=3,IF($AF$2=2,(T14/SUMIF(Refurb_Poss_Tbl[Refurbishment Possible],I14,Refurb_Poss_Tbl[%]))*AG14,T14*$AG14),0) -> 0 | BE14: =IF($AF14=3,IF($AF$2=2,(Q14/SUMIF(Refurb_Poss_Tbl[Refurbishment Possible],I14,Refurb_Poss_Tbl[%]))*AG14,Q14*$AG14),0) -> 0 | BF14: =IF($AF14=3,IF($AF$2=2,(U14/SUMIF(Refurb_Poss_Tbl[Refurbishment Possible],I14,Refurb_Poss_Tbl[%]))*AG14,U14*$AG14),0) -> 0 | BG14: =IF($AF14=3,IF($AF$2=2,(V14/SUMIF(Refurb_Poss_Tbl[Refurbishment Possible],I14,Refurb_Poss_Tbl[%]))*AG14,IF($AF$2=3,(V14*AG14)-AW14,V14*AG14)),0) -> 0 | BH14: =IF($AF14=3,IF($AF$2=2,(W14/SUMIF(Refurb_Poss_Tbl[Refurbishment Possible],I14,Refurb_Poss_Tbl[%]))*AG14,W14*$AG14),0) -> 0
A15: BridEA03 | B15: Footbridge | C15: Bridge - Pedestrian | D15: BridEA0333 | E15: Desk | F15: Bridges | G15: 60 | H15: 20 | I15: Moderate Refurbishment | J15: 10 | K15: New Build | L15: 113 | M15: 123 | N15: 100 | O15: 3 | P15: 883.5084 | Q15: 883.5084 | R15: 1.074176355 | S15: 4.902497072 | T15: 0.1294492521 | U15: 5.512114984 | V15: 0 | W15: 0.1206399085 | X15: 895.2472776 | Y15: 0.05490755123 | Z15: 0 | AA15: 223.8118194 | AB15: 2.292158261 | AC15: 0.06472462604 | AD15: 2.451248536 | AE15: 13 | AF15: 0 | AG15: =VLOOKUP(AE15,ValidationLists!$M$1:$N$102,2,FALSE) -> 0.6394041529 | AH15: 0 | AI15: 0 | AJ15: 0 | AK15: 0 | AL15: 0 | AM15: 0 | AN15: 0 | AO15: 0 | AP15: 0.03510811629 | AQ15: =IF(OR(AF15=3,AF15=2,AF15=0),SUMIFS(FlatMaint!$Z$2:$Z$10000,FlatMaint!$A$2:$A$10000,D15,FlatMaint!$Y$2:$Y$10000,AE15)*AG15,0) -> 56.50166868 | AR15: =IF(OR(AF15=3,AF15=2,AF15=0),SUMIFS(FlatRepair!$Z$2:$Z$10000,FlatRepair!$A$2:$A$10000,D15,FlatRepair!$Y$2:$Y$10000,AE15)*AG15,0) -> 0 | AS15: 0 | AT15: 56.5367768 | AU15: 0 | AV15: 0 | AW15: 0 | AX15: 0 | AY15: 0 | AZ15: 56.5367768 | BA15: 0 | BB15: =IF($AF15=3,IF($AF$2=2,(R15/SUMIF(Refurb_Poss_Tbl[Refurbishment Possible],I15,Refurb_Poss_Tbl[%]))*AG15,IF($AF$2=3,(R15*AG15)-AV15,R15*AG15)),0) -> 0 | BC15: =IF(AF15=3,IF($AF$2=2,(S15/SUMIF(Refurb_Poss_Tbl[Refurbishment Possible],I15,Refurb_Poss_Tbl[%]))*AG15,IF($AF$2=3,(S15*AG15)-AX15,S15*AG15)),0) -> 0 | BD15: =IF($AF15=3,IF($AF$2=2,(T15/SUMIF(Refurb_Poss_Tbl[Refurbishment Possible],I15,Refurb_Poss_Tbl[%]))*AG15,T15*$AG15),0) -> 0 | BE15: =IF($AF15=3,IF($AF$2=2,(Q15/SUMIF(Refurb_Poss_Tbl[Refurbishment Possible],I15,Refurb_Poss_Tbl[%]))*AG15,Q15*$AG15),0) -> 0 | BF15: =IF($AF15=3,IF($AF$2=2,(U15/SUMIF(Refurb_Poss_Tbl[Refurbishment Possible],I15,Refurb_Poss_Tbl[%]))*AG15,U15*$AG15),0) -> 0 | BG15: =IF($AF15=3,IF($AF$2=2,(V15/SUMIF(Refurb_Poss_Tbl[Refurbishment Possible],I15,Refurb_Poss_Tbl[%]))*AG15,IF($AF$2=3,(V15*AG15)-AW15,V15*AG15)),0) -> 0 | BH15: =IF($AF15=3,IF($AF$2=2,(W15/SUMIF(Refurb_Poss_Tbl[Refurbishment Possible],I15,Refurb_Poss_Tbl[%]))*AG15,W15*$AG15),0) -> 0
A16: BridEA03 | B16: Footbridge | C16: Bridge - Pedestrian | D16: BridEA0333 | E16: Desk | F16: Bridges | G16: 60 | H16: 20 | I16: Moderate Refurbishment | J16: 10 | K16: New Build | L16: 113 | M16: 123 | N16: 100 | O16: 3 | P16: 883.5084 | Q16: 883.5084 | R16: 1.074176355 | S16: 4.902497072 | T16: 0.1294492521 | U16: 5.512114984 | V16: 0 | W16: 0.1206399085 | X16: 895.2472776 | Y16: 0.05490755123 | Z16: 0 | AA16: 223.8118194 | AB16: 2.292158261 | AC16: 0.06472462604 | AD16: 2.451248536 | AE16: 14 | AF16: 0 | AG16: =VLOOKUP(AE16,ValidationLists!$M$1:$N$102,2,FALSE) -> 0.6177817903 | AH16: 0 | AI16: 0 | AJ16: 0 | AK16: 0 | AL16: 0 | AM16: 0 | AN16: 0 | AO16: 0 | AP16: 0.0339208853 | AQ16: =IF(OR(AF16=3,AF16=2,AF16=0),SUMIFS(FlatMaint!$Z$2:$Z$10000,FlatMaint!$A$2:$A$10000,D16,FlatMaint!$Y$2:$Y$10000,AE16)*AG16,0) -> 54.59098424 | AR16: =IF(OR(AF16=3,AF16=2,AF16=0),SUMIFS(FlatRepair!$Z$2:$Z$10000,FlatRepair!$A$2:$A$10000,D16,FlatRepair!$Y$2:$Y$10000,AE16)*AG16,0) -> 0 | AS16: 0 | AT16: 54.62490512 | AU16: 0 | AV16: 0 | AW16: 0 | AX16: 0 | AY16: 0 | AZ16: 54.62490512 | BA16: 0 | BB16: =IF($AF16=3,IF($AF$2=2,(R16/SUMIF(Refurb_Poss_Tbl[Refurbishment Possible],I16,Refurb_Poss_Tbl[%]))*AG16,IF($AF$2=3,(R16*AG16)-AV16,R16*AG16)),0) -> 0 | BC16: =IF(AF16=3,IF($AF$2=2,(S16/SUMIF(Refurb_Poss_Tbl[Refurbishment Possible],I16,Refurb_Poss_Tbl[%]))*AG16,IF($AF$2=3,(S16*AG16)-AX16,S16*AG16)),0) -> 0 | BD16: =IF($AF16=3,IF($AF$2=2,(T16/SUMIF(Refurb_Poss_Tbl[Refurbishment Possible],I16,Refurb_Poss_Tbl[%]))*AG16,T16*$AG16),0) -> 0 | BE16: =IF($AF16=3,IF($AF$2=2,(Q16/SUMIF(Refurb_Poss_Tbl[Refurbishment Possible],I16,Refurb_Poss_Tbl[%]))*AG16,Q16*$AG16),0) -> 0 | BF16: =IF($AF16=3,IF($AF$2=2,(U16/SUMIF(Refurb_Poss_Tbl[Refurbishment Possible],I16,Refurb_Poss_Tbl[%]))*AG16,U16*$AG16),0) -> 0 | BG16: =IF($AF16=3,IF($AF$2=2,(V16/SUMIF(Refurb_Poss_Tbl[Refurbishment Possible],I16,Refurb_Poss_Tbl[%]))*AG16,IF($AF$2=3,(V16*AG16)-AW16,V16*AG16)),0) -> 0 | BH16: =IF($AF16=3,IF($AF$2=2,(W16/SUMIF(Refurb_Poss_Tbl[Refurbishment Possible],I16,Refurb_Poss_Tbl[%]))*AG16,W16*$AG16),0) -> 0
A17: BridEA03 | B17: Footbridge | C17: Bridge - Pedestrian | D17: BridEA0333 | E17: Desk | F17: Bridges | G17: 60 | H17: 20 | I17: Moderate Refurbishment | J17: 10 | K17: New Build | L17: 113 | M17: 123 | N17: 100 | O17: 3 | P17: 883.5084 | Q17: 883.5084 | R17: 1.074176355 | S17: 4.902497072 | T17: 0.1294492521 | U17: 5.512114984 | V17: 0 | W17: 0.1206399085 | X17: 895.2472776 | Y17: 0.05490755123 | Z17: 0 | AA17: 223.8118194 | AB17: 2.292158261 | AC17: 0.06472462604 | AD17: 2.451248536 | AE17: 15 | AF17: 0 | AG17: =VLOOKUP(AE17,ValidationLists!$M$1:$N$102,2,FALSE) -> 0.5968906186 | AH17: 0 | AI17: 0 | AJ17: 0 | AK17: 0 | AL17: 0 | AM17: 0 | AN17: 0 | AO17: 0 | AP17: 0.03277380222 | AQ17: =IF(OR(AF17=3,AF17=2,AF17=0),SUMIFS(FlatMaint!$Z$2:$Z$10000,FlatMaint!$A$2:$A$10000,D17,FlatMaint!$Y$2:$Y$10000,AE17)*AG17,0) -> 52.7449123 | AR17: =IF(OR(AF17=3,AF17=2,AF17=0),SUMIFS(FlatRepair!$Z$2:$Z$10000,FlatRepair!$A$2:$A$10000,D17,FlatRepair!$Y$2:$Y$10000,AE17)*AG17,0) -> 0 | AS17: 0 | AT17: 52.77768611 | AU17: 0 | AV17: 0 | AW17: 0 | AX17: 0 | AY17: 0 | AZ17: 52.77768611 | BA17: 0 | BB17: =IF($AF17=3,IF($AF$2=2,(R17/SUMIF(Refurb_Poss_Tbl[Refurbishment Possible],I17,Refurb_Poss_Tbl[%]))*AG17,IF($AF$2=3,(R17*AG17)-AV17,R17*AG17)),0) -> 0 | BC17: =IF(AF17=3,IF($AF$2=2,(S17/SUMIF(Refurb_Poss_Tbl[Refurbishment Possible],I17,Refurb_Poss_Tbl[%]))*AG17,IF($AF$2=3,(S17*AG17)-AX17,S17*AG17)),0) -> 0 | BD17: =IF($AF17=3,IF($AF$2=2,(T17/SUMIF(Refurb_Poss_Tbl[Refurbishment Possible],I17,Refurb_Poss_Tbl[%]))*AG17,T17*$AG17),0) -> 0 | BE17: =IF($AF17=3,IF($AF$2=2,(Q17/SUMIF(Refurb_Poss_Tbl[Refurbishment Possible],I17,Refurb_Poss_Tbl[%]))*AG17,Q17*$AG17),0) -> 0 | BF17: =IF($AF17=3,IF($AF$2=2,(U17/SUMIF(Refurb_Poss_Tbl[Refurbishment Possible],I17,Refurb_Poss_Tbl[%]))*AG17,U17*$AG17),0) -> 0 | BG17: =IF($AF17=3,IF($AF$2=2,(V17/SUMIF(Refurb_Poss_Tbl[Refurbishment Possible],I17,Refurb_Poss_Tbl[%]))*AG17,IF($AF$2=3,(V17*AG17)-AW17,V17*AG17)),0) -> 0 | BH17: =IF($AF17=3,IF($AF$2=2,(W17/SUMIF(Refurb_Poss_Tbl[Refurbishment Possible],I17,Refurb_Poss_Tbl[%]))*AG17,W17*$AG17),0) -> 0
A18: BridEA03 | B18: Footbridge | C18: Bridge - Pedestrian | D18: BridEA0333 | E18: Desk | F18: Bridges | G18: 60 | H18: 20 | I18: Moderate Refurbishment | J18: 10 | K18: New Build | L18: 113 | M18: 123 | N18: 100 | O18: 3 | P18: 883.5084 | Q18: 883.5084 | R18: 1.074176355 | S18: 4.902497072 | T18: 0.1294492521 | U18: 5.512114984 | V18: 0 | W18: 0.1206399085 | X18: 895.2472776 | Y18: 0.05490755123 | Z18: 0 | AA18: 223.8118194 | AB18: 2.292158261 | AC18: 0.06472462604 | AD18: 2.451248536 | AE18: 16 | AF18: 0 | AG18: =VLOOKUP(AE18,ValidationLists!$M$1:$N$102,2,FALSE) -> 0.5767059117 | AH18: 0 | AI18: 0 | AJ18: 0 | AK18: 0 | AL18: 0 | AM18: 0 | AN18: 0 | AO18: 0 | AP18: 0.03166550939 | AQ18: =IF(OR(AF18=3,AF18=2,AF18=0),SUMIFS(FlatMaint!$Z$2:$Z$10000,FlatMaint!$A$2:$A$10000,D18,FlatMaint!$Y$2:$Y$10000,AE18)*AG18,0) -> 50.96126793 | AR18: =IF(OR(AF18=3,AF18=2,AF18=0),SUMIFS(FlatRepair!$Z$2:$Z$10000,FlatRepair!$A$2:$A$10000,D18,FlatRepair!$Y$2:$Y$10000,AE18)*AG18,0) -> 0 | AS18: 0 | AT18: 50.99293344 | AU18: 0 | AV18: 0 | AW18: 0 | AX18: 0 | AY18: 0 | AZ18: 50.99293344 | BA18: 0 | BB18: =IF($AF18=3,IF($AF$2=2,(R18/SUMIF(Refurb_Poss_Tbl[Refurbishment Possible],I18,Refurb_Poss_Tbl[%]))*AG18,IF($AF$2=3,(R18*AG18)-AV18,R18*AG18)),0) -> 0 | BC18: =IF(AF18=3,IF($AF$2=2,(S18/SUMIF(Refurb_Poss_Tbl[Refurbishment Possible],I18,Refurb_Poss_Tbl[%]))*AG18,IF($AF$2=3,(S18*AG18)-AX18,S18*AG18)),0) -> 0 | BD18: =IF($AF18=3,IF($AF$2=2,(T18/SUMIF(Refurb_Poss_Tbl[Refurbishment Possible],I18,Refurb_Poss_Tbl[%]))*AG18,T18*$AG18),0) -> 0 | BE18: =IF($AF18=3,IF($AF$2=2,(Q18/SUMIF(Refurb_Poss_Tbl[Refurbishment Possible],I18,Refurb_Poss_Tbl[%]))*AG18,Q18*$AG18),0) -> 0 | BF18: =IF($AF18=3,IF($AF$2=2,(U18/SUMIF(Refurb_Poss_Tbl[Refurbishment Possible],I18,Refurb_Poss_Tbl[%]))*AG18,U18*$AG18),0) -> 0 | BG18: =IF($AF18=3,IF($AF$2=2,(V18/SUMIF(Refurb_Poss_Tbl[Refurbishment Possible],I18,Refurb_Poss_Tbl[%]))*AG18,IF($AF$2=3,(V18*AG18)-AW18,V18*AG18)),0) -> 0 | BH18: =IF($AF18=3,IF($AF$2=2,(W18/SUMIF(Refurb_Poss_Tbl[Refurbishment Possible],I18,Refurb_Poss_Tbl[%]))*AG18,W18*$AG18),0) -> 0
A19: BridEA03 | B19: Footbridge | C19: Bridge - Pedestrian | D19: BridEA0333 | E19: Desk | F19: Bridges | G19: 60 | H19: 20 | I19: Moderate Refurbishment | J19: 10 | K19: New Build | L19: 113 | M19: 123 | N19: 100 | O19: 3 | P19: 883.5084 | Q19: 883.5084 | R19: 1.074176355 | S19: 4.902497072 | T19: 0.1294492521 | U19: 5.512114984 | V19: 0 | W19: 0.1206399085 | X19: 895.2472776 | Y19: 0.05490755123 | Z19: 0 | AA19: 223.8118194 | AB19: 2.292158261 | AC19: 0.06472462604 | AD19: 2.451248536 | AE19: 17 | AF19: 0 | AG19: =VLOOKUP(AE19,ValidationLists!$M$1:$N$102,2,FALSE) -> 0.5572037794 | AH19: 0 | AI19: 0 | AJ19: 0 | AK19: 0 | AL19: 0 | AM19: 0 | AN19: 0 | AO19: 0 | AP19: 0.03059469507 | AQ19: =IF(OR(AF19=3,AF19=2,AF19=0),SUMIFS(FlatMaint!$Z$2:$Z$10000,FlatMaint!$A$2:$A$10000,D19,FlatMaint!$Y$2:$Y$10000,AE19)*AG19,0) -> 49.23794003 | AR19: =IF(OR(AF19=3,AF19=2,AF19=0),SUMIFS(FlatRepair!$Z$2:$Z$10000,FlatRepair!$A$2:$A$10000,D19,FlatRepair!$Y$2:$Y$10000,AE19)*AG19,0) -> 0 | AS19: 0 | AT19: 49.26853472 | AU19: 0 | AV19: 0 | AW19: 0 | AX19: 0 | AY19: 0 | AZ19: 49.26853472 | BA19: 0 | BB19: =IF($AF19=3,IF($AF$2=2,(R19/SUMIF(Refurb_Poss_Tbl[Refurbishment Possible],I19,Refurb_Poss_Tbl[%]))*AG19,IF($AF$2=3,(R19*AG19)-AV19,R19*AG19)),0) -> 0 | BC19: =IF(AF19=3,IF($AF$2=2,(S19/SUMIF(Refurb_Poss_Tbl[Refurbishment Possible],I19,Refurb_Poss_Tbl[%]))*AG19,IF($AF$2=3,(S19*AG19)-AX19,S19*AG19)),0) -> 0 | BD19: =IF($AF19=3,IF($AF$2=2,(T19/SUMIF(Refurb_Poss_Tbl[Refurbishment Possible],I19,Refurb_Poss_Tbl[%]))*AG19,T19*$AG19),0) -> 0 | BE19: =IF($AF19=3,IF($AF$2=2,(Q19/SUMIF(Refurb_Poss_Tbl[Refurbishment Possible],I19,Refurb_Poss_Tbl[%]))*AG19,Q19*$AG19),0) -> 0 | BF19: =IF($AF19=3,IF($AF$2=2,(U19/SUMIF(Refurb_Poss_Tbl[Refurbishment Possible],I19,Refurb_Poss_Tbl[%]))*AG19,U19*$AG19),0) -> 0 | BG19: =IF($AF19=3,IF($AF$2=2,(V19/SUMIF(Refurb_Poss_Tbl[Refurbishment Possible],I19,Refurb_Poss_Tbl[%]))*AG19,IF($AF$2=3,(V19*AG19)-AW19,V19*AG19)),0) -> 0 | BH19: =IF($AF19=3,IF($AF$2=2,(W19/SUMIF(Refurb_Poss_Tbl[Refurbishment Possible],I19,Refurb_Poss_Tbl[%]))*AG19,W19*$AG19),0) -> 0
A20: BridEA03 | B20: Footbridge | C20: Bridge - Pedestrian | D20: BridEA0333 | E20: Desk | F20: Bridges | G20: 60 | H20: 20 | I20: Moderate Refurbishment | J20: 10 | K20: New Build | L20: 113 | M20: 123 | N20: 100 | O20: 3 | P20: 883.5084 | Q20: 883.5084 | R20: 1.074176355 | S20: 4.902497072 | T20: 0.1294492521 | U20: 5.512114984 | V20: 0 | W20: 0.1206399085 | X20: 895.2472776 | Y20: 0.05490755123 | Z20: 0 | AA20: 223.8118194 | AB20: 2.292158261 | AC20: 0.06472462604 | AD20: 2.451248536 | AE20: 18 | AF20: 0 | AG20: =VLOOKUP(AE20,ValidationLists!$M$1:$N$102,2,FALSE) -> 0.5383611396 | AH20: 0 | AI20: 0 | AJ20: 0 | AK20: 0 | AL20: 0 | AM20: 0 | AN20: 0 | AO20: 0 | AP20: 0.02956009185 | AQ20: =IF(OR(AF20=3,AF20=2,AF20=0),SUMIFS(FlatMaint!$Z$2:$Z$10000,FlatMaint!$A$2:$A$10000,D20,FlatMaint!$Y$2:$Y$10000,AE20)*AG20,0) -> 47.57288891 | AR20: =IF(OR(AF20=3,AF20=2,AF20=0),SUMIFS(FlatRepair!$Z$2:$Z$10000,FlatRepair!$A$2:$A$10000,D20,FlatRepair!$Y$2:$Y$10000,AE20)*AG20,0) -> 0 | AS20: 0 | AT20: 47.60244901 | AU20: 0 | AV20: 0 | AW20: 0 | AX20: 0 | AY20: 0 | AZ20: 47.60244901 | BA20: 0 | BB20: =IF($AF20=3,IF($AF$2=2,(R20/SUMIF(Refurb_Poss_Tbl[Refurbishment Possible],I20,Refurb_Poss_Tbl[%]))*AG20,IF($AF$2=3,(R20*AG20)-AV20,R20*AG20)),0) -> 0 | BC20: =IF(AF20=3,IF($AF$2=2,(S20/SUMIF(Refurb_Poss_Tbl[Refurbishment Possible],I20,Refurb_Poss_Tbl[%]))*AG20,IF($AF$2=3,(S20*AG20)-AX20,S20*AG20)),0) -> 0 | BD20: =IF($AF20=3,IF($AF$2=2,(T20/SUMIF(Refurb_Poss_Tbl[Refurbishment Possible],I20,Refurb_Poss_Tbl[%]))*AG20,T20*$AG20),0) -> 0 | BE20: =IF($AF20=3,IF($AF$2=2,(Q20/SUMIF(Refurb_Poss_Tbl[Refurbishment Possible],I20,Refurb_Poss_Tbl[%]))*AG20,Q20*$AG20),0) -> 0 | BF20: =IF($AF20=3,IF($AF$2=2,(U20/SUMIF(Refurb_Poss_Tbl[Refurbishment Possible],I20,Refurb_Poss_Tbl[%]))*AG20,U20*$AG20),0) -> 0 | BG20: =IF($AF20=3,IF($AF$2=2,(V20/SUMIF(Refurb_Poss_Tbl[Refurbishment Possible],I20,Refurb_Poss_Tbl[%]))*AG20,IF($AF$2=3,(V20*AG20)-AW20,V20*AG20)),0) -> 0 | BH20: =IF($AF20=3,IF($AF$2=2,(W20/SUMIF(Refurb_Poss_Tbl[Refurbishment Possible],I20,Refurb_Poss_Tbl[%]))*AG20,W20*$AG20),0) -> 0
A21: BridEA03 | B21: Footbridge | C21: Bridge - Pedestrian | D21: BridEA0333 | E21: Desk | F21: Bridges | G21: 60 | H21: 20 | I21: Moderate Refurbishment | J21: 10 | K21: New Build | L21: 113 | M21: 123 | N21: 100 | O21: 3 | P21: 883.5084 | Q21: 883.5084 | R21: 1.074176355 | S21: 4.902497072 | T21: 0.1294492521 | U21: 5.512114984 | V21: 0 | W21: 0.1206399085 | X21: 895.2472776 | Y21: 0.05490755123 | Z21: 0 | AA21: 223.8118194 | AB21: 2.292158261 | AC21: 0.06472462604 | AD21: 2.451248536 | AE21: 19 | AF21: 0 | AG21: =VLOOKUP(AE21,ValidationLists!$M$1:$N$102,2,FALSE) -> 0.5201556904 | AH21: 0 | AI21: 0 | AJ21: 0 | AK21: 0 | AL21: 0 | AM21: 0 | AN21: 0 | AO21: 0 | AP21: 0.02856047522 | AQ21: =IF(OR(AF21=3,AF21=2,AF21=0),SUMIFS(FlatMaint!$Z$2:$Z$10000,FlatMaint!$A$2:$A$10000,D21,FlatMaint!$Y$2:$Y$10000,AE21)*AG21,0) -> 45.96414388 | AR21: =IF(OR(AF21=3,AF21=2,AF21=0),SUMIFS(FlatRepair!$Z$2:$Z$10000,FlatRepair!$A$2:$A$10000,D21,FlatRepair!$Y$2:$Y$10000,AE21)*AG21,0) -> 0 | AS21: 0 | AT21: 45.99270435 | AU21: 0 | AV21: 0 | AW21: 0 | AX21: 0 | AY21: 0 | AZ21: 45.99270435 | BA21: 0 | BB21: =IF($AF21=3,IF($AF$2=2,(R21/SUMIF(Refurb_Poss_Tbl[Refurbishment Possible],I21,Refurb_Poss_Tbl[%]))*AG21,IF($AF$2=3,(R21*AG21)-AV21,R21*AG21)),0) -> 0 | BC21: =IF(AF21=3,IF($AF$2=2,(S21/SUMIF(Refurb_Poss_Tbl[Refurbishment Possible],I21,Refurb_Poss_Tbl[%]))*AG21,IF($AF$2=3,(S21*AG21)-AX21,S21*AG21)),0) -> 0 | BD21: =IF($AF21=3,IF($AF$2=2,(T21/SUMIF(Refurb_Poss_Tbl[Refurbishment Possible],I21,Refurb_Poss_Tbl[%]))*AG21,T21*$AG21),0) -> 0 | BE21: =IF($AF21=3,IF($AF$2=2,(Q21/SUMIF(Refurb_Poss_Tbl[Refurbishment Possible],I21,Refurb_Poss_Tbl[%]))*AG21,Q21*$AG21),0) -> 0 | BF21: =IF($AF21=3,IF($AF$2=2,(U21/SUMIF(Refurb_Poss_Tbl[Refurbishment Possible],I21,Refurb_Poss_Tbl[%]))*AG21,U21*$AG21),0) -> 0 | BG21: =IF($AF21=3,IF($AF$2=2,(V21/SUMIF(Refurb_Poss_Tbl[Refurbishment Possible],I21,Refurb_Poss_Tbl[%]))*AG21,IF($AF$2=3,(V21*AG21)-AW21,V21*AG21)),0) -> 0 | BH21: =IF($AF21=3,IF($AF$2=2,(W21/SUMIF(Refurb_Poss_Tbl[Refurbishment Possible],I21,Refurb_Poss_Tbl[%]))*AG21,W21*$AG21),0) -> 0
A22: BridEA03 | B22: Footbridge | C22: Bridge - Pedestrian | D22: BridEA0333 | E22: Desk | F22: Bridges | G22: 60 | H22: 20 | I22: Moderate Refurbishment | J22: 10 | K22: New Build | L22: 113 | M22: 123 | N22: 100 | O22: 3 | P22: 883.5084 | Q22: 883.5084 | R22: 1.074176355 | S22: 4.902497072 | T22: 0.1294492521 | U22: 5.512114984 | V22: 0 | W22: 0.1206399085 | X22: 895.2472776 | Y22: 0.05490755123 | Z22: 0 | AA22: 223.8118194 | AB22: 2.292158261 | AC22: 0.06472462604 | AD22: 2.451248536 | AE22: 20 | AF22: 2 | AG22: =VLOOKUP(AE22,ValidationLists!$M$1:$N$102,2,FALSE) -> 0.5025658844 | AH22: 0 | AI22: 0 | AJ22: 0 | AK22: 0 | AL22: 0 | AM22: 0 | AN22: 0 | AO22: 0 | AP22: 0.02759466205 | AQ22: =IF(OR(AF22=3,AF22=2,AF22=0),SUMIFS(FlatMaint!$Z$2:$Z$10000,FlatMaint!$A$2:$A$10000,D22,FlatMaint!$Y$2:$Y$10000,AE22)*AG22,0) -> 44.40980085 | AR22: =IF(OR(AF22=3,AF22=2,AF22=0),SUMIFS(FlatRepair!$Z$2:$Z$10000,FlatRepair!$A$2:$A$10000,D22,FlatRepair!$Y$2:$Y$10000,AE22)*AG22,0) -> 0 | AS22: 0 | AT22: 44.43739551 | AU22: 112.480185 | AV22: 0 | AW22: 0 | AX22: 0 | AY22: 0 | AZ22: 156.9175805 | BA22: 0 | BB22: =IF($AF22=3,IF($AF$2=2,(R22/SUMIF(Refurb_Poss_Tbl[Refurbishment Possible],I22,Refurb_Poss_Tbl[%]))*AG22,IF($AF$2=3,(R22*AG22)-AV22,R22*AG22)),0) -> 0 | BC22: =IF(AF22=3,IF($AF$2=2,(S22/SUMIF(Refurb_Poss_Tbl[Refurbishment Possible],I22,Refurb_Poss_Tbl[%]))*AG22,IF($AF$2=3,(S22*AG22)-AX22,S22*AG22)),0) -> 0 | BD22: =IF($AF22=3,IF($AF$2=2,(T22/SUMIF(Refurb_Poss_Tbl[Refurbishment Possible],I22,Refurb_Poss_Tbl[%]))*AG22,T22*$AG22),0) -> 0 | BE22: =IF($AF22=3,IF($AF$2=2,(Q22/SUMIF(Refurb_Poss_Tbl[Refurbishment Possible],I22,Refurb_Poss_Tbl[%]))*AG22,Q22*$AG22),0) -> 0 | BF22: =IF($AF22=3,IF($AF$2=2,(U22/SUMIF(Refurb_Poss_Tbl[Refurbishment Possible],I22,Refurb_Poss_Tbl[%]))*AG22,U22*$AG22),0) -> 0 | BG22: =IF($AF22=3,IF($AF$2=2,(V22/SUMIF(Refurb_Poss_Tbl[Refurbishment Possible],I22,Refurb_Poss_Tbl[%]))*AG22,IF($AF$2=3,(V22*AG22)-AW22,V22*AG22)),0) -> 0 | BH22: =IF($AF22=3,IF($AF$2=2,(W22/SUMIF(Refurb_Poss_Tbl[Refurbishment Possible],I22,Refurb_Poss_Tbl[%]))*AG22,W22*$AG22),0) -> 0
A23: BridEA03 | B23: Footbridge | C23: Bridge - Pedestrian | D23: BridEA0333 | E23: Desk | F23: Bridges | G23: 60 | H23: 20 | I23: Moderate Refurbishment | J23: 10 | K23: New Build | L23: 113 | M23: 123 | N23: 100 | O23: 3 | P23: 883.5084 | Q23: 883.5084 | R23: 1.074176355 | S23: 4.902497072 | T23: 0.1294492521 | U23: 5.512114984 | V23: 0 | W23: 0.1206399085 | X23: 895.2472776 | Y23: 0.05490755123 | Z23: 0 | AA23: 223.8118194 | AB23: 2.292158261 | AC23: 0.06472462604 | AD23: 2.451248536 | AE23: 21 | AF23: 0 | AG23: =VLOOKUP(AE23,ValidationLists!$M$1:$N$102,2,FALSE) -> 0.4855709028 | AH23: 0 | AI23: 0 | AJ23: 0 | AK23: 0 | AL23: 0 | AM23: 0 | AN23: 0 | AO23: 0 | AP23: 0.02666150922 | AQ23: =IF(OR(AF23=3,AF23=2,AF23=0),SUMIFS(FlatMaint!$Z$2:$Z$10000,FlatMaint!$A$2:$A$10000,D23,FlatMaint!$Y$2:$Y$10000,AE23)*AG23,0) -> 42.90802014 | AR23: =IF(OR(AF23=3,AF23=2,AF23=0),SUMIFS(FlatRepair!$Z$2:$Z$10000,FlatRepair!$A$2:$A$10000,D23,FlatRepair!$Y$2:$Y$10000,AE23)*AG23,0) -> 0 | AS23: 0 | AT23: 42.93468165 | AU23: 0 | AV23: 0 | AW23: 0 | AX23: 0 | AY23: 0 | AZ23: 42.93468165 | BA23: 0 | BB23: =IF($AF23=3,IF($AF$2=2,(R23/SUMIF(Refurb_Poss_Tbl[Refurbishment Possible],I23,Refurb_Poss_Tbl[%]))*AG23,IF($AF$2=3,(R23*AG23)-AV23,R23*AG23)),0) -> 0 | BC23: =IF(AF23=3,IF($AF$2=2,(S23/SUMIF(Refurb_Poss_Tbl[Refurbishment Possible],I23,Refurb_Poss_Tbl[%]))*AG23,IF($AF$2=3,(S23*AG23)-AX23,S23*AG23)),0) -> 0 | BD23: =IF($AF23=3,IF($AF$2=2,(T23/SUMIF(Refurb_Poss_Tbl[Refurbishment Possible],I23,Refurb_Poss_Tbl[%]))*AG23,T23*$AG23),0) -> 0 | BE23: =IF($AF23=3,IF($AF$2=2,(Q23/SUMIF(Refurb_Poss_Tbl[Refurbishment Possible],I23,Refurb_Poss_Tbl[%]))*AG23,Q23*$AG23),0) -> 0 | BF23: =IF($AF23=3,IF($AF$2=2,(U23/SUMIF(Refurb_Poss_Tbl[Refurbishment Possible],I23,Refurb_Poss_Tbl[%]))*AG23,U23*$AG23),0) -> 0 | BG23: =IF($AF23=3,IF($AF$2=2,(V23/SUMIF(Refurb_Poss_Tbl[Refurbishment Possible],I23,Refurb_Poss_Tbl[%]))*AG23,IF($AF$2=3,(V23*AG23)-AW23,V23*AG23)),0) -> 0 | BH23: =IF($AF23=3,IF($AF$2=2,(W23/SUMIF(Refurb_Poss_Tbl[Refurbishment Possible],I23,Refurb_Poss_Tbl[%]))*AG23,W23*$AG23),0) -> 0
A24: BridEA03 | B24: Footbridge | C24: Bridge - Pedestrian | D24: BridEA0333 | E24: Desk | F24: Bridges | G24: 60 | H24: 20 | I24: Moderate Refurbishment | J24: 10 | K24: New Build | L24: 113 | M24: 123 | N24: 100 | O24: 3 | P24: 883.5084 | Q24: 883.5084 | R24: 1.074176355 | S24: 4.902497072 | T24: 0.1294492521 | U24: 5.512114984 | V24: 0 | W24: 0.1206399085 | X24: 895.2472776 | Y24: 0.05490755123 | Z24: 0 | AA24: 223.8118194 | AB24: 2.292158261 | AC24: 0.06472462604 | AD24: 2.451248536 | AE24: 22 | AF24: 0 | AG24: =VLOOKUP(AE24,ValidationLists!$M$1:$N$102,2,FALSE) -> 0.4691506308 | AH24: 0 | AI24: 0 | AJ24: 0 | AK24: 0 | AL24: 0 | AM24: 0 | AN24: 0 | AO24: 0 | AP24: 0.02575991229 | AQ24: =IF(OR(AF24=3,AF24=2,AF24=0),SUMIFS(FlatMaint!$Z$2:$Z$10000,FlatMaint!$A$2:$A$10000,D24,FlatMaint!$Y$2:$Y$10000,AE24)*AG24,0) -> 41.45702429 | AR24: =IF(OR(AF24=3,AF24=2,AF24=0),SUMIFS(FlatRepair!$Z$2:$Z$10000,FlatRepair!$A$2:$A$10000,D24,FlatRepair!$Y$2:$Y$10000,AE24)*AG24,0) -> 0 | AS24: 0 | AT24: 41.48278421 | AU24: 0 | AV24: 0 | AW24: 0 | AX24: 0 | AY24: 0 | AZ24: 41.48278421 | BA24: 0 | BB24: =IF($AF24=3,IF($AF$2=2,(R24/SUMIF(Refurb_Poss_Tbl[Refurbishment Possible],I24,Refurb_Poss_Tbl[%]))*AG24,IF($AF$2=3,(R24*AG24)-AV24,R24*AG24)),0) -> 0 | BC24: =IF(AF24=3,IF($AF$2=2,(S24/SUMIF(Refurb_Poss_Tbl[Refurbishment Possible],I24,Refurb_Poss_Tbl[%]))*AG24,IF($AF$2=3,(S24*AG24)-AX24,S24*AG24)),0) -> 0 | BD24: =IF($AF24=3,IF($AF$2=2,(T24/SUMIF(Refurb_Poss_Tbl[Refurbishment Possible],I24,Refurb_Poss_Tbl[%]))*AG24,T24*$AG24),0) -> 0 | BE24: =IF($AF24=3,IF($AF$2=2,(Q24/SUMIF(Refurb_Poss_Tbl[Refurbishment Possible],I24,Refurb_Poss_Tbl[%]))*AG24,Q24*$AG24),0) -> 0 | BF24: =IF($AF24=3,IF($AF$2=2,(U24/SUMIF(Refurb_Poss_Tbl[Refurbishment Possible],I24,Refurb_Poss_Tbl[%]))*AG24,U24*$AG24),0) -> 0 | BG24: =IF($AF24=3,IF($AF$2=2,(V24/SUMIF(Refurb_Poss_Tbl[Refurbishment Possible],I24,Refurb_Poss_Tbl[%]))*AG24,IF($AF$2=3,(V24*AG24)-AW24,V24*AG24)),0) -> 0 | BH24: =IF($AF24=3,IF($AF$2=2,(W24/SUMIF(Refurb_Poss_Tbl[Refurbishment Possible],I24,Refurb_Poss_Tbl[%]))*AG24,W24*$AG24),0) -> 0
A25: BridEA03 | B25: Footbridge | C25: Bridge - Pedestrian | D25: BridEA0333 | E25: Desk | F25: Bridges | G25: 60 | H25: 20 | I25: Moderate Refurbishment | J25: 10 | K25: New Build | L25: 113 | M25: 123 | N25: 100 | O25: 3 | P25: 883.5084 | Q25: 883.5084 | R25: 1.074176355 | S25: 4.902497072 | T25: 0.1294492521 | U25: 5.512114984 | V25: 0 | W25: 0.1206399085 | X25: 895.2472776 | Y25: 0.05490755123 | Z25: 0 | AA25: 223.8118194 | AB25: 2.292158261 | AC25: 0.06472462604 | AD25: 2.451248536 | AE25: 23 | AF25: 0 | AG25: =VLOOKUP(AE25,ValidationLists!$M$1:$N$102,2,FALSE) -> 0.4532856336 | AH25: 0 | AI25: 0 | AJ25: 0 | AK25: 0 | AL25: 0 | AM25: 0 | AN25: 0 | AO25: 0 | AP25: 0.02488880415 | AQ25: =IF(OR(AF25=3,AF25=2,AF25=0),SUMIFS(FlatMaint!$Z$2:$Z$10000,FlatMaint!$A$2:$A$10000,D25,FlatMaint!$Y$2:$Y$10000,AE25)*AG25,0) -> 40.05509594 | AR25: =IF(OR(AF25=3,AF25=2,AF25=0),SUMIFS(FlatRepair!$Z$2:$Z$10000,FlatRepair!$A$2:$A$10000,D25,FlatRepair!$Y$2:$Y$10000,AE25)*AG25,0) -> 0 | AS25: 0 | AT25: 40.07998474 | AU25: 0 | AV25: 0 | AW25: 0 | AX25: 0 | AY25: 0 | AZ25: 40.07998474 | BA25: 0 | BB25: =IF($AF25=3,IF($AF$2=2,(R25/SUMIF(Refurb_Poss_Tbl[Refurbishment Possible],I25,Refurb_Poss_Tbl[%]))*AG25,IF($AF$2=3,(R25*AG25)-AV25,R25*AG25)),0) -> 0 | BC25: =IF(AF25=3,IF($AF$2=2,(S25/SUMIF(Refurb_Poss_Tbl[Refurbishment Possible],I25,Refurb_Poss_Tbl[%]))*AG25,IF($AF$2=3,(S25*AG25)-AX25,S25*AG25)),0) -> 0 | BD25: =IF($AF25=3,IF($AF$2=2,(T25/SUMIF(Refurb_Poss_Tbl[Refurbishment Possible],I25,Refurb_Poss_Tbl[%]))*AG25,T25*$AG25),0) -> 0 | BE25: =IF($AF25=3,IF($AF$2=2,(Q25/SUMIF(Refurb_Poss_Tbl[Refurbishment Possible],I25,Refurb_Poss_Tbl[%]))*AG25,Q25*$AG25),0) -> 0 | BF25: =IF($AF25=3,IF($AF$2=2,(U25/SUMIF(Refurb_Poss_Tbl[Refurbishment Possible],I25,Refurb_Poss_Tbl[%]))*AG25,U25*$AG25),0) -> 0 | BG25: =IF($AF25=3,IF($AF$2=2,(V25/SUMIF(Refurb_Poss_Tbl[Refurbishment Possible],I25,Refurb_Poss_Tbl[%]))*AG25,IF($AF$2=3,(V25*AG25)-AW25,V25*AG25)),0) -> 0 | BH25: =IF($AF25=3,IF($AF$2=2,(W25/SUMIF(Refurb_Poss_Tbl[Refurbishment Possible],I25,Refurb_Poss_Tbl[%]))*AG25,W25*$AG25),0) -> 0
A26: BridEA03 | B26: Footbridge | C26: Bridge - Pedestrian | D26: BridEA0333 | E26: Desk | F26: Bridges | G26: 60 | H26: 20 | I26: Moderate Refurbishment | J26: 10 | K26: New Build | L26: 113 | M26: 123 | N26: 100 | O26: 3 | P26: 883.5084 | Q26: 883.5084 | R26: 1.074176355 | S26: 4.902497072 | T26: 0.1294492521 | U26: 5.512114984 | V26: 0 | W26: 0.1206399085 | X26: 895.2472776 | Y26: 0.05490755123 | Z26: 0 | AA26: 223.8118194 | AB26: 2.292158261 | AC26: 0.06472462604 | AD26: 2.451248536 | AE26: 24 | AF26: 0 | AG26: =VLOOKUP(AE26,ValidationLists!$M$1:$N$102,2,FALSE) -> 0.4379571339 | AH26: 0 | AI26: 0 | AJ26: 0 | AK26: 0 | AL26: 0 | AM26: 0 | AN26: 0 | AO26: 0 | AP26: 0.02404715377 | AQ26: =IF(OR(AF26=3,AF26=2,AF26=0),SUMIFS(FlatMaint!$Z$2:$Z$10000,FlatMaint!$A$2:$A$10000,D26,FlatMaint!$Y$2:$Y$10000,AE26)*AG26,0) -> 38.70057578 | AR26: =IF(OR(AF26=3,AF26=2,AF26=0),SUMIFS(FlatRepair!$Z$2:$Z$10000,FlatRepair!$A$2:$A$10000,D26,FlatRepair!$Y$2:$Y$10000,AE26)*AG26,0) -> 0 | AS26: 0 | AT26: 38.72462294 | AU26: 0 | AV26: 0 | AW26: 0 | AX26: 0 | AY26: 0 | AZ26: 38.72462294 | BA26: 0 | BB26: =IF($AF26=3,IF($AF$2=2,(R26/SUMIF(Refurb_Poss_Tbl[Refurbishment Possible],I26,Refurb_Poss_Tbl[%]))*AG26,IF($AF$2=3,(R26*AG26)-AV26,R26*AG26)),0) -> 0 | BC26: =IF(AF26=3,IF($AF$2=2,(S26/SUMIF(Refurb_Poss_Tbl[Refurbishment Possible],I26,Refurb_Poss_Tbl[%]))*AG26,IF($AF$2=3,(S26*AG26)-AX26,S26*AG26)),0) -> 0 | BD26: =IF($AF26=3,IF($AF$2=2,(T26/SUMIF(Refurb_Poss_Tbl[Refurbishment Possible],I26,Refurb_Poss_Tbl[%]))*AG26,T26*$AG26),0) -> 0 | BE26: =IF($AF26=3,IF($AF$2=2,(Q26/SUMIF(Refurb_Poss_Tbl[Refurbishment Possible],I26,Refurb_Poss_Tbl[%]))*AG26,Q26*$AG26),0) -> 0 | BF26: =IF($AF26=3,IF($AF$2=2,(U26/SUMIF(Refurb_Poss_Tbl[Refurbishment Possible],I26,Refurb_Poss_Tbl[%]))*AG26,U26*$AG26),0) -> 0 | BG26: =IF($AF26=3,IF($AF$2=2,(V26/SUMIF(Refurb_Poss_Tbl[Refurbishment Possible],I26,Refurb_Poss_Tbl[%]))*AG26,IF($AF$2=3,(V26*AG26)-AW26,V26*AG26)),0) -> 0 | BH26: =IF($AF26=3,IF($AF$2=2,(W26/SUMIF(Refurb_Poss_Tbl[Refurbishment Possible],I26,Refurb_Poss_Tbl[%]))*AG26,W26*$AG26),0) -> 0
A27: BridEA03 | B27: Footbridge | C27: Bridge - Pedestrian | D27: BridEA0333 | E27: Desk | F27: Bridges | G27: 60 | H27: 20 | I27: Moderate Refurbishment | J27: 10 | K27: New Build | L27: 113 | M27: 123 | N27: 100 | O27: 3 | P27: 883.5084 | Q27: 883.5084 | R27: 1.074176355 | S27: 4.902497072 | T27: 0.1294492521 | U27: 5.512114984 | V27: 0 | W27: 0.1206399085 | X27: 895.2472776 | Y27: 0.05490755123 | Z27: 0 | AA27: 223.8118194 | AB27: 2.292158261 | AC27: 0.06472462604 | AD27: 2.451248536 | AE27: 25 | AF27: 0 | AG27: =VLOOKUP(AE27,ValidationLists!$M$1:$N$102,2,FALSE) -> 0.4231469893 | AH27: 0 | AI27: 0 | AJ27: 0 | AK27: 0 | AL27: 0 | AM27: 0 | AN27: 0 | AO27: 0 | AP27: 0.02323396499 | AQ27: =IF(OR(AF27=3,AF27=2,AF27=0),SUMIFS(FlatMaint!$Z$2:$Z$10000,FlatMaint!$A$2:$A$10000,D27,FlatMaint!$Y$2:$Y$10000,AE27)*AG27,0) -> 37.39186066 | AR27: =IF(OR(AF27=3,AF27=2,AF27=0),SUMIFS(FlatRepair!$Z$2:$Z$10000,FlatRepair!$A$2:$A$10000,D27,FlatRepair!$Y$2:$Y$10000,AE27)*AG27,0) -> 0 | AS27: 0 | AT27: 37.41509463 | AU27: 0 | AV27: 0 | AW27: 0 | AX27: 0 | AY27: 0 | AZ27: 37.41509463 | BA27: 0 | BB27: =IF($AF27=3,IF($AF$2=2,(R27/SUMIF(Refurb_Poss_Tbl[Refurbishment Possible],I27,Refurb_Poss_Tbl[%]))*AG27,IF($AF$2=3,(R27*AG27)-AV27,R27*AG27)),0) -> 0 | BC27: =IF(AF27=3,IF($AF$2=2,(S27/SUMIF(Refurb_Poss_Tbl[Refurbishment Possible],I27,Refurb_Poss_Tbl[%]))*AG27,IF($AF$2=3,(S27*AG27)-AX27,S27*AG27)),0) -> 0 | BD27: =IF($AF27=3,IF($AF$2=2,(T27/SUMIF(Refurb_Poss_Tbl[Refurbishment Possible],I27,Refurb_Poss_Tbl[%]))*AG27,T27*$AG27),0) -> 0 | BE27: =IF($AF27=3,IF($AF$2=2,(Q27/SUMIF(Refurb_Poss_Tbl[Refurbishment Possible],I27,Refurb_Poss_Tbl[%]))*AG27,Q27*$AG27),0) -> 0 | BF27: =IF($AF27=3,IF($AF$2=2,(U27/SUMIF(Refurb_Poss_Tbl[Refurbishment Possible],I27,Refurb_Poss_Tbl[%]))*AG27,U27*$AG27),0) -> 0 | BG27: =IF($AF27=3,IF($AF$2=2,(V27/SUMIF(Refurb_Poss_Tbl[Refurbishment Possible],I27,Refurb_Poss_Tbl[%]))*AG27,IF($AF$2=3,(V27*AG27)-AW27,V27*AG27)),0) -> 0 | BH27: =IF($AF27=3,IF($AF$2=2,(W27/SUMIF(Refurb_Poss_Tbl[Refurbishment Possible],I27,Refurb_Poss_Tbl[%]))*AG27,W27*$AG27),0) -> 0
A28: BridEA03 | B28: Footbridge | C28: Bridge - Pedestrian | D28: BridEA0333 | E28: Desk | F28: Bridges | G28: 60 | H28: 20 | I28: Moderate Refurbishment | J28: 10 | K28: New Build | L28: 113 | M28: 123 | N28: 100 | O28: 3 | P28: 883.5084 | Q28: 883.5084 | R28: 1.074176355 | S28: 4.902497072 | T28: 0.1294492521 | U28: 5.512114984 | V28: 0 | W28: 0.1206399085 | X28: 895.2472776 | Y28: 0.05490755123 | Z28: 0 | AA28: 223.8118194 | AB28: 2.292158261 | AC28: 0.06472462604 | AD28: 2.451248536 | AE28: 26 | AF28: 0 | AG28: =VLOOKUP(AE28,ValidationLists!$M$1:$N$102,2,FALSE) -> 0.4088376708 | AH28: 0 | AI28: 0 | AJ28: 0 | AK28: 0 | AL28: 0 | AM28: 0 | AN28: 0 | AO28: 0 | AP28: 0.02244827535 | AQ28: =IF(OR(AF28=3,AF28=2,AF28=0),SUMIFS(FlatMaint!$Z$2:$Z$10000,FlatMaint!$A$2:$A$10000,D28,FlatMaint!$Y$2:$Y$10000,AE28)*AG28,0) -> 36.1274016 | AR28: =IF(OR(AF28=3,AF28=2,AF28=0),SUMIFS(FlatRepair!$Z$2:$Z$10000,FlatRepair!$A$2:$A$10000,D28,FlatRepair!$Y$2:$Y$10000,AE28)*AG28,0) -> 0 | AS28: 0 | AT28: 36.14984988 | AU28: 0 | AV28: 0 | AW28: 0 | AX28: 0 | AY28: 0 | AZ28: 36.14984988 | BA28: 0 | BB28: =IF($AF28=3,IF($AF$2=2,(R28/SUMIF(Refurb_Poss_Tbl[Refurbishment Possible],I28,Refurb_Poss_Tbl[%]))*AG28,IF($AF$2=3,(R28*AG28)-AV28,R28*AG28)),0) -> 0 | BC28: =IF(AF28=3,IF($AF$2=2,(S28/SUMIF(Refurb_Poss_Tbl[Refurbishment Possible],I28,Refurb_Poss_Tbl[%]))*AG28,IF($AF$2=3,(S28*AG28)-AX28,S28*AG28)),0) -> 0 | BD28: =IF($AF28=3,IF($AF$2=2,(T28/SUMIF(Refurb_Poss_Tbl[Refurbishment Possible],I28,Refurb_Poss_Tbl[%]))*AG28,T28*$AG28),0) -> 0 | BE28: =IF($AF28=3,IF($AF$2=2,(Q28/SUMIF(Refurb_Poss_Tbl[Refurbishment Possible],I28,Refurb_Poss_Tbl[%]))*AG28,Q28*$AG28),0) -> 0 | BF28: =IF($AF28=3,IF($AF$2=2,(U28/SUMIF(Refurb_Poss_Tbl[Refurbishment Possible],I28,Refurb_Poss_Tbl[%]))*AG28,U28*$AG28),0) -> 0 | BG28: =IF($AF28=3,IF($AF$2=2,(V28/SUMIF(Refurb_Poss_Tbl[Refurbishment Possible],I28,Refurb_Poss_Tbl[%]))*AG28,IF($AF$2=3,(V28*AG28)-AW28,V28*AG28)),0) -> 0 | BH28: =IF($AF28=3,IF($AF$2=2,(W28/SUMIF(Refurb_Poss_Tbl[Refurbishment Possible],I28,Refurb_Poss_Tbl[%]))*AG28,W28*$AG28),0) -> 0
A29: BridEA03 | B29: Footbridge | C29: Bridge - Pedestrian | D29: BridEA0333 | E29: Desk | F29: Bridges | G29: 60 | H29: 20 | I29: Moderate Refurbishment | J29: 10 | K29: New Build | L29: 113 | M29: 123 | N29: 100 | O29: 3 | P29: 883.5084 | Q29: 883.5084 | R29: 1.074176355 | S29: 4.902497072 | T29: 0.1294492521 | U29: 5.512114984 | V29: 0 | W29: 0.1206399085 | X29: 895.2472776 | Y29: 0.05490755123 | Z29: 0 | AA29: 223.8118194 | AB29: 2.292158261 | AC29: 0.06472462604 | AD29: 2.451248536 | AE29: 27 | AF29: 0 | AG29: =VLOOKUP(AE29,ValidationLists!$M$1:$N$102,2,FALSE) -> 0.3950122423 | AH29: 0 | AI29: 0 | AJ29: 0 | AK29: 0 | AL29: 0 | AM29: 0 | AN29: 0 | AO29: 0 | AP29: 0.02168915493 | AQ29: =IF(OR(AF29=3,AF29=2,AF29=0),SUMIFS(FlatMaint!$Z$2:$Z$10000,FlatMaint!$A$2:$A$10000,D29,FlatMaint!$Y$2:$Y$10000,AE29)*AG29,0) -> 34.90570203 | AR29: =IF(OR(AF29=3,AF29=2,AF29=0),SUMIFS(FlatRepair!$Z$2:$Z$10000,FlatRepair!$A$2:$A$10000,D29,FlatRepair!$Y$2:$Y$10000,AE29)*AG29,0) -> 0 | AS29: 0 | AT29: 34.92739119 | AU29: 0 | AV29: 0 | AW29: 0 | AX29: 0 | AY29: 0 | AZ29: 34.92739119 | BA29: 0 | BB29: =IF($AF29=3,IF($AF$2=2,(R29/SUMIF(Refurb_Poss_Tbl[Refurbishment Possible],I29,Refurb_Poss_Tbl[%]))*AG29,IF($AF$2=3,(R29*AG29)-AV29,R29*AG29)),0) -> 0 | BC29: =IF(AF29=3,IF($AF$2=2,(S29/SUMIF(Refurb_Poss_Tbl[Refurbishment Possible],I29,Refurb_Poss_Tbl[%]))*AG29,IF($AF$2=3,(S29*AG29)-AX29,S29*AG29)),0) -> 0 | BD29: =IF($AF29=3,IF($AF$2=2,(T29/SUMIF(Refurb_Poss_Tbl[Refurbishment Possible],I29,Refurb_Poss_Tbl[%]))*AG29,T29*$AG29),0) -> 0 | BE29: =IF($AF29=3,IF($AF$2=2,(Q29/SUMIF(Refurb_Poss_Tbl[Refurbishment Possible],I29,Refurb_Poss_Tbl[%]))*AG29,Q29*$AG29),0) -> 0 | BF29: =IF($AF29=3,IF($AF$2=2,(U29/SUMIF(Refurb_Poss_Tbl[Refurbishment Possible],I29,Refurb_Poss_Tbl[%]))*AG29,U29*$AG29),0) -> 0 | BG29: =IF($AF29=3,IF($AF$2=2,(V29/SUMIF(Refurb_Poss_Tbl[Refurbishment Possible],I29,Refurb_Poss_Tbl[%]))*AG29,IF($AF$2=3,(V29*AG29)-AW29,V29*AG29)),0) -> 0 | BH29: =IF($AF29=3,IF($AF$2=2,(W29/SUMIF(Refurb_Poss_Tbl[Refurbishment Possible],I29,Refurb_Poss_Tbl[%]))*AG29,W29*$AG29),0) -> 0
A30: BridEA03 | B30: Footbridge | C30: Bridge - Pedestrian | D30: BridEA0333 | E30: Desk | F30: Bridges | G30: 60 | H30: 20 | I30: Moderate Refurbishment | J30: 10 | K30: New Build | L30: 113 | M30: 123 | N30: 100 | O30: 3 | P30: 883.5084 | Q30: 883.5084 | R30: 1.074176355 | S30: 4.902497072 | T30: 0.1294492521 | U30: 5.512114984 | V30: 0 | W30: 0.1206399085 | X30: 895.2472776 | Y30: 0.05490755123 | Z30: 0 | AA30: 223.8118194 | AB30: 2.292158261 | AC30: 0.06472462604 | AD30: 2.451248536 | AE30: 28 | AF30: 0 | AG30: =VLOOKUP(AE30,ValidationLists!$M$1:$N$102,2,FALSE) -> 0.3816543404 | AH30: 0 | AI30: 0 | AJ30: 0 | AK30: 0 | AL30: 0 | AM30: 0 | AN30: 0 | AO30: 0 | AP30: 0.02095570525 | AQ30: =IF(OR(AF30=3,AF30=2,AF30=0),SUMIFS(FlatMaint!$Z$2:$Z$10000,FlatMaint!$A$2:$A$10000,D30,FlatMaint!$Y$2:$Y$10000,AE30)*AG30,0) -> 33.72531597 | AR30: =IF(OR(AF30=3,AF30=2,AF30=0),SUMIFS(FlatRepair!$Z$2:$Z$10000,FlatRepair!$A$2:$A$10000,D30,FlatRepair!$Y$2:$Y$10000,AE30)*AG30,0) -> 0 | AS30: 0 | AT30: 33.74627168 | AU30: 0 | AV30: 0 | AW30: 0 | AX30: 0 | AY30: 0 | AZ30: 33.74627168 | BA30: 0 | BB30: =IF($AF30=3,IF($AF$2=2,(R30/SUMIF(Refurb_Poss_Tbl[Refurbishment Possible],I30,Refurb_Poss_Tbl[%]))*AG30,IF($AF$2=3,(R30*AG30)-AV30,R30*AG30)),0) -> 0 | BC30: =IF(AF30=3,IF($AF$2=2,(S30/SUMIF(Refurb_Poss_Tbl[Refurbishment Possible],I30,Refurb_Poss_Tbl[%]))*AG30,IF($AF$2=3,(S30*AG30)-AX30,S30*AG30)),0) -> 0 | BD30: =IF($AF30=3,IF($AF$2=2,(T30/SUMIF(Refurb_Poss_Tbl[Refurbishment Possible],I30,Refurb_Poss_Tbl[%]))*AG30,T30*$AG30),0) -> 0 | BE30: =IF($AF30=3,IF($AF$2=2,(Q30/SUMIF(Refurb_Poss_Tbl[Refurbishment Possible],I30,Refurb_Poss_Tbl[%]))*AG30,Q30*$AG30),0) -> 0 | BF30: =IF($AF30=3,IF($AF$2=2,(U30/SUMIF(Refurb_Poss_Tbl[Refurbishment Possible],I30,Refurb_Poss_Tbl[%]))*AG30,U30*$AG30),0) -> 0 | BG30: =IF($AF30=3,IF($AF$2=2,(V30/SUMIF(Refurb_Poss_Tbl[Refurbishment Possible],I30,Refurb_Poss_Tbl[%]))*AG30,IF($AF$2=3,(V30*AG30)-AW30,V30*AG30)),0) -> 0 | BH30: =IF($AF30=3,IF($AF$2=2,(W30/SUMIF(Refurb_Poss_Tbl[Refurbishment Possible],I30,Refurb_Poss_Tbl[%]))*AG30,W30*$AG30),0) -> 0
A31: BridEA03 | B31: Footbridge | C31: Bridge - Pedestrian | D31: BridEA0333 | E31: Desk | F31: Bridges | G31: 60 | H31: 20 | I31: Moderate Refurbishment | J31: 10 | K31: New Build | L31: 113 | M31: 123 | N31: 100 | O31: 3 | P31: 883.5084 | Q31: 883.5084 | R31: 1.074176355 | S31: 4.902497072 | T31: 0.1294492521 | U31: 5.512114984 | V31: 0 | W31: 0.1206399085 | X31: 895.2472776 | Y31: 0.05490755123 | Z31: 0 | AA31: 223.8118194 | AB31: 2.292158261 | AC31: 0.06472462604 | AD31: 2.451248536 | AE31: 29 | AF31: 0 | AG31: =VLOOKUP(AE31,ValidationLists!$M$1:$N$102,2,FALSE) -> 0.368748155 | AH31: 0 | AI31: 0 | AJ31: 0 | AK31: 0 | AL31: 0 | AM31: 0 | AN31: 0 | AO31: 0 | AP31: 0.02024705821 | AQ31: =IF(OR(AF31=3,AF31=2,AF31=0),SUMIFS(FlatMaint!$Z$2:$Z$10000,FlatMaint!$A$2:$A$10000,D31,FlatMaint!$Y$2:$Y$10000,AE31)*AG31,0) -> 32.58484635 | AR31: =IF(OR(AF31=3,AF31=2,AF31=0),SUMIFS(FlatRepair!$Z$2:$Z$10000,FlatRepair!$A$2:$A$10000,D31,FlatRepair!$Y$2:$Y$10000,AE31)*AG31,0) -> 0 | AS31: 0 | AT31: 32.60509341 | AU31: 0 | AV31: 0 | AW31: 0 | AX31: 0 | AY31: 0 | AZ31: 32.60509341 | BA31: 0 | BB31: =IF($AF31=3,IF($AF$2=2,(R31/SUMIF(Refurb_Poss_Tbl[Refurbishment Possible],I31,Refurb_Poss_Tbl[%]))*AG31,IF($AF$2=3,(R31*AG31)-AV31,R31*AG31)),0) -> 0 | BC31: =IF(AF31=3,IF($AF$2=2,(S31/SUMIF(Refurb_Poss_Tbl[Refurbishment Possible],I31,Refurb_Poss_Tbl[%]))*AG31,IF($AF$2=3,(S31*AG31)-AX31,S31*AG31)),0) -> 0 | BD31: =IF($AF31=3,IF($AF$2=2,(T31/SUMIF(Refurb_Poss_Tbl[Refurbishment Possible],I31,Refurb_Poss_Tbl[%]))*AG31,T31*$AG31),0) -> 0 | BE31: =IF($AF31=3,IF($AF$2=2,(Q31/SUMIF(Refurb_Poss_Tbl[Refurbishment Possible],I31,Refurb_Poss_Tbl[%]))*AG31,Q31*$AG31),0) -> 0 | BF31: =IF($AF31=3,IF($AF$2=2,(U31/SUMIF(Refurb_Poss_Tbl[Refurbishment Possible],I31,Refurb_Poss_Tbl[%]))*AG31,U31*$AG31),0) -> 0 | BG31: =IF($AF31=3,IF($AF$2=2,(V31/SUMIF(Refurb_Poss_Tbl[Refurbishment Possible],I31,Refurb_Poss_Tbl[%]))*AG31,IF($AF$2=3,(V31*AG31)-AW31,V31*AG31)),0) -> 0 | BH31: =IF($AF31=3,IF($AF$2=2,(W31/SUMIF(Refurb_Poss_Tbl[Refurbishment Possible],I31,Refurb_Poss_Tbl[%]))*AG31,W31*$AG31),0) -> 0
A32: BridEA03 | B32: Footbridge | C32: Bridge - Pedestrian | D32: BridEA0333 | E32: Desk | F32: Bridges | G32: 60 | H32: 20 | I32: Moderate Refurbishment | J32: 10 | K32: New Build | L32: 113 | M32: 123 | N32: 100 | O32: 3 | P32: 883.5084 | Q32: 883.5084 | R32: 1.074176355 | S32: 4.902497072 | T32: 0.1294492521 | U32: 5.512114984 | V32: 0 | W32: 0.1206399085 | X32: 895.2472776 | Y32: 0.05490755123 | Z32: 0 | AA32: 223.8118194 | AB32: 2.292158261 | AC32: 0.06472462604 | AD32: 2.451248536 | AE32: 30 | AF32: 3 | AG32: =VLOOKUP(AE32,ValidationLists!$M$1:$N$102,2,FALSE) -> 0.3562784106 | AH32: 0 | AI32: 0 | AJ32: 0 | AK32: 0 | AL32: 0 | AM32: 0 | AN32: 0 | AO32: 0 | AP32: 0.01956237508 | AQ32: =IF(OR(AF32=3,AF32=2,AF32=0),SUMIFS(FlatMaint!$Z$2:$Z$10000,FlatMaint!$A$2:$A$10000,D32,FlatMaint!$Y$2:$Y$10000,AE32)*AG32,0) -> 31.48294333 | AR32: =IF(OR(AF32=3,AF32=2,AF32=0),SUMIFS(FlatRepair!$Z$2:$Z$10000,FlatRepair!$A$2:$A$10000,D32,FlatRepair!$Y$2:$Y$10000,AE32)*AG32,0) -> 0 | AS32: 0 | AT32: 31.50250571 | AU32: 0 | AV32: 0.8166465022 | AW32: 0.02305998689 | AX32: 0.8733269325 | AY32: 318.9572771 | AZ32: 352.1728163 | BA32: 0 | BB32: =IF($AF32=3,IF($AF$2=2,(R32/SUMIF(Refurb_Poss_Tbl[Refurbishment Possible],I32,Refurb_Poss_Tbl[%]))*AG32,IF($AF$2=3,(R32*AG32)-AV32,R32*AG32)),0) -> 0.3827058444 | BC32: =IF(AF32=3,IF($AF$2=2,(S32/SUMIF(Refurb_Poss_Tbl[Refurbishment Possible],I32,Refurb_Poss_Tbl[%]))*AG32,IF($AF$2=3,(S32*AG32)-AX32,S32*AG32)),0) -> 1.746653865 | BD32: =IF($AF32=3,IF($AF$2=2,(T32/SUMIF(Refurb_Poss_Tbl[Refurbishment Possible],I32,Refurb_Poss_Tbl[%]))*AG32,T32*$AG32),0) -> 0.04611997378 | BE32: =IF($AF32=3,IF($AF$2=2,(Q32/SUMIF(Refurb_Poss_Tbl[Refurbishment Possible],I32,Refurb_Poss_Tbl[%]))*AG32,Q32*$AG32),0) -> 314.7749685 | BF32: =IF($AF32=3,IF($AF$2=2,(U32/SUMIF(Refurb_Poss_Tbl[Refurbishment Possible],I32,Refurb_Poss_Tbl[%]))*AG32,U32*$AG32),0) -> 1.963847566 | BG32: =IF($AF32=3,IF($AF$2=2,(V32/SUMIF(Refurb_Poss_Tbl[Refurbishment Possible],I32,Refurb_Poss_Tbl[%]))*AG32,IF($AF$2=3,(V32*AG32)-AW32,V32*AG32)),0) -> 0 | BH32: =IF($AF32=3,IF($AF$2=2,(W32/SUMIF(Refurb_Poss_Tbl[Refurbishment Possible],I32,Refurb_Poss_Tbl[%]))*AG32,W32*$AG32),0) -> 0.04298139485
A33: BridEA03 | B33: Footbridge | C33: Bridge - Pedestrian | D33: BridEA0333 | E33: Desk | F33: Bridges | G33: 60 | H33: 20 | I33: Moderate Refurbishment | J33: 10 | K33: New Build | L33: 113 | M33: 123 | N33: 100 | O33: 3 | P33: 883.5084 | Q33: 883.5084 | R33: 1.074176355 | S33: 4.902497072 | T33: 0.1294492521 | U33: 5.512114984 | V33: 0 | W33: 0.1206399085 | X33: 895.2472776 | Y33: 0.05490755123 | Z33: 0 | AA33: 223.8118194 | AB33: 2.292158261 | AC33: 0.06472462604 | AD33: 2.451248536 | AE33: 31 | AF33: 0 | AG33: =VLOOKUP(AE33,ValidationLists!$M$1:$N$102,2,FALSE) -> 0.3999871452 | AH33: 0 | AI33: 0 | AJ33: 0 | AK33: 0 | AL33: 0 | AM33: 0 | AN33: 0 | AO33: 0 | AP33: 0.02196231467 | AQ33: =IF(OR(AF33=3,AF33=2,AF33=0),SUMIFS(FlatMaint!$Z$2:$Z$10000,FlatMaint!$A$2:$A$10000,D33,FlatMaint!$Y$2:$Y$10000,AE33)*AG33,0) -> 35.34531493 | AR33: =IF(OR(AF33=3,AF33=2,AF33=0),SUMIFS(FlatRepair!$Z$2:$Z$10000,FlatRepair!$A$2:$A$10000,D33,FlatRepair!$Y$2:$Y$10000,AE33)*AG33,0) -> 0 | AS33: 0 | AT33: 35.36727725 | AU33: 0 | AV33: 0 | AW33: 0 | AX33: 0 | AY33: 0 | AZ33: 35.36727725 | BA33: 0 | BB33: =IF($AF33=3,IF($AF$2=2,(R33/SUMIF(Refurb_Poss_Tbl[Refurbishment Possible],I33,Refurb_Poss_Tbl[%]))*AG33,IF($AF$2=3,(R33*AG33)-AV33,R33*AG33)),0) -> 0 | BC33: =IF(AF33=3,IF($AF$2=2,(S33/SUMIF(Refurb_Poss_Tbl[Refurbishment Possible],I33,Refurb_Poss_Tbl[%]))*AG33,IF($AF$2=3,(S33*AG33)-AX33,S33*AG33)),0) -> 0 | BD33: =IF($AF33=3,IF($AF$2=2,(T33/SUMIF(Refurb_Poss_Tbl[Refurbishment Possible],I33,Refurb_Poss_Tbl[%]))*AG33,T33*$AG33),0) -> 0 | BE33: =IF($AF33=3,IF($AF$2=2,(Q33/SUMIF(Refurb_Poss_Tbl[Refurbishment Possible],I33,Refurb_Poss_Tbl[%]))*AG33,Q33*$AG33),0) -> 0 | BF33: =IF($AF33=3,IF($AF$2=2,(U33/SUMIF(Refurb_Poss_Tbl[Refurbishment Possible],I33,Refurb_Poss_Tbl[%]))*AG33,U33*$AG33),0) -> 0 | BG33: =IF($AF33=3,IF($AF$2=2,(V33/SUMIF(Refurb_Poss_Tbl[Refurbishment Possible],I33,Refurb_Poss_Tbl[%]))*AG33,IF($AF$2=3,(V33*AG33)-AW33,V33*AG33)),0) -> 0 | BH33: =IF($AF33=3,IF($AF$2=2,(W33/SUMIF(Refurb_Poss_Tbl[Refurbishment Possible],I33,Refurb_Poss_Tbl[%]))*AG33,W33*$AG33),0) -> 0
A34: BridEA03 | B34: Footbridge | C34: Bridge - Pedestrian | D34: BridEA0333 | E34: Desk | F34: Bridges | G34: 60 | H34: 20 | I34: Moderate Refurbishment | J34: 10 | K34: New Build | L34: 113 | M34: 123 | N34: 100 | O34: 3 | P34: 883.5084 | Q34: 883.5084 | R34: 1.074176355 | S34: 4.902497072 | T34: 0.1294492521 | U34: 5.512114984 | V34: 0 | W34: 0.1206399085 | X34: 895.2472776 | Y34: 0.05490755123 | Z34: 0 | AA34: 223.8118194 | AB34: 2.292158261 | AC34: 0.06472462604 | AD34: 2.451248536 | AE34: 32 | AF34: 0 | AG34: =VLOOKUP(AE34,ValidationLists!$M$1:$N$102,2,FALSE) -> 0.3883370341 | AH34: 0 | AI34: 0 | AJ34: 0 | AK34: 0 | AL34: 0 | AM34: 0 | AN34: 0 | AO34: 0 | AP34: 0.0213226356 | AQ34: =IF(OR(AF34=3,AF34=2,AF34=0),SUMIFS(FlatMaint!$Z$2:$Z$10000,FlatMaint!$A$2:$A$10000,D34,FlatMaint!$Y$2:$Y$10000,AE34)*AG34,0) -> 34.31583974 | AR34: =IF(OR(AF34=3,AF34=2,AF34=0),SUMIFS(FlatRepair!$Z$2:$Z$10000,FlatRepair!$A$2:$A$10000,D34,FlatRepair!$Y$2:$Y$10000,AE34)*AG34,0) -> 0 | AS34: 0 | AT34: 34.33716237 | AU34: 0 | AV34: 0 | AW34: 0 | AX34: 0 | AY34: 0 | AZ34: 34.33716237 | BA34: 0 | BB34: =IF($AF34=3,IF($AF$2=2,(R34/SUMIF(Refurb_Poss_Tbl[Refurbishment Possible],I34,Refurb_Poss_Tbl[%]))*AG34,IF($AF$2=3,(R34*AG34)-AV34,R34*AG34)),0) -> 0 | BC34: =IF(AF34=3,IF($AF$2=2,(S34/SUMIF(Refurb_Poss_Tbl[Refurbishment Possible],I34,Refurb_Poss_Tbl[%]))*AG34,IF($AF$2=3,(S34*AG34)-AX34,S34*AG34)),0) -> 0 | BD34: =IF($AF34=3,IF($AF$2=2,(T34/SUMIF(Refurb_Poss_Tbl[Refurbishment Possible],I34,Refurb_Poss_Tbl[%]))*AG34,T34*$AG34),0) -> 0 | BE34: =IF($AF34=3,IF($AF$2=2,(Q34/SUMIF(Refurb_Poss_Tbl[Refurbishment Possible],I34,Refurb_Poss_Tbl[%]))*AG34,Q34*$AG34),0) -> 0 | BF34: =IF($AF34=3,IF($AF$2=2,(U34/SUMIF(Refurb_Poss_Tbl[Refurbishment Possible],I34,Refurb_Poss_Tbl[%]))*AG34,U34*$AG34),0) -> 0 | BG34: =IF($AF34=3,IF($AF$2=2,(V34/SUMIF(Refurb_Poss_Tbl[Refurbishment Possible],I34,Refurb_Poss_Tbl[%]))*AG34,IF($AF$2=3,(V34*AG34)-AW34,V34*AG34)),0) -> 0 | BH34: =IF($AF34=3,IF($AF$2=2,(W34/SUMIF(Refurb_Poss_Tbl[Refurbishment Possible],I34,Refurb_Poss_Tbl[%]))*AG34,W34*$AG34),0) -> 0
A35: BridEA03 | B35: Footbridge | C35: Bridge - Pedestrian | D35: BridEA0333 | E35: Desk | F35: Bridges | G35: 60 | H35: 20 | I35: Moderate Refurbishment | J35: 10 | K35: New Build | L35: 113 | M35: 123 | N35: 100 | O35: 3 | P35: 883.5084 | Q35: 883.5084 | R35: 1.074176355 | S35: 4.902497072 | T35: 0.1294492521 | U35: 5.512114984 | V35: 0 | W35: 0.1206399085 | X35: 895.2472776 | Y35: 0.05490755123 | Z35: 0 | AA35: 223.8118194 | AB35: 2.292158261 | AC35: 0.06472462604 | AD35: 2.451248536 | AE35: 33 | AF35: 0 | AG35: =VLOOKUP(AE35,ValidationLists!$M$1:$N$102,2,FALSE) -> 0.3770262467 | AH35: 0 | AI35: 0 | AJ35: 0 | AK35: 0 | AL35: 0 | AM35: 0 | AN35: 0 | AO35: 0 | AP35: 0.02070158796 | AQ35: =IF(OR(AF35=3,AF35=2,AF35=0),SUMIFS(FlatMaint!$Z$2:$Z$10000,FlatMaint!$A$2:$A$10000,D35,FlatMaint!$Y$2:$Y$10000,AE35)*AG35,0) -> 33.31634926 | AR35: =IF(OR(AF35=3,AF35=2,AF35=0),SUMIFS(FlatRepair!$Z$2:$Z$10000,FlatRepair!$A$2:$A$10000,D35,FlatRepair!$Y$2:$Y$10000,AE35)*AG35,0) -> 0 | AS35: 0 | AT35: 33.33705085 | AU35: 0 | AV35: 0 | AW35: 0 | AX35: 0 | AY35: 0 | AZ35: 33.33705085 | BA35: 0 | BB35: =IF($AF35=3,IF($AF$2=2,(R35/SUMIF(Refurb_Poss_Tbl[Refurbishment Possible],I35,Refurb_Poss_Tbl[%]))*AG35,IF($AF$2=3,(R35*AG35)-AV35,R35*AG35)),0) -> 0 | BC35: =IF(AF35=3,IF($AF$2=2,(S35/SUMIF(Refurb_Poss_Tbl[Refurbishment Possible],I35,Refurb_Poss_Tbl[%]))*AG35,IF($AF$2=3,(S35*AG35)-AX35,S35*AG35)),0) -> 0 | BD35: =IF($AF35=3,IF($AF$2=2,(T35/SUMIF(Refurb_Poss_Tbl[Refurbishment Possible],I35,Refurb_Poss_Tbl[%]))*AG35,T35*$AG35),0) -> 0 | BE35: =IF($AF35=3,IF($AF$2=2,(Q35/SUMIF(Refurb_Poss_Tbl[Refurbishment Possible],I35,Refurb_Poss_Tbl[%]))*AG35,Q35*$AG35),0) -> 0 | BF35: =IF($AF35=3,IF($AF$2=2,(U35/SUMIF(Refurb_Poss_Tbl[Refurbishment Possible],I35,Refurb_Poss_Tbl[%]))*AG35,U35*$AG35),0) -> 0 | BG35: =IF($AF35=3,IF($AF$2=2,(V35/SUMIF(Refurb_Poss_Tbl[Refurbishment Possible],I35,Refurb_Poss_Tbl[%]))*AG35,IF($AF$2=3,(V35*AG35)-AW35,V35*AG35)),0) -> 0 | BH35: =IF($AF35=3,IF($AF$2=2,(W35/SUMIF(Refurb_Poss_Tbl[Refurbishment Possible],I35,Refurb_Poss_Tbl[%]))*AG35,W35*$AG35),0) -> 0
A36: BridEA03 | B36: Footbridge | C36: Bridge - Pedestrian | D36: BridEA0333 | E36: Desk | F36: Bridges | G36: 60 | H36: 20 | I36: Moderate Refurbishment | J36: 10 | K36: New Build | L36: 113 | M36: 123 | N36: 100 | O36: 3 | P36: 883.5084 | Q36: 883.5084 | R36: 1.074176355 | S36: 4.902497072 | T36: 0.1294492521 | U36: 5.512114984 | V36: 0 | W36: 0.1206399085 | X36: 895.2472776 | Y36: 0.05490755123 | Z36: 0 | AA36: 223.8118194 | AB36: 2.292158261 | AC36: 0.06472462604 | AD36: 2.451248536 | AE36: 34 | AF36: 0 | AG36: =VLOOKUP(AE36,ValidationLists!$M$1:$N$102,2,FALSE) -> 0.3660448997 | AH36: 0 | AI36: 0 | AJ36: 0 | AK36: 0 | AL36: 0 | AM36: 0 | AN36: 0 | AO36: 0 | AP36: 0.02009862909 | AQ36: =IF(OR(AF36=3,AF36=2,AF36=0),SUMIFS(FlatMaint!$Z$2:$Z$10000,FlatMaint!$A$2:$A$10000,D36,FlatMaint!$Y$2:$Y$10000,AE36)*AG36,0) -> 32.34597016 | AR36: =IF(OR(AF36=3,AF36=2,AF36=0),SUMIFS(FlatRepair!$Z$2:$Z$10000,FlatRepair!$A$2:$A$10000,D36,FlatRepair!$Y$2:$Y$10000,AE36)*AG36,0) -> 0 | AS36: 0 | AT36: 32.36606879 | AU36: 0 | AV36: 0 | AW36: 0 | AX36: 0 | AY36: 0 | AZ36: 32.36606879 | BA36: 0 | BB36: =IF($AF36=3,IF($AF$2=2,(R36/SUMIF(Refurb_Poss_Tbl[Refurbishment Possible],I36,Refurb_Poss_Tbl[%]))*AG36,IF($AF$2=3,(R36*AG36)-AV36,R36*AG36)),0) -> 0 | BC36: =IF(AF36=3,IF($AF$2=2,(S36/SUMIF(Refurb_Poss_Tbl[Refurbishment Possible],I36,Refurb_Poss_Tbl[%]))*AG36,IF($AF$2=3,(S36*AG36)-AX36,S36*AG36)),0) -> 0 | BD36: =IF($AF36=3,IF($AF$2=2,(T36/SUMIF(Refurb_Poss_Tbl[Refurbishment Possible],I36,Refurb_Poss_Tbl[%]))*AG36,T36*$AG36),0) -> 0 | BE36: =IF($AF36=3,IF($AF$2=2,(Q36/SUMIF(Refurb_Poss_Tbl[Refurbishment Possible],I36,Refurb_Poss_Tbl[%]))*AG36,Q36*$AG36),0) -> 0 | BF36: =IF($AF36=3,IF($AF$2=2,(U36/SUMIF(Refurb_Poss_Tbl[Refurbishment Possible],I36,Refurb_Poss_Tbl[%]))*AG36,U36*$AG36),0) -> 0 | BG36: =IF($AF36=3,IF($AF$2=2,(V36/SUMIF(Refurb_Poss_Tbl[Refurbishment Possible],I36,Refurb_Poss_Tbl[%]))*AG36,IF($AF$2=3,(V36*AG36)-AW36,V36*AG36)),0) -> 0 | BH36: =IF($AF36=3,IF($AF$2=2,(W36/SUMIF(Refurb_Poss_Tbl[Refurbishment Possible],I36,Refurb_Poss_Tbl[%]))*AG36,W36*$AG36),0) -> 0
A37: BridEA03 | B37: Footbridge | C37: Bridge - Pedestrian | D37: BridEA0333 | E37: Desk | F37: Bridges | G37: 60 | H37: 20 | I37: Moderate Refurbishment | J37: 10 | K37: New Build | L37: 113 | M37: 123 | N37: 100 | O37: 3 | P37: 883.5084 | Q37: 883.5084 | R37: 1.074176355 | S37: 4.902497072 | T37: 0.1294492521 | U37: 5.512114984 | V37: 0 | W37: 0.1206399085 | X37: 895.2472776 | Y37: 0.05490755123 | Z37: 0 | AA37: 223.8118194 | AB37: 2.292158261 | AC37: 0.06472462604 | AD37: 2.451248536 | AE37: 35 | AF37: 0 | AG37: =VLOOKUP(AE37,ValidationLists!$M$1:$N$102,2,FALSE) -> 0.3553833978 | AH37: 0 | AI37: 0 | AJ37: 0 | AK37: 0 | AL37: 0 | AM37: 0 | AN37: 0 | AO37: 0 | AP37: 0.01951323212 | AQ37: =IF(OR(AF37=3,AF37=2,AF37=0),SUMIFS(FlatMaint!$Z$2:$Z$10000,FlatMaint!$A$2:$A$10000,D37,FlatMaint!$Y$2:$Y$10000,AE37)*AG37,0) -> 31.40385452 | AR37: =IF(OR(AF37=3,AF37=2,AF37=0),SUMIFS(FlatRepair!$Z$2:$Z$10000,FlatRepair!$A$2:$A$10000,D37,FlatRepair!$Y$2:$Y$10000,AE37)*AG37,0) -> 0 | AS37: 0 | AT37: 31.42336775 | AU37: 0 | AV37: 0 | AW37: 0 | AX37: 0 | AY37: 0 | AZ37: 31.42336775 | BA37: 0 | BB37: =IF($AF37=3,IF($AF$2=2,(R37/SUMIF(Refurb_Poss_Tbl[Refurbishment Possible],I37,Refurb_Poss_Tbl[%]))*AG37,IF($AF$2=3,(R37*AG37)-AV37,R37*AG37)),0) -> 0 | BC37: =IF(AF37=3,IF($AF$2=2,(S37/SUMIF(Refurb_Poss_Tbl[Refurbishment Possible],I37,Refurb_Poss_Tbl[%]))*AG37,IF($AF$2=3,(S37*AG37)-AX37,S37*AG37)),0) -> 0 | BD37: =IF($AF37=3,IF($AF$2=2,(T37/SUMIF(Refurb_Poss_Tbl[Refurbishment Possible],I37,Refurb_Poss_Tbl[%]))*AG37,T37*$AG37),0) -> 0 | BE37: =IF($AF37=3,IF($AF$2=2,(Q37/SUMIF(Refurb_Poss_Tbl[Refurbishment Possible],I37,Refurb_Poss_Tbl[%]))*AG37,Q37*$AG37),0) -> 0 | BF37: =IF($AF37=3,IF($AF$2=2,(U37/SUMIF(Refurb_Poss_Tbl[Refurbishment Possible],I37,Refurb_Poss_Tbl[%]))*AG37,U37*$AG37),0) -> 0 | BG37: =IF($AF37=3,IF($AF$2=2,(V37/SUMIF(Refurb_Poss_Tbl[Refurbishment Possible],I37,Refurb_Poss_Tbl[%]))*AG37,IF($AF$2=3,(V37*AG37)-AW37,V37*AG37)),0) -> 0 | BH37: =IF($AF37=3,IF($AF$2=2,(W37/SUMIF(Refurb_Poss_Tbl[Refurbishment Possible],I37,Refurb_Poss_Tbl[%]))*AG37,W37*$AG37),0) -> 0
A38: BridEA03 | B38: Footbridge | C38: Bridge - Pedestrian | D38: BridEA0333 | E38: Desk | F38: Bridges | G38: 60 | H38: 20 | I38: Moderate Refurbishment | J38: 10 | K38: New Build | L38: 113 | M38: 123 | N38: 100 | O38: 3 | P38: 883.5084 | Q38: 883.5084 | R38: 1.074176355 | S38: 4.902497072 | T38: 0.1294492521 | U38: 5.512114984 | V38: 0 | W38: 0.1206399085 | X38: 895.2472776 | Y38: 0.05490755123 | Z38: 0 | AA38: 223.8118194 | AB38: 2.292158261 | AC38: 0.06472462604 | AD38: 2.451248536 | AE38: 36 | AF38: 0 | AG38: =VLOOKUP(AE38,ValidationLists!$M$1:$N$102,2,FALSE) -> 0.3450324251 | AH38: 0 | AI38: 0 | AJ38: 0 | AK38: 0 | AL38: 0 | AM38: 0 | AN38: 0 | AO38: 0 | AP38: 0.01894488556 | AQ38: =IF(OR(AF38=3,AF38=2,AF38=0),SUMIFS(FlatMaint!$Z$2:$Z$10000,FlatMaint!$A$2:$A$10000,D38,FlatMaint!$Y$2:$Y$10000,AE38)*AG38,0) -> 30.48917915 | AR38: =IF(OR(AF38=3,AF38=2,AF38=0),SUMIFS(FlatRepair!$Z$2:$Z$10000,FlatRepair!$A$2:$A$10000,D38,FlatRepair!$Y$2:$Y$10000,AE38)*AG38,0) -> 0 | AS38: 0 | AT38: 30.50812403 | AU38: 0 | AV38: 0 | AW38: 0 | AX38: 0 | AY38: 0 | AZ38: 30.50812403 | BA38: 0 | BB38: =IF($AF38=3,IF($AF$2=2,(R38/SUMIF(Refurb_Poss_Tbl[Refurbishment Possible],I38,Refurb_Poss_Tbl[%]))*AG38,IF($AF$2=3,(R38*AG38)-AV38,R38*AG38)),0) -> 0 | BC38: =IF(AF38=3,IF($AF$2=2,(S38/SUMIF(Refurb_Poss_Tbl[Refurbishment Possible],I38,Refurb_Poss_Tbl[%]))*AG38,IF($AF$2=3,(S38*AG38)-AX38,S38*AG38)),0) -> 0 | BD38: =IF($AF38=3,IF($AF$2=2,(T38/SUMIF(Refurb_Poss_Tbl[Refurbishment Possible],I38,Refurb_Poss_Tbl[%]))*AG38,T38*$AG38),0) -> 0 | BE38: =IF($AF38=3,IF($AF$2=2,(Q38/SUMIF(Refurb_Poss_Tbl[Refurbishment Possible],I38,Refurb_Poss_Tbl[%]))*AG38,Q38*$AG38),0) -> 0 | BF38: =IF($AF38=3,IF($AF$2=2,(U38/SUMIF(Refurb_Poss_Tbl[Refurbishment Possible],I38,Refurb_Poss_Tbl[%]))*AG38,U38*$AG38),0) -> 0 | BG38: =IF($AF38=3,IF($AF$2=2,(V38/SUMIF(Refurb_Poss_Tbl[Refurbishment Possible],I38,Refurb_Poss_Tbl[%]))*AG38,IF($AF$2=3,(V38*AG38)-AW38,V38*AG38)),0) -> 0 | BH38: =IF($AF38=3,IF($AF$2=2,(W38/SUMIF(Refurb_Poss_Tbl[Refurbishment Possible],I38,Refurb_Poss_Tbl[%]))*AG38,W38*$AG38),0) -> 0
A39: BridEA03 | B39: Footbridge | C39: Bridge - Pedestrian | D39: BridEA0333 | E39: Desk | F39: Bridges | G39: 60 | H39: 20 | I39: Moderate Refurbishment | J39: 10 | K39: New Build | L39: 113 | M39: 123 | N39: 100 | O39: 3 | P39: 883.5084 | Q39: 883.5084 | R39: 1.074176355 | S39: 4.902497072 | T39: 0.1294492521 | U39: 5.512114984 | V39: 0 | W39: 0.1206399085 | X39: 895.2472776 | Y39: 0.05490755123 | Z39: 0 | AA39: 223.8118194 | AB39: 2.292158261 | AC39: 0.06472462604 | AD39: 2.451248536 | AE39: 37 | AF39: 0 | AG39: =VLOOKUP(AE39,ValidationLists!$M$1:$N$102,2,FALSE) -> 0.3349829369 | AH39: 0 | AI39: 0 | AJ39: 0 | AK39: 0 | AL39: 0 | AM39: 0 | AN39: 0 | AO39: 0 | AP39: 0.01839309277 | AQ39: =IF(OR(AF39=3,AF39=2,AF39=0),SUMIFS(FlatMaint!$Z$2:$Z$10000,FlatMaint!$A$2:$A$10000,D39,FlatMaint!$Y$2:$Y$10000,AE39)*AG39,0) -> 29.6011448 | AR39: =IF(OR(AF39=3,AF39=2,AF39=0),SUMIFS(FlatRepair!$Z$2:$Z$10000,FlatRepair!$A$2:$A$10000,D39,FlatRepair!$Y$2:$Y$10000,AE39)*AG39,0) -> 0 | AS39: 0 | AT39: 29.61953789 | AU39: 0 | AV39: 0 | AW39: 0 | AX39: 0 | AY39: 0 | AZ39: 29.61953789 | BA39: 0 | BB39: =IF($AF39=3,IF($AF$2=2,(R39/SUMIF(Refurb_Poss_Tbl[Refurbishment Possible],I39,Refurb_Poss_Tbl[%]))*AG39,IF($AF$2=3,(R39*AG39)-AV39,R39*AG39)),0) -> 0 | BC39: =IF(AF39=3,IF($AF$2=2,(S39/SUMIF(Refurb_Poss_Tbl[Refurbishment Possible],I39,Refurb_Poss_Tbl[%]))*AG39,IF($AF$2=3,(S39*AG39)-AX39,S39*AG39)),0) -> 0 | BD39: =IF($AF39=3,IF($AF$2=2,(T39/SUMIF(Refurb_Poss_Tbl[Refurbishment Possible],I39,Refurb_Poss_Tbl[%]))*AG39,T39*$AG39),0) -> 0 | BE39: =IF($AF39=3,IF($AF$2=2,(Q39/SUMIF(Refurb_Poss_Tbl[Refurbishment Possible],I39,Refurb_Poss_Tbl[%]))*AG39,Q39*$AG39),0) -> 0 | BF39: =IF($AF39=3,IF($AF$2=2,(U39/SUMIF(Refurb_Poss_Tbl[Refurbishment Possible],I39,Refurb_Poss_Tbl[%]))*AG39,U39*$AG39),0) -> 0 | BG39: =IF($AF39=3,IF($AF$2=2,(V39/SUMIF(Refurb_Poss_Tbl[Refurbishment Possible],I39,Refurb_Poss_Tbl[%]))*AG39,IF($AF$2=3,(V39*AG39)-AW39,V39*AG39)),0) -> 0 | BH39: =IF($AF39=3,IF($AF$2=2,(W39/SUMIF(Refurb_Poss_Tbl[Refurbishment Possible],I39,Refurb_Poss_Tbl[%]))*AG39,W39*$AG39),0) -> 0
A40: BridEA03 | B40: Footbridge | C40: Bridge - Pedestrian | D40: BridEA0333 | E40: Desk | F40: Bridges | G40: 60 | H40: 20 | I40: Moderate Refurbishment | J40: 10 | K40: New Build | L40: 113 | M40: 123 | N40: 100 | O40: 3 | P40: 883.5084 | Q40: 883.5084 | R40: 1.074176355 | S40: 4.902497072 | T40: 0.1294492521 | U40: 5.512114984 | V40: 0 | W40: 0.1206399085 | X40: 895.2472776 | Y40: 0.05490755123 | Z40: 0 | AA40: 223.8118194 | AB40: 2.292158261 | AC40: 0.06472462604 | AD40: 2.451248536 | AE40: 38 | AF40: 0 | AG40: =VLOOKUP(AE40,ValidationLists!$M$1:$N$102,2,FALSE) -> 0.3252261524 | AH40: 0 | AI40: 0 | AJ40: 0 | AK40: 0 | AL40: 0 | AM40: 0 | AN40: 0 | AO40: 0 | AP40: 0.01785737162 | AQ40: =IF(OR(AF40=3,AF40=2,AF40=0),SUMIFS(FlatMaint!$Z$2:$Z$10000,FlatMaint!$A$2:$A$10000,D40,FlatMaint!$Y$2:$Y$10000,AE40)*AG40,0) -> 28.73897554 | AR40: =IF(OR(AF40=3,AF40=2,AF40=0),SUMIFS(FlatRepair!$Z$2:$Z$10000,FlatRepair!$A$2:$A$10000,D40,FlatRepair!$Y$2:$Y$10000,AE40)*AG40,0) -> 0 | AS40: 0 | AT40: 28.75683291 | AU40: 0 | AV40: 0 | AW40: 0 | AX40: 0 | AY40: 0 | AZ40: 28.75683291 | BA40: 0 | BB40: =IF($AF40=3,IF($AF$2=2,(R40/SUMIF(Refurb_Poss_Tbl[Refurbishment Possible],I40,Refurb_Poss_Tbl[%]))*AG40,IF($AF$2=3,(R40*AG40)-AV40,R40*AG40)),0) -> 0 | BC40: =IF(AF40=3,IF($AF$2=2,(S40/SUMIF(Refurb_Poss_Tbl[Refurbishment Possible],I40,Refurb_Poss_Tbl[%]))*AG40,IF($AF$2=3,(S40*AG40)-AX40,S40*AG40)),0) -> 0 | BD40: =IF($AF40=3,IF($AF$2=2,(T40/SUMIF(Refurb_Poss_Tbl[Refurbishment Possible],I40,Refurb_Poss_Tbl[%]))*AG40,T40*$AG40),0) -> 0 | BE40: =IF($AF40=3,IF($AF$2=2,(Q40/SUMIF(Refurb_Poss_Tbl[Refurbishment Possible],I40,Refurb_Poss_Tbl[%]))*AG40,Q40*$AG40),0) -> 0 | BF40: =IF($AF40=3,IF($AF$2=2,(U40/SUMIF(Refurb_Poss_Tbl[Refurbishment Possible],I40,Refurb_Poss_Tbl[%]))*AG40,U40*$AG40),0) -> 0 | BG40: =IF($AF40=3,IF($AF$2=2,(V40/SUMIF(Refurb_Poss_Tbl[Refurbishment Possible],I40,Refurb_Poss_Tbl[%]))*AG40,IF($AF$2=3,(V40*AG40)-AW40,V40*AG40)),0) -> 0 | BH40: =IF($AF40=3,IF($AF$2=2,(W40/SUMIF(Refurb_Poss_Tbl[Refurbishment Possible],I40,Refurb_Poss_Tbl[%]))*AG40,W40*$AG40),0) -> 0
A41: BridEA03 | B41: Footbridge | C41: Bridge - Pedestrian | D41: BridEA0333 | E41: Desk | F41: Bridges | G41: 60 | H41: 20 | I41: Moderate Refurbishment | J41: 10 | K41: New Build | L41: 113 | M41: 123 | N41: 100 | O41: 3 | P41: 883.5084 | Q41: 883.5084 | R41: 1.074176355 | S41: 4.902497072 | T41: 0.1294492521 | U41: 5.512114984 | V41: 0 | W41: 0.1206399085 | X41: 895.2472776 | Y41: 0.05490755123 | Z41: 0 | AA41: 223.8118194 | AB41: 2.292158261 | AC41: 0.06472462604 | AD41: 2.451248536 | AE41: 39 | AF41: 0 | AG41: =VLOOKUP(AE41,ValidationLists!$M$1:$N$102,2,FALSE) -> 0.315753546 | AH41: 0 | AI41: 0 | AJ41: 0 | AK41: 0 | AL41: 0 | AM41: 0 | AN41: 0 | AO41: 0 | AP41: 0.017337254 | AQ41: =IF(OR(AF41=3,AF41=2,AF41=0),SUMIFS(FlatMaint!$Z$2:$Z$10000,FlatMaint!$A$2:$A$10000,D41,FlatMaint!$Y$2:$Y$10000,AE41)*AG41,0) -> 27.901918 | AR41: =IF(OR(AF41=3,AF41=2,AF41=0),SUMIFS(FlatRepair!$Z$2:$Z$10000,FlatRepair!$A$2:$A$10000,D41,FlatRepair!$Y$2:$Y$10000,AE41)*AG41,0) -> 0 | AS41: 0 | AT41: 27.91925525 | AU41: 0 | AV41: 0 | AW41: 0 | AX41: 0 | AY41: 0 | AZ41: 27.91925525 | BA41: 0 | BB41: =IF($AF41=3,IF($AF$2=2,(R41/SUMIF(Refurb_Poss_Tbl[Refurbishment Possible],I41,Refurb_Poss_Tbl[%]))*AG41,IF($AF$2=3,(R41*AG41)-AV41,R41*AG41)),0) -> 0 | BC41: =IF(AF41=3,IF($AF$2=2,(S41/SUMIF(Refurb_Poss_Tbl[Refurbishment Possible],I41,Refurb_Poss_Tbl[%]))*AG41,IF($AF$2=3,(S41*AG41)-AX41,S41*AG41)),0) -> 0 | BD41: =IF($AF41=3,IF($AF$2=2,(T41/SUMIF(Refurb_Poss_Tbl[Refurbishment Possible],I41,Refurb_Poss_Tbl[%]))*AG41,T41*$AG41),0) -> 0 | BE41: =IF($AF41=3,IF($AF$2=2,(Q41/SUMIF(Refurb_Poss_Tbl[Refurbishment Possible],I41,Refurb_Poss_Tbl[%]))*AG41,Q41*$AG41),0) -> 0 | BF41: =IF($AF41=3,IF($AF$2=2,(U41/SUMIF(Refurb_Poss_Tbl[Refurbishment Possible],I41,Refurb_Poss_Tbl[%]))*AG41,U41*$AG41),0) -> 0 | BG41: =IF($AF41=3,IF($AF$2=2,(V41/SUMIF(Refurb_Poss_Tbl[Refurbishment Possible],I41,Refurb_Poss_Tbl[%]))*AG41,IF($AF$2=3,(V41*AG41)-AW41,V41*AG41)),0) -> 0 | BH41: =IF($AF41=3,IF($AF$2=2,(W41/SUMIF(Refurb_Poss_Tbl[Refurbishment Possible],I41,Refurb_Poss_Tbl[%]))*AG41,W41*$AG41),0) -> 0
A42: BridEA03 | B42: Footbridge | C42: Bridge - Pedestrian | D42: BridEA0333 | E42: Desk | F42: Bridges | G42: 60 | H42: 20 | I42: Moderate Refurbishment | J42: 10 | K42: New Build | L42: 113 | M42: 123 | N42: 100 | O42: 3 | P42: 883.5084 | Q42: 883.5084 | R42: 1.074176355 | S42: 4.902497072 | T42: 0.1294492521 | U42: 5.512114984 | V42: 0 | W42: 0.1206399085 | X42: 895.2472776 | Y42: 0.05490755123 | Z42: 0 | AA42: 223.8118194 | AB42: 2.292158261 | AC42: 0.06472462604 | AD42: 2.451248536 | AE42: 40 | AF42: 0 | AG42: =VLOOKUP(AE42,ValidationLists!$M$1:$N$102,2,FALSE) -> 0.3065568408 | AH42: 0 | AI42: 0 | AJ42: 0 | AK42: 0 | AL42: 0 | AM42: 0 | AN42: 0 | AO42: 0 | AP42: 0.01683228544 | AQ42: =IF(OR(AF42=3,AF42=2,AF42=0),SUMIFS(FlatMaint!$Z$2:$Z$10000,FlatMaint!$A$2:$A$10000,D42,FlatMaint!$Y$2:$Y$10000,AE42)*AG42,0) -> 27.08924077 | AR42: =IF(OR(AF42=3,AF42=2,AF42=0),SUMIFS(FlatRepair!$Z$2:$Z$10000,FlatRepair!$A$2:$A$10000,D42,FlatRepair!$Y$2:$Y$10000,AE42)*AG42,0) -> 0 | AS42: 0 | AT42: 27.10607306 | AU42: 0 | AV42: 0 | AW42: 0 | AX42: 0 | AY42: 0 | AZ42: 27.10607306 | BA42: 0 | BB42: =IF($AF42=3,IF($AF$2=2,(R42/SUMIF(Refurb_Poss_Tbl[Refurbishment Possible],I42,Refurb_Poss_Tbl[%]))*AG42,IF($AF$2=3,(R42*AG42)-AV42,R42*AG42)),0) -> 0 | BC42: =IF(AF42=3,IF($AF$2=2,(S42/SUMIF(Refurb_Poss_Tbl[Refurbishment Possible],I42,Refurb_Poss_Tbl[%]))*AG42,IF($AF$2=3,(S42*AG42)-AX42,S42*AG42)),0) -> 0 | BD42: =IF($AF42=3,IF($AF$2=2,(T42/SUMIF(Refurb_Poss_Tbl[Refurbishment Possible],I42,Refurb_Poss_Tbl[%]))*AG42,T42*$AG42),0) -> 0 | BE42: =IF($AF42=3,IF($AF$2=2,(Q42/SUMIF(Refurb_Poss_Tbl[Refurbishment Possible],I42,Refurb_Poss_Tbl[%]))*AG42,Q42*$AG42),0) -> 0 | BF42: =IF($AF42=3,IF($AF$2=2,(U42/SUMIF(Refurb_Poss_Tbl[Refurbishment Possible],I42,Refurb_Poss_Tbl[%]))*AG42,U42*$AG42),0) -> 0 | BG42: =IF($AF42=3,IF($AF$2=2,(V42/SUMIF(Refurb_Poss_Tbl[Refurbishment Possible],I42,Refurb_Poss_Tbl[%]))*AG42,IF($AF$2=3,(V42*AG42)-AW42,V42*AG42)),0) -> 0 | BH42: =IF($AF42=3,IF($AF$2=2,(W42/SUMIF(Refurb_Poss_Tbl[Refurbishment Possible],I42,Refurb_Poss_Tbl[%]))*AG42,W42*$AG42),0) -> 0
A43: BridEA03 | B43: Footbridge | C43: Bridge - Pedestrian | D43: BridEA0333 | E43: Desk | F43: Bridges | G43: 60 | H43: 20 | I43: Moderate Refurbishment | J43: 10 | K43: New Build | L43: 113 | M43: 123 | N43: 100 | O43: 3 | P43: 883.5084 | Q43: 883.5084 | R43: 1.074176355 | S43: 4.902497072 | T43: 0.1294492521 | U43: 5.512114984 | V43: 0 | W43: 0.1206399085 | X43: 895.2472776 | Y43: 0.05490755123 | Z43: 0 | AA43: 223.8118194 | AB43: 2.292158261 | AC43: 0.06472462604 | AD43: 2.451248536 | AE43: 41 | AF43: 0 | AG43: =VLOOKUP(AE43,ValidationLists!$M$1:$N$102,2,FALSE) -> 0.2976280008 | AH43: 0 | AI43: 0 | AJ43: 0 | AK43: 0 | AL43: 0 | AM43: 0 | AN43: 0 | AO43: 0 | AP43: 0.0163420247 | AQ43: =IF(OR(AF43=3,AF43=2,AF43=0),SUMIFS(FlatMaint!$Z$2:$Z$10000,FlatMaint!$A$2:$A$10000,D43,FlatMaint!$Y$2:$Y$10000,AE43)*AG43,0) -> 26.30023376 | AR43: =IF(OR(AF43=3,AF43=2,AF43=0),SUMIFS(FlatRepair!$Z$2:$Z$10000,FlatRepair!$A$2:$A$10000,D43,FlatRepair!$Y$2:$Y$10000,AE43)*AG43,0) -> 0 | AS43: 0 | AT43: 26.31657578 | AU43: 0 | AV43: 0 | AW43: 0 | AX43: 0 | AY43: 0 | AZ43: 26.31657578 | BA43: 0 | BB43: =IF($AF43=3,IF($AF$2=2,(R43/SUMIF(Refurb_Poss_Tbl[Refurbishment Possible],I43,Refurb_Poss_Tbl[%]))*AG43,IF($AF$2=3,(R43*AG43)-AV43,R43*AG43)),0) -> 0 | BC43: =IF(AF43=3,IF($AF$2=2,(S43/SUMIF(Refurb_Poss_Tbl[Refurbishment Possible],I43,Refurb_Poss_Tbl[%]))*AG43,IF($AF$2=3,(S43*AG43)-AX43,S43*AG43)),0) -> 0 | BD43: =IF($AF43=3,IF($AF$2=2,(T43/SUMIF(Refurb_Poss_Tbl[Refurbishment Possible],I43,Refurb_Poss_Tbl[%]))*AG43,T43*$AG43),0) -> 0 | BE43: =IF($AF43=3,IF($AF$2=2,(Q43/SUMIF(Refurb_Poss_Tbl[Refurbishment Possible],I43,Refurb_Poss_Tbl[%]))*AG43,Q43*$AG43),0) -> 0 | BF43: =IF($AF43=3,IF($AF$2=2,(U43/SUMIF(Refurb_Poss_Tbl[Refurbishment Possible],I43,Refurb_Poss_Tbl[%]))*AG43,U43*$AG43),0) -> 0 | BG43: =IF($AF43=3,IF($AF$2=2,(V43/SUMIF(Refurb_Poss_Tbl[Refurbishment Possible],I43,Refurb_Poss_Tbl[%]))*AG43,IF($AF$2=3,(V43*AG43)-AW43,V43*AG43)),0) -> 0 | BH43: =IF($AF43=3,IF($AF$2=2,(W43/SUMIF(Refurb_Poss_Tbl[Refurbishment Possible],I43,Refurb_Poss_Tbl[%]))*AG43,W43*$AG43),0) -> 0
A44: BridEA03 | B44: Footbridge | C44: Bridge - Pedestrian | D44: BridEA0333 | E44: Desk | F44: Bridges | G44: 60 | H44: 20 | I44: Moderate Refurbishment | J44: 10 | K44: New Build | L44: 113 | M44: 123 | N44: 100 | O44: 3 | P44: 883.5084 | Q44: 883.5084 | R44: 1.074176355 | S44: 4.902497072 | T44: 0.1294492521 | U44: 5.512114984 | V44: 0 | W44: 0.1206399085 | X44: 895.2472776 | Y44: 0.05490755123 | Z44: 0 | AA44: 223.8118194 | AB44: 2.292158261 | AC44: 0.06472462604 | AD44: 2.451248536 | AE44: 42 | AF44: 0 | AG44: =VLOOKUP(AE44,ValidationLists!$M$1:$N$102,2,FALSE) -> 0.288959224 | AH44: 0 | AI44: 0 | AJ44: 0 | AK44: 0 | AL44: 0 | AM44: 0 | AN44: 0 | AO44: 0 | AP44: 0.0158660434 | AQ44: =IF(OR(AF44=3,AF44=2,AF44=0),SUMIFS(FlatMaint!$Z$2:$Z$10000,FlatMaint!$A$2:$A$10000,D44,FlatMaint!$Y$2:$Y$10000,AE44)*AG44,0) -> 25.53420753 | AR44: =IF(OR(AF44=3,AF44=2,AF44=0),SUMIFS(FlatRepair!$Z$2:$Z$10000,FlatRepair!$A$2:$A$10000,D44,FlatRepair!$Y$2:$Y$10000,AE44)*AG44,0) -> 0 | AS44: 0 | AT44: 25.55007358 | AU44: 0 | AV44: 0 | AW44: 0 | AX44: 0 | AY44: 0 | AZ44: 25.55007358 | BA44: 0 | BB44: =IF($AF44=3,IF($AF$2=2,(R44/SUMIF(Refurb_Poss_Tbl[Refurbishment Possible],I44,Refurb_Poss_Tbl[%]))*AG44,IF($AF$2=3,(R44*AG44)-AV44,R44*AG44)),0) -> 0 | BC44: =IF(AF44=3,IF($AF$2=2,(S44/SUMIF(Refurb_Poss_Tbl[Refurbishment Possible],I44,Refurb_Poss_Tbl[%]))*AG44,IF($AF$2=3,(S44*AG44)-AX44,S44*AG44)),0) -> 0 | BD44: =IF($AF44=3,IF($AF$2=2,(T44/SUMIF(Refurb_Poss_Tbl[Refurbishment Possible],I44,Refurb_Poss_Tbl[%]))*AG44,T44*$AG44),0) -> 0 | BE44: =IF($AF44=3,IF($AF$2=2,(Q44/SUMIF(Refurb_Poss_Tbl[Refurbishment Possible],I44,Refurb_Poss_Tbl[%]))*AG44,Q44*$AG44),0) -> 0 | BF44: =IF($AF44=3,IF($AF$2=2,(U44/SUMIF(Refurb_Poss_Tbl[Refurbishment Possible],I44,Refurb_Poss_Tbl[%]))*AG44,U44*$AG44),0) -> 0 | BG44: =IF($AF44=3,IF($AF$2=2,(V44/SUMIF(Refurb_Poss_Tbl[Refurbishment Possible],I44,Refurb_Poss_Tbl[%]))*AG44,IF($AF$2=3,(V44*AG44)-AW44,V44*AG44)),0) -> 0 | BH44: =IF($AF44=3,IF($AF$2=2,(W44/SUMIF(Refurb_Poss_Tbl[Refurbishment Possible],I44,Refurb_Poss_Tbl[%]))*AG44,W44*$AG44),0) -> 0
A45: BridEA03 | B45: Footbridge | C45: Bridge - Pedestrian | D45: BridEA0333 | E45: Desk | F45: Bridges | G45: 60 | H45: 20 | I45: Moderate Refurbishment | J45: 10 | K45: New Build | L45: 113 | M45: 123 | N45: 100 | O45: 3 | P45: 883.5084 | Q45: 883.5084 | R45: 1.074176355 | S45: 4.902497072 | T45: 0.1294492521 | U45: 5.512114984 | V45: 0 | W45: 0.1206399085 | X45: 895.2472776 | Y45: 0.05490755123 | Z45: 0 | AA45: 223.8118194 | AB45: 2.292158261 | AC45: 0.06472462604 | AD45: 2.451248536 | AE45: 43 | AF45: 0 | AG45: =VLOOKUP(AE45,ValidationLists!$M$1:$N$102,2,FALSE) -> 0.280542936 | AH45: 0 | AI45: 0 | AJ45: 0 | AK45: 0 | AL45: 0 | AM45: 0 | AN45: 0 | AO45: 0 | AP45: 0.01540392563 | AQ45: =IF(OR(AF45=3,AF45=2,AF45=0),SUMIFS(FlatMaint!$Z$2:$Z$10000,FlatMaint!$A$2:$A$10000,D45,FlatMaint!$Y$2:$Y$10000,AE45)*AG45,0) -> 24.79049275 | AR45: =IF(OR(AF45=3,AF45=2,AF45=0),SUMIFS(FlatRepair!$Z$2:$Z$10000,FlatRepair!$A$2:$A$10000,D45,FlatRepair!$Y$2:$Y$10000,AE45)*AG45,0) -> 0 | AS45: 0 | AT45: 24.80589668 | AU45: 0 | AV45: 0 | AW45: 0 | AX45: 0 | AY45: 0 | AZ45: 24.80589668 | BA45: 0 | BB45: =IF($AF45=3,IF($AF$2=2,(R45/SUMIF(Refurb_Poss_Tbl[Refurbishment Possible],I45,Refurb_Poss_Tbl[%]))*AG45,IF($AF$2=3,(R45*AG45)-AV45,R45*AG45)),0) -> 0 | BC45: =IF(AF45=3,IF($AF$2=2,(S45/SUMIF(Refurb_Poss_Tbl[Refurbishment Possible],I45,Refurb_Poss_Tbl[%]))*AG45,IF($AF$2=3,(S45*AG45)-AX45,S45*AG45)),0) -> 0 | BD45: =IF($AF45=3,IF($AF$2=2,(T45/SUMIF(Refurb_Poss_Tbl[Refurbishment Possible],I45,Refurb_Poss_Tbl[%]))*AG45,T45*$AG45),0) -> 0 | BE45: =IF($AF45=3,IF($AF$2=2,(Q45/SUMIF(Refurb_Poss_Tbl[Refurbishment Possible],I45,Refurb_Poss_Tbl[%]))*AG45,Q45*$AG45),0) -> 0 | BF45: =IF($AF45=3,IF($AF$2=2,(U45/SUMIF(Refurb_Poss_Tbl[Refurbishment Possible],I45,Refurb_Poss_Tbl[%]))*AG45,U45*$AG45),0) -> 0 | BG45: =IF($AF45=3,IF($AF$2=2,(V45/SUMIF(Refurb_Poss_Tbl[Refurbishment Possible],I45,Refurb_Poss_Tbl[%]))*AG45,IF($AF$2=3,(V45*AG45)-AW45,V45*AG45)),0) -> 0 | BH45: =IF($AF45=3,IF($AF$2=2,(W45/SUMIF(Refurb_Poss_Tbl[Refurbishment Possible],I45,Refurb_Poss_Tbl[%]))*AG45,W45*$AG45),0) -> 0
A46: BridEA03 | B46: Footbridge | C46: Bridge - Pedestrian | D46: BridEA0333 | E46: Desk | F46: Bridges | G46: 60 | H46: 20 | I46: Moderate Refurbishment | J46: 10 | K46: New Build | L46: 113 | M46: 123 | N46: 100 | O46: 3 | P46: 883.5084 | Q46: 883.5084 | R46: 1.074176355 | S46: 4.902497072 | T46: 0.1294492521 | U46: 5.512114984 | V46: 0 | W46: 0.1206399085 | X46: 895.2472776 | Y46: 0.05490755123 | Z46: 0 | AA46: 223.8118194 | AB46: 2.292158261 | AC46: 0.06472462604 | AD46: 2.451248536 | AE46: 44 | AF46: 0 | AG46: =VLOOKUP(AE46,ValidationLists!$M$1:$N$102,2,FALSE) -> 0.2723717825 | AH46: 0 | AI46: 0 | AJ46: 0 | AK46: 0 | AL46: 0 | AM46: 0 | AN46: 0 | AO46: 0 | AP46: 0.0149552676 | AQ46: =IF(OR(AF46=3,AF46=2,AF46=0),SUMIFS(FlatMaint!$Z$2:$Z$10000,FlatMaint!$A$2:$A$10000,D46,FlatMaint!$Y$2:$Y$10000,AE46)*AG46,0) -> 24.06843956 | AR46: =IF(OR(AF46=3,AF46=2,AF46=0),SUMIFS(FlatRepair!$Z$2:$Z$10000,FlatRepair!$A$2:$A$10000,D46,FlatRepair!$Y$2:$Y$10000,AE46)*AG46,0) -> 0 | AS46: 0 | AT46: 24.08339483 | AU46: 0 | AV46: 0 | AW46: 0 | AX46: 0 | AY46: 0 | AZ46: 24.08339483 | BA46: 0 | BB46: =IF($AF46=3,IF($AF$2=2,(R46/SUMIF(Refurb_Poss_Tbl[Refurbishment Possible],I46,Refurb_Poss_Tbl[%]))*AG46,IF($AF$2=3,(R46*AG46)-AV46,R46*AG46)),0) -> 0 | BC46: =IF(AF46=3,IF($AF$2=2,(S46/SUMIF(Refurb_Poss_Tbl[Refurbishment Possible],I46,Refurb_Poss_Tbl[%]))*AG46,IF($AF$2=3,(S46*AG46)-AX46,S46*AG46)),0) -> 0 | BD46: =IF($AF46=3,IF($AF$2=2,(T46/SUMIF(Refurb_Poss_Tbl[Refurbishment Possible],I46,Refurb_Poss_Tbl[%]))*AG46,T46*$AG46),0) -> 0 | BE46: =IF($AF46=3,IF($AF$2=2,(Q46/SUMIF(Refurb_Poss_Tbl[Refurbishment Possible],I46,Refurb_Poss_Tbl[%]))*AG46,Q46*$AG46),0) -> 0 | BF46: =IF($AF46=3,IF($AF$2=2,(U46/SUMIF(Refurb_Poss_Tbl[Refurbishment Possible],I46,Refurb_Poss_Tbl[%]))*AG46,U46*$AG46),0) -> 0 | BG46: =IF($AF46=3,IF($AF$2=2,(V46/SUMIF(Refurb_Poss_Tbl[Refurbishment Possible],I46,Refurb_Poss_Tbl[%]))*AG46,IF($AF$2=3,(V46*AG46)-AW46,V46*AG46)),0) -> 0 | BH46: =IF($AF46=3,IF($AF$2=2,(W46/SUMIF(Refurb_Poss_Tbl[Refurbishment Possible],I46,Refurb_Poss_Tbl[%]))*AG46,W46*$AG46),0) -> 0
A47: BridEA03 | B47: Footbridge | C47: Bridge - Pedestrian | D47: BridEA0333 | E47: Desk | F47: Bridges | G47: 60 | H47: 20 | I47: Moderate Refurbishment | J47: 10 | K47: New Build | L47: 113 | M47: 123 | N47: 100 | O47: 3 | P47: 883.5084 | Q47: 883.5084 | R47: 1.074176355 | S47: 4.902497072 | T47: 0.1294492521 | U47: 5.512114984 | V47: 0 | W47: 0.1206399085 | X47: 895.2472776 | Y47: 0.05490755123 | Z47: 0 | AA47: 223.8118194 | AB47: 2.292158261 | AC47: 0.06472462604 | AD47: 2.451248536 | AE47: 45 | AF47: 0 | AG47: =VLOOKUP(AE47,ValidationLists!$M$1:$N$102,2,FALSE) -> 0.2644386238 | AH47: 0 | AI47: 0 | AJ47: 0 | AK47: 0 | AL47: 0 | AM47: 0 | AN47: 0 | AO47: 0 | AP47: 0.01451967728 | AQ47: =IF(OR(AF47=3,AF47=2,AF47=0),SUMIFS(FlatMaint!$Z$2:$Z$10000,FlatMaint!$A$2:$A$10000,D47,FlatMaint!$Y$2:$Y$10000,AE47)*AG47,0) -> 23.36741705 | AR47: =IF(OR(AF47=3,AF47=2,AF47=0),SUMIFS(FlatRepair!$Z$2:$Z$10000,FlatRepair!$A$2:$A$10000,D47,FlatRepair!$Y$2:$Y$10000,AE47)*AG47,0) -> 0 | AS47: 0 | AT47: 23.38193673 | AU47: 0 | AV47: 0 | AW47: 0 | AX47: 0 | AY47: 0 | AZ47: 23.38193673 | BA47: 0 | BB47: =IF($AF47=3,IF($AF$2=2,(R47/SUMIF(Refurb_Poss_Tbl[Refurbishment Possible],I47,Refurb_Poss_Tbl[%]))*AG47,IF($AF$2=3,(R47*AG47)-AV47,R47*AG47)),0) -> 0 | BC47: =IF(AF47=3,IF($AF$2=2,(S47/SUMIF(Refurb_Poss_Tbl[Refurbishment Possible],I47,Refurb_Poss_Tbl[%]))*AG47,IF($AF$2=3,(S47*AG47)-AX47,S47*AG47)),0) -> 0 | BD47: =IF($AF47=3,IF($AF$2=2,(T47/SUMIF(Refurb_Poss_Tbl[Refurbishment Possible],I47,Refurb_Poss_Tbl[%]))*AG47,T47*$AG47),0) -> 0 | BE47: =IF($AF47=3,IF($AF$2=2,(Q47/SUMIF(Refurb_Poss_Tbl[Refurbishment Possible],I47,Refurb_Poss_Tbl[%]))*AG47,Q47*$AG47),0) -> 0 | BF47: =IF($AF47=3,IF($AF$2=2,(U47/SUMIF(Refurb_Poss_Tbl[Refurbishment Possible],I47,Refurb_Poss_Tbl[%]))*AG47,U47*$AG47),0) -> 0 | BG47: =IF($AF47=3,IF($AF$2=2,(V47/SUMIF(Refurb_Poss_Tbl[Refurbishment Possible],I47,Refurb_Poss_Tbl[%]))*AG47,IF($AF$2=3,(V47*AG47)-AW47,V47*AG47)),0) -> 0 | BH47: =IF($AF47=3,IF($AF$2=2,(W47/SUMIF(Refurb_Poss_Tbl[Refurbishment Possible],I47,Refurb_Poss_Tbl[%]))*AG47,W47*$AG47),0) -> 0
A48: BridEA03 | B48: Footbridge | C48: Bridge - Pedestrian | D48: BridEA0333 | E48: Desk | F48: Bridges | G48: 60 | H48: 20 | I48: Moderate Refurbishment | J48: 10 | K48: New Build | L48: 113 | M48: 123 | N48: 100 | O48: 3 | P48: 883.5084 | Q48: 883.5084 | R48: 1.074176355 | S48: 4.902497072 | T48: 0.1294492521 | U48: 5.512114984 | V48: 0 | W48: 0.1206399085 | X48: 895.2472776 | Y48: 0.05490755123 | Z48: 0 | AA48: 223.8118194 | AB48: 2.292158261 | AC48: 0.06472462604 | AD48: 2.451248536 | AE48: 46 | AF48: 0 | AG48: =VLOOKUP(AE48,ValidationLists!$M$1:$N$102,2,FALSE) -> 0.2567365279 | AH48: 0 | AI48: 0 | AJ48: 0 | AK48: 0 | AL48: 0 | AM48: 0 | AN48: 0 | AO48: 0 | AP48: 0.01409677406 | AQ48: =IF(OR(AF48=3,AF48=2,AF48=0),SUMIFS(FlatMaint!$Z$2:$Z$10000,FlatMaint!$A$2:$A$10000,D48,FlatMaint!$Y$2:$Y$10000,AE48)*AG48,0) -> 22.68681267 | AR48: =IF(OR(AF48=3,AF48=2,AF48=0),SUMIFS(FlatRepair!$Z$2:$Z$10000,FlatRepair!$A$2:$A$10000,D48,FlatRepair!$Y$2:$Y$10000,AE48)*AG48,0) -> 0 | AS48: 0 | AT48: 22.70090945 | AU48: 0 | AV48: 0 | AW48: 0 | AX48: 0 | AY48: 0 | AZ48: 22.70090945 | BA48: 0 | BB48: =IF($AF48=3,IF($AF$2=2,(R48/SUMIF(Refurb_Poss_Tbl[Refurbishment Possible],I48,Refurb_Poss_Tbl[%]))*AG48,IF($AF$2=3,(R48*AG48)-AV48,R48*AG48)),0) -> 0 | BC48: =IF(AF48=3,IF($AF$2=2,(S48/SUMIF(Refurb_Poss_Tbl[Refurbishment Possible],I48,Refurb_Poss_Tbl[%]))*AG48,IF($AF$2=3,(S48*AG48)-AX48,S48*AG48)),0) -> 0 | BD48: =IF($AF48=3,IF($AF$2=2,(T48/SUMIF(Refurb_Poss_Tbl[Refurbishment Possible],I48,Refurb_Poss_Tbl[%]))*AG48,T48*$AG48),0) -> 0 | BE48: =IF($AF48=3,IF($AF$2=2,(Q48/SUMIF(Refurb_Poss_Tbl[Refurbishment Possible],I48,Refurb_Poss_Tbl[%]))*AG48,Q48*$AG48),0) -> 0 | BF48: =IF($AF48=3,IF($AF$2=2,(U48/SUMIF(Refurb_Poss_Tbl[Refurbishment Possible],I48,Refurb_Poss_Tbl[%]))*AG48,U48*$AG48),0) -> 0 | BG48: =IF($AF48=3,IF($AF$2=2,(V48/SUMIF(Refurb_Poss_Tbl[Refurbishment Possible],I48,Refurb_Poss_Tbl[%]))*AG48,IF($AF$2=3,(V48*AG48)-AW48,V48*AG48)),0) -> 0 | BH48: =IF($AF48=3,IF($AF$2=2,(W48/SUMIF(Refurb_Poss_Tbl[Refurbishment Possible],I48,Refurb_Poss_Tbl[%]))*AG48,W48*$AG48),0) -> 0
A49: BridEA03 | B49: Footbridge | C49: Bridge - Pedestrian | D49: BridEA0333 | E49: Desk | F49: Bridges | G49: 60 | H49: 20 | I49: Moderate Refurbishment | J49: 10 | K49: New Build | L49: 113 | M49: 123 | N49: 100 | O49: 3 | P49: 883.5084 | Q49: 883.5084 | R49: 1.074176355 | S49: 4.902497072 | T49: 0.1294492521 | U49: 5.512114984 | V49: 0 | W49: 0.1206399085 | X49: 895.2472776 | Y49: 0.05490755123 | Z49: 0 | AA49: 223.8118194 | AB49: 2.292158261 | AC49: 0.06472462604 | AD49: 2.451248536 | AE49: 47 | AF49: 0 | AG49: =VLOOKUP(AE49,ValidationLists!$M$1:$N$102,2,FALSE) -> 0.249258765 | AH49: 0 | AI49: 0 | AJ49: 0 | AK49: 0 | AL49: 0 | AM49: 0 | AN49: 0 | AO49: 0 | AP49: 0.01368618841 | AQ49: =IF(OR(AF49=3,AF49=2,AF49=0),SUMIFS(FlatMaint!$Z$2:$Z$10000,FlatMaint!$A$2:$A$10000,D49,FlatMaint!$Y$2:$Y$10000,AE49)*AG49,0) -> 22.02603172 | AR49: =IF(OR(AF49=3,AF49=2,AF49=0),SUMIFS(FlatRepair!$Z$2:$Z$10000,FlatRepair!$A$2:$A$10000,D49,FlatRepair!$Y$2:$Y$10000,AE49)*AG49,0) -> 0 | AS49: 0 | AT49: 22.03971791 | AU49: 0 | AV49: 0 | AW49: 0 | AX49: 0 | AY49: 0 | AZ49: 22.03971791 | BA49: 0 | BB49: =IF($AF49=3,IF($AF$2=2,(R49/SUMIF(Refurb_Poss_Tbl[Refurbishment Possible],I49,Refurb_Poss_Tbl[%]))*AG49,IF($AF$2=3,(R49*AG49)-AV49,R49*AG49)),0) -> 0 | BC49: =IF(AF49=3,IF($AF$2=2,(S49/SUMIF(Refurb_Poss_Tbl[Refurbishment Possible],I49,Refurb_Poss_Tbl[%]))*AG49,IF($AF$2=3,(S49*AG49)-AX49,S49*AG49)),0) -> 0 | BD49: =IF($AF49=3,IF($AF$2=2,(T49/SUMIF(Refurb_Poss_Tbl[Refurbishment Possible],I49,Refurb_Poss_Tbl[%]))*AG49,T49*$AG49),0) -> 0 | BE49: =IF($AF49=3,IF($AF$2=2,(Q49/SUMIF(Refurb_Poss_Tbl[Refurbishment Possible],I49,Refurb_Poss_Tbl[%]))*AG49,Q49*$AG49),0) -> 0 | BF49: =IF($AF49=3,IF($AF$2=2,(U49/SUMIF(Refurb_Poss_Tbl[Refurbishment Possible],I49,Refurb_Poss_Tbl[%]))*AG49,U49*$AG49),0) -> 0 | BG49: =IF($AF49=3,IF($AF$2=2,(V49/SUMIF(Refurb_Poss_Tbl[Refurbishment Possible],I49,Refurb_Poss_Tbl[%]))*AG49,IF($AF$2=3,(V49*AG49)-AW49,V49*AG49)),0) -> 0 | BH49: =IF($AF49=3,IF($AF$2=2,(W49/SUMIF(Refurb_Poss_Tbl[Refurbishment Possible],I49,Refurb_Poss_Tbl[%]))*AG49,W49*$AG49),0) -> 0
A50: BridEA03 | B50: Footbridge | C50: Bridge - Pedestrian | D50: BridEA0333 | E50: Desk | F50: Bridges | G50: 60 | H50: 20 | I50: Moderate Refurbishment | J50: 10 | K50: New Build | L50: 113 | M50: 123 | N50: 100 | O50: 3 | P50: 883.5084 | Q50: 883.5084 | R50: 1.074176355 | S50: 4.902497072 | T50: 0.1294492521 | U50: 5.512114984 | V50: 0 | W50: 0.1206399085 | X50: 895.2472776 | Y50: 0.05490755123 | Z50: 0 | AA50: 223.8118194 | AB50: 2.292158261 | AC50: 0.06472462604 | AD50: 2.451248536 | AE50: 48 | AF50: 0 | AG50: =VLOOKUP(AE50,ValidationLists!$M$1:$N$102,2,FALSE) -> 0.2419988009 | AH50: 0 | AI50: 0 | AJ50: 0 | AK50: 0 | AL50: 0 | AM50: 0 | AN50: 0 | AO50: 0 | AP50: 0.01328756156 | AQ50: =IF(OR(AF50=3,AF50=2,AF50=0),SUMIFS(FlatMaint!$Z$2:$Z$10000,FlatMaint!$A$2:$A$10000,D50,FlatMaint!$Y$2:$Y$10000,AE50)*AG50,0) -> 21.38449682 | AR50: =IF(OR(AF50=3,AF50=2,AF50=0),SUMIFS(FlatRepair!$Z$2:$Z$10000,FlatRepair!$A$2:$A$10000,D50,FlatRepair!$Y$2:$Y$10000,AE50)*AG50,0) -> 0 | AS50: 0 | AT50: 21.39778438 | AU50: 0 | AV50: 0 | AW50: 0 | AX50: 0 | AY50: 0 | AZ50: 21.39778438 | BA50: 0 | BB50: =IF($AF50=3,IF($AF$2=2,(R50/SUMIF(Refurb_Poss_Tbl[Refurbishment Possible],I50,Refurb_Poss_Tbl[%]))*AG50,IF($AF$2=3,(R50*AG50)-AV50,R50*AG50)),0) -> 0 | BC50: =IF(AF50=3,IF($AF$2=2,(S50/SUMIF(Refurb_Poss_Tbl[Refurbishment Possible],I50,Refurb_Poss_Tbl[%]))*AG50,IF($AF$2=3,(S50*AG50)-AX50,S50*AG50)),0) -> 0 | BD50: =IF($AF50=3,IF($AF$2=2,(T50/SUMIF(Refurb_Poss_Tbl[Refurbishment Possible],I50,Refurb_Poss_Tbl[%]))*AG50,T50*$AG50),0) -> 0 | BE50: =IF($AF50=3,IF($AF$2=2,(Q50/SUMIF(Refurb_Poss_Tbl[Refurbishment Possible],I50,Refurb_Poss_Tbl[%]))*AG50,Q50*$AG50),0) -> 0 | BF50: =IF($AF50=3,IF($AF$2=2,(U50/SUMIF(Refurb_Poss_Tbl[Refurbishment Possible],I50,Refurb_Poss_Tbl[%]))*AG50,U50*$AG50),0) -> 0 | BG50: =IF($AF50=3,IF($AF$2=2,(V50/SUMIF(Refurb_Poss_Tbl[Refurbishment Possible],I50,Refurb_Poss_Tbl[%]))*AG50,IF($AF$2=3,(V50*AG50)-AW50,V50*AG50)),0) -> 0 | BH50: =IF($AF50=3,IF($AF$2=2,(W50/SUMIF(Refurb_Poss_Tbl[Refurbishment Possible],I50,Refurb_Poss_Tbl[%]))*AG50,W50*$AG50),0) -> 0
A51: BridEA03 | B51: Footbridge | C51: Bridge - Pedestrian | D51: BridEA0333 | E51: Desk | F51: Bridges | G51: 60 | H51: 20 | I51: Moderate Refurbishment | J51: 10 | K51: New Build | L51: 113 | M51: 123 | N51: 100 | O51: 3 | P51: 883.5084 | Q51: 883.5084 | R51: 1.074176355 | S51: 4.902497072 | T51: 0.1294492521 | U51: 5.512114984 | V51: 0 | W51: 0.1206399085 | X51: 895.2472776 | Y51: 0.05490755123 | Z51: 0 | AA51: 223.8118194 | AB51: 2.292158261 | AC51: 0.06472462604 | AD51: 2.451248536 | AE51: 49 | AF51: 0 | AG51: =VLOOKUP(AE51,ValidationLists!$M$1:$N$102,2,FALSE) -> 0.2349502922 | AH51: 0 | AI51: 0 | AJ51: 0 | AK51: 0 | AL51: 0 | AM51: 0 | AN51: 0 | AO51: 0 | AP51: 0.01290054521 | AQ51: =IF(OR(AF51=3,AF51=2,AF51=0),SUMIFS(FlatMaint!$Z$2:$Z$10000,FlatMaint!$A$2:$A$10000,D51,FlatMaint!$Y$2:$Y$10000,AE51)*AG51,0) -> 20.76164739 | AR51: =IF(OR(AF51=3,AF51=2,AF51=0),SUMIFS(FlatRepair!$Z$2:$Z$10000,FlatRepair!$A$2:$A$10000,D51,FlatRepair!$Y$2:$Y$10000,AE51)*AG51,0) -> 0 | AS51: 0 | AT51: 20.77454794 | AU51: 0 | AV51: 0 | AW51: 0 | AX51: 0 | AY51: 0 | AZ51: 20.77454794 | BA51: 0 | BB51: =IF($AF51=3,IF($AF$2=2,(R51/SUMIF(Refurb_Poss_Tbl[Refurbishment Possible],I51,Refurb_Poss_Tbl[%]))*AG51,IF($AF$2=3,(R51*AG51)-AV51,R51*AG51)),0) -> 0 | BC51: =IF(AF51=3,IF($AF$2=2,(S51/SUMIF(Refurb_Poss_Tbl[Refurbishment Possible],I51,Refurb_Poss_Tbl[%]))*AG51,IF($AF$2=3,(S51*AG51)-AX51,S51*AG51)),0) -> 0 | BD51: =IF($AF51=3,IF($AF$2=2,(T51/SUMIF(Refurb_Poss_Tbl[Refurbishment Possible],I51,Refurb_Poss_Tbl[%]))*AG51,T51*$AG51),0) -> 0 | BE51: =IF($AF51=3,IF($AF$2=2,(Q51/SUMIF(Refurb_Poss_Tbl[Refurbishment Possible],I51,Refurb_Poss_Tbl[%]))*AG51,Q51*$AG51),0) -> 0 | BF51: =IF($AF51=3,IF($AF$2=2,(U51/SUMIF(Refurb_Poss_Tbl[Refurbishment Possible],I51,Refurb_Poss_Tbl[%]))*AG51,U51*$AG51),0) -> 0 | BG51: =IF($AF51=3,IF($AF$2=2,(V51/SUMIF(Refurb_Poss_Tbl[Refurbishment Possible],I51,Refurb_Poss_Tbl[%]))*AG51,IF($AF$2=3,(V51*AG51)-AW51,V51*AG51)),0) -> 0 | BH51: =IF($AF51=3,IF($AF$2=2,(W51/SUMIF(Refurb_Poss_Tbl[Refurbishment Possible],I51,Refurb_Poss_Tbl[%]))*AG51,W51*$AG51),0) -> 0
A52: BridEA03 | B52: Footbridge | C52: Bridge - Pedestrian | D52: BridEA0333 | E52: Desk | F52: Bridges | G52: 60 | H52: 20 | I52: Moderate Refurbishment | J52: 10 | K52: New Build | L52: 113 | M52: 123 | N52: 100 | O52: 3 | P52: 883.5084 | Q52: 883.5084 | R52: 1.074176355 | S52: 4.902497072 | T52: 0.1294492521 | U52: 5.512114984 | V52: 0 | W52: 0.1206399085 | X52: 895.2472776 | Y52: 0.05490755123 | Z52: 0 | AA52: 223.8118194 | AB52: 2.292158261 | AC52: 0.06472462604 | AD52: 2.451248536 | AE52: 50 | AF52: 2 | AG52: =VLOOKUP(AE52,ValidationLists!$M$1:$N$102,2,FALSE) -> 0.2281070798 | AH52: 0 | AI52: 0 | AJ52: 0 | AK52: 0 | AL52: 0 | AM52: 0 | AN52: 0 | AO52: 0 | AP52: 0.01252480117 | AQ52: =IF(OR(AF52=3,AF52=2,AF52=0),SUMIFS(FlatMaint!$Z$2:$Z$10000,FlatMaint!$A$2:$A$10000,D52,FlatMaint!$Y$2:$Y$10000,AE52)*AG52,0) -> 20.15693922 | AR52: =IF(OR(AF52=3,AF52=2,AF52=0),SUMIFS(FlatRepair!$Z$2:$Z$10000,FlatRepair!$A$2:$A$10000,D52,FlatRepair!$Y$2:$Y$10000,AE52)*AG52,0) -> 0 | AS52: 0 | AT52: 20.16946402 | AU52: 51.05306054 | AV52: 0 | AW52: 0 | AX52: 0 | AY52: 0 | AZ52: 71.22252456 | BA52: 0 | BB52: =IF($AF52=3,IF($AF$2=2,(R52/SUMIF(Refurb_Poss_Tbl[Refurbishment Possible],I52,Refurb_Poss_Tbl[%]))*AG52,IF($AF$2=3,(R52*AG52)-AV52,R52*AG52)),0) -> 0 | BC52: =IF(AF52=3,IF($AF$2=2,(S52/SUMIF(Refurb_Poss_Tbl[Refurbishment Possible],I52,Refurb_Poss_Tbl[%]))*AG52,IF($AF$2=3,(S52*AG52)-AX52,S52*AG52)),0) -> 0 | BD52: =IF($AF52=3,IF($AF$2=2,(T52/SUMIF(Refurb_Poss_Tbl[Refurbishment Possible],I52,Refurb_Poss_Tbl[%]))*AG52,T52*$AG52),0) -> 0 | BE52: =IF($AF52=3,IF($AF$2=2,(Q52/SUMIF(Refurb_Poss_Tbl[Refurbishment Possible],I52,Refurb_Poss_Tbl[%]))*AG52,Q52*$AG52),0) -> 0 | BF52: =IF($AF52=3,IF($AF$2=2,(U52/SUMIF(Refurb_Poss_Tbl[Refurbishment Possible],I52,Refurb_Poss_Tbl[%]))*AG52,U52*$AG52),0) -> 0 | BG52: =IF($AF52=3,IF($AF$2=2,(V52/SUMIF(Refurb_Poss_Tbl[Refurbishment Possible],I52,Refurb_Poss_Tbl[%]))*AG52,IF($AF$2=3,(V52*AG52)-AW52,V52*AG52)),0) -> 0 | BH52: =IF($AF52=3,IF($AF$2=2,(W52/SUMIF(Refurb_Poss_Tbl[Refurbishment Possible],I52,Refurb_Poss_Tbl[%]))*AG52,W52*$AG52),0) -> 0
A53: BridEA03 | B53: Footbridge | C53: Bridge - Pedestrian | D53: BridEA0333 | E53: Desk | F53: Bridges | G53: 60 | H53: 20 | I53: Moderate Refurbishment | J53: 10 | K53: New Build | L53: 113 | M53: 123 | N53: 100 | O53: 3 | P53: 883.5084 | Q53: 883.5084 | R53: 1.074176355 | S53: 4.902497072 | T53: 0.1294492521 | U53: 5.512114984 | V53: 0 | W53: 0.1206399085 | X53: 895.2472776 | Y53: 0.05490755123 | Z53: 0 | AA53: 223.8118194 | AB53: 2.292158261 | AC53: 0.06472462604 | AD53: 2.451248536 | AE53: 51 | AF53: 0 | AG53: =VLOOKUP(AE53,ValidationLists!$M$1:$N$102,2,FALSE) -> 0.2214631843 | AH53: 0 | AI53: 0 | AJ53: 0 | AK53: 0 | AL53: 0 | AM53: 0 | AN53: 0 | AO53: 0 | AP53: 0.01216000114 | AQ53: =IF(OR(AF53=3,AF53=2,AF53=0),SUMIFS(FlatMaint!$Z$2:$Z$10000,FlatMaint!$A$2:$A$10000,D53,FlatMaint!$Y$2:$Y$10000,AE53)*AG53,0) -> 19.5698439 | AR53: =IF(OR(AF53=3,AF53=2,AF53=0),SUMIFS(FlatRepair!$Z$2:$Z$10000,FlatRepair!$A$2:$A$10000,D53,FlatRepair!$Y$2:$Y$10000,AE53)*AG53,0) -> 0 | AS53: 0 | AT53: 19.5820039 | AU53: 0 | AV53: 0 | AW53: 0 | AX53: 0 | AY53: 0 | AZ53: 19.5820039 | BA53: 0 | BB53: =IF($AF53=3,IF($AF$2=2,(R53/SUMIF(Refurb_Poss_Tbl[Refurbishment Possible],I53,Refurb_Poss_Tbl[%]))*AG53,IF($AF$2=3,(R53*AG53)-AV53,R53*AG53)),0) -> 0 | BC53: =IF(AF53=3,IF($AF$2=2,(S53/SUMIF(Refurb_Poss_Tbl[Refurbishment Possible],I53,Refurb_Poss_Tbl[%]))*AG53,IF($AF$2=3,(S53*AG53)-AX53,S53*AG53)),0) -> 0 | BD53: =IF($AF53=3,IF($AF$2=2,(T53/SUMIF(Refurb_Poss_Tbl[Refurbishment Possible],I53,Refurb_Poss_Tbl[%]))*AG53,T53*$AG53),0) -> 0 | BE53: =IF($AF53=3,IF($AF$2=2,(Q53/SUMIF(Refurb_Poss_Tbl[Refurbishment Possible],I53,Refurb_Poss_Tbl[%]))*AG53,Q53*$AG53),0) -> 0 | BF53: =IF($AF53=3,IF($AF$2=2,(U53/SUMIF(Refurb_Poss_Tbl[Refurbishment Possible],I53,Refurb_Poss_Tbl[%]))*AG53,U53*$AG53),0) -> 0 | BG53: =IF($AF53=3,IF($AF$2=2,(V53/SUMIF(Refurb_Poss_Tbl[Refurbishment Possible],I53,Refurb_Poss_Tbl[%]))*AG53,IF($AF$2=3,(V53*AG53)-AW53,V53*AG53)),0) -> 0 | BH53: =IF($AF53=3,IF($AF$2=2,(W53/SUMIF(Refurb_Poss_Tbl[Refurbishment Possible],I53,Refurb_Poss_Tbl[%]))*AG53,W53*$AG53),0) -> 0
A54: BridEA03 | B54: Footbridge | C54: Bridge - Pedestrian | D54: BridEA0333 | E54: Desk | F54: Bridges | G54: 60 | H54: 20 | I54: Moderate Refurbishment | J54: 10 | K54: New Build | L54: 113 | M54: 123 | N54: 100 | O54: 3 | P54: 883.5084 | Q54: 883.5084 | R54: 1.074176355 | S54: 4.902497072 | T54: 0.1294492521 | U54: 5.512114984 | V54: 0 | W54: 0.1206399085 | X54: 895.2472776 | Y54: 0.05490755123 | Z54: 0 | AA54: 223.8118194 | AB54: 2.292158261 | AC54: 0.06472462604 | AD54: 2.451248536 | AE54: 52 | AF54: 0 | AG54: =VLOOKUP(AE54,ValidationLists!$M$1:$N$102,2,FALSE) -> 0.2150128003 | AH54: 0 | AI54: 0 | AJ54: 0 | AK54: 0 | AL54: 0 | AM54: 0 | AN54: 0 | AO54: 0 | AP54: 0.01180582635 | AQ54: =IF(OR(AF54=3,AF54=2,AF54=0),SUMIFS(FlatMaint!$Z$2:$Z$10000,FlatMaint!$A$2:$A$10000,D54,FlatMaint!$Y$2:$Y$10000,AE54)*AG54,0) -> 18.99984845 | AR54: =IF(OR(AF54=3,AF54=2,AF54=0),SUMIFS(FlatRepair!$Z$2:$Z$10000,FlatRepair!$A$2:$A$10000,D54,FlatRepair!$Y$2:$Y$10000,AE54)*AG54,0) -> 0 | AS54: 0 | AT54: 19.01165427 | AU54: 0 | AV54: 0 | AW54: 0 | AX54: 0 | AY54: 0 | AZ54: 19.01165427 | BA54: 0 | BB54: =IF($AF54=3,IF($AF$2=2,(R54/SUMIF(Refurb_Poss_Tbl[Refurbishment Possible],I54,Refurb_Poss_Tbl[%]))*AG54,IF($AF$2=3,(R54*AG54)-AV54,R54*AG54)),0) -> 0 | BC54: =IF(AF54=3,IF($AF$2=2,(S54/SUMIF(Refurb_Poss_Tbl[Refurbishment Possible],I54,Refurb_Poss_Tbl[%]))*AG54,IF($AF$2=3,(S54*AG54)-AX54,S54*AG54)),0) -> 0 | BD54: =IF($AF54=3,IF($AF$2=2,(T54/SUMIF(Refurb_Poss_Tbl[Refurbishment Possible],I54,Refurb_Poss_Tbl[%]))*AG54,T54*$AG54),0) -> 0 | BE54: =IF($AF54=3,IF($AF$2=2,(Q54/SUMIF(Refurb_Poss_Tbl[Refurbishment Possible],I54,Refurb_Poss_Tbl[%]))*AG54,Q54*$AG54),0) -> 0 | BF54: =IF($AF54=3,IF($AF$2=2,(U54/SUMIF(Refurb_Poss_Tbl[Refurbishment Possible],I54,Refurb_Poss_Tbl[%]))*AG54,U54*$AG54),0) -> 0 | BG54: =IF($AF54=3,IF($AF$2=2,(V54/SUMIF(Refurb_Poss_Tbl[Refurbishment Possible],I54,Refurb_Poss_Tbl[%]))*AG54,IF($AF$2=3,(V54*AG54)-AW54,V54*AG54)),0) -> 0 | BH54: =IF($AF54=3,IF($AF$2=2,(W54/SUMIF(Refurb_Poss_Tbl[Refurbishment Possible],I54,Refurb_Poss_Tbl[%]))*AG54,W54*$AG54),0) -> 0
A55: BridEA03 | B55: Footbridge | C55: Bridge - Pedestrian | D55: BridEA0333 | E55: Desk | F55: Bridges | G55: 60 | H55: 20 | I55: Moderate Refurbishment | J55: 10 | K55: New Build | L55: 113 | M55: 123 | N55: 100 | O55: 3 | P55: 883.5084 | Q55: 883.5084 | R55: 1.074176355 | S55: 4.902497072 | T55: 0.1294492521 | U55: 5.512114984 | V55: 0 | W55: 0.1206399085 | X55: 895.2472776 | Y55: 0.05490755123 | Z55: 0 | AA55: 223.8118194 | AB55: 2.292158261 | AC55: 0.06472462604 | AD55: 2.451248536 | AE55: 53 | AF55: 0 | AG55: =VLOOKUP(AE55,ValidationLists!$M$1:$N$102,2,FALSE) -> 0.2087502915 | AH55: 0 | AI55: 0 | AJ55: 0 | AK55: 0 | AL55: 0 | AM55: 0 | AN55: 0 | AO55: 0 | AP55: 0.01146196733 | AQ55: =IF(OR(AF55=3,AF55=2,AF55=0),SUMIFS(FlatMaint!$Z$2:$Z$10000,FlatMaint!$A$2:$A$10000,D55,FlatMaint!$Y$2:$Y$10000,AE55)*AG55,0) -> 18.4464548 | AR55: =IF(OR(AF55=3,AF55=2,AF55=0),SUMIFS(FlatRepair!$Z$2:$Z$10000,FlatRepair!$A$2:$A$10000,D55,FlatRepair!$Y$2:$Y$10000,AE55)*AG55,0) -> 0 | AS55: 0 | AT55: 18.45791677 | AU55: 0 | AV55: 0 | AW55: 0 | AX55: 0 | AY55: 0 | AZ55: 18.45791677 | BA55: 0 | BB55: =IF($AF55=3,IF($AF$2=2,(R55/SUMIF(Refurb_Poss_Tbl[Refurbishment Possible],I55,Refurb_Poss_Tbl[%]))*AG55,IF($AF$2=3,(R55*AG55)-AV55,R55*AG55)),0) -> 0 | BC55: =IF(AF55=3,IF($AF$2=2,(S55/SUMIF(Refurb_Poss_Tbl[Refurbishment Possible],I55,Refurb_Poss_Tbl[%]))*AG55,IF($AF$2=3,(S55*AG55)-AX55,S55*AG55)),0) -> 0 | BD55: =IF($AF55=3,IF($AF$2=2,(T55/SUMIF(Refurb_Poss_Tbl[Refurbishment Possible],I55,Refurb_Poss_Tbl[%]))*AG55,T55*$AG55),0) -> 0 | BE55: =IF($AF55=3,IF($AF$2=2,(Q55/SUMIF(Refurb_Poss_Tbl[Refurbishment Possible],I55,Refurb_Poss_Tbl[%]))*AG55,Q55*$AG55),0) -> 0 | BF55: =IF($AF55=3,IF($AF$2=2,(U55/SUMIF(Refurb_Poss_Tbl[Refurbishment Possible],I55,Refurb_Poss_Tbl[%]))*AG55,U55*$AG55),0) -> 0 | BG55: =IF($AF55=3,IF($AF$2=2,(V55/SUMIF(Refurb_Poss_Tbl[Refurbishment Possible],I55,Refurb_Poss_Tbl[%]))*AG55,IF($AF$2=3,(V55*AG55)-AW55,V55*AG55)),0) -> 0 | BH55: =IF($AF55=3,IF($AF$2=2,(W55/SUMIF(Refurb_Poss_Tbl[Refurbishment Possible],I55,Refurb_Poss_Tbl[%]))*AG55,W55*$AG55),0) -> 0
A56: BridEA03 | B56: Footbridge | C56: Bridge - Pedestrian | D56: BridEA0333 | E56: Desk | F56: Bridges | G56: 60 | H56: 20 | I56: Moderate Refurbishment | J56: 10 | K56: New Build | L56: 113 | M56: 123 | N56: 100 | O56: 3 | P56: 883.5084 | Q56: 883.5084 | R56: 1.074176355 | S56: 4.902497072 | T56: 0.1294492521 | U56: 5.512114984 | V56: 0 | W56: 0.1206399085 | X56: 895.2472776 | Y56: 0.05490755123 | Z56: 0 | AA56: 223.8118194 | AB56: 2.292158261 | AC56: 0.06472462604 | AD56: 2.451248536 | AE56: 54 | AF56: 0 | AG56: =VLOOKUP(AE56,ValidationLists!$M$1:$N$102,2,FALSE) -> 0.2026701859 | AH56: 0 | AI56: 0 | AJ56: 0 | AK56: 0 | AL56: 0 | AM56: 0 | AN56: 0 | AO56: 0 | AP56: 0.01112812362 | AQ56: =IF(OR(AF56=3,AF56=2,AF56=0),SUMIFS(FlatMaint!$Z$2:$Z$10000,FlatMaint!$A$2:$A$10000,D56,FlatMaint!$Y$2:$Y$10000,AE56)*AG56,0) -> 17.90917942 | AR56: =IF(OR(AF56=3,AF56=2,AF56=0),SUMIFS(FlatRepair!$Z$2:$Z$10000,FlatRepair!$A$2:$A$10000,D56,FlatRepair!$Y$2:$Y$10000,AE56)*AG56,0) -> 0 | AS56: 0 | AT56: 17.92030754 | AU56: 0 | AV56: 0 | AW56: 0 | AX56: 0 | AY56: 0 | AZ56: 17.92030754 | BA56: 0 | BB56: =IF($AF56=3,IF($AF$2=2,(R56/SUMIF(Refurb_Poss_Tbl[Refurbishment Possible],I56,Refurb_Poss_Tbl[%]))*AG56,IF($AF$2=3,(R56*AG56)-AV56,R56*AG56)),0) -> 0 | BC56: =IF(AF56=3,IF($AF$2=2,(S56/SUMIF(Refurb_Poss_Tbl[Refurbishment Possible],I56,Refurb_Poss_Tbl[%]))*AG56,IF($AF$2=3,(S56*AG56)-AX56,S56*AG56)),0) -> 0 | BD56: =IF($AF56=3,IF($AF$2=2,(T56/SUMIF(Refurb_Poss_Tbl[Refurbishment Possible],I56,Refurb_Poss_Tbl[%]))*AG56,T56*$AG56),0) -> 0 | BE56: =IF($AF56=3,IF($AF$2=2,(Q56/SUMIF(Refurb_Poss_Tbl[Refurbishment Possible],I56,Refurb_Poss_Tbl[%]))*AG56,Q56*$AG56),0) -> 0 | BF56: =IF($AF56=3,IF($AF$2=2,(U56/SUMIF(Refurb_Poss_Tbl[Refurbishment Possible],I56,Refurb_Poss_Tbl[%]))*AG56,U56*$AG56),0) -> 0 | BG56: =IF($AF56=3,IF($AF$2=2,(V56/SUMIF(Refurb_Poss_Tbl[Refurbishment Possible],I56,Refurb_Poss_Tbl[%]))*AG56,IF($AF$2=3,(V56*AG56)-AW56,V56*AG56)),0) -> 0 | BH56: =IF($AF56=3,IF($AF$2=2,(W56/SUMIF(Refurb_Poss_Tbl[Refurbishment Possible],I56,Refurb_Poss_Tbl[%]))*AG56,W56*$AG56),0) -> 0
A57: BridEA03 | B57: Footbridge | C57: Bridge - Pedestrian | D57: BridEA0333 | E57: Desk | F57: Bridges | G57: 60 | H57: 20 | I57: Moderate Refurbishment | J57: 10 | K57: New Build | L57: 113 | M57: 123 | N57: 100 | O57: 3 | P57: 883.5084 | Q57: 883.5084 | R57: 1.074176355 | S57: 4.902497072 | T57: 0.1294492521 | U57: 5.512114984 | V57: 0 | W57: 0.1206399085 | X57: 895.2472776 | Y57: 0.05490755123 | Z57: 0 | AA57: 223.8118194 | AB57: 2.292158261 | AC57: 0.06472462604 | AD57: 2.451248536 | AE57: 55 | AF57: 0 | AG57: =VLOOKUP(AE57,ValidationLists!$M$1:$N$102,2,FALSE) -> 0.1967671708 | AH57: 0 | AI57: 0 | AJ57: 0 | AK57: 0 | AL57: 0 | AM57: 0 | AN57: 0 | AO57: 0 | AP57: 0.01080400351 | AQ57: =IF(OR(AF57=3,AF57=2,AF57=0),SUMIFS(FlatMaint!$Z$2:$Z$10000,FlatMaint!$A$2:$A$10000,D57,FlatMaint!$Y$2:$Y$10000,AE57)*AG57,0) -> 17.38755284 | AR57: =IF(OR(AF57=3,AF57=2,AF57=0),SUMIFS(FlatRepair!$Z$2:$Z$10000,FlatRepair!$A$2:$A$10000,D57,FlatRepair!$Y$2:$Y$10000,AE57)*AG57,0) -> 0 | AS57: 0 | AT57: 17.39835684 | AU57: 0 | AV57: 0 | AW57: 0 | AX57: 0 | AY57: 0 | AZ57: 17.39835684 | BA57: 0 | BB57: =IF($AF57=3,IF($AF$2=2,(R57/SUMIF(Refurb_Poss_Tbl[Refurbishment Possible],I57,Refurb_Poss_Tbl[%]))*AG57,IF($AF$2=3,(R57*AG57)-AV57,R57*AG57)),0) -> 0 | BC57: =IF(AF57=3,IF($AF$2=2,(S57/SUMIF(Refurb_Poss_Tbl[Refurbishment Possible],I57,Refurb_Poss_Tbl[%]))*AG57,IF($AF$2=3,(S57*AG57)-AX57,S57*AG57)),0) -> 0 | BD57: =IF($AF57=3,IF($AF$2=2,(T57/SUMIF(Refurb_Poss_Tbl[Refurbishment Possible],I57,Refurb_Poss_Tbl[%]))*AG57,T57*$AG57),0) -> 0 | BE57: =IF($AF57=3,IF($AF$2=2,(Q57/SUMIF(Refurb_Poss_Tbl[Refurbishment Possible],I57,Refurb_Poss_Tbl[%]))*AG57,Q57*$AG57),0) -> 0 | BF57: =IF($AF57=3,IF($AF$2=2,(U57/SUMIF(Refurb_Poss_Tbl[Refurbishment Possible],I57,Refurb_Poss_Tbl[%]))*AG57,U57*$AG57),0) -> 0 | BG57: =IF($AF57=3,IF($AF$2=2,(V57/SUMIF(Refurb_Poss_Tbl[Refurbishment Possible],I57,Refurb_Poss_Tbl[%]))*AG57,IF($AF$2=3,(V57*AG57)-AW57,V57*AG57)),0) -> 0 | BH57: =IF($AF57=3,IF($AF$2=2,(W57/SUMIF(Refurb_Poss_Tbl[Refurbishment Possible],I57,Refurb_Poss_Tbl[%]))*AG57,W57*$AG57),0) -> 0
A58: BridEA03 | B58: Footbridge | C58: Bridge - Pedestrian | D58: BridEA0333 | E58: Desk | F58: Bridges | G58: 60 | H58: 20 | I58: Moderate Refurbishment | J58: 10 | K58: New Build | L58: 113 | M58: 123 | N58: 100 | O58: 3 | P58: 883.5084 | Q58: 883.5084 | R58: 1.074176355 | S58: 4.902497072 | T58: 0.1294492521 | U58: 5.512114984 | V58: 0 | W58: 0.1206399085 | X58: 895.2472776 | Y58: 0.05490755123 | Z58: 0 | AA58: 223.8118194 | AB58: 2.292158261 | AC58: 0.06472462604 | AD58: 2.451248536 | AE58: 56 | AF58: 0 | AG58: =VLOOKUP(AE58,ValidationLists!$M$1:$N$102,2,FALSE) -> 0.1910360882 | AH58: 0 | AI58: 0 | AJ58: 0 | AK58: 0 | AL58: 0 | AM58: 0 | AN58: 0 | AO58: 0 | AP58: 0.0104893238 | AQ58: =IF(OR(AF58=3,AF58=2,AF58=0),SUMIFS(FlatMaint!$Z$2:$Z$10000,FlatMaint!$A$2:$A$10000,D58,FlatMaint!$Y$2:$Y$10000,AE58)*AG58,0) -> 16.88111926 | AR58: =IF(OR(AF58=3,AF58=2,AF58=0),SUMIFS(FlatRepair!$Z$2:$Z$10000,FlatRepair!$A$2:$A$10000,D58,FlatRepair!$Y$2:$Y$10000,AE58)*AG58,0) -> 0 | AS58: 0 | AT58: 16.89160858 | AU58: 0 | AV58: 0 | AW58: 0 | AX58: 0 | AY58: 0 | AZ58: 16.89160858 | BA58: 0 | BB58: =IF($AF58=3,IF($AF$2=2,(R58/SUMIF(Refurb_Poss_Tbl[Refurbishment Possible],I58,Refurb_Poss_Tbl[%]))*AG58,IF($AF$2=3,(R58*AG58)-AV58,R58*AG58)),0) -> 0 | BC58: =IF(AF58=3,IF($AF$2=2,(S58/SUMIF(Refurb_Poss_Tbl[Refurbishment Possible],I58,Refurb_Poss_Tbl[%]))*AG58,IF($AF$2=3,(S58*AG58)-AX58,S58*AG58)),0) -> 0 | BD58: =IF($AF58=3,IF($AF$2=2,(T58/SUMIF(Refurb_Poss_Tbl[Refurbishment Possible],I58,Refurb_Poss_Tbl[%]))*AG58,T58*$AG58),0) -> 0 | BE58: =IF($AF58=3,IF($AF$2=2,(Q58/SUMIF(Refurb_Poss_Tbl[Refurbishment Possible],I58,Refurb_Poss_Tbl[%]))*AG58,Q58*$AG58),0) -> 0 | BF58: =IF($AF58=3,IF($AF$2=2,(U58/SUMIF(Refurb_Poss_Tbl[Refurbishment Possible],I58,Refurb_Poss_Tbl[%]))*AG58,U58*$AG58),0) -> 0 | BG58: =IF($AF58=3,IF($AF$2=2,(V58/SUMIF(Refurb_Poss_Tbl[Refurbishment Possible],I58,Refurb_Poss_Tbl[%]))*AG58,IF($AF$2=3,(V58*AG58)-AW58,V58*AG58)),0) -> 0 | BH58: =IF($AF58=3,IF($AF$2=2,(W58/SUMIF(Refurb_Poss_Tbl[Refurbishment Possible],I58,Refurb_Poss_Tbl[%]))*AG58,W58*$AG58),0) -> 0
A59: BridEA03 | B59: Footbridge | C59: Bridge - Pedestrian | D59: BridEA0333 | E59: Desk | F59: Bridges | G59: 60 | H59: 20 | I59: Moderate Refurbishment | J59: 10 | K59: New Build | L59: 113 | M59: 123 | N59: 100 | O59: 3 | P59: 883.5084 | Q59: 883.5084 | R59: 1.074176355 | S59: 4.902497072 | T59: 0.1294492521 | U59: 5.512114984 | V59: 0 | W59: 0.1206399085 | X59: 895.2472776 | Y59: 0.05490755123 | Z59: 0 | AA59: 223.8118194 | AB59: 2.292158261 | AC59: 0.06472462604 | AD59: 2.451248536 | AE59: 57 | AF59: 0 | AG59: =VLOOKUP(AE59,ValidationLists!$M$1:$N$102,2,FALSE) -> 0.1854719303 | AH59: 0 | AI59: 0 | AJ59: 0 | AK59: 0 | AL59: 0 | AM59: 0 | AN59: 0 | AO59: 0 | AP59: 0.01018380951 | AQ59: =IF(OR(AF59=3,AF59=2,AF59=0),SUMIFS(FlatMaint!$Z$2:$Z$10000,FlatMaint!$A$2:$A$10000,D59,FlatMaint!$Y$2:$Y$10000,AE59)*AG59,0) -> 16.38943617 | AR59: =IF(OR(AF59=3,AF59=2,AF59=0),SUMIFS(FlatRepair!$Z$2:$Z$10000,FlatRepair!$A$2:$A$10000,D59,FlatRepair!$Y$2:$Y$10000,AE59)*AG59,0) -> 0 | AS59: 0 | AT59: 16.39961998 | AU59: 0 | AV59: 0 | AW59: 0 | AX59: 0 | AY59: 0 | AZ59: 16.39961998 | BA59: 0 | BB59: =IF($AF59=3,IF($AF$2=2,(R59/SUMIF(Refurb_Poss_Tbl[Refurbishment Possible],I59,Refurb_Poss_Tbl[%]))*AG59,IF($AF$2=3,(R59*AG59)-AV59,R59*AG59)),0) -> 0 | BC59: =IF(AF59=3,IF($AF$2=2,(S59/SUMIF(Refurb_Poss_Tbl[Refurbishment Possible],I59,Refurb_Poss_Tbl[%]))*AG59,IF($AF$2=3,(S59*AG59)-AX59,S59*AG59)),0) -> 0 | BD59: =IF($AF59=3,IF($AF$2=2,(T59/SUMIF(Refurb_Poss_Tbl[Refurbishment Possible],I59,Refurb_Poss_Tbl[%]))*AG59,T59*$AG59),0) -> 0 | BE59: =IF($AF59=3,IF($AF$2=2,(Q59/SUMIF(Refurb_Poss_Tbl[Refurbishment Possible],I59,Refurb_Poss_Tbl[%]))*AG59,Q59*$AG59),0) -> 0 | BF59: =IF($AF59=3,IF($AF$2=2,(U59/SUMIF(Refurb_Poss_Tbl[Refurbishment Possible],I59,Refurb_Poss_Tbl[%]))*AG59,U59*$AG59),0) -> 0 | BG59: =IF($AF59=3,IF($AF$2=2,(V59/SUMIF(Refurb_Poss_Tbl[Refurbishment Possible],I59,Refurb_Poss_Tbl[%]))*AG59,IF($AF$2=3,(V59*AG59)-AW59,V59*AG59)),0) -> 0 | BH59: =IF($AF59=3,IF($AF$2=2,(W59/SUMIF(Refurb_Poss_Tbl[Refurbishment Possible],I59,Refurb_Poss_Tbl[%]))*AG59,W59*$AG59),0) -> 0
A60: BridEA03 | B60: Footbridge | C60: Bridge - Pedestrian | D60: BridEA0333 | E60: Desk | F60: Bridges | G60: 60 | H60: 20 | I60: Moderate Refurbishment | J60: 10 | K60: New Build | L60: 113 | M60: 123 | N60: 100 | O60: 3 | P60: 883.5084 | Q60: 883.5084 | R60: 1.074176355 | S60: 4.902497072 | T60: 0.1294492521 | U60: 5.512114984 | V60: 0 | W60: 0.1206399085 | X60: 895.2472776 | Y60: 0.05490755123 | Z60: 0 | AA60: 223.8118194 | AB60: 2.292158261 | AC60: 0.06472462604 | AD60: 2.451248536 | AE60: 58 | AF60: 0 | AG60: =VLOOKUP(AE60,ValidationLists!$M$1:$N$102,2,FALSE) -> 0.1800698352 | AH60: 0 | AI60: 0 | AJ60: 0 | AK60: 0 | AL60: 0 | AM60: 0 | AN60: 0 | AO60: 0 | AP60: 0.009887193702 | AQ60: =IF(OR(AF60=3,AF60=2,AF60=0),SUMIFS(FlatMaint!$Z$2:$Z$10000,FlatMaint!$A$2:$A$10000,D60,FlatMaint!$Y$2:$Y$10000,AE60)*AG60,0) -> 15.91207395 | AR60: =IF(OR(AF60=3,AF60=2,AF60=0),SUMIFS(FlatRepair!$Z$2:$Z$10000,FlatRepair!$A$2:$A$10000,D60,FlatRepair!$Y$2:$Y$10000,AE60)*AG60,0) -> 0 | AS60: 0 | AT60: 15.92196115 | AU60: 0 | AV60: 0 | AW60: 0 | AX60: 0 | AY60: 0 | AZ60: 15.92196115 | BA60: 0 | BB60: =IF($AF60=3,IF($AF$2=2,(R60/SUMIF(Refurb_Poss_Tbl[Refurbishment Possible],I60,Refurb_Poss_Tbl[%]))*AG60,IF($AF$2=3,(R60*AG60)-AV60,R60*AG60)),0) -> 0 | BC60: =IF(AF60=3,IF($AF$2=2,(S60/SUMIF(Refurb_Poss_Tbl[Refurbishment Possible],I60,Refurb_Poss_Tbl[%]))*AG60,IF($AF$2=3,(S60*AG60)-AX60,S60*AG60)),0) -> 0 | BD60: =IF($AF60=3,IF($AF$2=2,(T60/SUMIF(Refurb_Poss_Tbl[Refurbishment Possible],I60,Refurb_Poss_Tbl[%]))*AG60,T60*$AG60),0) -> 0 | BE60: =IF($AF60=3,IF($AF$2=2,(Q60/SUMIF(Refurb_Poss_Tbl[Refurbishment Possible],I60,Refurb_Poss_Tbl[%]))*AG60,Q60*$AG60),0) -> 0 | BF60: =IF($AF60=3,IF($AF$2=2,(U60/SUMIF(Refurb_Poss_Tbl[Refurbishment Possible],I60,Refurb_Poss_Tbl[%]))*AG60,U60*$AG60),0) -> 0 | BG60: =IF($AF60=3,IF($AF$2=2,(V60/SUMIF(Refurb_Poss_Tbl[Refurbishment Possible],I60,Refurb_Poss_Tbl[%]))*AG60,IF($AF$2=3,(V60*AG60)-AW60,V60*AG60)),0) -> 0 | BH60: =IF($AF60=3,IF($AF$2=2,(W60/SUMIF(Refurb_Poss_Tbl[Refurbishment Possible],I60,Refurb_Poss_Tbl[%]))*AG60,W60*$AG60),0) -> 0
A61: BridEA03 | B61: Footbridge | C61: Bridge - Pedestrian | D61: BridEA0333 | E61: Desk | F61: Bridges | G61: 60 | H61: 20 | I61: Moderate Refurbishment | J61: 10 | K61: New Build | L61: 113 | M61: 123 | N61: 100 | O61: 3 | P61: 883.5084 | Q61: 883.5084 | R61: 1.074176355 | S61: 4.902497072 | T61: 0.1294492521 | U61: 5.512114984 | V61: 0 | W61: 0.1206399085 | X61: 895.2472776 | Y61: 0.05490755123 | Z61: 0 | AA61: 223.8118194 | AB61: 2.292158261 | AC61: 0.06472462604 | AD61: 2.451248536 | AE61: 59 | AF61: 0 | AG61: =VLOOKUP(AE61,ValidationLists!$M$1:$N$102,2,FALSE) -> 0.1748250827 | AH61: 0 | AI61: 0 | AJ61: 0 | AK61: 0 | AL61: 0 | AM61: 0 | AN61: 0 | AO61: 0 | AP61: 0.009599217186 | AQ61: =IF(OR(AF61=3,AF61=2,AF61=0),SUMIFS(FlatMaint!$Z$2:$Z$10000,FlatMaint!$A$2:$A$10000,D61,FlatMaint!$Y$2:$Y$10000,AE61)*AG61,0) -> 15.44861549 | AR61: =IF(OR(AF61=3,AF61=2,AF61=0),SUMIFS(FlatRepair!$Z$2:$Z$10000,FlatRepair!$A$2:$A$10000,D61,FlatRepair!$Y$2:$Y$10000,AE61)*AG61,0) -> 0 | AS61: 0 | AT61: 15.45821471 | AU61: 0 | AV61: 0 | AW61: 0 | AX61: 0 | AY61: 0 | AZ61: 15.45821471 | BA61: 0 | BB61: =IF($AF61=3,IF($AF$2=2,(R61/SUMIF(Refurb_Poss_Tbl[Refurbishment Possible],I61,Refurb_Poss_Tbl[%]))*AG61,IF($AF$2=3,(R61*AG61)-AV61,R61*AG61)),0) -> 0 | BC61: =IF(AF61=3,IF($AF$2=2,(S61/SUMIF(Refurb_Poss_Tbl[Refurbishment Possible],I61,Refurb_Poss_Tbl[%]))*AG61,IF($AF$2=3,(S61*AG61)-AX61,S61*AG61)),0) -> 0 | BD61: =IF($AF61=3,IF($AF$2=2,(T61/SUMIF(Refurb_Poss_Tbl[Refurbishment Possible],I61,Refurb_Poss_Tbl[%]))*AG61,T61*$AG61),0) -> 0 | BE61: =IF($AF61=3,IF($AF$2=2,(Q61/SUMIF(Refurb_Poss_Tbl[Refurbishment Possible],I61,Refurb_Poss_Tbl[%]))*AG61,Q61*$AG61),0) -> 0 | BF61: =IF($AF61=3,IF($AF$2=2,(U61/SUMIF(Refurb_Poss_Tbl[Refurbishment Possible],I61,Refurb_Poss_Tbl[%]))*AG61,U61*$AG61),0) -> 0 | BG61: =IF($AF61=3,IF($AF$2=2,(V61/SUMIF(Refurb_Poss_Tbl[Refurbishment Possible],I61,Refurb_Poss_Tbl[%]))*AG61,IF($AF$2=3,(V61*AG61)-AW61,V61*AG61)),0) -> 0 | BH61: =IF($AF61=3,IF($AF$2=2,(W61/SUMIF(Refurb_Poss_Tbl[Refurbishment Possible],I61,Refurb_Poss_Tbl[%]))*AG61,W61*$AG61),0) -> 0
A62: BridEA03 | B62: Footbridge | C62: Bridge - Pedestrian | D62: BridEA0333 | E62: Desk | F62: Bridges | G62: 60 | H62: 20 | I62: Moderate Refurbishment | J62: 10 | K62: New Build | L62: 113 | M62: 123 | N62: 100 | O62: 3 | P62: 883.5084 | Q62: 883.5084 | R62: 1.074176355 | S62: 4.902497072 | T62: 0.1294492521 | U62: 5.512114984 | V62: 0 | W62: 0.1206399085 | X62: 895.2472776 | Y62: 0.05490755123 | Z62: 0 | AA62: 223.8118194 | AB62: 2.292158261 | AC62: 0.06472462604 | AD62: 2.451248536 | AE62: 60 | AF62: 3 | AG62: =VLOOKUP(AE62,ValidationLists!$M$1:$N$102,2,FALSE) -> 0.16973309 | AH62: 0 | AI62: 0 | AJ62: 0 | AK62: 0 | AL62: 0 | AM62: 0 | AN62: 0 | AO62: 0 | AP62: 0.009319628336 | AQ62: =IF(OR(AF62=3,AF62=2,AF62=0),SUMIFS(FlatMaint!$Z$2:$Z$10000,FlatMaint!$A$2:$A$10000,D62,FlatMaint!$Y$2:$Y$10000,AE62)*AG62,0) -> 14.99865582 | AR62: =IF(OR(AF62=3,AF62=2,AF62=0),SUMIFS(FlatRepair!$Z$2:$Z$10000,FlatRepair!$A$2:$A$10000,D62,FlatRepair!$Y$2:$Y$10000,AE62)*AG62,0) -> 0 | AS62: 0 | AT62: 15.00797544 | AU62: 0 | AV62: 0.3890551045 | AW62: 0.01098591078 | AX62: 0.4160579884 | AY62: 151.9530868 | AZ62: 167.7771612 | BA62: 0 | BB62: =IF($AF62=3,IF($AF$2=2,(R62/SUMIF(Refurb_Poss_Tbl[Refurbishment Possible],I62,Refurb_Poss_Tbl[%]))*AG62,IF($AF$2=3,(R62*AG62)-AV62,R62*AG62)),0) -> 0.1823232719 | BC62: =IF(AF62=3,IF($AF$2=2,(S62/SUMIF(Refurb_Poss_Tbl[Refurbishment Possible],I62,Refurb_Poss_Tbl[%]))*AG62,IF($AF$2=3,(S62*AG62)-AX62,S62*AG62)),0) -> 0.8321159769 | BD62: =IF($AF62=3,IF($AF$2=2,(T62/SUMIF(Refurb_Poss_Tbl[Refurbishment Possible],I62,Refurb_Poss_Tbl[%]))*AG62,T62*$AG62),0) -> 0.02197182156 | BE62: =IF($AF62=3,IF($AF$2=2,(Q62/SUMIF(Refurb_Poss_Tbl[Refurbishment Possible],I62,Refurb_Poss_Tbl[%]))*AG62,Q62*$AG62),0) -> 149.9606108 | BF62: =IF($AF62=3,IF($AF$2=2,(U62/SUMIF(Refurb_Poss_Tbl[Refurbishment Possible],I62,Refurb_Poss_Tbl[%]))*AG62,U62*$AG62),0) -> 0.9355883088 | BG62: =IF($AF62=3,IF($AF$2=2,(V62/SUMIF(Refurb_Poss_Tbl[Refurbishment Possible],I62,Refurb_Poss_Tbl[%]))*AG62,IF($AF$2=3,(V62*AG62)-AW62,V62*AG62)),0) -> 0 | BH62: =IF($AF62=3,IF($AF$2=2,(W62/SUMIF(Refurb_Poss_Tbl[Refurbishment Possible],I62,Refurb_Poss_Tbl[%]))*AG62,W62*$AG62),0) -> 0.02047658445
A63: BridEA03 | B63: Footbridge | C63: Bridge - Pedestrian | D63: BridEA0333 | E63: Desk | F63: Bridges | G63: 60 | H63: 20 | I63: Moderate Refurbishment | J63: 10 | K63: New Build | L63: 113 | M63: 123 | N63: 100 | O63: 3 | P63: 883.5084 | Q63: 883.5084 | R63: 1.074176355 | S63: 4.902497072 | T63: 0.1294492521 | U63: 5.512114984 | V63: 0 | W63: 0.1206399085 | X63: 895.2472776 | Y63: 0.05490755123 | Z63: 0 | AA63: 223.8118194 | AB63: 2.292158261 | AC63: 0.06472462604 | AD63: 2.451248536 | AE63: 61 | AF63: 0 | AG63: =VLOOKUP(AE63,ValidationLists!$M$1:$N$102,2,FALSE) -> 0.1647894078 | AH63: 0 | AI63: 0 | AJ63: 0 | AK63: 0 | AL63: 0 | AM63: 0 | AN63: 0 | AO63: 0 | AP63: 0.00904818285 | AQ63: =IF(OR(AF63=3,AF63=2,AF63=0),SUMIFS(FlatMaint!$Z$2:$Z$10000,FlatMaint!$A$2:$A$10000,D63,FlatMaint!$Y$2:$Y$10000,AE63)*AG63,0) -> 14.56180176 | AR63: =IF(OR(AF63=3,AF63=2,AF63=0),SUMIFS(FlatRepair!$Z$2:$Z$10000,FlatRepair!$A$2:$A$10000,D63,FlatRepair!$Y$2:$Y$10000,AE63)*AG63,0) -> 0 | AS63: 0 | AT63: 14.57084995 | AU63: 0 | AV63: 0 | AW63: 0 | AX63: 0 | AY63: 0 | AZ63: 14.57084995 | BA63: 0 | BB63: =IF($AF63=3,IF($AF$2=2,(R63/SUMIF(Refurb_Poss_Tbl[Refurbishment Possible],I63,Refurb_Poss_Tbl[%]))*AG63,IF($AF$2=3,(R63*AG63)-AV63,R63*AG63)),0) -> 0 | BC63: =IF(AF63=3,IF($AF$2=2,(S63/SUMIF(Refurb_Poss_Tbl[Refurbishment Possible],I63,Refurb_Poss_Tbl[%]))*AG63,IF($AF$2=3,(S63*AG63)-AX63,S63*AG63)),0) -> 0 | BD63: =IF($AF63=3,IF($AF$2=2,(T63/SUMIF(Refurb_Poss_Tbl[Refurbishment Possible],I63,Refurb_Poss_Tbl[%]))*AG63,T63*$AG63),0) -> 0 | BE63: =IF($AF63=3,IF($AF$2=2,(Q63/SUMIF(Refurb_Poss_Tbl[Refurbishment Possible],I63,Refurb_Poss_Tbl[%]))*AG63,Q63*$AG63),0) -> 0 | BF63: =IF($AF63=3,IF($AF$2=2,(U63/SUMIF(Refurb_Poss_Tbl[Refurbishment Possible],I63,Refurb_Poss_Tbl[%]))*AG63,U63*$AG63),0) -> 0 | BG63: =IF($AF63=3,IF($AF$2=2,(V63/SUMIF(Refurb_Poss_Tbl[Refurbishment Possible],I63,Refurb_Poss_Tbl[%]))*AG63,IF($AF$2=3,(V63*AG63)-AW63,V63*AG63)),0) -> 0 | BH63: =IF($AF63=3,IF($AF$2=2,(W63/SUMIF(Refurb_Poss_Tbl[Refurbishment Possible],I63,Refurb_Poss_Tbl[%]))*AG63,W63*$AG63),0) -> 0
A64: BridEA03 | B64: Footbridge | C64: Bridge - Pedestrian | D64: BridEA0333 | E64: Desk | F64: Bridges | G64: 60 | H64: 20 | I64: Moderate Refurbishment | J64: 10 | K64: New Build | L64: 113 | M64: 123 | N64: 100 | O64: 3 | P64: 883.5084 | Q64: 883.5084 | R64: 1.074176355 | S64: 4.902497072 | T64: 0.1294492521 | U64: 5.512114984 | V64: 0 | W64: 0.1206399085 | X64: 895.2472776 | Y64: 0.05490755123 | Z64: 0 | AA64: 223.8118194 | AB64: 2.292158261 | AC64: 0.06472462604 | AD64: 2.451248536 | AE64: 62 | AF64: 0 | AG64: =VLOOKUP(AE64,ValidationLists!$M$1:$N$102,2,FALSE) -> 0.1599897163 | AH64: 0 | AI64: 0 | AJ64: 0 | AK64: 0 | AL64: 0 | AM64: 0 | AN64: 0 | AO64: 0 | AP64: 0.008784643544 | AQ64: =IF(OR(AF64=3,AF64=2,AF64=0),SUMIFS(FlatMaint!$Z$2:$Z$10000,FlatMaint!$A$2:$A$10000,D64,FlatMaint!$Y$2:$Y$10000,AE64)*AG64,0) -> 14.13767161 | AR64: =IF(OR(AF64=3,AF64=2,AF64=0),SUMIFS(FlatRepair!$Z$2:$Z$10000,FlatRepair!$A$2:$A$10000,D64,FlatRepair!$Y$2:$Y$10000,AE64)*AG64,0) -> 0 | AS64: 0 | AT64: 14.14645626 | AU64: 0 | AV64: 0 | AW64: 0 | AX64: 0 | AY64: 0 | AZ64: 14.14645626 | BA64: 0 | BB64: =IF($AF64=3,IF($AF$2=2,(R64/SUMIF(Refurb_Poss_Tbl[Refurbishment Possible],I64,Refurb_Poss_Tbl[%]))*AG64,IF($AF$2=3,(R64*AG64)-AV64,R64*AG64)),0) -> 0 | BC64: =IF(AF64=3,IF($AF$2=2,(S64/SUMIF(Refurb_Poss_Tbl[Refurbishment Possible],I64,Refurb_Poss_Tbl[%]))*AG64,IF($AF$2=3,(S64*AG64)-AX64,S64*AG64)),0) -> 0 | BD64: =IF($AF64=3,IF($AF$2=2,(T64/SUMIF(Refurb_Poss_Tbl[Refurbishment Possible],I64,Refurb_Poss_Tbl[%]))*AG64,T64*$AG64),0) -> 0 | BE64: =IF($AF64=3,IF($AF$2=2,(Q64/SUMIF(Refurb_Poss_Tbl[Refurbishment Possible],I64,Refurb_Poss_Tbl[%]))*AG64,Q64*$AG64),0) -> 0 | BF64: =IF($AF64=3,IF($AF$2=2,(U64/SUMIF(Refurb_Poss_Tbl[Refurbishment Possible],I64,Refurb_Poss_Tbl[%]))*AG64,U64*$AG64),0) -> 0 | BG64: =IF($AF64=3,IF($AF$2=2,(V64/SUMIF(Refurb_Poss_Tbl[Refurbishment Possible],I64,Refurb_Poss_Tbl[%]))*AG64,IF($AF$2=3,(V64*AG64)-AW64,V64*AG64)),0) -> 0 | BH64: =IF($AF64=3,IF($AF$2=2,(W64/SUMIF(Refurb_Poss_Tbl[Refurbishment Possible],I64,Refurb_Poss_Tbl[%]))*AG64,W64*$AG64),0) -> 0
A65: BridEA03 | B65: Footbridge | C65: Bridge - Pedestrian | D65: BridEA0333 | E65: Desk | F65: Bridges | G65: 60 | H65: 20 | I65: Moderate Refurbishment | J65: 10 | K65: New Build | L65: 113 | M65: 123 | N65: 100 | O65: 3 | P65: 883.5084 | Q65: 883.5084 | R65: 1.074176355 | S65: 4.902497072 | T65: 0.1294492521 | U65: 5.512114984 | V65: 0 | W65: 0.1206399085 | X65: 895.2472776 | Y65: 0.05490755123 | Z65: 0 | AA65: 223.8118194 | AB65: 2.292158261 | AC65: 0.06472462604 | AD65: 2.451248536 | AE65: 63 | AF65: 0 | AG65: =VLOOKUP(AE65,ValidationLists!$M$1:$N$102,2,FALSE) -> 0.1553298216 | AH65: 0 | AI65: 0 | AJ65: 0 | AK65: 0 | AL65: 0 | AM65: 0 | AN65: 0 | AO65: 0 | AP65: 0.00852878014 | AQ65: =IF(OR(AF65=3,AF65=2,AF65=0),SUMIFS(FlatMaint!$Z$2:$Z$10000,FlatMaint!$A$2:$A$10000,D65,FlatMaint!$Y$2:$Y$10000,AE65)*AG65,0) -> 13.72589477 | AR65: =IF(OR(AF65=3,AF65=2,AF65=0),SUMIFS(FlatRepair!$Z$2:$Z$10000,FlatRepair!$A$2:$A$10000,D65,FlatRepair!$Y$2:$Y$10000,AE65)*AG65,0) -> 0 | AS65: 0 | AT65: 13.73442355 | AU65: 0 | AV65: 0 | AW65: 0 | AX65: 0 | AY65: 0 | AZ65: 13.73442355 | BA65: 0 | BB65: =IF($AF65=3,IF($AF$2=2,(R65/SUMIF(Refurb_Poss_Tbl[Refurbishment Possible],I65,Refurb_Poss_Tbl[%]))*AG65,IF($AF$2=3,(R65*AG65)-AV65,R65*AG65)),0) -> 0 | BC65: =IF(AF65=3,IF($AF$2=2,(S65/SUMIF(Refurb_Poss_Tbl[Refurbishment Possible],I65,Refurb_Poss_Tbl[%]))*AG65,IF($AF$2=3,(S65*AG65)-AX65,S65*AG65)),0) -> 0 | BD65: =IF($AF65=3,IF($AF$2=2,(T65/SUMIF(Refurb_Poss_Tbl[Refurbishment Possible],I65,Refurb_Poss_Tbl[%]))*AG65,T65*$AG65),0) -> 0 | BE65: =IF($AF65=3,IF($AF$2=2,(Q65/SUMIF(Refurb_Poss_Tbl[Refurbishment Possible],I65,Refurb_Poss_Tbl[%]))*AG65,Q65*$AG65),0) -> 0 | BF65: =IF($AF65=3,IF($AF$2=2,(U65/SUMIF(Refurb_Poss_Tbl[Refurbishment Possible],I65,Refurb_Poss_Tbl[%]))*AG65,U65*$AG65),0) -> 0 | BG65: =IF($AF65=3,IF($AF$2=2,(V65/SUMIF(Refurb_Poss_Tbl[Refurbishment Possible],I65,Refurb_Poss_Tbl[%]))*AG65,IF($AF$2=3,(V65*AG65)-AW65,V65*AG65)),0) -> 0 | BH65: =IF($AF65=3,IF($AF$2=2,(W65/SUMIF(Refurb_Poss_Tbl[Refurbishment Possible],I65,Refurb_Poss_Tbl[%]))*AG65,W65*$AG65),0) -> 0
A66: BridEA03 | B66: Footbridge | C66: Bridge - Pedestrian | D66: BridEA0333 | E66: Desk | F66: Bridges | G66: 60 | H66: 20 | I66: Moderate Refurbishment | J66: 10 | K66: New Build | L66: 113 | M66: 123 | N66: 100 | O66: 3 | P66: 883.5084 | Q66: 883.5084 | R66: 1.074176355 | S66: 4.902497072 | T66: 0.1294492521 | U66: 5.512114984 | V66: 0 | W66: 0.1206399085 | X66: 895.2472776 | Y66: 0.05490755123 | Z66: 0 | AA66: 223.8118194 | AB66: 2.292158261 | AC66: 0.06472462604 | AD66: 2.451248536 | AE66: 64 | AF66: 0 | AG66: =VLOOKUP(AE66,ValidationLists!$M$1:$N$102,2,FALSE) -> 0.1508056521 | AH66: 0 | AI66: 0 | AJ66: 0 | AK66: 0 | AL66: 0 | AM66: 0 | AN66: 0 | AO66: 0 | AP66: 0.008280369068 | AQ66: =IF(OR(AF66=3,AF66=2,AF66=0),SUMIFS(FlatMaint!$Z$2:$Z$10000,FlatMaint!$A$2:$A$10000,D66,FlatMaint!$Y$2:$Y$10000,AE66)*AG66,0) -> 13.32611143 | AR66: =IF(OR(AF66=3,AF66=2,AF66=0),SUMIFS(FlatRepair!$Z$2:$Z$10000,FlatRepair!$A$2:$A$10000,D66,FlatRepair!$Y$2:$Y$10000,AE66)*AG66,0) -> 0 | AS66: 0 | AT66: 13.3343918 | AU66: 0 | AV66: 0 | AW66: 0 | AX66: 0 | AY66: 0 | AZ66: 13.3343918 | BA66: 0 | BB66: =IF($AF66=3,IF($AF$2=2,(R66/SUMIF(Refurb_Poss_Tbl[Refurbishment Possible],I66,Refurb_Poss_Tbl[%]))*AG66,IF($AF$2=3,(R66*AG66)-AV66,R66*AG66)),0) -> 0 | BC66: =IF(AF66=3,IF($AF$2=2,(S66/SUMIF(Refurb_Poss_Tbl[Refurbishment Possible],I66,Refurb_Poss_Tbl[%]))*AG66,IF($AF$2=3,(S66*AG66)-AX66,S66*AG66)),0) -> 0 | BD66: =IF($AF66=3,IF($AF$2=2,(T66/SUMIF(Refurb_Poss_Tbl[Refurbishment Possible],I66,Refurb_Poss_Tbl[%]))*AG66,T66*$AG66),0) -> 0 | BE66: =IF($AF66=3,IF($AF$2=2,(Q66/SUMIF(Refurb_Poss_Tbl[Refurbishment Possible],I66,Refurb_Poss_Tbl[%]))*AG66,Q66*$AG66),0) -> 0 | BF66: =IF($AF66=3,IF($AF$2=2,(U66/SUMIF(Refurb_Poss_Tbl[Refurbishment Possible],I66,Refurb_Poss_Tbl[%]))*AG66,U66*$AG66),0) -> 0 | BG66: =IF($AF66=3,IF($AF$2=2,(V66/SUMIF(Refurb_Poss_Tbl[Refurbishment Possible],I66,Refurb_Poss_Tbl[%]))*AG66,IF($AF$2=3,(V66*AG66)-AW66,V66*AG66)),0) -> 0 | BH66: =IF($AF66=3,IF($AF$2=2,(W66/SUMIF(Refurb_Poss_Tbl[Refurbishment Possible],I66,Refurb_Poss_Tbl[%]))*AG66,W66*$AG66),0) -> 0
A67: BridEA03 | B67: Footbridge | C67: Bridge - Pedestrian | D67: BridEA0333 | E67: Desk | F67: Bridges | G67: 60 | H67: 20 | I67: Moderate Refurbishment | J67: 10 | K67: New Build | L67: 113 | M67: 123 | N67: 100 | O67: 3 | P67: 883.5084 | Q67: 883.5084 | R67: 1.074176355 | S67: 4.902497072 | T67: 0.1294492521 | U67: 5.512114984 | V67: 0 | W67: 0.1206399085 | X67: 895.2472776 | Y67: 0.05490755123 | Z67: 0 | AA67: 223.8118194 | AB67: 2.292158261 | AC67: 0.06472462604 | AD67: 2.451248536 | AE67: 65 | AF67: 0 | AG67: =VLOOKUP(AE67,ValidationLists!$M$1:$N$102,2,FALSE) -> 0.1464132544 | AH67: =IF(AE67=0,Q67*AG67,0) -> 0 | AI67: =IF(AE67=0,R67*AG67,0) -> 0 | AJ67: =IF(AE67=0,S67*AG67,0) -> 0 | AK67: =IF(AE67=0,T67*AG67,0) -> 0 | AL67: =IF(AE67=0,U67*AG67,0) -> 0 | AM67: =IF(AE67=0,V67*AG67,0) -> 0 | AN67: =IF(AE67=0,W67*AG67,0) -> 0 | AO67: =IF(AE67=0,AH67+AI67+AJ67+AK67+AL67+AM67+AN67,0) -> 0 | AP67: =IF(OR(AF67=3,AF67=2,AF67=0),Y67*AG67,0) -> 0.00803919327 | AQ67: =IF(OR(AF67=3,AF67=2,AF67=0),SUMIFS(FlatMaint!$Z$2:$Z$10000,FlatMaint!$A$2:$A$10000,D67,FlatMaint!$Y$2:$Y$10000,AE67)*AG67,0) -> 12.93797226 | AR67: =IF(OR(AF67=3,AF67=2,AF67=0),SUMIFS(FlatRepair!$Z$2:$Z$10000,FlatRepair!$A$2:$A$10000,D67,FlatRepair!$Y$2:$Y$10000,AE67)*AG67,0) -> 0 | AS67: =IF(OR(AF67=3,AF67=2,AF67=0),Z67*AG67,0) -> 0 | AT67: =AP67+AQ67+AR67+AS67 -> 12.94601145 | AU67: =IF(AF67=2,AA67*AG67,0) -> 0 | AV67: =IF(AF67=3,AB67*AG67,0) -> 0 | AW67: =IF(AF67=3,AC67*AG67,0) -> 0 | AX67: =IF(AF67=3,AD67*AG67,0) -> 0 | AY67: =IF($AF$2=3,BB67+BC67+BD67+BE67+BF67+BG67+BH67,BB67+BC67+BD67+BE67+BF67+BG67+BH67) -> 0 | AZ67: =AO67+AT67+AU67+AV67+AW67+AX67+AY67+BA67 -> 12.94601145 | BA67: =IFERROR(IF(AE67=100,IF(O67=3,(N67/H67)*(X67*AG67)*-1,(N67/M67)*(X67*AG67)*-1),0),0) -> 0 | BB67: =IF($AF67=3,IF($AF$2=2,(R67/SUMIF(Refurb_Poss_Tbl[Refurbishment Possible],I67,Refurb_Poss_Tbl[%]))*AG67,IF($AF$2=3,(R67*AG67)-AV67,R67*AG67)),0) -> 0 | BC67: =IF(AF67=3,IF($AF$2=2,(S67/SUMIF(Refurb_Poss_Tbl[Refurbishment Possible],I67,Refurb_Poss_Tbl[%]))*AG67,IF($AF$2=3,(S67*AG67)-AX67,S67*AG67)),0) -> 0 | BD67: =IF($AF67=3,IF($AF$2=2,(T67/SUMIF(Refurb_Poss_Tbl[Refurbishment Possible],I67,Refurb_Poss_Tbl[%]))*AG67,T67*$AG67),0) -> 0 | BE67: =IF($AF67=3,IF($AF$2=2,(Q67/SUMIF(Refurb_Poss_Tbl[Refurbishment Possible],I67,Refurb_Poss_Tbl[%]))*AG67,Q67*$AG67),0) -> 0 | BF67: =IF($AF67=3,IF($AF$2=2,(U67/SUMIF(Refurb_Poss_Tbl[Refurbishment Possible],I67,Refurb_Poss_Tbl[%]))*AG67,U67*$AG67),0) -> 0 | BG67: =IF($AF67=3,IF($AF$2=2,(V67/SUMIF(Refurb_Poss_Tbl[Refurbishment Possible],I67,Refurb_Poss_Tbl[%]))*AG67,IF($AF$2=3,(V67*AG67)-AW67,V67*AG67)),0) -> 0 | BH67: =IF($AF67=3,IF($AF$2=2,(W67/SUMIF(Refurb_Poss_Tbl[Refurbishment Possible],I67,Refurb_Poss_Tbl[%]))*AG67,W67*$AG67),0) -> 0
A68: BridEA03 | B68: Footbridge | C68: Bridge - Pedestrian | D68: BridEA0333 | E68: Desk | F68: Bridges | G68: 60 | H68: 20 | I68: Moderate Refurbishment | J68: 10 | K68: New Build | L68: 113 | M68: 123 | N68: 100 | O68: 3 | P68: 883.5084 | Q68: 883.5084 | R68: 1.074176355 | S68: 4.902497072 | T68: 0.1294492521 | U68: 5.512114984 | V68: 0 | W68: 0.1206399085 | X68: 895.2472776 | Y68: 0.05490755123 | Z68: 0 | AA68: 223.8118194 | AB68: 2.292158261 | AC68: 0.06472462604 | AD68: 2.451248536 | AE68: 66 | AF68: 0 | AG68: =VLOOKUP(AE68,ValidationLists!$M$1:$N$102,2,FALSE) -> 0.1421487907 | AH68: 0 | AI68: 0 | AJ68: 0 | AK68: 0 | AL68: 0 | AM68: 0 | AN68: 0 | AO68: 0 | AP68: 0.00780504201 | AQ68: =IF(OR(AF68=3,AF68=2,AF68=0),SUMIFS(FlatMaint!$Z$2:$Z$10000,FlatMaint!$A$2:$A$10000,D68,FlatMaint!$Y$2:$Y$10000,AE68)*AG68,0) -> 12.56113812 | AR68: =IF(OR(AF68=3,AF68=2,AF68=0),SUMIFS(FlatRepair!$Z$2:$Z$10000,FlatRepair!$A$2:$A$10000,D68,FlatRepair!$Y$2:$Y$10000,AE68)*AG68,0) -> 0 | AS68: 0 | AT68: 12.56894316 | AU68: 0 | AV68: 0 | AW68: 0 | AX68: 0 | AY68: 0 | AZ68: 12.56894316 | BA68: 0 | BB68: =IF($AF68=3,IF($AF$2=2,(R68/SUMIF(Refurb_Poss_Tbl[Refurbishment Possible],I68,Refurb_Poss_Tbl[%]))*AG68,IF($AF$2=3,(R68*AG68)-AV68,R68*AG68)),0) -> 0 | BC68: =IF(AF68=3,IF($AF$2=2,(S68/SUMIF(Refurb_Poss_Tbl[Refurbishment Possible],I68,Refurb_Poss_Tbl[%]))*AG68,IF($AF$2=3,(S68*AG68)-AX68,S68*AG68)),0) -> 0 | BD68: =IF($AF68=3,IF($AF$2=2,(T68/SUMIF(Refurb_Poss_Tbl[Refurbishment Possible],I68,Refurb_Poss_Tbl[%]))*AG68,T68*$AG68),0) -> 0 | BE68: =IF($AF68=3,IF($AF$2=2,(Q68/SUMIF(Refurb_Poss_Tbl[Refurbishment Possible],I68,Refurb_Poss_Tbl[%]))*AG68,Q68*$AG68),0) -> 0 | BF68: =IF($AF68=3,IF($AF$2=2,(U68/SUMIF(Refurb_Poss_Tbl[Refurbishment Possible],I68,Refurb_Poss_Tbl[%]))*AG68,U68*$AG68),0) -> 0 | BG68: =IF($AF68=3,IF($AF$2=2,(V68/SUMIF(Refurb_Poss_Tbl[Refurbishment Possible],I68,Refurb_Poss_Tbl[%]))*AG68,IF($AF$2=3,(V68*AG68)-AW68,V68*AG68)),0) -> 0 | BH68: =IF($AF68=3,IF($AF$2=2,(W68/SUMIF(Refurb_Poss_Tbl[Refurbishment Possible],I68,Refurb_Poss_Tbl[%]))*AG68,W68*$AG68),0) -> 0
A69: BridEA03 | B69: Footbridge | C69: Bridge - Pedestrian | D69: BridEA0333 | E69: Desk | F69: Bridges | G69: 60 | H69: 20 | I69: Moderate Refurbishment | J69: 10 | K69: New Build | L69: 113 | M69: 123 | N69: 100 | O69: 3 | P69: 883.5084 | Q69: 883.5084 | R69: 1.074176355 | S69: 4.902497072 | T69: 0.1294492521 | U69: 5.512114984 | V69: 0 | W69: 0.1206399085 | X69: 895.2472776 | Y69: 0.05490755123 | Z69: 0 | AA69: 223.8118194 | AB69: 2.292158261 | AC69: 0.06472462604 | AD69: 2.451248536 | AE69: 67 | AF69: 0 | AG69: =VLOOKUP(AE69,ValidationLists!$M$1:$N$102,2,FALSE) -> 0.1380085347 | AH69: 0 | AI69: 0 | AJ69: 0 | AK69: 0 | AL69: 0 | AM69: 0 | AN69: 0 | AO69: 0 | AP69: 0.007577710689 | AQ69: =IF(OR(AF69=3,AF69=2,AF69=0),SUMIFS(FlatMaint!$Z$2:$Z$10000,FlatMaint!$A$2:$A$10000,D69,FlatMaint!$Y$2:$Y$10000,AE69)*AG69,0) -> 12.19527972 | AR69: =IF(OR(AF69=3,AF69=2,AF69=0),SUMIFS(FlatRepair!$Z$2:$Z$10000,FlatRepair!$A$2:$A$10000,D69,FlatRepair!$Y$2:$Y$10000,AE69)*AG69,0) -> 0 | AS69: 0 | AT69: 12.20285744 | AU69: 0 | AV69: 0 | AW69: 0 | AX69: 0 | AY69: 0 | AZ69: 12.20285744 | BA69: 0 | BB69: =IF($AF69=3,IF($AF$2=2,(R69/SUMIF(Refurb_Poss_Tbl[Refurbishment Possible],I69,Refurb_Poss_Tbl[%]))*AG69,IF($AF$2=3,(R69*AG69)-AV69,R69*AG69)),0) -> 0 | BC69: =IF(AF69=3,IF($AF$2=2,(S69/SUMIF(Refurb_Poss_Tbl[Refurbishment Possible],I69,Refurb_Poss_Tbl[%]))*AG69,IF($AF$2=3,(S69*AG69)-AX69,S69*AG69)),0) -> 0 | BD69: =IF($AF69=3,IF($AF$2=2,(T69/SUMIF(Refurb_Poss_Tbl[Refurbishment Possible],I69,Refurb_Poss_Tbl[%]))*AG69,T69*$AG69),0) -> 0 | BE69: =IF($AF69=3,IF($AF$2=2,(Q69/SUMIF(Refurb_Poss_Tbl[Refurbishment Possible],I69,Refurb_Poss_Tbl[%]))*AG69,Q69*$AG69),0) -> 0 | BF69: =IF($AF69=3,IF($AF$2=2,(U69/SUMIF(Refurb_Poss_Tbl[Refurbishment Possible],I69,Refurb_Poss_Tbl[%]))*AG69,U69*$AG69),0) -> 0 | BG69: =IF($AF69=3,IF($AF$2=2,(V69/SUMIF(Refurb_Poss_Tbl[Refurbishment Possible],I69,Refurb_Poss_Tbl[%]))*AG69,IF($AF$2=3,(V69*AG69)-AW69,V69*AG69)),0) -> 0 | BH69: =IF($AF69=3,IF($AF$2=2,(W69/SUMIF(Refurb_Poss_Tbl[Refurbishment Possible],I69,Refurb_Poss_Tbl[%]))*AG69,W69*$AG69),0) -> 0
A70: BridEA03 | B70: Footbridge | C70: Bridge - Pedestrian | D70: BridEA0333 | E70: Desk | F70: Bridges | G70: 60 | H70: 20 | I70: Moderate Refurbishment | J70: 10 | K70: New Build | L70: 113 | M70: 123 | N70: 100 | O70: 3 | P70: 883.5084 | Q70: 883.5084 | R70: 1.074176355 | S70: 4.902497072 | T70: 0.1294492521 | U70: 5.512114984 | V70: 0 | W70: 0.1206399085 | X70: 895.2472776 | Y70: 0.05490755123 | Z70: 0 | AA70: 223.8118194 | AB70: 2.292158261 | AC70: 0.06472462604 | AD70: 2.451248536 | AE70: 68 | AF70: 0 | AG70: =VLOOKUP(AE70,ValidationLists!$M$1:$N$102,2,FALSE) -> 0.1339888686 | AH70: 0 | AI70: 0 | AJ70: 0 | AK70: 0 | AL70: 0 | AM70: 0 | AN70: 0 | AO70: 0 | AP70: 0.007357000669 | AQ70: =IF(OR(AF70=3,AF70=2,AF70=0),SUMIFS(FlatMaint!$Z$2:$Z$10000,FlatMaint!$A$2:$A$10000,D70,FlatMaint!$Y$2:$Y$10000,AE70)*AG70,0) -> 11.8400774 | AR70: =IF(OR(AF70=3,AF70=2,AF70=0),SUMIFS(FlatRepair!$Z$2:$Z$10000,FlatRepair!$A$2:$A$10000,D70,FlatRepair!$Y$2:$Y$10000,AE70)*AG70,0) -> 0 | AS70: 0 | AT70: 11.8474344 | AU70: 0 | AV70: 0 | AW70: 0 | AX70: 0 | AY70: 0 | AZ70: 11.8474344 | BA70: 0 | BB70: =IF($AF70=3,IF($AF$2=2,(R70/SUMIF(Refurb_Poss_Tbl[Refurbishment Possible],I70,Refurb_Poss_Tbl[%]))*AG70,IF($AF$2=3,(R70*AG70)-AV70,R70*AG70)),0) -> 0 | BC70: =IF(AF70=3,IF($AF$2=2,(S70/SUMIF(Refurb_Poss_Tbl[Refurbishment Possible],I70,Refurb_Poss_Tbl[%]))*AG70,IF($AF$2=3,(S70*AG70)-AX70,S70*AG70)),0) -> 0 | BD70: =IF($AF70=3,IF($AF$2=2,(T70/SUMIF(Refurb_Poss_Tbl[Refurbishment Possible],I70,Refurb_Poss_Tbl[%]))*AG70,T70*$AG70),0) -> 0 | BE70: =IF($AF70=3,IF($AF$2=2,(Q70/SUMIF(Refurb_Poss_Tbl[Refurbishment Possible],I70,Refurb_Poss_Tbl[%]))*AG70,Q70*$AG70),0) -> 0 | BF70: =IF($AF70=3,IF($AF$2=2,(U70/SUMIF(Refurb_Poss_Tbl[Refurbishment Possible],I70,Refurb_Poss_Tbl[%]))*AG70,U70*$AG70),0) -> 0 | BG70: =IF($AF70=3,IF($AF$2=2,(V70/SUMIF(Refurb_Poss_Tbl[Refurbishment Possible],I70,Refurb_Poss_Tbl[%]))*AG70,IF($AF$2=3,(V70*AG70)-AW70,V70*AG70)),0) -> 0 | BH70: =IF($AF70=3,IF($AF$2=2,(W70/SUMIF(Refurb_Poss_Tbl[Refurbishment Possible],I70,Refurb_Poss_Tbl[%]))*AG70,W70*$AG70),0) -> 0
A71: BridEA03 | B71: Footbridge | C71: Bridge - Pedestrian | D71: BridEA0333 | E71: Desk | F71: Bridges | G71: 60 | H71: 20 | I71: Moderate Refurbishment | J71: 10 | K71: New Build | L71: 113 | M71: 123 | N71: 100 | O71: 3 | P71: 883.5084 | Q71: 883.5084 | R71: 1.074176355 | S71: 4.902497072 | T71: 0.1294492521 | U71: 5.512114984 | V71: 0 | W71: 0.1206399085 | X71: 895.2472776 | Y71: 0.05490755123 | Z71: 0 | AA71: 223.8118194 | AB71: 2.292158261 | AC71: 0.06472462604 | AD71: 2.451248536 | AE71: 69 | AF71: 0 | AG71: =VLOOKUP(AE71,ValidationLists!$M$1:$N$102,2,FALSE) -> 0.1300862802 | AH71: 0 | AI71: 0 | AJ71: 0 | AK71: 0 | AL71: 0 | AM71: 0 | AN71: 0 | AO71: 0 | AP71: 0.007142719096 | AQ71: =IF(OR(AF71=3,AF71=2,AF71=0),SUMIFS(FlatMaint!$Z$2:$Z$10000,FlatMaint!$A$2:$A$10000,D71,FlatMaint!$Y$2:$Y$10000,AE71)*AG71,0) -> 11.49522078 | AR71: =IF(OR(AF71=3,AF71=2,AF71=0),SUMIFS(FlatRepair!$Z$2:$Z$10000,FlatRepair!$A$2:$A$10000,D71,FlatRepair!$Y$2:$Y$10000,AE71)*AG71,0) -> 0 | AS71: 0 | AT71: 11.5023635 | AU71: 0 | AV71: 0 | AW71: 0 | AX71: 0 | AY71: 0 | AZ71: 11.5023635 | BA71: 0 | BB71: =IF($AF71=3,IF($AF$2=2,(R71/SUMIF(Refurb_Poss_Tbl[Refurbishment Possible],I71,Refurb_Poss_Tbl[%]))*AG71,IF($AF$2=3,(R71*AG71)-AV71,R71*AG71)),0) -> 0 | BC71: =IF(AF71=3,IF($AF$2=2,(S71/SUMIF(Refurb_Poss_Tbl[Refurbishment Possible],I71,Refurb_Poss_Tbl[%]))*AG71,IF($AF$2=3,(S71*AG71)-AX71,S71*AG71)),0) -> 0 | BD71: =IF($AF71=3,IF($AF$2=2,(T71/SUMIF(Refurb_Poss_Tbl[Refurbishment Possible],I71,Refurb_Poss_Tbl[%]))*AG71,T71*$AG71),0) -> 0 | BE71: =IF($AF71=3,IF($AF$2=2,(Q71/SUMIF(Refurb_Poss_Tbl[Refurbishment Possible],I71,Refurb_Poss_Tbl[%]))*AG71,Q71*$AG71),0) -> 0 | BF71: =IF($AF71=3,IF($AF$2=2,(U71/SUMIF(Refurb_Poss_Tbl[Refurbishment Possible],I71,Refurb_Poss_Tbl[%]))*AG71,U71*$AG71),0) -> 0 | BG71: =IF($AF71=3,IF($AF$2=2,(V71/SUMIF(Refurb_Poss_Tbl[Refurbishment Possible],I71,Refurb_Poss_Tbl[%]))*AG71,IF($AF$2=3,(V71*AG71)-AW71,V71*AG71)),0) -> 0 | BH71: =IF($AF71=3,IF($AF$2=2,(W71/SUMIF(Refurb_Poss_Tbl[Refurbishment Possible],I71,Refurb_Poss_Tbl[%]))*AG71,W71*$AG71),0) -> 0
A72: BridEA03 | B72: Footbridge | C72: Bridge - Pedestrian | D72: BridEA0333 | E72: Desk | F72: Bridges | G72: 60 | H72: 20 | I72: Moderate Refurbishment | J72: 10 | K72: New Build | L72: 113 | M72: 123 | N72: 100 | O72: 3 | P72: 883.5084 | Q72: 883.5084 | R72: 1.074176355 | S72: 4.902497072 | T72: 0.1294492521 | U72: 5.512114984 | V72: 0 | W72: 0.1206399085 | X72: 895.2472776 | Y72: 0.05490755123 | Z72: 0 | AA72: 223.8118194 | AB72: 2.292158261 | AC72: 0.06472462604 | AD72: 2.451248536 | AE72: 70 | AF72: 0 | AG72: =VLOOKUP(AE72,ValidationLists!$M$1:$N$102,2,FALSE) -> 0.1262973594 | AH72: 0 | AI72: 0 | AJ72: 0 | AK72: 0 | AL72: 0 | AM72: 0 | AN72: 0 | AO72: 0 | AP72: 0.006934678734 | AQ72: =IF(OR(AF72=3,AF72=2,AF72=0),SUMIFS(FlatMaint!$Z$2:$Z$10000,FlatMaint!$A$2:$A$10000,D72,FlatMaint!$Y$2:$Y$10000,AE72)*AG72,0) -> 11.16040852 | AR72: =IF(OR(AF72=3,AF72=2,AF72=0),SUMIFS(FlatRepair!$Z$2:$Z$10000,FlatRepair!$A$2:$A$10000,D72,FlatRepair!$Y$2:$Y$10000,AE72)*AG72,0) -> 0 | AS72: 0 | AT72: 11.1673432 | AU72: 0 | AV72: 0 | AW72: 0 | AX72: 0 | AY72: 0 | AZ72: 11.1673432 | BA72: 0 | BB72: =IF($AF72=3,IF($AF$2=2,(R72/SUMIF(Refurb_Poss_Tbl[Refurbishment Possible],I72,Refurb_Poss_Tbl[%]))*AG72,IF($AF$2=3,(R72*AG72)-AV72,R72*AG72)),0) -> 0 | BC72: =IF(AF72=3,IF($AF$2=2,(S72/SUMIF(Refurb_Poss_Tbl[Refurbishment Possible],I72,Refurb_Poss_Tbl[%]))*AG72,IF($AF$2=3,(S72*AG72)-AX72,S72*AG72)),0) -> 0 | BD72: =IF($AF72=3,IF($AF$2=2,(T72/SUMIF(Refurb_Poss_Tbl[Refurbishment Possible],I72,Refurb_Poss_Tbl[%]))*AG72,T72*$AG72),0) -> 0 | BE72: =IF($AF72=3,IF($AF$2=2,(Q72/SUMIF(Refurb_Poss_Tbl[Refurbishment Possible],I72,Refurb_Poss_Tbl[%]))*AG72,Q72*$AG72),0) -> 0 | BF72: =IF($AF72=3,IF($AF$2=2,(U72/SUMIF(Refurb_Poss_Tbl[Refurbishment Possible],I72,Refurb_Poss_Tbl[%]))*AG72,U72*$AG72),0) -> 0 | BG72: =IF($AF72=3,IF($AF$2=2,(V72/SUMIF(Refurb_Poss_Tbl[Refurbishment Possible],I72,Refurb_Poss_Tbl[%]))*AG72,IF($AF$2=3,(V72*AG72)-AW72,V72*AG72)),0) -> 0 | BH72: =IF($AF72=3,IF($AF$2=2,(W72/SUMIF(Refurb_Poss_Tbl[Refurbishment Possible],I72,Refurb_Poss_Tbl[%]))*AG72,W72*$AG72),0) -> 0
A73: BridEA03 | B73: Footbridge | C73: Bridge - Pedestrian | D73: BridEA0333 | E73: Desk | F73: Bridges | G73: 60 | H73: 20 | I73: Moderate Refurbishment | J73: 10 | K73: New Build | L73: 113 | M73: 123 | N73: 100 | O73: 3 | P73: 883.5084 | Q73: 883.5084 | R73: 1.074176355 | S73: 4.902497072 | T73: 0.1294492521 | U73: 5.512114984 | V73: 0 | W73: 0.1206399085 | X73: 895.2472776 | Y73: 0.05490755123 | Z73: 0 | AA73: 223.8118194 | AB73: 2.292158261 | AC73: 0.06472462604 | AD73: 2.451248536 | AE73: 71 | AF73: 0 | AG73: =VLOOKUP(AE73,ValidationLists!$M$1:$N$102,2,FALSE) -> 0.1226187956 | AH73: 0 | AI73: 0 | AJ73: 0 | AK73: 0 | AL73: 0 | AM73: 0 | AN73: 0 | AO73: 0 | AP73: 0.0067326978 | AQ73: =IF(OR(AF73=3,AF73=2,AF73=0),SUMIFS(FlatMaint!$Z$2:$Z$10000,FlatMaint!$A$2:$A$10000,D73,FlatMaint!$Y$2:$Y$10000,AE73)*AG73,0) -> 10.83534808 | AR73: =IF(OR(AF73=3,AF73=2,AF73=0),SUMIFS(FlatRepair!$Z$2:$Z$10000,FlatRepair!$A$2:$A$10000,D73,FlatRepair!$Y$2:$Y$10000,AE73)*AG73,0) -> 0 | AS73: 0 | AT73: 10.84208078 | AU73: 0 | AV73: 0 | AW73: 0 | AX73: 0 | AY73: 0 | AZ73: 10.84208078 | BA73: 0 | BB73: =IF($AF73=3,IF($AF$2=2,(R73/SUMIF(Refurb_Poss_Tbl[Refurbishment Possible],I73,Refurb_Poss_Tbl[%]))*AG73,IF($AF$2=3,(R73*AG73)-AV73,R73*AG73)),0) -> 0 | BC73: =IF(AF73=3,IF($AF$2=2,(S73/SUMIF(Refurb_Poss_Tbl[Refurbishment Possible],I73,Refurb_Poss_Tbl[%]))*AG73,IF($AF$2=3,(S73*AG73)-AX73,S73*AG73)),0) -> 0 | BD73: =IF($AF73=3,IF($AF$2=2,(T73/SUMIF(Refurb_Poss_Tbl[Refurbishment Possible],I73,Refurb_Poss_Tbl[%]))*AG73,T73*$AG73),0) -> 0 | BE73: =IF($AF73=3,IF($AF$2=2,(Q73/SUMIF(Refurb_Poss_Tbl[Refurbishment Possible],I73,Refurb_Poss_Tbl[%]))*AG73,Q73*$AG73),0) -> 0 | BF73: =IF($AF73=3,IF($AF$2=2,(U73/SUMIF(Refurb_Poss_Tbl[Refurbishment Possible],I73,Refurb_Poss_Tbl[%]))*AG73,U73*$AG73),0) -> 0 | BG73: =IF($AF73=3,IF($AF$2=2,(V73/SUMIF(Refurb_Poss_Tbl[Refurbishment Possible],I73,Refurb_Poss_Tbl[%]))*AG73,IF($AF$2=3,(V73*AG73)-AW73,V73*AG73)),0) -> 0 | BH73: =IF($AF73=3,IF($AF$2=2,(W73/SUMIF(Refurb_Poss_Tbl[Refurbishment Possible],I73,Refurb_Poss_Tbl[%]))*AG73,W73*$AG73),0) -> 0
A74: BridEA03 | B74: Footbridge | C74: Bridge - Pedestrian | D74: BridEA0333 | E74: Desk | F74: Bridges | G74: 60 | H74: 20 | I74: Moderate Refurbishment | J74: 10 | K74: New Build | L74: 113 | M74: 123 | N74: 100 | O74: 3 | P74: 883.5084 | Q74: 883.5084 | R74: 1.074176355 | S74: 4.902497072 | T74: 0.1294492521 | U74: 5.512114984 | V74: 0 | W74: 0.1206399085 | X74: 895.2472776 | Y74: 0.05490755123 | Z74: 0 | AA74: 223.8118194 | AB74: 2.292158261 | AC74: 0.06472462604 | AD74: 2.451248536 | AE74: 72 | AF74: 0 | AG74: =VLOOKUP(AE74,ValidationLists!$M$1:$N$102,2,FALSE) -> 0.1190473743 | AH74: 0 | AI74: 0 | AJ74: 0 | AK74: 0 | AL74: 0 | AM74: 0 | AN74: 0 | AO74: 0 | AP74: 0.006536599806 | AQ74: =IF(OR(AF74=3,AF74=2,AF74=0),SUMIFS(FlatMaint!$Z$2:$Z$10000,FlatMaint!$A$2:$A$10000,D74,FlatMaint!$Y$2:$Y$10000,AE74)*AG74,0) -> 10.51975542 | AR74: =IF(OR(AF74=3,AF74=2,AF74=0),SUMIFS(FlatRepair!$Z$2:$Z$10000,FlatRepair!$A$2:$A$10000,D74,FlatRepair!$Y$2:$Y$10000,AE74)*AG74,0) -> 0 | AS74: 0 | AT74: 10.52629202 | AU74: 0 | AV74: 0 | AW74: 0 | AX74: 0 | AY74: 0 | AZ74: 10.52629202 | BA74: 0 | BB74: =IF($AF74=3,IF($AF$2=2,(R74/SUMIF(Refurb_Poss_Tbl[Refurbishment Possible],I74,Refurb_Poss_Tbl[%]))*AG74,IF($AF$2=3,(R74*AG74)-AV74,R74*AG74)),0) -> 0 | BC74: =IF(AF74=3,IF($AF$2=2,(S74/SUMIF(Refurb_Poss_Tbl[Refurbishment Possible],I74,Refurb_Poss_Tbl[%]))*AG74,IF($AF$2=3,(S74*AG74)-AX74,S74*AG74)),0) -> 0 | BD74: =IF($AF74=3,IF($AF$2=2,(T74/SUMIF(Refurb_Poss_Tbl[Refurbishment Possible],I74,Refurb_Poss_Tbl[%]))*AG74,T74*$AG74),0) -> 0 | BE74: =IF($AF74=3,IF($AF$2=2,(Q74/SUMIF(Refurb_Poss_Tbl[Refurbishment Possible],I74,Refurb_Poss_Tbl[%]))*AG74,Q74*$AG74),0) -> 0 | BF74: =IF($AF74=3,IF($AF$2=2,(U74/SUMIF(Refurb_Poss_Tbl[Refurbishment Possible],I74,Refurb_Poss_Tbl[%]))*AG74,U74*$AG74),0) -> 0 | BG74: =IF($AF74=3,IF($AF$2=2,(V74/SUMIF(Refurb_Poss_Tbl[Refurbishment Possible],I74,Refurb_Poss_Tbl[%]))*AG74,IF($AF$2=3,(V74*AG74)-AW74,V74*AG74)),0) -> 0 | BH74: =IF($AF74=3,IF($AF$2=2,(W74/SUMIF(Refurb_Poss_Tbl[Refurbishment Possible],I74,Refurb_Poss_Tbl[%]))*AG74,W74*$AG74),0) -> 0
A75: BridEA03 | B75: Footbridge | C75: Bridge - Pedestrian | D75: BridEA0333 | E75: Desk | F75: Bridges | G75: 60 | H75: 20 | I75: Moderate Refurbishment | J75: 10 | K75: New Build | L75: 113 | M75: 123 | N75: 100 | O75: 3 | P75: 883.5084 | Q75: 883.5084 | R75: 1.074176355 | S75: 4.902497072 | T75: 0.1294492521 | U75: 5.512114984 | V75: 0 | W75: 0.1206399085 | X75: 895.2472776 | Y75: 0.05490755123 | Z75: 0 | AA75: 223.8118194 | AB75: 2.292158261 | AC75: 0.06472462604 | AD75: 2.451248536 | AE75: 73 | AF75: 0 | AG75: =VLOOKUP(AE75,ValidationLists!$M$1:$N$102,2,FALSE) -> 0.1155799751 | AH75: 0 | AI75: 0 | AJ75: 0 | AK75: 0 | AL75: 0 | AM75: 0 | AN75: 0 | AO75: 0 | AP75: 0.006346213404 | AQ75: =IF(OR(AF75=3,AF75=2,AF75=0),SUMIFS(FlatMaint!$Z$2:$Z$10000,FlatMaint!$A$2:$A$10000,D75,FlatMaint!$Y$2:$Y$10000,AE75)*AG75,0) -> 10.21335478 | AR75: =IF(OR(AF75=3,AF75=2,AF75=0),SUMIFS(FlatRepair!$Z$2:$Z$10000,FlatRepair!$A$2:$A$10000,D75,FlatRepair!$Y$2:$Y$10000,AE75)*AG75,0) -> 0 | AS75: 0 | AT75: 10.21970099 | AU75: 0 | AV75: 0 | AW75: 0 | AX75: 0 | AY75: 0 | AZ75: 10.21970099 | BA75: 0 | BB75: =IF($AF75=3,IF($AF$2=2,(R75/SUMIF(Refurb_Poss_Tbl[Refurbishment Possible],I75,Refurb_Poss_Tbl[%]))*AG75,IF($AF$2=3,(R75*AG75)-AV75,R75*AG75)),0) -> 0 | BC75: =IF(AF75=3,IF($AF$2=2,(S75/SUMIF(Refurb_Poss_Tbl[Refurbishment Possible],I75,Refurb_Poss_Tbl[%]))*AG75,IF($AF$2=3,(S75*AG75)-AX75,S75*AG75)),0) -> 0 | BD75: =IF($AF75=3,IF($AF$2=2,(T75/SUMIF(Refurb_Poss_Tbl[Refurbishment Possible],I75,Refurb_Poss_Tbl[%]))*AG75,T75*$AG75),0) -> 0 | BE75: =IF($AF75=3,IF($AF$2=2,(Q75/SUMIF(Refurb_Poss_Tbl[Refurbishment Possible],I75,Refurb_Poss_Tbl[%]))*AG75,Q75*$AG75),0) -> 0 | BF75: =IF($AF75=3,IF($AF$2=2,(U75/SUMIF(Refurb_Poss_Tbl[Refurbishment Possible],I75,Refurb_Poss_Tbl[%]))*AG75,U75*$AG75),0) -> 0 | BG75: =IF($AF75=3,IF($AF$2=2,(V75/SUMIF(Refurb_Poss_Tbl[Refurbishment Possible],I75,Refurb_Poss_Tbl[%]))*AG75,IF($AF$2=3,(V75*AG75)-AW75,V75*AG75)),0) -> 0 | BH75: =IF($AF75=3,IF($AF$2=2,(W75/SUMIF(Refurb_Poss_Tbl[Refurbishment Possible],I75,Refurb_Poss_Tbl[%]))*AG75,W75*$AG75),0) -> 0
A76: BridEA03 | B76: Footbridge | C76: Bridge - Pedestrian | D76: BridEA0333 | E76: Desk | F76: Bridges | G76: 60 | H76: 20 | I76: Moderate Refurbishment | J76: 10 | K76: New Build | L76: 113 | M76: 123 | N76: 100 | O76: 3 | P76: 883.5084 | Q76: 883.5084 | R76: 1.074176355 | S76: 4.902497072 | T76: 0.1294492521 | U76: 5.512114984 | V76: 0 | W76: 0.1206399085 | X76: 895.2472776 | Y76: 0.05490755123 | Z76: 0 | AA76: 223.8118194 | AB76: 2.292158261 | AC76: 0.06472462604 | AD76: 2.451248536 | AE76: 74 | AF76: 0 | AG76: =VLOOKUP(AE76,ValidationLists!$M$1:$N$102,2,FALSE) -> 0.112213568 | AH76: 0 | AI76: 0 | AJ76: 0 | AK76: 0 | AL76: 0 | AM76: 0 | AN76: 0 | AO76: 0 | AP76: 0.006161372237 | AQ76: =IF(OR(AF76=3,AF76=2,AF76=0),SUMIFS(FlatMaint!$Z$2:$Z$10000,FlatMaint!$A$2:$A$10000,D76,FlatMaint!$Y$2:$Y$10000,AE76)*AG76,0) -> 9.915878423 | AR76: =IF(OR(AF76=3,AF76=2,AF76=0),SUMIFS(FlatRepair!$Z$2:$Z$10000,FlatRepair!$A$2:$A$10000,D76,FlatRepair!$Y$2:$Y$10000,AE76)*AG76,0) -> 0 | AS76: 0 | AT76: 9.922039795 | AU76: 0 | AV76: 0 | AW76: 0 | AX76: 0 | AY76: 0 | AZ76: 9.922039795 | BA76: 0 | BB76: =IF($AF76=3,IF($AF$2=2,(R76/SUMIF(Refurb_Poss_Tbl[Refurbishment Possible],I76,Refurb_Poss_Tbl[%]))*AG76,IF($AF$2=3,(R76*AG76)-AV76,R76*AG76)),0) -> 0 | BC76: =IF(AF76=3,IF($AF$2=2,(S76/SUMIF(Refurb_Poss_Tbl[Refurbishment Possible],I76,Refurb_Poss_Tbl[%]))*AG76,IF($AF$2=3,(S76*AG76)-AX76,S76*AG76)),0) -> 0 | BD76: =IF($AF76=3,IF($AF$2=2,(T76/SUMIF(Refurb_Poss_Tbl[Refurbishment Possible],I76,Refurb_Poss_Tbl[%]))*AG76,T76*$AG76),0) -> 0 | BE76: =IF($AF76=3,IF($AF$2=2,(Q76/SUMIF(Refurb_Poss_Tbl[Refurbishment Possible],I76,Refurb_Poss_Tbl[%]))*AG76,Q76*$AG76),0) -> 0 | BF76: =IF($AF76=3,IF($AF$2=2,(U76/SUMIF(Refurb_Poss_Tbl[Refurbishment Possible],I76,Refurb_Poss_Tbl[%]))*AG76,U76*$AG76),0) -> 0 | BG76: =IF($AF76=3,IF($AF$2=2,(V76/SUMIF(Refurb_Poss_Tbl[Refurbishment Possible],I76,Refurb_Poss_Tbl[%]))*AG76,IF($AF$2=3,(V76*AG76)-AW76,V76*AG76)),0) -> 0 | BH76: =IF($AF76=3,IF($AF$2=2,(W76/SUMIF(Refurb_Poss_Tbl[Refurbishment Possible],I76,Refurb_Poss_Tbl[%]))*AG76,W76*$AG76),0) -> 0
A77: BridEA03 | B77: Footbridge | C77: Bridge - Pedestrian | D77: BridEA0333 | E77: Desk | F77: Bridges | G77: 60 | H77: 20 | I77: Moderate Refurbishment | J77: 10 | K77: New Build | L77: 113 | M77: 123 | N77: 100 | O77: 3 | P77: 883.5084 | Q77: 883.5084 | R77: 1.074176355 | S77: 4.902497072 | T77: 0.1294492521 | U77: 5.512114984 | V77: 0 | W77: 0.1206399085 | X77: 895.2472776 | Y77: 0.05490755123 | Z77: 0 | AA77: 223.8118194 | AB77: 2.292158261 | AC77: 0.06472462604 | AD77: 2.451248536 | AE77: 75 | AF77: 0 | AG77: =VLOOKUP(AE77,ValidationLists!$M$1:$N$102,2,FALSE) -> 0.1089452117 | AH77: 0 | AI77: 0 | AJ77: 0 | AK77: 0 | AL77: 0 | AM77: 0 | AN77: 0 | AO77: 0 | AP77: 0.005981914793 | AQ77: =IF(OR(AF77=3,AF77=2,AF77=0),SUMIFS(FlatMaint!$Z$2:$Z$10000,FlatMaint!$A$2:$A$10000,D77,FlatMaint!$Y$2:$Y$10000,AE77)*AG77,0) -> 9.62706643 | AR77: =IF(OR(AF77=3,AF77=2,AF77=0),SUMIFS(FlatRepair!$Z$2:$Z$10000,FlatRepair!$A$2:$A$10000,D77,FlatRepair!$Y$2:$Y$10000,AE77)*AG77,0) -> 0 | AS77: 0 | AT77: 9.633048345 | AU77: 0 | AV77: 0 | AW77: 0 | AX77: 0 | AY77: 0 | AZ77: 9.633048345 | BA77: 0 | BB77: =IF($AF77=3,IF($AF$2=2,(R77/SUMIF(Refurb_Poss_Tbl[Refurbishment Possible],I77,Refurb_Poss_Tbl[%]))*AG77,IF($AF$2=3,(R77*AG77)-AV77,R77*AG77)),0) -> 0 | BC77: =IF(AF77=3,IF($AF$2=2,(S77/SUMIF(Refurb_Poss_Tbl[Refurbishment Possible],I77,Refurb_Poss_Tbl[%]))*AG77,IF($AF$2=3,(S77*AG77)-AX77,S77*AG77)),0) -> 0 | BD77: =IF($AF77=3,IF($AF$2=2,(T77/SUMIF(Refurb_Poss_Tbl[Refurbishment Possible],I77,Refurb_Poss_Tbl[%]))*AG77,T77*$AG77),0) -> 0 | BE77: =IF($AF77=3,IF($AF$2=2,(Q77/SUMIF(Refurb_Poss_Tbl[Refurbishment Possible],I77,Refurb_Poss_Tbl[%]))*AG77,Q77*$AG77),0) -> 0 | BF77: =IF($AF77=3,IF($AF$2=2,(U77/SUMIF(Refurb_Poss_Tbl[Refurbishment Possible],I77,Refurb_Poss_Tbl[%]))*AG77,U77*$AG77),0) -> 0 | BG77: =IF($AF77=3,IF($AF$2=2,(V77/SUMIF(Refurb_Poss_Tbl[Refurbishment Possible],I77,Refurb_Poss_Tbl[%]))*AG77,IF($AF$2=3,(V77*AG77)-AW77,V77*AG77)),0) -> 0 | BH77: =IF($AF77=3,IF($AF$2=2,(W77/SUMIF(Refurb_Poss_Tbl[Refurbishment Possible],I77,Refurb_Poss_Tbl[%]))*AG77,W77*$AG77),0) -> 0
A78: BridEA03 | B78: Footbridge | C78: Bridge - Pedestrian | D78: BridEA0333 | E78: Desk | F78: Bridges | G78: 60 | H78: 20 | I78: Moderate Refurbishment | J78: 10 | K78: New Build | L78: 113 | M78: 123 | N78: 100 | O78: 3 | P78: 883.5084 | Q78: 883.5084 | R78: 1.074176355 | S78: 4.902497072 | T78: 0.1294492521 | U78: 5.512114984 | V78: 0 | W78: 0.1206399085 | X78: 895.2472776 | Y78: 0.05490755123 | Z78: 0 | AA78: 223.8118194 | AB78: 2.292158261 | AC78: 0.06472462604 | AD78: 2.451248536 | AE78: 76 | AF78: 0 | AG78: =VLOOKUP(AE78,ValidationLists!$M$1:$N$102,2,FALSE) -> 0.1531038918 | AH78: 0 | AI78: 0 | AJ78: 0 | AK78: 0 | AL78: 0 | AM78: 0 | AN78: 0 | AO78: 0 | AP78: 0.008406559781 | AQ78: =IF(OR(AF78=3,AF78=2,AF78=0),SUMIFS(FlatMaint!$Z$2:$Z$10000,FlatMaint!$A$2:$A$10000,D78,FlatMaint!$Y$2:$Y$10000,AE78)*AG78,0) -> 13.52919797 | AR78: =IF(OR(AF78=3,AF78=2,AF78=0),SUMIFS(FlatRepair!$Z$2:$Z$10000,FlatRepair!$A$2:$A$10000,D78,FlatRepair!$Y$2:$Y$10000,AE78)*AG78,0) -> 0 | AS78: 0 | AT78: 13.53760453 | AU78: 0 | AV78: 0 | AW78: 0 | AX78: 0 | AY78: 0 | AZ78: 13.53760453 | BA78: 0 | BB78: =IF($AF78=3,IF($AF$2=2,(R78/SUMIF(Refurb_Poss_Tbl[Refurbishment Possible],I78,Refurb_Poss_Tbl[%]))*AG78,IF($AF$2=3,(R78*AG78)-AV78,R78*AG78)),0) -> 0 | BC78: =IF(AF78=3,IF($AF$2=2,(S78/SUMIF(Refurb_Poss_Tbl[Refurbishment Possible],I78,Refurb_Poss_Tbl[%]))*AG78,IF($AF$2=3,(S78*AG78)-AX78,S78*AG78)),0) -> 0 | BD78: =IF($AF78=3,IF($AF$2=2,(T78/SUMIF(Refurb_Poss_Tbl[Refurbishment Possible],I78,Refurb_Poss_Tbl[%]))*AG78,T78*$AG78),0) -> 0 | BE78: =IF($AF78=3,IF($AF$2=2,(Q78/SUMIF(Refurb_Poss_Tbl[Refurbishment Possible],I78,Refurb_Poss_Tbl[%]))*AG78,Q78*$AG78),0) -> 0 | BF78: =IF($AF78=3,IF($AF$2=2,(U78/SUMIF(Refurb_Poss_Tbl[Refurbishment Possible],I78,Refurb_Poss_Tbl[%]))*AG78,U78*$AG78),0) -> 0 | BG78: =IF($AF78=3,IF($AF$2=2,(V78/SUMIF(Refurb_Poss_Tbl[Refurbishment Possible],I78,Refurb_Poss_Tbl[%]))*AG78,IF($AF$2=3,(V78*AG78)-AW78,V78*AG78)),0) -> 0 | BH78: =IF($AF78=3,IF($AF$2=2,(W78/SUMIF(Refurb_Poss_Tbl[Refurbishment Possible],I78,Refurb_Poss_Tbl[%]))*AG78,W78*$AG78),0) -> 0
A79: BridEA03 | B79: Footbridge | C79: Bridge - Pedestrian | D79: BridEA0333 | E79: Desk | F79: Bridges | G79: 60 | H79: 20 | I79: Moderate Refurbishment | J79: 10 | K79: New Build | L79: 113 | M79: 123 | N79: 100 | O79: 3 | P79: 883.5084 | Q79: 883.5084 | R79: 1.074176355 | S79: 4.902497072 | T79: 0.1294492521 | U79: 5.512114984 | V79: 0 | W79: 0.1206399085 | X79: 895.2472776 | Y79: 0.05490755123 | Z79: 0 | AA79: 223.8118194 | AB79: 2.292158261 | AC79: 0.06472462604 | AD79: 2.451248536 | AE79: 77 | AF79: 0 | AG79: =VLOOKUP(AE79,ValidationLists!$M$1:$N$102,2,FALSE) -> 0.1493696505 | AH79: 0 | AI79: 0 | AJ79: 0 | AK79: 0 | AL79: 0 | AM79: 0 | AN79: 0 | AO79: 0 | AP79: 0.008201521738 | AQ79: =IF(OR(AF79=3,AF79=2,AF79=0),SUMIFS(FlatMaint!$Z$2:$Z$10000,FlatMaint!$A$2:$A$10000,D79,FlatMaint!$Y$2:$Y$10000,AE79)*AG79,0) -> 13.19921753 | AR79: =IF(OR(AF79=3,AF79=2,AF79=0),SUMIFS(FlatRepair!$Z$2:$Z$10000,FlatRepair!$A$2:$A$10000,D79,FlatRepair!$Y$2:$Y$10000,AE79)*AG79,0) -> 0 | AS79: 0 | AT79: 13.20741905 | AU79: 0 | AV79: 0 | AW79: 0 | AX79: 0 | AY79: 0 | AZ79: 13.20741905 | BA79: 0 | BB79: =IF($AF79=3,IF($AF$2=2,(R79/SUMIF(Refurb_Poss_Tbl[Refurbishment Possible],I79,Refurb_Poss_Tbl[%]))*AG79,IF($AF$2=3,(R79*AG79)-AV79,R79*AG79)),0) -> 0 | BC79: =IF(AF79=3,IF($AF$2=2,(S79/SUMIF(Refurb_Poss_Tbl[Refurbishment Possible],I79,Refurb_Poss_Tbl[%]))*AG79,IF($AF$2=3,(S79*AG79)-AX79,S79*AG79)),0) -> 0 | BD79: =IF($AF79=3,IF($AF$2=2,(T79/SUMIF(Refurb_Poss_Tbl[Refurbishment Possible],I79,Refurb_Poss_Tbl[%]))*AG79,T79*$AG79),0) -> 0 | BE79: =IF($AF79=3,IF($AF$2=2,(Q79/SUMIF(Refurb_Poss_Tbl[Refurbishment Possible],I79,Refurb_Poss_Tbl[%]))*AG79,Q79*$AG79),0) -> 0 | BF79: =IF($AF79=3,IF($AF$2=2,(U79/SUMIF(Refurb_Poss_Tbl[Refurbishment Possible],I79,Refurb_Poss_Tbl[%]))*AG79,U79*$AG79),0) -> 0 | BG79: =IF($AF79=3,IF($AF$2=2,(V79/SUMIF(Refurb_Poss_Tbl[Refurbishment Possible],I79,Refurb_Poss_Tbl[%]))*AG79,IF($AF$2=3,(V79*AG79)-AW79,V79*AG79)),0) -> 0 | BH79: =IF($AF79=3,IF($AF$2=2,(W79/SUMIF(Refurb_Poss_Tbl[Refurbishment Possible],I79,Refurb_Poss_Tbl[%]))*AG79,W79*$AG79),0) -> 0
A80: BridEA03 | B80: Footbridge | C80: Bridge - Pedestrian | D80: BridEA0333 | E80: Desk | F80: Bridges | G80: 60 | H80: 20 | I80: Moderate Refurbishment | J80: 10 | K80: New Build | L80: 113 | M80: 123 | N80: 100 | O80: 3 | P80: 883.5084 | Q80: 883.5084 | R80: 1.074176355 | S80: 4.902497072 | T80: 0.1294492521 | U80: 5.512114984 | V80: 0 | W80: 0.1206399085 | X80: 895.2472776 | Y80: 0.05490755123 | Z80: 0 | AA80: 223.8118194 | AB80: 2.292158261 | AC80: 0.06472462604 | AD80: 2.451248536 | AE80: 78 | AF80: 0 | AG80: =VLOOKUP(AE80,ValidationLists!$M$1:$N$102,2,FALSE) -> 0.1457264883 | AH80: 0 | AI80: 0 | AJ80: 0 | AK80: 0 | AL80: 0 | AM80: 0 | AN80: 0 | AO80: 0 | AP80: 0.008001484622 | AQ80: =IF(OR(AF80=3,AF80=2,AF80=0),SUMIFS(FlatMaint!$Z$2:$Z$10000,FlatMaint!$A$2:$A$10000,D80,FlatMaint!$Y$2:$Y$10000,AE80)*AG80,0) -> 12.8772854 | AR80: =IF(OR(AF80=3,AF80=2,AF80=0),SUMIFS(FlatRepair!$Z$2:$Z$10000,FlatRepair!$A$2:$A$10000,D80,FlatRepair!$Y$2:$Y$10000,AE80)*AG80,0) -> 0 | AS80: 0 | AT80: 12.88528688 | AU80: 0 | AV80: 0 | AW80: 0 | AX80: 0 | AY80: 0 | AZ80: 12.88528688 | BA80: 0 | BB80: =IF($AF80=3,IF($AF$2=2,(R80/SUMIF(Refurb_Poss_Tbl[Refurbishment Possible],I80,Refurb_Poss_Tbl[%]))*AG80,IF($AF$2=3,(R80*AG80)-AV80,R80*AG80)),0) -> 0 | BC80: =IF(AF80=3,IF($AF$2=2,(S80/SUMIF(Refurb_Poss_Tbl[Refurbishment Possible],I80,Refurb_Poss_Tbl[%]))*AG80,IF($AF$2=3,(S80*AG80)-AX80,S80*AG80)),0) -> 0 | BD80: =IF($AF80=3,IF($AF$2=2,(T80/SUMIF(Refurb_Poss_Tbl[Refurbishment Possible],I80,Refurb_Poss_Tbl[%]))*AG80,T80*$AG80),0) -> 0 | BE80: =IF($AF80=3,IF($AF$2=2,(Q80/SUMIF(Refurb_Poss_Tbl[Refurbishment Possible],I80,Refurb_Poss_Tbl[%]))*AG80,Q80*$AG80),0) -> 0 | BF80: =IF($AF80=3,IF($AF$2=2,(U80/SUMIF(Refurb_Poss_Tbl[Refurbishment Possible],I80,Refurb_Poss_Tbl[%]))*AG80,U80*$AG80),0) -> 0 | BG80: =IF($AF80=3,IF($AF$2=2,(V80/SUMIF(Refurb_Poss_Tbl[Refurbishment Possible],I80,Refurb_Poss_Tbl[%]))*AG80,IF($AF$2=3,(V80*AG80)-AW80,V80*AG80)),0) -> 0 | BH80: =IF($AF80=3,IF($AF$2=2,(W80/SUMIF(Refurb_Poss_Tbl[Refurbishment Possible],I80,Refurb_Poss_Tbl[%]))*AG80,W80*$AG80),0) -> 0
A81: BridEA03 | B81: Footbridge | C81: Bridge - Pedestrian | D81: BridEA0333 | E81: Desk | F81: Bridges | G81: 60 | H81: 20 | I81: Moderate Refurbishment | J81: 10 | K81: New Build | L81: 113 | M81: 123 | N81: 100 | O81: 3 | P81: 883.5084 | Q81: 883.5084 | R81: 1.074176355 | S81: 4.902497072 | T81: 0.1294492521 | U81: 5.512114984 | V81: 0 | W81: 0.1206399085 | X81: 895.2472776 | Y81: 0.05490755123 | Z81: 0 | AA81: 223.8118194 | AB81: 2.292158261 | AC81: 0.06472462604 | AD81: 2.451248536 | AE81: 79 | AF81: 0 | AG81: =VLOOKUP(AE81,ValidationLists!$M$1:$N$102,2,FALSE) -> 0.1421721837 | AH81: 0 | AI81: 0 | AJ81: 0 | AK81: 0 | AL81: 0 | AM81: 0 | AN81: 0 | AO81: 0 | AP81: 0.007806326461 | AQ81: =IF(OR(AF81=3,AF81=2,AF81=0),SUMIFS(FlatMaint!$Z$2:$Z$10000,FlatMaint!$A$2:$A$10000,D81,FlatMaint!$Y$2:$Y$10000,AE81)*AG81,0) -> 12.56320526 | AR81: =IF(OR(AF81=3,AF81=2,AF81=0),SUMIFS(FlatRepair!$Z$2:$Z$10000,FlatRepair!$A$2:$A$10000,D81,FlatRepair!$Y$2:$Y$10000,AE81)*AG81,0) -> 0 | AS81: 0 | AT81: 12.57101159 | AU81: 0 | AV81: 0 | AW81: 0 | AX81: 0 | AY81: 0 | AZ81: 12.57101159 | BA81: 0 | BB81: =IF($AF81=3,IF($AF$2=2,(R81/SUMIF(Refurb_Poss_Tbl[Refurbishment Possible],I81,Refurb_Poss_Tbl[%]))*AG81,IF($AF$2=3,(R81*AG81)-AV81,R81*AG81)),0) -> 0 | BC81: =IF(AF81=3,IF($AF$2=2,(S81/SUMIF(Refurb_Poss_Tbl[Refurbishment Possible],I81,Refurb_Poss_Tbl[%]))*AG81,IF($AF$2=3,(S81*AG81)-AX81,S81*AG81)),0) -> 0 | BD81: =IF($AF81=3,IF($AF$2=2,(T81/SUMIF(Refurb_Poss_Tbl[Refurbishment Possible],I81,Refurb_Poss_Tbl[%]))*AG81,T81*$AG81),0) -> 0 | BE81: =IF($AF81=3,IF($AF$2=2,(Q81/SUMIF(Refurb_Poss_Tbl[Refurbishment Possible],I81,Refurb_Poss_Tbl[%]))*AG81,Q81*$AG81),0) -> 0 | BF81: =IF($AF81=3,IF($AF$2=2,(U81/SUMIF(Refurb_Poss_Tbl[Refurbishment Possible],I81,Refurb_Poss_Tbl[%]))*AG81,U81*$AG81),0) -> 0 | BG81: =IF($AF81=3,IF($AF$2=2,(V81/SUMIF(Refurb_Poss_Tbl[Refurbishment Possible],I81,Refurb_Poss_Tbl[%]))*AG81,IF($AF$2=3,(V81*AG81)-AW81,V81*AG81)),0) -> 0 | BH81: =IF($AF81=3,IF($AF$2=2,(W81/SUMIF(Refurb_Poss_Tbl[Refurbishment Possible],I81,Refurb_Poss_Tbl[%]))*AG81,W81*$AG81),0) -> 0
A82: BridEA03 | B82: Footbridge | C82: Bridge - Pedestrian | D82: BridEA0333 | E82: Desk | F82: Bridges | G82: 60 | H82: 20 | I82: Moderate Refurbishment | J82: 10 | K82: New Build | L82: 113 | M82: 123 | N82: 100 | O82: 3 | P82: 883.5084 | Q82: 883.5084 | R82: 1.074176355 | S82: 4.902497072 | T82: 0.1294492521 | U82: 5.512114984 | V82: 0 | W82: 0.1206399085 | X82: 895.2472776 | Y82: 0.05490755123 | Z82: 0 | AA82: 223.8118194 | AB82: 2.292158261 | AC82: 0.06472462604 | AD82: 2.451248536 | AE82: 80 | AF82: 2 | AG82: =VLOOKUP(AE82,ValidationLists!$M$1:$N$102,2,FALSE) -> 0.1387045695 | AH82: 0 | AI82: 0 | AJ82: 0 | AK82: 0 | AL82: 0 | AM82: 0 | AN82: 0 | AO82: 0 | AP82: 0.007615928254 | AQ82: =IF(OR(AF82=3,AF82=2,AF82=0),SUMIFS(FlatMaint!$Z$2:$Z$10000,FlatMaint!$A$2:$A$10000,D82,FlatMaint!$Y$2:$Y$10000,AE82)*AG82,0) -> 12.25678562 | AR82: =IF(OR(AF82=3,AF82=2,AF82=0),SUMIFS(FlatRepair!$Z$2:$Z$10000,FlatRepair!$A$2:$A$10000,D82,FlatRepair!$Y$2:$Y$10000,AE82)*AG82,0) -> 0 | AS82: 0 | AT82: 12.26440155 | AU82: 31.04372205 | AV82: 0 | AW82: 0 | AX82: 0 | AY82: 0 | AZ82: 43.3081236 | BA82: 0 | BB82: =IF($AF82=3,IF($AF$2=2,(R82/SUMIF(Refurb_Poss_Tbl[Refurbishment Possible],I82,Refurb_Poss_Tbl[%]))*AG82,IF($AF$2=3,(R82*AG82)-AV82,R82*AG82)),0) -> 0 | BC82: =IF(AF82=3,IF($AF$2=2,(S82/SUMIF(Refurb_Poss_Tbl[Refurbishment Possible],I82,Refurb_Poss_Tbl[%]))*AG82,IF($AF$2=3,(S82*AG82)-AX82,S82*AG82)),0) -> 0 | BD82: =IF($AF82=3,IF($AF$2=2,(T82/SUMIF(Refurb_Poss_Tbl[Refurbishment Possible],I82,Refurb_Poss_Tbl[%]))*AG82,T82*$AG82),0) -> 0 | BE82: =IF($AF82=3,IF($AF$2=2,(Q82/SUMIF(Refurb_Poss_Tbl[Refurbishment Possible],I82,Refurb_Poss_Tbl[%]))*AG82,Q82*$AG82),0) -> 0 | BF82: =IF($AF82=3,IF($AF$2=2,(U82/SUMIF(Refurb_Poss_Tbl[Refurbishment Possible],I82,Refurb_Poss_Tbl[%]))*AG82,U82*$AG82),0) -> 0 | BG82: =IF($AF82=3,IF($AF$2=2,(V82/SUMIF(Refurb_Poss_Tbl[Refurbishment Possible],I82,Refurb_Poss_Tbl[%]))*AG82,IF($AF$2=3,(V82*AG82)-AW82,V82*AG82)),0) -> 0 | BH82: =IF($AF82=3,IF($AF$2=2,(W82/SUMIF(Refurb_Poss_Tbl[Refurbishment Possible],I82,Refurb_Poss_Tbl[%]))*AG82,W82*$AG82),0) -> 0
A83: BridEA03 | B83: Footbridge | C83: Bridge - Pedestrian | D83: BridEA0333 | E83: Desk | F83: Bridges | G83: 60 | H83: 20 | I83: Moderate Refurbishment | J83: 10 | K83: New Build | L83: 113 | M83: 123 | N83: 100 | O83: 3 | P83: 883.5084 | Q83: 883.5084 | R83: 1.074176355 | S83: 4.902497072 | T83: 0.1294492521 | U83: 5.512114984 | V83: 0 | W83: 0.1206399085 | X83: 895.2472776 | Y83: 0.05490755123 | Z83: 0 | AA83: 223.8118194 | AB83: 2.292158261 | AC83: 0.06472462604 | AD83: 2.451248536 | AE83: 81 | AF83: 0 | AG83: =VLOOKUP(AE83,ValidationLists!$M$1:$N$102,2,FALSE) -> 0.1353215312 | AH83: 0 | AI83: 0 | AJ83: 0 | AK83: 0 | AL83: 0 | AM83: 0 | AN83: 0 | AO83: 0 | AP83: 0.007430173907 | AQ83: =IF(OR(AF83=3,AF83=2,AF83=0),SUMIFS(FlatMaint!$Z$2:$Z$10000,FlatMaint!$A$2:$A$10000,D83,FlatMaint!$Y$2:$Y$10000,AE83)*AG83,0) -> 11.95783963 | AR83: =IF(OR(AF83=3,AF83=2,AF83=0),SUMIFS(FlatRepair!$Z$2:$Z$10000,FlatRepair!$A$2:$A$10000,D83,FlatRepair!$Y$2:$Y$10000,AE83)*AG83,0) -> 0 | AS83: 0 | AT83: 11.96526981 | AU83: 0 | AV83: 0 | AW83: 0 | AX83: 0 | AY83: 0 | AZ83: 11.96526981 | BA83: 0 | BB83: =IF($AF83=3,IF($AF$2=2,(R83/SUMIF(Refurb_Poss_Tbl[Refurbishment Possible],I83,Refurb_Poss_Tbl[%]))*AG83,IF($AF$2=3,(R83*AG83)-AV83,R83*AG83)),0) -> 0 | BC83: =IF(AF83=3,IF($AF$2=2,(S83/SUMIF(Refurb_Poss_Tbl[Refurbishment Possible],I83,Refurb_Poss_Tbl[%]))*AG83,IF($AF$2=3,(S83*AG83)-AX83,S83*AG83)),0) -> 0 | BD83: =IF($AF83=3,IF($AF$2=2,(T83/SUMIF(Refurb_Poss_Tbl[Refurbishment Possible],I83,Refurb_Poss_Tbl[%]))*AG83,T83*$AG83),0) -> 0 | BE83: =IF($AF83=3,IF($AF$2=2,(Q83/SUMIF(Refurb_Poss_Tbl[Refurbishment Possible],I83,Refurb_Poss_Tbl[%]))*AG83,Q83*$AG83),0) -> 0 | BF83: =IF($AF83=3,IF($AF$2=2,(U83/SUMIF(Refurb_Poss_Tbl[Refurbishment Possible],I83,Refurb_Poss_Tbl[%]))*AG83,U83*$AG83),0) -> 0 | BG83: =IF($AF83=3,IF($AF$2=2,(V83/SUMIF(Refurb_Poss_Tbl[Refurbishment Possible],I83,Refurb_Poss_Tbl[%]))*AG83,IF($AF$2=3,(V83*AG83)-AW83,V83*AG83)),0) -> 0 | BH83: =IF($AF83=3,IF($AF$2=2,(W83/SUMIF(Refurb_Poss_Tbl[Refurbishment Possible],I83,Refurb_Poss_Tbl[%]))*AG83,W83*$AG83),0) -> 0
A84: BridEA03 | B84: Footbridge | C84: Bridge - Pedestrian | D84: BridEA0333 | E84: Desk | F84: Bridges | G84: 60 | H84: 20 | I84: Moderate Refurbishment | J84: 10 | K84: New Build | L84: 113 | M84: 123 | N84: 100 | O84: 3 | P84: 883.5084 | Q84: 883.5084 | R84: 1.074176355 | S84: 4.902497072 | T84: 0.1294492521 | U84: 5.512114984 | V84: 0 | W84: 0.1206399085 | X84: 895.2472776 | Y84: 0.05490755123 | Z84: 0 | AA84: 223.8118194 | AB84: 2.292158261 | AC84: 0.06472462604 | AD84: 2.451248536 | AE84: 82 | AF84: 0 | AG84: =VLOOKUP(AE84,ValidationLists!$M$1:$N$102,2,FALSE) -> 0.132021006 | AH84: 0 | AI84: 0 | AJ84: 0 | AK84: 0 | AL84: 0 | AM84: 0 | AN84: 0 | AO84: 0 | AP84: 0.007248950153 | AQ84: =IF(OR(AF84=3,AF84=2,AF84=0),SUMIFS(FlatMaint!$Z$2:$Z$10000,FlatMaint!$A$2:$A$10000,D84,FlatMaint!$Y$2:$Y$10000,AE84)*AG84,0) -> 11.66618501 | AR84: =IF(OR(AF84=3,AF84=2,AF84=0),SUMIFS(FlatRepair!$Z$2:$Z$10000,FlatRepair!$A$2:$A$10000,D84,FlatRepair!$Y$2:$Y$10000,AE84)*AG84,0) -> 0 | AS84: 0 | AT84: 11.67343396 | AU84: 0 | AV84: 0 | AW84: 0 | AX84: 0 | AY84: 0 | AZ84: 11.67343396 | BA84: 0 | BB84: =IF($AF84=3,IF($AF$2=2,(R84/SUMIF(Refurb_Poss_Tbl[Refurbishment Possible],I84,Refurb_Poss_Tbl[%]))*AG84,IF($AF$2=3,(R84*AG84)-AV84,R84*AG84)),0) -> 0 | BC84: =IF(AF84=3,IF($AF$2=2,(S84/SUMIF(Refurb_Poss_Tbl[Refurbishment Possible],I84,Refurb_Poss_Tbl[%]))*AG84,IF($AF$2=3,(S84*AG84)-AX84,S84*AG84)),0) -> 0 | BD84: =IF($AF84=3,IF($AF$2=2,(T84/SUMIF(Refurb_Poss_Tbl[Refurbishment Possible],I84,Refurb_Poss_Tbl[%]))*AG84,T84*$AG84),0) -> 0 | BE84: =IF($AF84=3,IF($AF$2=2,(Q84/SUMIF(Refurb_Poss_Tbl[Refurbishment Possible],I84,Refurb_Poss_Tbl[%]))*AG84,Q84*$AG84),0) -> 0 | BF84: =IF($AF84=3,IF($AF$2=2,(U84/SUMIF(Refurb_Poss_Tbl[Refurbishment Possible],I84,Refurb_Poss_Tbl[%]))*AG84,U84*$AG84),0) -> 0 | BG84: =IF($AF84=3,IF($AF$2=2,(V84/SUMIF(Refurb_Poss_Tbl[Refurbishment Possible],I84,Refurb_Poss_Tbl[%]))*AG84,IF($AF$2=3,(V84*AG84)-AW84,V84*AG84)),0) -> 0 | BH84: =IF($AF84=3,IF($AF$2=2,(W84/SUMIF(Refurb_Poss_Tbl[Refurbishment Possible],I84,Refurb_Poss_Tbl[%]))*AG84,W84*$AG84),0) -> 0
A85: BridEA03 | B85: Footbridge | C85: Bridge - Pedestrian | D85: BridEA0333 | E85: Desk | F85: Bridges | G85: 60 | H85: 20 | I85: Moderate Refurbishment | J85: 10 | K85: New Build | L85: 113 | M85: 123 | N85: 100 | O85: 3 | P85: 883.5084 | Q85: 883.5084 | R85: 1.074176355 | S85: 4.902497072 | T85: 0.1294492521 | U85: 5.512114984 | V85: 0 | W85: 0.1206399085 | X85: 895.2472776 | Y85: 0.05490755123 | Z85: 0 | AA85: 223.8118194 | AB85: 2.292158261 | AC85: 0.06472462604 | AD85: 2.451248536 | AE85: 83 | AF85: 0 | AG85: =VLOOKUP(AE85,ValidationLists!$M$1:$N$102,2,FALSE) -> 0.1288009815 | AH85: 0 | AI85: 0 | AJ85: 0 | AK85: 0 | AL85: 0 | AM85: 0 | AN85: 0 | AO85: 0 | AP85: 0.007072146491 | AQ85: =IF(OR(AF85=3,AF85=2,AF85=0),SUMIFS(FlatMaint!$Z$2:$Z$10000,FlatMaint!$A$2:$A$10000,D85,FlatMaint!$Y$2:$Y$10000,AE85)*AG85,0) -> 11.38164391 | AR85: =IF(OR(AF85=3,AF85=2,AF85=0),SUMIFS(FlatRepair!$Z$2:$Z$10000,FlatRepair!$A$2:$A$10000,D85,FlatRepair!$Y$2:$Y$10000,AE85)*AG85,0) -> 0 | AS85: 0 | AT85: 11.38871606 | AU85: 0 | AV85: 0 | AW85: 0 | AX85: 0 | AY85: 0 | AZ85: 11.38871606 | BA85: 0 | BB85: =IF($AF85=3,IF($AF$2=2,(R85/SUMIF(Refurb_Poss_Tbl[Refurbishment Possible],I85,Refurb_Poss_Tbl[%]))*AG85,IF($AF$2=3,(R85*AG85)-AV85,R85*AG85)),0) -> 0 | BC85: =IF(AF85=3,IF($AF$2=2,(S85/SUMIF(Refurb_Poss_Tbl[Refurbishment Possible],I85,Refurb_Poss_Tbl[%]))*AG85,IF($AF$2=3,(S85*AG85)-AX85,S85*AG85)),0) -> 0 | BD85: =IF($AF85=3,IF($AF$2=2,(T85/SUMIF(Refurb_Poss_Tbl[Refurbishment Possible],I85,Refurb_Poss_Tbl[%]))*AG85,T85*$AG85),0) -> 0 | BE85: =IF($AF85=3,IF($AF$2=2,(Q85/SUMIF(Refurb_Poss_Tbl[Refurbishment Possible],I85,Refurb_Poss_Tbl[%]))*AG85,Q85*$AG85),0) -> 0 | BF85: =IF($AF85=3,IF($AF$2=2,(U85/SUMIF(Refurb_Poss_Tbl[Refurbishment Possible],I85,Refurb_Poss_Tbl[%]))*AG85,U85*$AG85),0) -> 0 | BG85: =IF($AF85=3,IF($AF$2=2,(V85/SUMIF(Refurb_Poss_Tbl[Refurbishment Possible],I85,Refurb_Poss_Tbl[%]))*AG85,IF($AF$2=3,(V85*AG85)-AW85,V85*AG85)),0) -> 0 | BH85: =IF($AF85=3,IF($AF$2=2,(W85/SUMIF(Refurb_Poss_Tbl[Refurbishment Possible],I85,Refurb_Poss_Tbl[%]))*AG85,W85*$AG85),0) -> 0
A86: BridEA03 | B86: Footbridge | C86: Bridge - Pedestrian | D86: BridEA0333 | E86: Desk | F86: Bridges | G86: 60 | H86: 20 | I86: Moderate Refurbishment | J86: 10 | K86: New Build | L86: 113 | M86: 123 | N86: 100 | O86: 3 | P86: 883.5084 | Q86: 883.5084 | R86: 1.074176355 | S86: 4.902497072 | T86: 0.1294492521 | U86: 5.512114984 | V86: 0 | W86: 0.1206399085 | X86: 895.2472776 | Y86: 0.05490755123 | Z86: 0 | AA86: 223.8118194 | AB86: 2.292158261 | AC86: 0.06472462604 | AD86: 2.451248536 | AE86: 84 | AF86: 0 | AG86: =VLOOKUP(AE86,ValidationLists!$M$1:$N$102,2,FALSE) -> 0.1256594941 | AH86: 0 | AI86: 0 | AJ86: 0 | AK86: 0 | AL86: 0 | AM86: 0 | AN86: 0 | AO86: 0 | AP86: 0.006899655113 | AQ86: =IF(OR(AF86=3,AF86=2,AF86=0),SUMIFS(FlatMaint!$Z$2:$Z$10000,FlatMaint!$A$2:$A$10000,D86,FlatMaint!$Y$2:$Y$10000,AE86)*AG86,0) -> 11.10404284 | AR86: =IF(OR(AF86=3,AF86=2,AF86=0),SUMIFS(FlatRepair!$Z$2:$Z$10000,FlatRepair!$A$2:$A$10000,D86,FlatRepair!$Y$2:$Y$10000,AE86)*AG86,0) -> 0 | AS86: 0 | AT86: 11.11094249 | AU86: 0 | AV86: 0 | AW86: 0 | AX86: 0 | AY86: 0 | AZ86: 11.11094249 | BA86: 0 | BB86: =IF($AF86=3,IF($AF$2=2,(R86/SUMIF(Refurb_Poss_Tbl[Refurbishment Possible],I86,Refurb_Poss_Tbl[%]))*AG86,IF($AF$2=3,(R86*AG86)-AV86,R86*AG86)),0) -> 0 | BC86: =IF(AF86=3,IF($AF$2=2,(S86/SUMIF(Refurb_Poss_Tbl[Refurbishment Possible],I86,Refurb_Poss_Tbl[%]))*AG86,IF($AF$2=3,(S86*AG86)-AX86,S86*AG86)),0) -> 0 | BD86: =IF($AF86=3,IF($AF$2=2,(T86/SUMIF(Refurb_Poss_Tbl[Refurbishment Possible],I86,Refurb_Poss_Tbl[%]))*AG86,T86*$AG86),0) -> 0 | BE86: =IF($AF86=3,IF($AF$2=2,(Q86/SUMIF(Refurb_Poss_Tbl[Refurbishment Possible],I86,Refurb_Poss_Tbl[%]))*AG86,Q86*$AG86),0) -> 0 | BF86: =IF($AF86=3,IF($AF$2=2,(U86/SUMIF(Refurb_Poss_Tbl[Refurbishment Possible],I86,Refurb_Poss_Tbl[%]))*AG86,U86*$AG86),0) -> 0 | BG86: =IF($AF86=3,IF($AF$2=2,(V86/SUMIF(Refurb_Poss_Tbl[Refurbishment Possible],I86,Refurb_Poss_Tbl[%]))*AG86,IF($AF$2=3,(V86*AG86)-AW86,V86*AG86)),0) -> 0 | BH86: =IF($AF86=3,IF($AF$2=2,(W86/SUMIF(Refurb_Poss_Tbl[Refurbishment Possible],I86,Refurb_Poss_Tbl[%]))*AG86,W86*$AG86),0) -> 0
A87: BridEA03 | B87: Footbridge | C87: Bridge - Pedestrian | D87: BridEA0333 | E87: Desk | F87: Bridges | G87: 60 | H87: 20 | I87: Moderate Refurbishment | J87: 10 | K87: New Build | L87: 113 | M87: 123 | N87: 100 | O87: 3 | P87: 883.5084 | Q87: 883.5084 | R87: 1.074176355 | S87: 4.902497072 | T87: 0.1294492521 | U87: 5.512114984 | V87: 0 | W87: 0.1206399085 | X87: 895.2472776 | Y87: 0.05490755123 | Z87: 0 | AA87: 223.8118194 | AB87: 2.292158261 | AC87: 0.06472462604 | AD87: 2.451248536 | AE87: 85 | AF87: 0 | AG87: =VLOOKUP(AE87,ValidationLists!$M$1:$N$102,2,FALSE) -> 0.1225946284 | AH87: 0 | AI87: 0 | AJ87: 0 | AK87: 0 | AL87: 0 | AM87: 0 | AN87: 0 | AO87: 0 | AP87: 0.006731370842 | AQ87: =IF(OR(AF87=3,AF87=2,AF87=0),SUMIFS(FlatMaint!$Z$2:$Z$10000,FlatMaint!$A$2:$A$10000,D87,FlatMaint!$Y$2:$Y$10000,AE87)*AG87,0) -> 10.83321253 | AR87: =IF(OR(AF87=3,AF87=2,AF87=0),SUMIFS(FlatRepair!$Z$2:$Z$10000,FlatRepair!$A$2:$A$10000,D87,FlatRepair!$Y$2:$Y$10000,AE87)*AG87,0) -> 0 | AS87: 0 | AT87: 10.8399439 | AU87: 0 | AV87: 0 | AW87: 0 | AX87: 0 | AY87: 0 | AZ87: 10.8399439 | BA87: 0 | BB87: =IF($AF87=3,IF($AF$2=2,(R87/SUMIF(Refurb_Poss_Tbl[Refurbishment Possible],I87,Refurb_Poss_Tbl[%]))*AG87,IF($AF$2=3,(R87*AG87)-AV87,R87*AG87)),0) -> 0 | BC87: =IF(AF87=3,IF($AF$2=2,(S87/SUMIF(Refurb_Poss_Tbl[Refurbishment Possible],I87,Refurb_Poss_Tbl[%]))*AG87,IF($AF$2=3,(S87*AG87)-AX87,S87*AG87)),0) -> 0 | BD87: =IF($AF87=3,IF($AF$2=2,(T87/SUMIF(Refurb_Poss_Tbl[Refurbishment Possible],I87,Refurb_Poss_Tbl[%]))*AG87,T87*$AG87),0) -> 0 | BE87: =IF($AF87=3,IF($AF$2=2,(Q87/SUMIF(Refurb_Poss_Tbl[Refurbishment Possible],I87,Refurb_Poss_Tbl[%]))*AG87,Q87*$AG87),0) -> 0 | BF87: =IF($AF87=3,IF($AF$2=2,(U87/SUMIF(Refurb_Poss_Tbl[Refurbishment Possible],I87,Refurb_Poss_Tbl[%]))*AG87,U87*$AG87),0) -> 0 | BG87: =IF($AF87=3,IF($AF$2=2,(V87/SUMIF(Refurb_Poss_Tbl[Refurbishment Possible],I87,Refurb_Poss_Tbl[%]))*AG87,IF($AF$2=3,(V87*AG87)-AW87,V87*AG87)),0) -> 0 | BH87: =IF($AF87=3,IF($AF$2=2,(W87/SUMIF(Refurb_Poss_Tbl[Refurbishment Possible],I87,Refurb_Poss_Tbl[%]))*AG87,W87*$AG87),0) -> 0
A88: BridEA03 | B88: Footbridge | C88: Bridge - Pedestrian | D88: BridEA0333 | E88: Desk | F88: Bridges | G88: 60 | H88: 20 | I88: Moderate Refurbishment | J88: 10 | K88: New Build | L88: 113 | M88: 123 | N88: 100 | O88: 3 | P88: 883.5084 | Q88: 883.5084 | R88: 1.074176355 | S88: 4.902497072 | T88: 0.1294492521 | U88: 5.512114984 | V88: 0 | W88: 0.1206399085 | X88: 895.2472776 | Y88: 0.05490755123 | Z88: 0 | AA88: 223.8118194 | AB88: 2.292158261 | AC88: 0.06472462604 | AD88: 2.451248536 | AE88: 86 | AF88: 0 | AG88: =VLOOKUP(AE88,ValidationLists!$M$1:$N$102,2,FALSE) -> 0.1196045155 | AH88: 0 | AI88: 0 | AJ88: 0 | AK88: 0 | AL88: 0 | AM88: 0 | AN88: 0 | AO88: 0 | AP88: 0.006567191065 | AQ88: =IF(OR(AF88=3,AF88=2,AF88=0),SUMIFS(FlatMaint!$Z$2:$Z$10000,FlatMaint!$A$2:$A$10000,D88,FlatMaint!$Y$2:$Y$10000,AE88)*AG88,0) -> 10.56898783 | AR88: =IF(OR(AF88=3,AF88=2,AF88=0),SUMIFS(FlatRepair!$Z$2:$Z$10000,FlatRepair!$A$2:$A$10000,D88,FlatRepair!$Y$2:$Y$10000,AE88)*AG88,0) -> 0 | AS88: 0 | AT88: 10.57555502 | AU88: 0 | AV88: 0 | AW88: 0 | AX88: 0 | AY88: 0 | AZ88: 10.57555502 | BA88: 0 | BB88: =IF($AF88=3,IF($AF$2=2,(R88/SUMIF(Refurb_Poss_Tbl[Refurbishment Possible],I88,Refurb_Poss_Tbl[%]))*AG88,IF($AF$2=3,(R88*AG88)-AV88,R88*AG88)),0) -> 0 | BC88: =IF(AF88=3,IF($AF$2=2,(S88/SUMIF(Refurb_Poss_Tbl[Refurbishment Possible],I88,Refurb_Poss_Tbl[%]))*AG88,IF($AF$2=3,(S88*AG88)-AX88,S88*AG88)),0) -> 0 | BD88: =IF($AF88=3,IF($AF$2=2,(T88/SUMIF(Refurb_Poss_Tbl[Refurbishment Possible],I88,Refurb_Poss_Tbl[%]))*AG88,T88*$AG88),0) -> 0 | BE88: =IF($AF88=3,IF($AF$2=2,(Q88/SUMIF(Refurb_Poss_Tbl[Refurbishment Possible],I88,Refurb_Poss_Tbl[%]))*AG88,Q88*$AG88),0) -> 0 | BF88: =IF($AF88=3,IF($AF$2=2,(U88/SUMIF(Refurb_Poss_Tbl[Refurbishment Possible],I88,Refurb_Poss_Tbl[%]))*AG88,U88*$AG88),0) -> 0 | BG88: =IF($AF88=3,IF($AF$2=2,(V88/SUMIF(Refurb_Poss_Tbl[Refurbishment Possible],I88,Refurb_Poss_Tbl[%]))*AG88,IF($AF$2=3,(V88*AG88)-AW88,V88*AG88)),0) -> 0 | BH88: =IF($AF88=3,IF($AF$2=2,(W88/SUMIF(Refurb_Poss_Tbl[Refurbishment Possible],I88,Refurb_Poss_Tbl[%]))*AG88,W88*$AG88),0) -> 0
A89: BridEA03 | B89: Footbridge | C89: Bridge - Pedestrian | D89: BridEA0333 | E89: Desk | F89: Bridges | G89: 60 | H89: 20 | I89: Moderate Refurbishment | J89: 10 | K89: New Build | L89: 113 | M89: 123 | N89: 100 | O89: 3 | P89: 883.5084 | Q89: 883.5084 | R89: 1.074176355 | S89: 4.902497072 | T89: 0.1294492521 | U89: 5.512114984 | V89: 0 | W89: 0.1206399085 | X89: 895.2472776 | Y89: 0.05490755123 | Z89: 0 | AA89: 223.8118194 | AB89: 2.292158261 | AC89: 0.06472462604 | AD89: 2.451248536 | AE89: 87 | AF89: 0 | AG89: =VLOOKUP(AE89,ValidationLists!$M$1:$N$102,2,FALSE) -> 0.1166873322 | AH89: 0 | AI89: 0 | AJ89: 0 | AK89: 0 | AL89: 0 | AM89: 0 | AN89: 0 | AO89: 0 | AP89: 0.006407015673 | AQ89: =IF(OR(AF89=3,AF89=2,AF89=0),SUMIFS(FlatMaint!$Z$2:$Z$10000,FlatMaint!$A$2:$A$10000,D89,FlatMaint!$Y$2:$Y$10000,AE89)*AG89,0) -> 10.31120764 | AR89: =IF(OR(AF89=3,AF89=2,AF89=0),SUMIFS(FlatRepair!$Z$2:$Z$10000,FlatRepair!$A$2:$A$10000,D89,FlatRepair!$Y$2:$Y$10000,AE89)*AG89,0) -> 0 | AS89: 0 | AT89: 10.31761465 | AU89: 0 | AV89: 0 | AW89: 0 | AX89: 0 | AY89: 0 | AZ89: 10.31761465 | BA89: 0 | BB89: =IF($AF89=3,IF($AF$2=2,(R89/SUMIF(Refurb_Poss_Tbl[Refurbishment Possible],I89,Refurb_Poss_Tbl[%]))*AG89,IF($AF$2=3,(R89*AG89)-AV89,R89*AG89)),0) -> 0 | BC89: =IF(AF89=3,IF($AF$2=2,(S89/SUMIF(Refurb_Poss_Tbl[Refurbishment Possible],I89,Refurb_Poss_Tbl[%]))*AG89,IF($AF$2=3,(S89*AG89)-AX89,S89*AG89)),0) -> 0 | BD89: =IF($AF89=3,IF($AF$2=2,(T89/SUMIF(Refurb_Poss_Tbl[Refurbishment Possible],I89,Refurb_Poss_Tbl[%]))*AG89,T89*$AG89),0) -> 0 | BE89: =IF($AF89=3,IF($AF$2=2,(Q89/SUMIF(Refurb_Poss_Tbl[Refurbishment Possible],I89,Refurb_Poss_Tbl[%]))*AG89,Q89*$AG89),0) -> 0 | BF89: =IF($AF89=3,IF($AF$2=2,(U89/SUMIF(Refurb_Poss_Tbl[Refurbishment Possible],I89,Refurb_Poss_Tbl[%]))*AG89,U89*$AG89),0) -> 0 | BG89: =IF($AF89=3,IF($AF$2=2,(V89/SUMIF(Refurb_Poss_Tbl[Refurbishment Possible],I89,Refurb_Poss_Tbl[%]))*AG89,IF($AF$2=3,(V89*AG89)-AW89,V89*AG89)),0) -> 0 | BH89: =IF($AF89=3,IF($AF$2=2,(W89/SUMIF(Refurb_Poss_Tbl[Refurbishment Possible],I89,Refurb_Poss_Tbl[%]))*AG89,W89*$AG89),0) -> 0
A90: BridEA03 | B90: Footbridge | C90: Bridge - Pedestrian | D90: BridEA0333 | E90: Desk | F90: Bridges | G90: 60 | H90: 20 | I90: Moderate Refurbishment | J90: 10 | K90: New Build | L90: 113 | M90: 123 | N90: 100 | O90: 3 | P90: 883.5084 | Q90: 883.5084 | R90: 1.074176355 | S90: 4.902497072 | T90: 0.1294492521 | U90: 5.512114984 | V90: 0 | W90: 0.1206399085 | X90: 895.2472776 | Y90: 0.05490755123 | Z90: 0 | AA90: 223.8118194 | AB90: 2.292158261 | AC90: 0.06472462604 | AD90: 2.451248536 | AE90: 88 | AF90: 0 | AG90: =VLOOKUP(AE90,ValidationLists!$M$1:$N$102,2,FALSE) -> 0.1138412997 | AH90: 0 | AI90: 0 | AJ90: 0 | AK90: 0 | AL90: 0 | AM90: 0 | AN90: 0 | AO90: 0 | AP90: 0.006250746998 | AQ90: =IF(OR(AF90=3,AF90=2,AF90=0),SUMIFS(FlatMaint!$Z$2:$Z$10000,FlatMaint!$A$2:$A$10000,D90,FlatMaint!$Y$2:$Y$10000,AE90)*AG90,0) -> 10.05971477 | AR90: =IF(OR(AF90=3,AF90=2,AF90=0),SUMIFS(FlatRepair!$Z$2:$Z$10000,FlatRepair!$A$2:$A$10000,D90,FlatRepair!$Y$2:$Y$10000,AE90)*AG90,0) -> 0 | AS90: 0 | AT90: 10.06596552 | AU90: 0 | AV90: 0 | AW90: 0 | AX90: 0 | AY90: 0 | AZ90: 10.06596552 | BA90: 0 | BB90: =IF($AF90=3,IF($AF$2=2,(R90/SUMIF(Refurb_Poss_Tbl[Refurbishment Possible],I90,Refurb_Poss_Tbl[%]))*AG90,IF($AF$2=3,(R90*AG90)-AV90,R90*AG90)),0) -> 0 | BC90: =IF(AF90=3,IF($AF$2=2,(S90/SUMIF(Refurb_Poss_Tbl[Refurbishment Possible],I90,Refurb_Poss_Tbl[%]))*AG90,IF($AF$2=3,(S90*AG90)-AX90,S90*AG90)),0) -> 0 | BD90: =IF($AF90=3,IF($AF$2=2,(T90/SUMIF(Refurb_Poss_Tbl[Refurbishment Possible],I90,Refurb_Poss_Tbl[%]))*AG90,T90*$AG90),0) -> 0 | BE90: =IF($AF90=3,IF($AF$2=2,(Q90/SUMIF(Refurb_Poss_Tbl[Refurbishment Possible],I90,Refurb_Poss_Tbl[%]))*AG90,Q90*$AG90),0) -> 0 | BF90: =IF($AF90=3,IF($AF$2=2,(U90/SUMIF(Refurb_Poss_Tbl[Refurbishment Possible],I90,Refurb_Poss_Tbl[%]))*AG90,U90*$AG90),0) -> 0 | BG90: =IF($AF90=3,IF($AF$2=2,(V90/SUMIF(Refurb_Poss_Tbl[Refurbishment Possible],I90,Refurb_Poss_Tbl[%]))*AG90,IF($AF$2=3,(V90*AG90)-AW90,V90*AG90)),0) -> 0 | BH90: =IF($AF90=3,IF($AF$2=2,(W90/SUMIF(Refurb_Poss_Tbl[Refurbishment Possible],I90,Refurb_Poss_Tbl[%]))*AG90,W90*$AG90),0) -> 0
A91: BridEA03 | B91: Footbridge | C91: Bridge - Pedestrian | D91: BridEA0333 | E91: Desk | F91: Bridges | G91: 60 | H91: 20 | I91: Moderate Refurbishment | J91: 10 | K91: New Build | L91: 113 | M91: 123 | N91: 100 | O91: 3 | P91: 883.5084 | Q91: 883.5084 | R91: 1.074176355 | S91: 4.902497072 | T91: 0.1294492521 | U91: 5.512114984 | V91: 0 | W91: 0.1206399085 | X91: 895.2472776 | Y91: 0.05490755123 | Z91: 0 | AA91: 223.8118194 | AB91: 2.292158261 | AC91: 0.06472462604 | AD91: 2.451248536 | AE91: 89 | AF91: 0 | AG91: =VLOOKUP(AE91,ValidationLists!$M$1:$N$102,2,FALSE) -> 0.1110646827 | AH91: 0 | AI91: 0 | AJ91: 0 | AK91: 0 | AL91: 0 | AM91: 0 | AN91: 0 | AO91: 0 | AP91: 0.006098289754 | AQ91: =IF(OR(AF91=3,AF91=2,AF91=0),SUMIFS(FlatMaint!$Z$2:$Z$10000,FlatMaint!$A$2:$A$10000,D91,FlatMaint!$Y$2:$Y$10000,AE91)*AG91,0) -> 9.814355872 | AR91: =IF(OR(AF91=3,AF91=2,AF91=0),SUMIFS(FlatRepair!$Z$2:$Z$10000,FlatRepair!$A$2:$A$10000,D91,FlatRepair!$Y$2:$Y$10000,AE91)*AG91,0) -> 0 | AS91: 0 | AT91: 9.820454162 | AU91: 0 | AV91: 0 | AW91: 0 | AX91: 0 | AY91: 0 | AZ91: 9.820454162 | BA91: 0 | BB91: =IF($AF91=3,IF($AF$2=2,(R91/SUMIF(Refurb_Poss_Tbl[Refurbishment Possible],I91,Refurb_Poss_Tbl[%]))*AG91,IF($AF$2=3,(R91*AG91)-AV91,R91*AG91)),0) -> 0 | BC91: =IF(AF91=3,IF($AF$2=2,(S91/SUMIF(Refurb_Poss_Tbl[Refurbishment Possible],I91,Refurb_Poss_Tbl[%]))*AG91,IF($AF$2=3,(S91*AG91)-AX91,S91*AG91)),0) -> 0 | BD91: =IF($AF91=3,IF($AF$2=2,(T91/SUMIF(Refurb_Poss_Tbl[Refurbishment Possible],I91,Refurb_Poss_Tbl[%]))*AG91,T91*$AG91),0) -> 0 | BE91: =IF($AF91=3,IF($AF$2=2,(Q91/SUMIF(Refurb_Poss_Tbl[Refurbishment Possible],I91,Refurb_Poss_Tbl[%]))*AG91,Q91*$AG91),0) -> 0 | BF91: =IF($AF91=3,IF($AF$2=2,(U91/SUMIF(Refurb_Poss_Tbl[Refurbishment Possible],I91,Refurb_Poss_Tbl[%]))*AG91,U91*$AG91),0) -> 0 | BG91: =IF($AF91=3,IF($AF$2=2,(V91/SUMIF(Refurb_Poss_Tbl[Refurbishment Possible],I91,Refurb_Poss_Tbl[%]))*AG91,IF($AF$2=3,(V91*AG91)-AW91,V91*AG91)),0) -> 0 | BH91: =IF($AF91=3,IF($AF$2=2,(W91/SUMIF(Refurb_Poss_Tbl[Refurbishment Possible],I91,Refurb_Poss_Tbl[%]))*AG91,W91*$AG91),0) -> 0
A92: BridEA03 | B92: Footbridge | C92: Bridge - Pedestrian | D92: BridEA0333 | E92: Desk | F92: Bridges | G92: 60 | H92: 20 | I92: Moderate Refurbishment | J92: 10 | K92: New Build | L92: 113 | M92: 123 | N92: 100 | O92: 3 | P92: 883.5084 | Q92: 883.5084 | R92: 1.074176355 | S92: 4.902497072 | T92: 0.1294492521 | U92: 5.512114984 | V92: 0 | W92: 0.1206399085 | X92: 895.2472776 | Y92: 0.05490755123 | Z92: 0 | AA92: 223.8118194 | AB92: 2.292158261 | AC92: 0.06472462604 | AD92: 2.451248536 | AE92: 90 | AF92: 3 | AG92: =VLOOKUP(AE92,ValidationLists!$M$1:$N$102,2,FALSE) -> 0.108355788 | AH92: 0 | AI92: 0 | AJ92: 0 | AK92: 0 | AL92: 0 | AM92: 0 | AN92: 0 | AO92: 0 | AP92: 0.00594955098 | AQ92: =IF(OR(AF92=3,AF92=2,AF92=0),SUMIFS(FlatMaint!$Z$2:$Z$10000,FlatMaint!$A$2:$A$10000,D92,FlatMaint!$Y$2:$Y$10000,AE92)*AG92,0) -> 9.574981339 | AR92: =IF(OR(AF92=3,AF92=2,AF92=0),SUMIFS(FlatRepair!$Z$2:$Z$10000,FlatRepair!$A$2:$A$10000,D92,FlatRepair!$Y$2:$Y$10000,AE92)*AG92,0) -> 0 | AS92: 0 | AT92: 9.58093089 | AU92: 0 | AV92: 0.2483686146 | AW92: 0.007013287856 | AX92: 0.2656069667 | AY92: 97.0052242 | AZ92: 107.107144 | BA92: 0 | BB92: =IF($AF92=3,IF($AF$2=2,(R92/SUMIF(Refurb_Poss_Tbl[Refurbishment Possible],I92,Refurb_Poss_Tbl[%]))*AG92,IF($AF$2=3,(R92*AG92)-AV92,R92*AG92)),0) -> 0.1163932253 | BC92: =IF(AF92=3,IF($AF$2=2,(S92/SUMIF(Refurb_Poss_Tbl[Refurbishment Possible],I92,Refurb_Poss_Tbl[%]))*AG92,IF($AF$2=3,(S92*AG92)-AX92,S92*AG92)),0) -> 0.5312139333 | BD92: =IF($AF92=3,IF($AF$2=2,(T92/SUMIF(Refurb_Poss_Tbl[Refurbishment Possible],I92,Refurb_Poss_Tbl[%]))*AG92,T92*$AG92),0) -> 0.01402657571 | BE92: =IF($AF92=3,IF($AF$2=2,(Q92/SUMIF(Refurb_Poss_Tbl[Refurbishment Possible],I92,Refurb_Poss_Tbl[%]))*AG92,Q92*$AG92),0) -> 95.73324887 | BF92: =IF($AF92=3,IF($AF$2=2,(U92/SUMIF(Refurb_Poss_Tbl[Refurbishment Possible],I92,Refurb_Poss_Tbl[%]))*AG92,U92*$AG92),0) -> 0.5972695625 | BG92: =IF($AF92=3,IF($AF$2=2,(V92/SUMIF(Refurb_Poss_Tbl[Refurbishment Possible],I92,Refurb_Poss_Tbl[%]))*AG92,IF($AF$2=3,(V92*AG92)-AW92,V92*AG92)),0) -> 0 | BH92: =IF($AF92=3,IF($AF$2=2,(W92/SUMIF(Refurb_Poss_Tbl[Refurbishment Possible],I92,Refurb_Poss_Tbl[%]))*AG92,W92*$AG92),0) -> 0.01307203235
A93: BridEA03 | B93: Footbridge | C93: Bridge - Pedestrian | D93: BridEA0333 | E93: Desk | F93: Bridges | G93: 60 | H93: 20 | I93: Moderate Refurbishment | J93: 10 | K93: New Build | L93: 113 | M93: 123 | N93: 100 | O93: 3 | P93: 883.5084 | Q93: 883.5084 | R93: 1.074176355 | S93: 4.902497072 | T93: 0.1294492521 | U93: 5.512114984 | V93: 0 | W93: 0.1206399085 | X93: 895.2472776 | Y93: 0.05490755123 | Z93: 0 | AA93: 223.8118194 | AB93: 2.292158261 | AC93: 0.06472462604 | AD93: 2.451248536 | AE93: 91 | AF93: 0 | AG93: =VLOOKUP(AE93,ValidationLists!$M$1:$N$102,2,FALSE) -> 0.1057129639 | AH93: 0 | AI93: 0 | AJ93: 0 | AK93: 0 | AL93: 0 | AM93: 0 | AN93: 0 | AO93: 0 | AP93: 0.00580443998 | AQ93: =IF(OR(AF93=3,AF93=2,AF93=0),SUMIFS(FlatMaint!$Z$2:$Z$10000,FlatMaint!$A$2:$A$10000,D93,FlatMaint!$Y$2:$Y$10000,AE93)*AG93,0) -> 9.341445209 | AR93: =IF(OR(AF93=3,AF93=2,AF93=0),SUMIFS(FlatRepair!$Z$2:$Z$10000,FlatRepair!$A$2:$A$10000,D93,FlatRepair!$Y$2:$Y$10000,AE93)*AG93,0) -> 0 | AS93: 0 | AT93: 9.347249649 | AU93: 0 | AV93: 0 | AW93: 0 | AX93: 0 | AY93: 0 | AZ93: 9.347249649 | BA93: 0 | BB93: =IF($AF93=3,IF($AF$2=2,(R93/SUMIF(Refurb_Poss_Tbl[Refurbishment Possible],I93,Refurb_Poss_Tbl[%]))*AG93,IF($AF$2=3,(R93*AG93)-AV93,R93*AG93)),0) -> 0 | BC93: =IF(AF93=3,IF($AF$2=2,(S93/SUMIF(Refurb_Poss_Tbl[Refurbishment Possible],I93,Refurb_Poss_Tbl[%]))*AG93,IF($AF$2=3,(S93*AG93)-AX93,S93*AG93)),0) -> 0 | BD93: =IF($AF93=3,IF($AF$2=2,(T93/SUMIF(Refurb_Poss_Tbl[Refurbishment Possible],I93,Refurb_Poss_Tbl[%]))*AG93,T93*$AG93),0) -> 0 | BE93: =IF($AF93=3,IF($AF$2=2,(Q93/SUMIF(Refurb_Poss_Tbl[Refurbishment Possible],I93,Refurb_Poss_Tbl[%]))*AG93,Q93*$AG93),0) -> 0 | BF93: =IF($AF93=3,IF($AF$2=2,(U93/SUMIF(Refurb_Poss_Tbl[Refurbishment Possible],I93,Refurb_Poss_Tbl[%]))*AG93,U93*$AG93),0) -> 0 | BG93: =IF($AF93=3,IF($AF$2=2,(V93/SUMIF(Refurb_Poss_Tbl[Refurbishment Possible],I93,Refurb_Poss_Tbl[%]))*AG93,IF($AF$2=3,(V93*AG93)-AW93,V93*AG93)),0) -> 0 | BH93: =IF($AF93=3,IF($AF$2=2,(W93/SUMIF(Refurb_Poss_Tbl[Refurbishment Possible],I93,Refurb_Poss_Tbl[%]))*AG93,W93*$AG93),0) -> 0
A94: BridEA03 | B94: Footbridge | C94: Bridge - Pedestrian | D94: BridEA0333 | E94: Desk | F94: Bridges | G94: 60 | H94: 20 | I94: Moderate Refurbishment | J94: 10 | K94: New Build | L94: 113 | M94: 123 | N94: 100 | O94: 3 | P94: 883.5084 | Q94: 883.5084 | R94: 1.074176355 | S94: 4.902497072 | T94: 0.1294492521 | U94: 5.512114984 | V94: 0 | W94: 0.1206399085 | X94: 895.2472776 | Y94: 0.05490755123 | Z94: 0 | AA94: 223.8118194 | AB94: 2.292158261 | AC94: 0.06472462604 | AD94: 2.451248536 | AE94: 92 | AF94: 0 | AG94: =VLOOKUP(AE94,ValidationLists!$M$1:$N$102,2,FALSE) -> 0.1031345989 | AH94: 0 | AI94: 0 | AJ94: 0 | AK94: 0 | AL94: 0 | AM94: 0 | AN94: 0 | AO94: 0 | AP94: 0.005662868274 | AQ94: =IF(OR(AF94=3,AF94=2,AF94=0),SUMIFS(FlatMaint!$Z$2:$Z$10000,FlatMaint!$A$2:$A$10000,D94,FlatMaint!$Y$2:$Y$10000,AE94)*AG94,0) -> 9.113605082 | AR94: =IF(OR(AF94=3,AF94=2,AF94=0),SUMIFS(FlatRepair!$Z$2:$Z$10000,FlatRepair!$A$2:$A$10000,D94,FlatRepair!$Y$2:$Y$10000,AE94)*AG94,0) -> 0 | AS94: 0 | AT94: 9.11926795 | AU94: 0 | AV94: 0 | AW94: 0 | AX94: 0 | AY94: 0 | AZ94: 9.11926795 | BA94: 0 | BB94: =IF($AF94=3,IF($AF$2=2,(R94/SUMIF(Refurb_Poss_Tbl[Refurbishment Possible],I94,Refurb_Poss_Tbl[%]))*AG94,IF($AF$2=3,(R94*AG94)-AV94,R94*AG94)),0) -> 0 | BC94: =IF(AF94=3,IF($AF$2=2,(S94/SUMIF(Refurb_Poss_Tbl[Refurbishment Possible],I94,Refurb_Poss_Tbl[%]))*AG94,IF($AF$2=3,(S94*AG94)-AX94,S94*AG94)),0) -> 0 | BD94: =IF($AF94=3,IF($AF$2=2,(T94/SUMIF(Refurb_Poss_Tbl[Refurbishment Possible],I94,Refurb_Poss_Tbl[%]))*AG94,T94*$AG94),0) -> 0 | BE94: =IF($AF94=3,IF($AF$2=2,(Q94/SUMIF(Refurb_Poss_Tbl[Refurbishment Possible],I94,Refurb_Poss_Tbl[%]))*AG94,Q94*$AG94),0) -> 0 | BF94: =IF($AF94=3,IF($AF$2=2,(U94/SUMIF(Refurb_Poss_Tbl[Refurbishment Possible],I94,Refurb_Poss_Tbl[%]))*AG94,U94*$AG94),0) -> 0 | BG94: =IF($AF94=3,IF($AF$2=2,(V94/SUMIF(Refurb_Poss_Tbl[Refurbishment Possible],I94,Refurb_Poss_Tbl[%]))*AG94,IF($AF$2=3,(V94*AG94)-AW94,V94*AG94)),0) -> 0 | BH94: =IF($AF94=3,IF($AF$2=2,(W94/SUMIF(Refurb_Poss_Tbl[Refurbishment Possible],I94,Refurb_Poss_Tbl[%]))*AG94,W94*$AG94),0) -> 0
A95: BridEA03 | B95: Footbridge | C95: Bridge - Pedestrian | D95: BridEA0333 | E95: Desk | F95: Bridges | G95: 60 | H95: 20 | I95: Moderate Refurbishment | J95: 10 | K95: New Build | L95: 113 | M95: 123 | N95: 100 | O95: 3 | P95: 883.5084 | Q95: 883.5084 | R95: 1.074176355 | S95: 4.902497072 | T95: 0.1294492521 | U95: 5.512114984 | V95: 0 | W95: 0.1206399085 | X95: 895.2472776 | Y95: 0.05490755123 | Z95: 0 | AA95: 223.8118194 | AB95: 2.292158261 | AC95: 0.06472462604 | AD95: 2.451248536 | AE95: 93 | AF95: 0 | AG95: =VLOOKUP(AE95,ValidationLists!$M$1:$N$102,2,FALSE) -> 0.1006191209 | AH95: 0 | AI95: 0 | AJ95: 0 | AK95: 0 | AL95: 0 | AM95: 0 | AN95: 0 | AO95: 0 | AP95: 0.005524749535 | AQ95: =IF(OR(AF95=3,AF95=2,AF95=0),SUMIFS(FlatMaint!$Z$2:$Z$10000,FlatMaint!$A$2:$A$10000,D95,FlatMaint!$Y$2:$Y$10000,AE95)*AG95,0) -> 8.891322031 | AR95: =IF(OR(AF95=3,AF95=2,AF95=0),SUMIFS(FlatRepair!$Z$2:$Z$10000,FlatRepair!$A$2:$A$10000,D95,FlatRepair!$Y$2:$Y$10000,AE95)*AG95,0) -> 0 | AS95: 0 | AT95: 8.89684678 | AU95: 0 | AV95: 0 | AW95: 0 | AX95: 0 | AY95: 0 | AZ95: 8.89684678 | BA95: 0 | BB95: =IF($AF95=3,IF($AF$2=2,(R95/SUMIF(Refurb_Poss_Tbl[Refurbishment Possible],I95,Refurb_Poss_Tbl[%]))*AG95,IF($AF$2=3,(R95*AG95)-AV95,R95*AG95)),0) -> 0 | BC95: =IF(AF95=3,IF($AF$2=2,(S95/SUMIF(Refurb_Poss_Tbl[Refurbishment Possible],I95,Refurb_Poss_Tbl[%]))*AG95,IF($AF$2=3,(S95*AG95)-AX95,S95*AG95)),0) -> 0 | BD95: =IF($AF95=3,IF($AF$2=2,(T95/SUMIF(Refurb_Poss_Tbl[Refurbishment Possible],I95,Refurb_Poss_Tbl[%]))*AG95,T95*$AG95),0) -> 0 | BE95: =IF($AF95=3,IF($AF$2=2,(Q95/SUMIF(Refurb_Poss_Tbl[Refurbishment Possible],I95,Refurb_Poss_Tbl[%]))*AG95,Q95*$AG95),0) -> 0 | BF95: =IF($AF95=3,IF($AF$2=2,(U95/SUMIF(Refurb_Poss_Tbl[Refurbishment Possible],I95,Refurb_Poss_Tbl[%]))*AG95,U95*$AG95),0) -> 0 | BG95: =IF($AF95=3,IF($AF$2=2,(V95/SUMIF(Refurb_Poss_Tbl[Refurbishment Possible],I95,Refurb_Poss_Tbl[%]))*AG95,IF($AF$2=3,(V95*AG95)-AW95,V95*AG95)),0) -> 0 | BH95: =IF($AF95=3,IF($AF$2=2,(W95/SUMIF(Refurb_Poss_Tbl[Refurbishment Possible],I95,Refurb_Poss_Tbl[%]))*AG95,W95*$AG95),0) -> 0
A96: BridEA03 | B96: Footbridge | C96: Bridge - Pedestrian | D96: BridEA0333 | E96: Desk | F96: Bridges | G96: 60 | H96: 20 | I96: Moderate Refurbishment | J96: 10 | K96: New Build | L96: 113 | M96: 123 | N96: 100 | O96: 3 | P96: 883.5084 | Q96: 883.5084 | R96: 1.074176355 | S96: 4.902497072 | T96: 0.1294492521 | U96: 5.512114984 | V96: 0 | W96: 0.1206399085 | X96: 895.2472776 | Y96: 0.05490755123 | Z96: 0 | AA96: 223.8118194 | AB96: 2.292158261 | AC96: 0.06472462604 | AD96: 2.451248536 | AE96: 94 | AF96: 0 | AG96: =VLOOKUP(AE96,ValidationLists!$M$1:$N$102,2,FALSE) -> 0.09816499599 | AH96: 0 | AI96: 0 | AJ96: 0 | AK96: 0 | AL96: 0 | AM96: 0 | AN96: 0 | AO96: 0 | AP96: 0.005389999547 | AQ96: =IF(OR(AF96=3,AF96=2,AF96=0),SUMIFS(FlatMaint!$Z$2:$Z$10000,FlatMaint!$A$2:$A$10000,D96,FlatMaint!$Y$2:$Y$10000,AE96)*AG96,0) -> 8.674460518 | AR96: =IF(OR(AF96=3,AF96=2,AF96=0),SUMIFS(FlatRepair!$Z$2:$Z$10000,FlatRepair!$A$2:$A$10000,D96,FlatRepair!$Y$2:$Y$10000,AE96)*AG96,0) -> 0 | AS96: 0 | AT96: 8.679850518 | AU96: 0 | AV96: 0 | AW96: 0 | AX96: 0 | AY96: 0 | AZ96: 8.679850518 | BA96: 0 | BB96: =IF($AF96=3,IF($AF$2=2,(R96/SUMIF(Refurb_Poss_Tbl[Refurbishment Possible],I96,Refurb_Poss_Tbl[%]))*AG96,IF($AF$2=3,(R96*AG96)-AV96,R96*AG96)),0) -> 0 | BC96: =IF(AF96=3,IF($AF$2=2,(S96/SUMIF(Refurb_Poss_Tbl[Refurbishment Possible],I96,Refurb_Poss_Tbl[%]))*AG96,IF($AF$2=3,(S96*AG96)-AX96,S96*AG96)),0) -> 0 | BD96: =IF($AF96=3,IF($AF$2=2,(T96/SUMIF(Refurb_Poss_Tbl[Refurbishment Possible],I96,Refurb_Poss_Tbl[%]))*AG96,T96*$AG96),0) -> 0 | BE96: =IF($AF96=3,IF($AF$2=2,(Q96/SUMIF(Refurb_Poss_Tbl[Refurbishment Possible],I96,Refurb_Poss_Tbl[%]))*AG96,Q96*$AG96),0) -> 0 | BF96: =IF($AF96=3,IF($AF$2=2,(U96/SUMIF(Refurb_Poss_Tbl[Refurbishment Possible],I96,Refurb_Poss_Tbl[%]))*AG96,U96*$AG96),0) -> 0 | BG96: =IF($AF96=3,IF($AF$2=2,(V96/SUMIF(Refurb_Poss_Tbl[Refurbishment Possible],I96,Refurb_Poss_Tbl[%]))*AG96,IF($AF$2=3,(V96*AG96)-AW96,V96*AG96)),0) -> 0 | BH96: =IF($AF96=3,IF($AF$2=2,(W96/SUMIF(Refurb_Poss_Tbl[Refurbishment Possible],I96,Refurb_Poss_Tbl[%]))*AG96,W96*$AG96),0) -> 0
A97: BridEA03 | B97: Footbridge | C97: Bridge - Pedestrian | D97: BridEA0333 | E97: Desk | F97: Bridges | G97: 60 | H97: 20 | I97: Moderate Refurbishment | J97: 10 | K97: New Build | L97: 113 | M97: 123 | N97: 100 | O97: 3 | P97: 883.5084 | Q97: 883.5084 | R97: 1.074176355 | S97: 4.902497072 | T97: 0.1294492521 | U97: 5.512114984 | V97: 0 | W97: 0.1206399085 | X97: 895.2472776 | Y97: 0.05490755123 | Z97: 0 | AA97: 223.8118194 | AB97: 2.292158261 | AC97: 0.06472462604 | AD97: 2.451248536 | AE97: 95 | AF97: 0 | AG97: =VLOOKUP(AE97,ValidationLists!$M$1:$N$102,2,FALSE) -> 0.09577072779 | AH97: 0 | AI97: 0 | AJ97: 0 | AK97: 0 | AL97: 0 | AM97: 0 | AN97: 0 | AO97: 0 | AP97: 0.005258536143 | AQ97: =IF(OR(AF97=3,AF97=2,AF97=0),SUMIFS(FlatMaint!$Z$2:$Z$10000,FlatMaint!$A$2:$A$10000,D97,FlatMaint!$Y$2:$Y$10000,AE97)*AG97,0) -> 8.46288831 | AR97: =IF(OR(AF97=3,AF97=2,AF97=0),SUMIFS(FlatRepair!$Z$2:$Z$10000,FlatRepair!$A$2:$A$10000,D97,FlatRepair!$Y$2:$Y$10000,AE97)*AG97,0) -> 0 | AS97: 0 | AT97: 8.468146846 | AU97: 0 | AV97: 0 | AW97: 0 | AX97: 0 | AY97: 0 | AZ97: 8.468146846 | BA97: 0 | BB97: =IF($AF97=3,IF($AF$2=2,(R97/SUMIF(Refurb_Poss_Tbl[Refurbishment Possible],I97,Refurb_Poss_Tbl[%]))*AG97,IF($AF$2=3,(R97*AG97)-AV97,R97*AG97)),0) -> 0 | BC97: =IF(AF97=3,IF($AF$2=2,(S97/SUMIF(Refurb_Poss_Tbl[Refurbishment Possible],I97,Refurb_Poss_Tbl[%]))*AG97,IF($AF$2=3,(S97*AG97)-AX97,S97*AG97)),0) -> 0 | BD97: =IF($AF97=3,IF($AF$2=2,(T97/SUMIF(Refurb_Poss_Tbl[Refurbishment Possible],I97,Refurb_Poss_Tbl[%]))*AG97,T97*$AG97),0) -> 0 | BE97: =IF($AF97=3,IF($AF$2=2,(Q97/SUMIF(Refurb_Poss_Tbl[Refurbishment Possible],I97,Refurb_Poss_Tbl[%]))*AG97,Q97*$AG97),0) -> 0 | BF97: =IF($AF97=3,IF($AF$2=2,(U97/SUMIF(Refurb_Poss_Tbl[Refurbishment Possible],I97,Refurb_Poss_Tbl[%]))*AG97,U97*$AG97),0) -> 0 | BG97: =IF($AF97=3,IF($AF$2=2,(V97/SUMIF(Refurb_Poss_Tbl[Refurbishment Possible],I97,Refurb_Poss_Tbl[%]))*AG97,IF($AF$2=3,(V97*AG97)-AW97,V97*AG97)),0) -> 0 | BH97: =IF($AF97=3,IF($AF$2=2,(W97/SUMIF(Refurb_Poss_Tbl[Refurbishment Possible],I97,Refurb_Poss_Tbl[%]))*AG97,W97*$AG97),0) -> 0
A98: BridEA03 | B98: Footbridge | C98: Bridge - Pedestrian | D98: BridEA0333 | E98: Desk | F98: Bridges | G98: 60 | H98: 20 | I98: Moderate Refurbishment | J98: 10 | K98: New Build | L98: 113 | M98: 123 | N98: 100 | O98: 3 | P98: 883.5084 | Q98: 883.5084 | R98: 1.074176355 | S98: 4.902497072 | T98: 0.1294492521 | U98: 5.512114984 | V98: 0 | W98: 0.1206399085 | X98: 895.2472776 | Y98: 0.05490755123 | Z98: 0 | AA98: 223.8118194 | AB98: 2.292158261 | AC98: 0.06472462604 | AD98: 2.451248536 | AE98: 96 | AF98: 0 | AG98: =VLOOKUP(AE98,ValidationLists!$M$1:$N$102,2,FALSE) -> 0.09343485638 | AH98: 0 | AI98: 0 | AJ98: 0 | AK98: 0 | AL98: 0 | AM98: 0 | AN98: 0 | AO98: 0 | AP98: 0.005130279164 | AQ98: =IF(OR(AF98=3,AF98=2,AF98=0),SUMIFS(FlatMaint!$Z$2:$Z$10000,FlatMaint!$A$2:$A$10000,D98,FlatMaint!$Y$2:$Y$10000,AE98)*AG98,0) -> 8.2564764 | AR98: =IF(OR(AF98=3,AF98=2,AF98=0),SUMIFS(FlatRepair!$Z$2:$Z$10000,FlatRepair!$A$2:$A$10000,D98,FlatRepair!$Y$2:$Y$10000,AE98)*AG98,0) -> 0 | AS98: 0 | AT98: 8.261606679 | AU98: 0 | AV98: 0 | AW98: 0 | AX98: 0 | AY98: 0 | AZ98: 8.261606679 | BA98: 0 | BB98: =IF($AF98=3,IF($AF$2=2,(R98/SUMIF(Refurb_Poss_Tbl[Refurbishment Possible],I98,Refurb_Poss_Tbl[%]))*AG98,IF($AF$2=3,(R98*AG98)-AV98,R98*AG98)),0) -> 0 | BC98: =IF(AF98=3,IF($AF$2=2,(S98/SUMIF(Refurb_Poss_Tbl[Refurbishment Possible],I98,Refurb_Poss_Tbl[%]))*AG98,IF($AF$2=3,(S98*AG98)-AX98,S98*AG98)),0) -> 0 | BD98: =IF($AF98=3,IF($AF$2=2,(T98/SUMIF(Refurb_Poss_Tbl[Refurbishment Possible],I98,Refurb_Poss_Tbl[%]))*AG98,T98*$AG98),0) -> 0 | BE98: =IF($AF98=3,IF($AF$2=2,(Q98/SUMIF(Refurb_Poss_Tbl[Refurbishment Possible],I98,Refurb_Poss_Tbl[%]))*AG98,Q98*$AG98),0) -> 0 | BF98: =IF($AF98=3,IF($AF$2=2,(U98/SUMIF(Refurb_Poss_Tbl[Refurbishment Possible],I98,Refurb_Poss_Tbl[%]))*AG98,U98*$AG98),0) -> 0 | BG98: =IF($AF98=3,IF($AF$2=2,(V98/SUMIF(Refurb_Poss_Tbl[Refurbishment Possible],I98,Refurb_Poss_Tbl[%]))*AG98,IF($AF$2=3,(V98*AG98)-AW98,V98*AG98)),0) -> 0 | BH98: =IF($AF98=3,IF($AF$2=2,(W98/SUMIF(Refurb_Poss_Tbl[Refurbishment Possible],I98,Refurb_Poss_Tbl[%]))*AG98,W98*$AG98),0) -> 0
A99: BridEA03 | B99: Footbridge | C99: Bridge - Pedestrian | D99: BridEA0333 | E99: Desk | F99: Bridges | G99: 60 | H99: 20 | I99: Moderate Refurbishment | J99: 10 | K99: New Build | L99: 113 | M99: 123 | N99: 100 | O99: 3 | P99: 883.5084 | Q99: 883.5084 | R99: 1.074176355 | S99: 4.902497072 | T99: 0.1294492521 | U99: 5.512114984 | V99: 0 | W99: 0.1206399085 | X99: 895.2472776 | Y99: 0.05490755123 | Z99: 0 | AA99: 223.8118194 | AB99: 2.292158261 | AC99: 0.06472462604 | AD99: 2.451248536 | AE99: 97 | AF99: 0 | AG99: =VLOOKUP(AE99,ValidationLists!$M$1:$N$102,2,FALSE) -> 0.09115595745 | AH99: 0 | AI99: 0 | AJ99: 0 | AK99: 0 | AL99: 0 | AM99: 0 | AN99: 0 | AO99: 0 | AP99: 0.005005150404 | AQ99: =IF(OR(AF99=3,AF99=2,AF99=0),SUMIFS(FlatMaint!$Z$2:$Z$10000,FlatMaint!$A$2:$A$10000,D99,FlatMaint!$Y$2:$Y$10000,AE99)*AG99,0) -> 8.055098927 | AR99: =IF(OR(AF99=3,AF99=2,AF99=0),SUMIFS(FlatRepair!$Z$2:$Z$10000,FlatRepair!$A$2:$A$10000,D99,FlatRepair!$Y$2:$Y$10000,AE99)*AG99,0) -> 0 | AS99: 0 | AT99: 8.060104077 | AU99: 0 | AV99: 0 | AW99: 0 | AX99: 0 | AY99: 0 | AZ99: 8.060104077 | BA99: 0 | BB99: =IF($AF99=3,IF($AF$2=2,(R99/SUMIF(Refurb_Poss_Tbl[Refurbishment Possible],I99,Refurb_Poss_Tbl[%]))*AG99,IF($AF$2=3,(R99*AG99)-AV99,R99*AG99)),0) -> 0 | BC99: =IF(AF99=3,IF($AF$2=2,(S99/SUMIF(Refurb_Poss_Tbl[Refurbishment Possible],I99,Refurb_Poss_Tbl[%]))*AG99,IF($AF$2=3,(S99*AG99)-AX99,S99*AG99)),0) -> 0 | BD99: =IF($AF99=3,IF($AF$2=2,(T99/SUMIF(Refurb_Poss_Tbl[Refurbishment Possible],I99,Refurb_Poss_Tbl[%]))*AG99,T99*$AG99),0) -> 0 | BE99: =IF($AF99=3,IF($AF$2=2,(Q99/SUMIF(Refurb_Poss_Tbl[Refurbishment Possible],I99,Refurb_Poss_Tbl[%]))*AG99,Q99*$AG99),0) -> 0 | BF99: =IF($AF99=3,IF($AF$2=2,(U99/SUMIF(Refurb_Poss_Tbl[Refurbishment Possible],I99,Refurb_Poss_Tbl[%]))*AG99,U99*$AG99),0) -> 0 | BG99: =IF($AF99=3,IF($AF$2=2,(V99/SUMIF(Refurb_Poss_Tbl[Refurbishment Possible],I99,Refurb_Poss_Tbl[%]))*AG99,IF($AF$2=3,(V99*AG99)-AW99,V99*AG99)),0) -> 0 | BH99: =IF($AF99=3,IF($AF$2=2,(W99/SUMIF(Refurb_Poss_Tbl[Refurbishment Possible],I99,Refurb_Poss_Tbl[%]))*AG99,W99*$AG99),0) -> 0
A100: BridEA03 | B100: Footbridge | C100: Bridge - Pedestrian | D100: BridEA0333 | E100: Desk | F100: Bridges | G100: 60 | H100: 20 | I100: Moderate Refurbishment | J100: 10 | K100: New Build | L100: 113 | M100: 123 | N100: 100 | O100: 3 | P100: 883.5084 | Q100: 883.5084 | R100: 1.074176355 | S100: 4.902497072 | T100: 0.1294492521 | U100: 5.512114984 | V100: 0 | W100: 0.1206399085 | X100: 895.2472776 | Y100: 0.05490755123 | Z100: 0 | AA100: 223.8118194 | AB100: 2.292158261 | AC100: 0.06472462604 | AD100: 2.451248536 | AE100: 98 | AF100: 0 | AG100: =VLOOKUP(AE100,ValidationLists!$M$1:$N$102,2,FALSE) -> 0.08893264141 | AH100: 0 | AI100: 0 | AJ100: 0 | AK100: 0 | AL100: 0 | AM100: 0 | AN100: 0 | AO100: 0 | AP100: 0.004883073565 | AQ100: =IF(OR(AF100=3,AF100=2,AF100=0),SUMIFS(FlatMaint!$Z$2:$Z$10000,FlatMaint!$A$2:$A$10000,D100,FlatMaint!$Y$2:$Y$10000,AE100)*AG100,0) -> 7.8586331 | AR100: =IF(OR(AF100=3,AF100=2,AF100=0),SUMIFS(FlatRepair!$Z$2:$Z$10000,FlatRepair!$A$2:$A$10000,D100,FlatRepair!$Y$2:$Y$10000,AE100)*AG100,0) -> 0 | AS100: 0 | AT100: 7.863516173 | AU100: 0 | AV100: 0 | AW100: 0 | AX100: 0 | AY100: 0 | AZ100: 7.863516173 | BA100: 0 | BB100: =IF($AF100=3,IF($AF$2=2,(R100/SUMIF(Refurb_Poss_Tbl[Refurbishment Possible],I100,Refurb_Poss_Tbl[%]))*AG100,IF($AF$2=3,(R100*AG100)-AV100,R100*AG100)),0) -> 0 | BC100: =IF(AF100=3,IF($AF$2=2,(S100/SUMIF(Refurb_Poss_Tbl[Refurbishment Possible],I100,Refurb_Poss_Tbl[%]))*AG100,IF($AF$2=3,(S100*AG100)-AX100,S100*AG100)),0) -> 0 | BD100: =IF($AF100=3,IF($AF$2=2,(T100/SUMIF(Refurb_Poss_Tbl[Refurbishment Possible],I100,Refurb_Poss_Tbl[%]))*AG100,T100*$AG100),0) -> 0 | BE100: =IF($AF100=3,IF($AF$2=2,(Q100/SUMIF(Refurb_Poss_Tbl[Refurbishment Possible],I100,Refurb_Poss_Tbl[%]))*AG100,Q100*$AG100),0) -> 0 | BF100: =IF($AF100=3,IF($AF$2=2,(U100/SUMIF(Refurb_Poss_Tbl[Refurbishment Possible],I100,Refurb_Poss_Tbl[%]))*AG100,U100*$AG100),0) -> 0 | BG100: =IF($AF100=3,IF($AF$2=2,(V100/SUMIF(Refurb_Poss_Tbl[Refurbishment Possible],I100,Refurb_Poss_Tbl[%]))*AG100,IF($AF$2=3,(V100*AG100)-AW100,V100*AG100)),0) -> 0 | BH100: =IF($AF100=3,IF($AF$2=2,(W100/SUMIF(Refurb_Poss_Tbl[Refurbishment Possible],I100,Refurb_Poss_Tbl[%]))*AG100,W100*$AG100),0) -> 0
A101: BridEA03 | B101: Footbridge | C101: Bridge - Pedestrian | D101: BridEA0333 | E101: Desk | F101: Bridges | G101: 60 | H101: 20 | I101: Moderate Refurbishment | J101: 10 | K101: New Build | L101: 113 | M101: 123 | N101: 100 | O101: 3 | P101: 883.5084 | Q101: 883.5084 | R101: 1.074176355 | S101: 4.902497072 | T101: 0.1294492521 | U101: 5.512114984 | V101: 0 | W101: 0.1206399085 | X101: 895.2472776 | Y101: 0.05490755123 | Z101: 0 | AA101: 223.8118194 | AB101: 2.292158261 | AC101: 0.06472462604 | AD101: 2.451248536 | AE101: 99 | AF101: 0 | AG101: =VLOOKUP(AE101,ValidationLists!$M$1:$N$102,2,FALSE) -> 0.0867635526 | AH101: 0 | AI101: 0 | AJ101: 0 | AK101: 0 | AL101: 0 | AM101: 0 | AN101: 0 | AO101: 0 | AP101: 0.004763974209 | AQ101: =IF(OR(AF101=3,AF101=2,AF101=0),SUMIFS(FlatMaint!$Z$2:$Z$10000,FlatMaint!$A$2:$A$10000,D101,FlatMaint!$Y$2:$Y$10000,AE101)*AG101,0) -> 7.666959122 | AR101: =IF(OR(AF101=3,AF101=2,AF101=0),SUMIFS(FlatRepair!$Z$2:$Z$10000,FlatRepair!$A$2:$A$10000,D101,FlatRepair!$Y$2:$Y$10000,AE101)*AG101,0) -> 0 | AS101: 0 | AT101: 7.671723096 | AU101: 0 | AV101: 0 | AW101: 0 | AX101: 0 | AY101: 0 | AZ101: 7.671723096 | BA101: 0 | BB101: =IF($AF101=3,IF($AF$2=2,(R101/SUMIF(Refurb_Poss_Tbl[Refurbishment Possible],I101,Refurb_Poss_Tbl[%]))*AG101,IF($AF$2=3,(R101*AG101)-AV101,R101*AG101)),0) -> 0 | BC101: =IF(AF101=3,IF($AF$2=2,(S101/SUMIF(Refurb_Poss_Tbl[Refurbishment Possible],I101,Refurb_Poss_Tbl[%]))*AG101,IF($AF$2=3,(S101*AG101)-AX101,S101*AG101)),0) -> 0 | BD101: =IF($AF101=3,IF($AF$2=2,(T101/SUMIF(Refurb_Poss_Tbl[Refurbishment Possible],I101,Refurb_Poss_Tbl[%]))*AG101,T101*$AG101),0) -> 0 | BE101: =IF($AF101=3,IF($AF$2=2,(Q101/SUMIF(Refurb_Poss_Tbl[Refurbishment Possible],I101,Refurb_Poss_Tbl[%]))*AG101,Q101*$AG101),0) -> 0 | BF101: =IF($AF101=3,IF($AF$2=2,(U101/SUMIF(Refurb_Poss_Tbl[Refurbishment Possible],I101,Refurb_Poss_Tbl[%]))*AG101,U101*$AG101),0) -> 0 | BG101: =IF($AF101=3,IF($AF$2=2,(V101/SUMIF(Refurb_Poss_Tbl[Refurbishment Possible],I101,Refurb_Poss_Tbl[%]))*AG101,IF($AF$2=3,(V101*AG101)-AW101,V101*AG101)),0) -> 0 | BH101: =IF($AF101=3,IF($AF$2=2,(W101/SUMIF(Refurb_Poss_Tbl[Refurbishment Possible],I101,Refurb_Poss_Tbl[%]))*AG101,W101*$AG101),0) -> 0
A102: BridEA03 | B102: Footbridge | C102: Bridge - Pedestrian | D102: BridEA0333 | E102: Desk | F102: Bridges | G102: 60 | H102: 20 | I102: Moderate Refurbishment | J102: 10 | K102: New Build | L102: 113 | M102: 123 | N102: 100 | O102: 3 | P102: 883.5084 | Q102: 883.5084 | R102: 1.074176355 | S102: 4.902497072 | T102: 0.1294492521 | U102: 5.512114984 | V102: 0 | W102: 0.1206399085 | X102: 895.2472776 | Y102: 0.05490755123 | Z102: 0 | AA102: 223.8118194 | AB102: 2.292158261 | AC102: 0.06472462604 | AD102: 2.451248536 | AE102: 100 | AF102: 0 | AG102: =VLOOKUP(AE102,ValidationLists!$M$1:$N$102,2,FALSE) -> 0.08464736839 | AH102: 0 | AI102: 0 | AJ102: 0 | AK102: 0 | AL102: 0 | AM102: 0 | AN102: 0 | AO102: 0 | AP102: 0.004647779716 | AQ102: =IF(OR(AF102=3,AF102=2,AF102=0),SUMIFS(FlatMaint!$Z$2:$Z$10000,FlatMaint!$A$2:$A$10000,D102,FlatMaint!$Y$2:$Y$10000,AE102)*AG102,0) -> 7.479960119 | AR102: =IF(OR(AF102=3,AF102=2,AF102=0),SUMIFS(FlatRepair!$Z$2:$Z$10000,FlatRepair!$A$2:$A$10000,D102,FlatRepair!$Y$2:$Y$10000,AE102)*AG102,0) -> 0 | AS102: 0 | AT102: 7.484607898 | AU102: 0 | AV102: 0 | AW102: 0 | AX102: 0 | AY102: 0 | AZ102: -371.4170226 | BA102: -378.9016305 | BB102: =IF($AF102=3,IF($AF$2=2,(R102/SUMIF(Refurb_Poss_Tbl[Refurbishment Possible],I102,Refurb_Poss_Tbl[%]))*AG102,IF($AF$2=3,(R102*AG102)-AV102,R102*AG102)),0) -> 0 | BC102: =IF(AF102=3,IF($AF$2=2,(S102/SUMIF(Refurb_Poss_Tbl[Refurbishment Possible],I102,Refurb_Poss_Tbl[%]))*AG102,IF($AF$2=3,(S102*AG102)-AX102,S102*AG102)),0) -> 0 | BD102: =IF($AF102=3,IF($AF$2=2,(T102/SUMIF(Refurb_Poss_Tbl[Refurbishment Possible],I102,Refurb_Poss_Tbl[%]))*AG102,T102*$AG102),0) -> 0 | BE102: =IF($AF102=3,IF($AF$2=2,(Q102/SUMIF(Refurb_Poss_Tbl[Refurbishment Possible],I102,Refurb_Poss_Tbl[%]))*AG102,Q102*$AG102),0) -> 0 | BF102: =IF($AF102=3,IF($AF$2=2,(U102/SUMIF(Refurb_Poss_Tbl[Refurbishment Possible],I102,Refurb_Poss_Tbl[%]))*AG102,U102*$AG102),0) -> 0 | BG102: =IF($AF102=3,IF($AF$2=2,(V102/SUMIF(Refurb_Poss_Tbl[Refurbishment Possible],I102,Refurb_Poss_Tbl[%]))*AG102,IF($AF$2=3,(V102*AG102)-AW102,V102*AG102)),0) -> 0 | BH102: =IF($AF102=3,IF($AF$2=2,(W102/SUMIF(Refurb_Poss_Tbl[Refurbishment Possible],I102,Refurb_Poss_Tbl[%]))*AG102,W102*$AG102),0) -> 0
A103: BridEA03 | B103: Footbridge | C103: Bridge - Pedestrian | D103: BridEA0334 | E103: Abutment | F103: Headwall | G103: 80 | H103: 60 | I103: Moderate Refurbishment | J103: 40 | K103: New Build | L103: 93 | M103: 133 | N103: 100 | O103: 3 | P103: 27.229104 | Q103: 27.229104 | R103: 0.2282915078 | S103: 0.1510914923 | T103: 0.003989534392 | U103: 0.1698794852 | V103: 0 | W103: 0.07389533489 | X103: 27.85625135 | Y103: 0.001692211894 | Z103: 0 | AA103: 6.964062839 | AB103: 0.418740231 | AC103: 0.001994767196 | AD103: 0.07554574617 | AE103: 0 | AF103: 1 | AG103: =VLOOKUP(AE103,ValidationLists!$M$1:$N$102,2,FALSE) -> 1 | AH103: 27.229104 | AI103: 0.2282915078 | AJ103: 0.1510914923 | AK103: 0.003989534392 | AL103: 0.1698794852 | AM103: 0 | AN103: 0.07389533489 | AO103: 27.85625135 | AP103: 0 | AQ103: =IF(OR(AF103=3,AF103=2,AF103=0),SUMIFS(FlatMaint!$Z$2:$Z$10000,FlatMaint!$A$2:$A$10000,D103,FlatMaint!$Y$2:$Y$10000,AE103)*AG103,0) -> 0 | AR103: =IF(OR(AF103=3,AF103=2,AF103=0),SUMIFS(FlatRepair!$Z$2:$Z$10000,FlatRepair!$A$2:$A$10000,D103,FlatRepair!$Y$2:$Y$10000,AE103)*AG103,0) -> 0 | AS103: 0 | AT103: 0 | AU103: 0 | AV103: 0 | AW103: 0 | AX103: 0 | AY103: 0 | AZ103: 27.85625135 | BA103: 0 | BB103: =IF($AF103=3,IF($AF$2=2,(R103/SUMIF(Refurb_Poss_Tbl[Refurbishment Possible],I103,Refurb_Poss_Tbl[%]))*AG103,IF($AF$2=3,(R103*AG103)-AV103,R103*AG103)),0) -> 0 | BC103: =IF(AF103=3,IF($AF$2=2,(S103/SUMIF(Refurb_Poss_Tbl[Refurbishment Possible],I103,Refurb_Poss_Tbl[%]))*AG103,IF($AF$2=3,(S103*AG103)-AX103,S103*AG103)),0) -> 0 | BD103: =IF($AF103=3,IF($AF$2=2,(T103/SUMIF(Refurb_Poss_Tbl[Refurbishment Possible],I103,Refurb_Poss_Tbl[%]))*AG103,T103*$AG103),0) -> 0 | BE103: =IF($AF103=3,IF($AF$2=2,(Q103/SUMIF(Refurb_Poss_Tbl[Refurbishment Possible],I103,Refurb_Poss_Tbl[%]))*AG103,Q103*$AG103),0) -> 0 | BF103: =IF($AF103=3,IF($AF$2=2,(U103/SUMIF(Refurb_Poss_Tbl[Refurbishment Possible],I103,Refurb_Poss_Tbl[%]))*AG103,U103*$AG103),0) -> 0 | BG103: =IF($AF103=3,IF($AF$2=2,(V103/SUMIF(Refurb_Poss_Tbl[Refurbishment Possible],I103,Refurb_Poss_Tbl[%]))*AG103,IF($AF$2=3,(V103*AG103)-AW103,V103*AG103)),0) -> 0 | BH103: =IF($AF103=3,IF($AF$2=2,(W103/SUMIF(Refurb_Poss_Tbl[Refurbishment Possible],I103,Refurb_Poss_Tbl[%]))*AG103,W103*$AG103),0) -> 0
A104: BridEA03 | B104: Footbridge | C104: Bridge - Pedestrian | D104: BridEA0334 | E104: Abutment | F104: Headwall | G104: 80 | H104: 60 | I104: Moderate Refurbishment | J104: 40 | K104: New Build | L104: 93 | M104: 133 | N104: 100 | O104: 3 | P104: 27.229104 | Q104: 27.229104 | R104: 0.2282915078 | S104: 0.1510914923 | T104: 0.003989534392 | U104: 0.1698794852 | V104: 0 | W104: 0.07389533489 | X104: 27.85625135 | Y104: 0.001692211894 | Z104: 0 | AA104: 6.964062839 | AB104: 0.418740231 | AC104: 0.001994767196 | AD104: 0.07554574617 | AE104: 1 | AF104: 0 | AG104: =VLOOKUP(AE104,ValidationLists!$M$1:$N$102,2,FALSE) -> 0.9661835749 | AH104: 0 | AI104: 0 | AJ104: 0 | AK104: 0 | AL104: 0 | AM104: 0 | AN104: 0 | AO104: 0 | AP104: 0.001634987337 | AQ104: =IF(OR(AF104=3,AF104=2,AF104=0),SUMIFS(FlatMaint!$Z$2:$Z$10000,FlatMaint!$A$2:$A$10000,D104,FlatMaint!$Y$2:$Y$10000,AE104)*AG104,0) -> 26.32308324 | AR104: =IF(OR(AF104=3,AF104=2,AF104=0),SUMIFS(FlatRepair!$Z$2:$Z$10000,FlatRepair!$A$2:$A$10000,D104,FlatRepair!$Y$2:$Y$10000,AE104)*AG104,0) -> 0 | AS104: 0 | AT104: 26.32471823 | AU104: 0 | AV104: 0 | AW104: 0 | AX104: 0 | AY104: 0 | AZ104: 26.32471823 | BA104: 0 | BB104: =IF($AF104=3,IF($AF$2=2,(R104/SUMIF(Refurb_Poss_Tbl[Refurbishment Possible],I104,Refurb_Poss_Tbl[%]))*AG104,IF($AF$2=3,(R104*AG104)-AV104,R104*AG104)),0) -> 0 | BC104: =IF(AF104=3,IF($AF$2=2,(S104/SUMIF(Refurb_Poss_Tbl[Refurbishment Possible],I104,Refurb_Poss_Tbl[%]))*AG104,IF($AF$2=3,(S104*AG104)-AX104,S104*AG104)),0) -> 0 | BD104: =IF($AF104=3,IF($AF$2=2,(T104/SUMIF(Refurb_Poss_Tbl[Refurbishment Possible],I104,Refurb_Poss_Tbl[%]))*AG104,T104*$AG104),0) -> 0 | BE104: =IF($AF104=3,IF($AF$2=2,(Q104/SUMIF(Refurb_Poss_Tbl[Refurbishment Possible],I104,Refurb_Poss_Tbl[%]))*AG104,Q104*$AG104),0) -> 0 | BF104: =IF($AF104=3,IF($AF$2=2,(U104/SUMIF(Refurb_Poss_Tbl[Refurbishment Possible],I104,Refurb_Poss_Tbl[%]))*AG104,U104*$AG104),0) -> 0 | BG104: =IF($AF104=3,IF($AF$2=2,(V104/SUMIF(Refurb_Poss_Tbl[Refurbishment Possible],I104,Refurb_Poss_Tbl[%]))*AG104,IF($AF$2=3,(V104*AG104)-AW104,V104*AG104)),0) -> 0 | BH104: =IF($AF104=3,IF($AF$2=2,(W104/SUMIF(Refurb_Poss_Tbl[Refurbishment Possible],I104,Refurb_Poss_Tbl[%]))*AG104,W104*$AG104),0) -> 0
A105: BridEA03 | B105: Footbridge | C105: Bridge - Pedestrian | D105: BridEA0334 | E105: Abutment | F105: Headwall | G105: 80 | H105: 60 | I105: Moderate Refurbishment | J105: 40 | K105: New Build | L105: 93 | M105: 133 | N105: 100 | O105: 3 | P105: 27.229104 | Q105: 27.229104 | R105: 0.2282915078 | S105: 0.1510914923 | T105: 0.003989534392 | U105: 0.1698794852 | V105: 0 | W105: 0.07389533489 | X105: 27.85625135 | Y105: 0.001692211894 | Z105: 0 | AA105: 6.964062839 | AB105: 0.418740231 | AC105: 0.001994767196 | AD105: 0.07554574617 | AE105: 2 | AF105: 0 | AG105: =VLOOKUP(AE105,ValidationLists!$M$1:$N$102,2,FALSE) -> 0.9335107004 | AH105: 0 | AI105: 0 | AJ105: 0 | AK105: 0 | AL105: 0 | AM105: 0 | AN105: 0 | AO105: 0 | AP105: 0.00157969791 | AQ105: =IF(OR(AF105=3,AF105=2,AF105=0),SUMIFS(FlatMaint!$Z$2:$Z$10000,FlatMaint!$A$2:$A$10000,D105,FlatMaint!$Y$2:$Y$10000,AE105)*AG105,0) -> 25.43293067 | AR105: =IF(OR(AF105=3,AF105=2,AF105=0),SUMIFS(FlatRepair!$Z$2:$Z$10000,FlatRepair!$A$2:$A$10000,D105,FlatRepair!$Y$2:$Y$10000,AE105)*AG105,0) -> 0 | AS105: 0 | AT105: 25.43451037 | AU105: 0 | AV105: 0 | AW105: 0 | AX105: 0 | AY105: 0 | AZ105: 25.43451037 | BA105: 0 | BB105: =IF($AF105=3,IF($AF$2=2,(R105/SUMIF(Refurb_Poss_Tbl[Refurbishment Possible],I105,Refurb_Poss_Tbl[%]))*AG105,IF($AF$2=3,(R105*AG105)-AV105,R105*AG105)),0) -> 0 | BC105: =IF(AF105=3,IF($AF$2=2,(S105/SUMIF(Refurb_Poss_Tbl[Refurbishment Possible],I105,Refurb_Poss_Tbl[%]))*AG105,IF($AF$2=3,(S105*AG105)-AX105,S105*AG105)),0) -> 0 | BD105: =IF($AF105=3,IF($AF$2=2,(T105/SUMIF(Refurb_Poss_Tbl[Refurbishment Possible],I105,Refurb_Poss_Tbl[%]))*AG105,T105*$AG105),0) -> 0 | BE105: =IF($AF105=3,IF($AF$2=2,(Q105/SUMIF(Refurb_Poss_Tbl[Refurbishment Possible],I105,Refurb_Poss_Tbl[%]))*AG105,Q105*$AG105),0) -> 0 | BF105: =IF($AF105=3,IF($AF$2=2,(U105/SUMIF(Refurb_Poss_Tbl[Refurbishment Possible],I105,Refurb_Poss_Tbl[%]))*AG105,U105*$AG105),0) -> 0 | BG105: =IF($AF105=3,IF($AF$2=2,(V105/SUMIF(Refurb_Poss_Tbl[Refurbishment Possible],I105,Refurb_Poss_Tbl[%]))*AG105,IF($AF$2=3,(V105*AG105)-AW105,V105*AG105)),0) -> 0 | BH105: =IF($AF105=3,IF($AF$2=2,(W105/SUMIF(Refurb_Poss_Tbl[Refurbishment Possible],I105,Refurb_Poss_Tbl[%]))*AG105,W105*$AG105),0) -> 0
A106: BridEA03 | B106: Footbridge | C106: Bridge - Pedestrian | D106: BridEA0334 | E106: Abutment | F106: Headwall | G106: 80 | H106: 60 | I106: Moderate Refurbishment | J106: 40 | K106: New Build | L106: 93 | M106: 133 | N106: 100 | O106: 3 | P106: 27.229104 | Q106: 27.229104 | R106: 0.2282915078 | S106: 0.1510914923 | T106: 0.003989534392 | U106: 0.1698794852 | V106: 0 | W106: 0.07389533489 | X106: 27.85625135 | Y106: 0.001692211894 | Z106: 0 | AA106: 6.964062839 | AB106: 0.418740231 | AC106: 0.001994767196 | AD106: 0.07554574617 | AE106: 3 | AF106: 0 | AG106: =VLOOKUP(AE106,ValidationLists!$M$1:$N$102,2,FALSE) -> 0.9019427057 | AH106: 0 | AI106: 0 | AJ106: 0 | AK106: 0 | AL106: 0 | AM106: 0 | AN106: 0 | AO106: 0 | AP106: 0.001526278174 | AQ106: =IF(OR(AF106=3,AF106=2,AF106=0),SUMIFS(FlatMaint!$Z$2:$Z$10000,FlatMaint!$A$2:$A$10000,D106,FlatMaint!$Y$2:$Y$10000,AE106)*AG106,0) -> 24.57287988 | AR106: =IF(OR(AF106=3,AF106=2,AF106=0),SUMIFS(FlatRepair!$Z$2:$Z$10000,FlatRepair!$A$2:$A$10000,D106,FlatRepair!$Y$2:$Y$10000,AE106)*AG106,0) -> 0 | AS106: 0 | AT106: 24.57440615 | AU106: 0 | AV106: 0 | AW106: 0 | AX106: 0 | AY106: 0 | AZ106: 24.57440615 | BA106: 0 | BB106: =IF($AF106=3,IF($AF$2=2,(R106/SUMIF(Refurb_Poss_Tbl[Refurbishment Possible],I106,Refurb_Poss_Tbl[%]))*AG106,IF($AF$2=3,(R106*AG106)-AV106,R106*AG106)),0) -> 0 | BC106: =IF(AF106=3,IF($AF$2=2,(S106/SUMIF(Refurb_Poss_Tbl[Refurbishment Possible],I106,Refurb_Poss_Tbl[%]))*AG106,IF($AF$2=3,(S106*AG106)-AX106,S106*AG106)),0) -> 0 | BD106: =IF($AF106=3,IF($AF$2=2,(T106/SUMIF(Refurb_Poss_Tbl[Refurbishment Possible],I106,Refurb_Poss_Tbl[%]))*AG106,T106*$AG106),0) -> 0 | BE106: =IF($AF106=3,IF($AF$2=2,(Q106/SUMIF(Refurb_Poss_Tbl[Refurbishment Possible],I106,Refurb_Poss_Tbl[%]))*AG106,Q106*$AG106),0) -> 0 | BF106: =IF($AF106=3,IF($AF$2=2,(U106/SUMIF(Refurb_Poss_Tbl[Refurbishment Possible],I106,Refurb_Poss_Tbl[%]))*AG106,U106*$AG106),0) -> 0 | BG106: =IF($AF106=3,IF($AF$2=2,(V106/SUMIF(Refurb_Poss_Tbl[Refurbishment Possible],I106,Refurb_Poss_Tbl[%]))*AG106,IF($AF$2=3,(V106*AG106)-AW106,V106*AG106)),0) -> 0 | BH106: =IF($AF106=3,IF($AF$2=2,(W106/SUMIF(Refurb_Poss_Tbl[Refurbishment Possible],I106,Refurb_Poss_Tbl[%]))*AG106,W106*$AG106),0) -> 0
A107: BridEA03 | B107: Footbridge | C107: Bridge - Pedestrian | D107: BridEA0334 | E107: Abutment | F107: Headwall | G107: 80 | H107: 60 | I107: Moderate Refurbishment | J107: 40 | K107: New Build | L107: 93 | M107: 133 | N107: 100 | O107: 3 | P107: 27.229104 | Q107: 27.229104 | R107: 0.2282915078 | S107: 0.1510914923 | T107: 0.003989534392 | U107: 0.1698794852 | V107: 0 | W107: 0.07389533489 | X107: 27.85625135 | Y107: 0.001692211894 | Z107: 0 | AA107: 6.964062839 | AB107: 0.418740231 | AC107: 0.001994767196 | AD107: 0.07554574617 | AE107: 4 | AF107: 0 | AG107: =VLOOKUP(AE107,ValidationLists!$M$1:$N$102,2,FALSE) -> 0.8714422277 | AH107: 0 | AI107: 0 | AJ107: 0 | AK107: 0 | AL107: 0 | AM107: 0 | AN107: 0 | AO107: 0 | AP107: 0.001474664903 | AQ107: =IF(OR(AF107=3,AF107=2,AF107=0),SUMIFS(FlatMaint!$Z$2:$Z$10000,FlatMaint!$A$2:$A$10000,D107,FlatMaint!$Y$2:$Y$10000,AE107)*AG107,0) -> 23.74191292 | AR107: =IF(OR(AF107=3,AF107=2,AF107=0),SUMIFS(FlatRepair!$Z$2:$Z$10000,FlatRepair!$A$2:$A$10000,D107,FlatRepair!$Y$2:$Y$10000,AE107)*AG107,0) -> 0 | AS107: 0 | AT107: 23.74338759 | AU107: 0 | AV107: 0 | AW107: 0 | AX107: 0 | AY107: 0 | AZ107: 23.74338759 | BA107: 0 | BB107: =IF($AF107=3,IF($AF$2=2,(R107/SUMIF(Refurb_Poss_Tbl[Refurbishment Possible],I107,Refurb_Poss_Tbl[%]))*AG107,IF($AF$2=3,(R107*AG107)-AV107,R107*AG107)),0) -> 0 | BC107: =IF(AF107=3,IF($AF$2=2,(S107/SUMIF(Refurb_Poss_Tbl[Refurbishment Possible],I107,Refurb_Poss_Tbl[%]))*AG107,IF($AF$2=3,(S107*AG107)-AX107,S107*AG107)),0) -> 0 | BD107: =IF($AF107=3,IF($AF$2=2,(T107/SUMIF(Refurb_Poss_Tbl[Refurbishment Possible],I107,Refurb_Poss_Tbl[%]))*AG107,T107*$AG107),0) -> 0 | BE107: =IF($AF107=3,IF($AF$2=2,(Q107/SUMIF(Refurb_Poss_Tbl[Refurbishment Possible],I107,Refurb_Poss_Tbl[%]))*AG107,Q107*$AG107),0) -> 0 | BF107: =IF($AF107=3,IF($AF$2=2,(U107/SUMIF(Refurb_Poss_Tbl[Refurbishment Possible],I107,Refurb_Poss_Tbl[%]))*AG107,U107*$AG107),0) -> 0 | BG107: =IF($AF107=3,IF($AF$2=2,(V107/SUMIF(Refurb_Poss_Tbl[Refurbishment Possible],I107,Refurb_Poss_Tbl[%]))*AG107,IF($AF$2=3,(V107*AG107)-AW107,V107*AG107)),0) -> 0 | BH107: =IF($AF107=3,IF($AF$2=2,(W107/SUMIF(Refurb_Poss_Tbl[Refurbishment Possible],I107,Refurb_Poss_Tbl[%]))*AG107,W107*$AG107),0) -> 0
A108: BridEA03 | B108: Footbridge | C108: Bridge - Pedestrian | D108: BridEA0334 | E108: Abutment | F108: Headwall | G108: 80 | H108: 60 | I108: Moderate Refurbishment | J108: 40 | K108: New Build | L108: 93 | M108: 133 | N108: 100 | O108: 3 | P108: 27.229104 | Q108: 27.229104 | R108: 0.2282915078 | S108: 0.1510914923 | T108: 0.003989534392 | U108: 0.1698794852 | V108: 0 | W108: 0.07389533489 | X108: 27.85625135 | Y108: 0.001692211894 | Z108: 0 | AA108: 6.964062839 | AB108: 0.418740231 | AC108: 0.001994767196 | AD108: 0.07554574617 | AE108: 5 | AF108: 0 | AG108: =VLOOKUP(AE108,ValidationLists!$M$1:$N$102,2,FALSE) -> 0.8419731669 | AH108: 0 | AI108: 0 | AJ108: 0 | AK108: 0 | AL108: 0 | AM108: 0 | AN108: 0 | AO108: 0 | AP108: 0.001424797007 | AQ108: =IF(OR(AF108=3,AF108=2,AF108=0),SUMIFS(FlatMaint!$Z$2:$Z$10000,FlatMaint!$A$2:$A$10000,D108,FlatMaint!$Y$2:$Y$10000,AE108)*AG108,0) -> 22.9390463 | AR108: =IF(OR(AF108=3,AF108=2,AF108=0),SUMIFS(FlatRepair!$Z$2:$Z$10000,FlatRepair!$A$2:$A$10000,D108,FlatRepair!$Y$2:$Y$10000,AE108)*AG108,0) -> 0 | AS108: 0 | AT108: 22.9404711 | AU108: 0 | AV108: 0 | AW108: 0 | AX108: 0 | AY108: 0 | AZ108: 22.9404711 | BA108: 0 | BB108: =IF($AF108=3,IF($AF$2=2,(R108/SUMIF(Refurb_Poss_Tbl[Refurbishment Possible],I108,Refurb_Poss_Tbl[%]))*AG108,IF($AF$2=3,(R108*AG108)-AV108,R108*AG108)),0) -> 0 | BC108: =IF(AF108=3,IF($AF$2=2,(S108/SUMIF(Refurb_Poss_Tbl[Refurbishment Possible],I108,Refurb_Poss_Tbl[%]))*AG108,IF($AF$2=3,(S108*AG108)-AX108,S108*AG108)),0) -> 0 | BD108: =IF($AF108=3,IF($AF$2=2,(T108/SUMIF(Refurb_Poss_Tbl[Refurbishment Possible],I108,Refurb_Poss_Tbl[%]))*AG108,T108*$AG108),0) -> 0 | BE108: =IF($AF108=3,IF($AF$2=2,(Q108/SUMIF(Refurb_Poss_Tbl[Refurbishment Possible],I108,Refurb_Poss_Tbl[%]))*AG108,Q108*$AG108),0) -> 0 | BF108: =IF($AF108=3,IF($AF$2=2,(U108/SUMIF(Refurb_Poss_Tbl[Refurbishment Possible],I108,Refurb_Poss_Tbl[%]))*AG108,U108*$AG108),0) -> 0 | BG108: =IF($AF108=3,IF($AF$2=2,(V108/SUMIF(Refurb_Poss_Tbl[Refurbishment Possible],I108,Refurb_Poss_Tbl[%]))*AG108,IF($AF$2=3,(V108*AG108)-AW108,V108*AG108)),0) -> 0 | BH108: =IF($AF108=3,IF($AF$2=2,(W108/SUMIF(Refurb_Poss_Tbl[Refurbishment Possible],I108,Refurb_Poss_Tbl[%]))*AG108,W108*$AG108),0) -> 0
A109: BridEA03 | B109: Footbridge | C109: Bridge - Pedestrian | D109: BridEA0334 | E109: Abutment | F109: Headwall | G109: 80 | H109: 60 | I109: Moderate Refurbishment | J109: 40 | K109: New Build | L109: 93 | M109: 133 | N109: 100 | O109: 3 | P109: 27.229104 | Q109: 27.229104 | R109: 0.2282915078 | S109: 0.1510914923 | T109: 0.003989534392 | U109: 0.1698794852 | V109: 0 | W109: 0.07389533489 | X109: 27.85625135 | Y109: 0.001692211894 | Z109: 0 | AA109: 6.964062839 | AB109: 0.418740231 | AC109: 0.001994767196 | AD109: 0.07554574617 | AE109: 6 | AF109: 0 | AG109: =VLOOKUP(AE109,ValidationLists!$M$1:$N$102,2,FALSE) -> 0.8135006443 | AH109: 0 | AI109: 0 | AJ109: 0 | AK109: 0 | AL109: 0 | AM109: 0 | AN109: 0 | AO109: 0 | AP109: 0.001376615466 | AQ109: =IF(OR(AF109=3,AF109=2,AF109=0),SUMIFS(FlatMaint!$Z$2:$Z$10000,FlatMaint!$A$2:$A$10000,D109,FlatMaint!$Y$2:$Y$10000,AE109)*AG109,0) -> 22.16332976 | AR109: =IF(OR(AF109=3,AF109=2,AF109=0),SUMIFS(FlatRepair!$Z$2:$Z$10000,FlatRepair!$A$2:$A$10000,D109,FlatRepair!$Y$2:$Y$10000,AE109)*AG109,0) -> 0 | AS109: 0 | AT109: 22.16470638 | AU109: 0 | AV109: 0 | AW109: 0 | AX109: 0 | AY109: 0 | AZ109: 22.16470638 | BA109: 0 | BB109: =IF($AF109=3,IF($AF$2=2,(R109/SUMIF(Refurb_Poss_Tbl[Refurbishment Possible],I109,Refurb_Poss_Tbl[%]))*AG109,IF($AF$2=3,(R109*AG109)-AV109,R109*AG109)),0) -> 0 | BC109: =IF(AF109=3,IF($AF$2=2,(S109/SUMIF(Refurb_Poss_Tbl[Refurbishment Possible],I109,Refurb_Poss_Tbl[%]))*AG109,IF($AF$2=3,(S109*AG109)-AX109,S109*AG109)),0) -> 0 | BD109: =IF($AF109=3,IF($AF$2=2,(T109/SUMIF(Refurb_Poss_Tbl[Refurbishment Possible],I109,Refurb_Poss_Tbl[%]))*AG109,T109*$AG109),0) -> 0 | BE109: =IF($AF109=3,IF($AF$2=2,(Q109/SUMIF(Refurb_Poss_Tbl[Refurbishment Possible],I109,Refurb_Poss_Tbl[%]))*AG109,Q109*$AG109),0) -> 0 | BF109: =IF($AF109=3,IF($AF$2=2,(U109/SUMIF(Refurb_Poss_Tbl[Refurbishment Possible],I109,Refurb_Poss_Tbl[%]))*AG109,U109*$AG109),0) -> 0 | BG109: =IF($AF109=3,IF($AF$2=2,(V109/SUMIF(Refurb_Poss_Tbl[Refurbishment Possible],I109,Refurb_Poss_Tbl[%]))*AG109,IF($AF$2=3,(V109*AG109)-AW109,V109*AG109)),0) -> 0 | BH109: =IF($AF109=3,IF($AF$2=2,(W109/SUMIF(Refurb_Poss_Tbl[Refurbishment Possible],I109,Refurb_Poss_Tbl[%]))*AG109,W109*$AG109),0) -> 0
A110: BridEA03 | B110: Footbridge | C110: Bridge - Pedestrian | D110: BridEA0334 | E110: Abutment | F110: Headwall | G110: 80 | H110: 60 | I110: Moderate Refurbishment | J110: 40 | K110: New Build | L110: 93 | M110: 133 | N110: 100 | O110: 3 | P110: 27.229104 | Q110: 27.229104 | R110: 0.2282915078 | S110: 0.1510914923 | T110: 0.003989534392 | U110: 0.1698794852 | V110: 0 | W110: 0.07389533489 | X110: 27.85625135 | Y110: 0.001692211894 | Z110: 0 | AA110: 6.964062839 | AB110: 0.418740231 | AC110: 0.001994767196 | AD110: 0.07554574617 | AE110: 7 | AF110: 0 | AG110: =VLOOKUP(AE110,ValidationLists!$M$1:$N$102,2,FALSE) -> 0.7859909607 | AH110: 0 | AI110: 0 | AJ110: 0 | AK110: 0 | AL110: 0 | AM110: 0 | AN110: 0 | AO110: 0 | AP110: 0.001330063252 | AQ110: =IF(OR(AF110=3,AF110=2,AF110=0),SUMIFS(FlatMaint!$Z$2:$Z$10000,FlatMaint!$A$2:$A$10000,D110,FlatMaint!$Y$2:$Y$10000,AE110)*AG110,0) -> 21.41384518 | AR110: =IF(OR(AF110=3,AF110=2,AF110=0),SUMIFS(FlatRepair!$Z$2:$Z$10000,FlatRepair!$A$2:$A$10000,D110,FlatRepair!$Y$2:$Y$10000,AE110)*AG110,0) -> 0 | AS110: 0 | AT110: 21.41517524 | AU110: 0 | AV110: 0 | AW110: 0 | AX110: 0 | AY110: 0 | AZ110: 21.41517524 | BA110: 0 | BB110: =IF($AF110=3,IF($AF$2=2,(R110/SUMIF(Refurb_Poss_Tbl[Refurbishment Possible],I110,Refurb_Poss_Tbl[%]))*AG110,IF($AF$2=3,(R110*AG110)-AV110,R110*AG110)),0) -> 0 | BC110: =IF(AF110=3,IF($AF$2=2,(S110/SUMIF(Refurb_Poss_Tbl[Refurbishment Possible],I110,Refurb_Poss_Tbl[%]))*AG110,IF($AF$2=3,(S110*AG110)-AX110,S110*AG110)),0) -> 0 | BD110: =IF($AF110=3,IF($AF$2=2,(T110/SUMIF(Refurb_Poss_Tbl[Refurbishment Possible],I110,Refurb_Poss_Tbl[%]))*AG110,T110*$AG110),0) -> 0 | BE110: =IF($AF110=3,IF($AF$2=2,(Q110/SUMIF(Refurb_Poss_Tbl[Refurbishment Possible],I110,Refurb_Poss_Tbl[%]))*AG110,Q110*$AG110),0) -> 0 | BF110: =IF($AF110=3,IF($AF$2=2,(U110/SUMIF(Refurb_Poss_Tbl[Refurbishment Possible],I110,Refurb_Poss_Tbl[%]))*AG110,U110*$AG110),0) -> 0 | BG110: =IF($AF110=3,IF($AF$2=2,(V110/SUMIF(Refurb_Poss_Tbl[Refurbishment Possible],I110,Refurb_Poss_Tbl[%]))*AG110,IF($AF$2=3,(V110*AG110)-AW110,V110*AG110)),0) -> 0 | BH110: =IF($AF110=3,IF($AF$2=2,(W110/SUMIF(Refurb_Poss_Tbl[Refurbishment Possible],I110,Refurb_Poss_Tbl[%]))*AG110,W110*$AG110),0) -> 0
A111: BridEA03 | B111: Footbridge | C111: Bridge - Pedestrian | D111: BridEA0334 | E111: Abutment | F111: Headwall | G111: 80 | H111: 60 | I111: Moderate Refurbishment | J111: 40 | K111: New Build | L111: 93 | M111: 133 | N111: 100 | O111: 3 | P111: 27.229104 | Q111: 27.229104 | R111: 0.2282915078 | S111: 0.1510914923 | T111: 0.003989534392 | U111: 0.1698794852 | V111: 0 | W111: 0.07389533489 | X111: 27.85625135 | Y111: 0.001692211894 | Z111: 0 | AA111: 6.964062839 | AB111: 0.418740231 | AC111: 0.001994767196 | AD111: 0.07554574617 | AE111: 8 | AF111: 0 | AG111: =VLOOKUP(AE111,ValidationLists!$M$1:$N$102,2,FALSE) -> 0.7594115562 | AH111: 0 | AI111: 0 | AJ111: 0 | AK111: 0 | AL111: 0 | AM111: 0 | AN111: 0 | AO111: 0 | AP111: 0.001285085268 | AQ111: =IF(OR(AF111=3,AF111=2,AF111=0),SUMIFS(FlatMaint!$Z$2:$Z$10000,FlatMaint!$A$2:$A$10000,D111,FlatMaint!$Y$2:$Y$10000,AE111)*AG111,0) -> 20.68970549 | AR111: =IF(OR(AF111=3,AF111=2,AF111=0),SUMIFS(FlatRepair!$Z$2:$Z$10000,FlatRepair!$A$2:$A$10000,D111,FlatRepair!$Y$2:$Y$10000,AE111)*AG111,0) -> 0 | AS111: 0 | AT111: 20.69099057 | AU111: 0 | AV111: 0 | AW111: 0 | AX111: 0 | AY111: 0 | AZ111: 20.69099057 | BA111: 0 | BB111: =IF($AF111=3,IF($AF$2=2,(R111/SUMIF(Refurb_Poss_Tbl[Refurbishment Possible],I111,Refurb_Poss_Tbl[%]))*AG111,IF($AF$2=3,(R111*AG111)-AV111,R111*AG111)),0) -> 0 | BC111: =IF(AF111=3,IF($AF$2=2,(S111/SUMIF(Refurb_Poss_Tbl[Refurbishment Possible],I111,Refurb_Poss_Tbl[%]))*AG111,IF($AF$2=3,(S111*AG111)-AX111,S111*AG111)),0) -> 0 | BD111: =IF($AF111=3,IF($AF$2=2,(T111/SUMIF(Refurb_Poss_Tbl[Refurbishment Possible],I111,Refurb_Poss_Tbl[%]))*AG111,T111*$AG111),0) -> 0 | BE111: =IF($AF111=3,IF($AF$2=2,(Q111/SUMIF(Refurb_Poss_Tbl[Refurbishment Possible],I111,Refurb_Poss_Tbl[%]))*AG111,Q111*$AG111),0) -> 0 | BF111: =IF($AF111=3,IF($AF$2=2,(U111/SUMIF(Refurb_Poss_Tbl[Refurbishment Possible],I111,Refurb_Poss_Tbl[%]))*AG111,U111*$AG111),0) -> 0 | BG111: =IF($AF111=3,IF($AF$2=2,(V111/SUMIF(Refurb_Poss_Tbl[Refurbishment Possible],I111,Refurb_Poss_Tbl[%]))*AG111,IF($AF$2=3,(V111*AG111)-AW111,V111*AG111)),0) -> 0 | BH111: =IF($AF111=3,IF($AF$2=2,(W111/SUMIF(Refurb_Poss_Tbl[Refurbishment Possible],I111,Refurb_Poss_Tbl[%]))*AG111,W111*$AG111),0) -> 0
A112: BridEA03 | B112: Footbridge | C112: Bridge - Pedestrian | D112: BridEA0334 | E112: Abutment | F112: Headwall | G112: 80 | H112: 60 | I112: Moderate Refurbishment | J112: 40 | K112: New Build | L112: 93 | M112: 133 | N112: 100 | O112: 3 | P112: 27.229104 | Q112: 27.229104 | R112: 0.2282915078 | S112: 0.1510914923 | T112: 0.003989534392 | U112: 0.1698794852 | V112: 0 | W112: 0.07389533489 | X112: 27.85625135 | Y112: 0.001692211894 | Z112: 0 | AA112: 6.964062839 | AB112: 0.418740231 | AC112: 0.001994767196 | AD112: 0.07554574617 | AE112: 9 | AF112: 0 | AG112: =VLOOKUP(AE112,ValidationLists!$M$1:$N$102,2,FALSE) -> 0.7337309722 | AH112: 0 | AI112: 0 | AJ112: 0 | AK112: 0 | AL112: 0 | AM112: 0 | AN112: 0 | AO112: 0 | AP112: 0.001241628278 | AQ112: =IF(OR(AF112=3,AF112=2,AF112=0),SUMIFS(FlatMaint!$Z$2:$Z$10000,FlatMaint!$A$2:$A$10000,D112,FlatMaint!$Y$2:$Y$10000,AE112)*AG112,0) -> 19.99005361 | AR112: =IF(OR(AF112=3,AF112=2,AF112=0),SUMIFS(FlatRepair!$Z$2:$Z$10000,FlatRepair!$A$2:$A$10000,D112,FlatRepair!$Y$2:$Y$10000,AE112)*AG112,0) -> 0 | AS112: 0 | AT112: 19.99129524 | AU112: 0 | AV112: 0 | AW112: 0 | AX112: 0 | AY112: 0 | AZ112: 19.99129524 | BA112: 0 | BB112: =IF($AF112=3,IF($AF$2=2,(R112/SUMIF(Refurb_Poss_Tbl[Refurbishment Possible],I112,Refurb_Poss_Tbl[%]))*AG112,IF($AF$2=3,(R112*AG112)-AV112,R112*AG112)),0) -> 0 | BC112: =IF(AF112=3,IF($AF$2=2,(S112/SUMIF(Refurb_Poss_Tbl[Refurbishment Possible],I112,Refurb_Poss_Tbl[%]))*AG112,IF($AF$2=3,(S112*AG112)-AX112,S112*AG112)),0) -> 0 | BD112: =IF($AF112=3,IF($AF$2=2,(T112/SUMIF(Refurb_Poss_Tbl[Refurbishment Possible],I112,Refurb_Poss_Tbl[%]))*AG112,T112*$AG112),0) -> 0 | BE112: =IF($AF112=3,IF($AF$2=2,(Q112/SUMIF(Refurb_Poss_Tbl[Refurbishment Possible],I112,Refurb_Poss_Tbl[%]))*AG112,Q112*$AG112),0) -> 0 | BF112: =IF($AF112=3,IF($AF$2=2,(U112/SUMIF(Refurb_Poss_Tbl[Refurbishment Possible],I112,Refurb_Poss_Tbl[%]))*AG112,U112*$AG112),0) -> 0 | BG112: =IF($AF112=3,IF($AF$2=2,(V112/SUMIF(Refurb_Poss_Tbl[Refurbishment Possible],I112,Refurb_Poss_Tbl[%]))*AG112,IF($AF$2=3,(V112*AG112)-AW112,V112*AG112)),0) -> 0 | BH112: =IF($AF112=3,IF($AF$2=2,(W112/SUMIF(Refurb_Poss_Tbl[Refurbishment Possible],I112,Refurb_Poss_Tbl[%]))*AG112,W112*$AG112),0) -> 0
A113: BridEA03 | B113: Footbridge | C113: Bridge - Pedestrian | D113: BridEA0334 | E113: Abutment | F113: Headwall | G113: 80 | H113: 60 | I113: Moderate Refurbishment | J113: 40 | K113: New Build | L113: 93 | M113: 133 | N113: 100 | O113: 3 | P113: 27.229104 | Q113: 27.229104 | R113: 0.2282915078 | S113: 0.1510914923 | T113: 0.003989534392 | U113: 0.1698794852 | V113: 0 | W113: 0.07389533489 | X113: 27.85625135 | Y113: 0.001692211894 | Z113: 0 | AA113: 6.964062839 | AB113: 0.418740231 | AC113: 0.001994767196 | AD113: 0.07554574617 | AE113: 10 | AF113: 0 | AG113: =VLOOKUP(AE113,ValidationLists!$M$1:$N$102,2,FALSE) -> 0.7089188137 | AH113: 0 | AI113: 0 | AJ113: 0 | AK113: 0 | AL113: 0 | AM113: 0 | AN113: 0 | AO113: 0 | AP113: 0.001199640848 | AQ113: =IF(OR(AF113=3,AF113=2,AF113=0),SUMIFS(FlatMaint!$Z$2:$Z$10000,FlatMaint!$A$2:$A$10000,D113,FlatMaint!$Y$2:$Y$10000,AE113)*AG113,0) -> 19.31406146 | AR113: =IF(OR(AF113=3,AF113=2,AF113=0),SUMIFS(FlatRepair!$Z$2:$Z$10000,FlatRepair!$A$2:$A$10000,D113,FlatRepair!$Y$2:$Y$10000,AE113)*AG113,0) -> 0 | AS113: 0 | AT113: 19.3152611 | AU113: 0 | AV113: 0 | AW113: 0 | AX113: 0 | AY113: 0 | AZ113: 19.3152611 | BA113: 0 | BB113: =IF($AF113=3,IF($AF$2=2,(R113/SUMIF(Refurb_Poss_Tbl[Refurbishment Possible],I113,Refurb_Poss_Tbl[%]))*AG113,IF($AF$2=3,(R113*AG113)-AV113,R113*AG113)),0) -> 0 | BC113: =IF(AF113=3,IF($AF$2=2,(S113/SUMIF(Refurb_Poss_Tbl[Refurbishment Possible],I113,Refurb_Poss_Tbl[%]))*AG113,IF($AF$2=3,(S113*AG113)-AX113,S113*AG113)),0) -> 0 | BD113: =IF($AF113=3,IF($AF$2=2,(T113/SUMIF(Refurb_Poss_Tbl[Refurbishment Possible],I113,Refurb_Poss_Tbl[%]))*AG113,T113*$AG113),0) -> 0 | BE113: =IF($AF113=3,IF($AF$2=2,(Q113/SUMIF(Refurb_Poss_Tbl[Refurbishment Possible],I113,Refurb_Poss_Tbl[%]))*AG113,Q113*$AG113),0) -> 0 | BF113: =IF($AF113=3,IF($AF$2=2,(U113/SUMIF(Refurb_Poss_Tbl[Refurbishment Possible],I113,Refurb_Poss_Tbl[%]))*AG113,U113*$AG113),0) -> 0 | BG113: =IF($AF113=3,IF($AF$2=2,(V113/SUMIF(Refurb_Poss_Tbl[Refurbishment Possible],I113,Refurb_Poss_Tbl[%]))*AG113,IF($AF$2=3,(V113*AG113)-AW113,V113*AG113)),0) -> 0 | BH113: =IF($AF113=3,IF($AF$2=2,(W113/SUMIF(Refurb_Poss_Tbl[Refurbishment Possible],I113,Refurb_Poss_Tbl[%]))*AG113,W113*$AG113),0) -> 0
A114: BridEA03 | B114: Footbridge | C114: Bridge - Pedestrian | D114: BridEA0334 | E114: Abutment | F114: Headwall | G114: 80 | H114: 60 | I114: Moderate Refurbishment | J114: 40 | K114: New Build | L114: 93 | M114: 133 | N114: 100 | O114: 3 | P114: 27.229104 | Q114: 27.229104 | R114: 0.2282915078 | S114: 0.1510914923 | T114: 0.003989534392 | U114: 0.1698794852 | V114: 0 | W114: 0.07389533489 | X114: 27.85625135 | Y114: 0.001692211894 | Z114: 0 | AA114: 6.964062839 | AB114: 0.418740231 | AC114: 0.001994767196 | AD114: 0.07554574617 | AE114: 11 | AF114: 0 | AG114: =VLOOKUP(AE114,ValidationLists!$M$1:$N$102,2,FALSE) -> 0.6849457137 | AH114: 0 | AI114: 0 | AJ114: 0 | AK114: 0 | AL114: 0 | AM114: 0 | AN114: 0 | AO114: 0 | AP114: 0.001159073283 | AQ114: =IF(OR(AF114=3,AF114=2,AF114=0),SUMIFS(FlatMaint!$Z$2:$Z$10000,FlatMaint!$A$2:$A$10000,D114,FlatMaint!$Y$2:$Y$10000,AE114)*AG114,0) -> 18.66092895 | AR114: =IF(OR(AF114=3,AF114=2,AF114=0),SUMIFS(FlatRepair!$Z$2:$Z$10000,FlatRepair!$A$2:$A$10000,D114,FlatRepair!$Y$2:$Y$10000,AE114)*AG114,0) -> 0 | AS114: 0 | AT114: 18.66208802 | AU114: 0 | AV114: 0 | AW114: 0 | AX114: 0 | AY114: 0 | AZ114: 18.66208802 | BA114: 0 | BB114: =IF($AF114=3,IF($AF$2=2,(R114/SUMIF(Refurb_Poss_Tbl[Refurbishment Possible],I114,Refurb_Poss_Tbl[%]))*AG114,IF($AF$2=3,(R114*AG114)-AV114,R114*AG114)),0) -> 0 | BC114: =IF(AF114=3,IF($AF$2=2,(S114/SUMIF(Refurb_Poss_Tbl[Refurbishment Possible],I114,Refurb_Poss_Tbl[%]))*AG114,IF($AF$2=3,(S114*AG114)-AX114,S114*AG114)),0) -> 0 | BD114: =IF($AF114=3,IF($AF$2=2,(T114/SUMIF(Refurb_Poss_Tbl[Refurbishment Possible],I114,Refurb_Poss_Tbl[%]))*AG114,T114*$AG114),0) -> 0 | BE114: =IF($AF114=3,IF($AF$2=2,(Q114/SUMIF(Refurb_Poss_Tbl[Refurbishment Possible],I114,Refurb_Poss_Tbl[%]))*AG114,Q114*$AG114),0) -> 0 | BF114: =IF($AF114=3,IF($AF$2=2,(U114/SUMIF(Refurb_Poss_Tbl[Refurbishment Possible],I114,Refurb_Poss_Tbl[%]))*AG114,U114*$AG114),0) -> 0 | BG114: =IF($AF114=3,IF($AF$2=2,(V114/SUMIF(Refurb_Poss_Tbl[Refurbishment Possible],I114,Refurb_Poss_Tbl[%]))*AG114,IF($AF$2=3,(V114*AG114)-AW114,V114*AG114)),0) -> 0 | BH114: =IF($AF114=3,IF($AF$2=2,(W114/SUMIF(Refurb_Poss_Tbl[Refurbishment Possible],I114,Refurb_Poss_Tbl[%]))*AG114,W114*$AG114),0) -> 0
A115: BridEA03 | B115: Footbridge | C115: Bridge - Pedestrian | D115: BridEA0334 | E115: Abutment | F115: Headwall | G115: 80 | H115: 60 | I115: Moderate Refurbishment | J115: 40 | K115: New Build | L115: 93 | M115: 133 | N115: 100 | O115: 3 | P115: 27.229104 | Q115: 27.229104 | R115: 0.2282915078 | S115: 0.1510914923 | T115: 0.003989534392 | U115: 0.1698794852 | V115: 0 | W115: 0.07389533489 | X115: 27.85625135 | Y115: 0.001692211894 | Z115: 0 | AA115: 6.964062839 | AB115: 0.418740231 | AC115: 0.001994767196 | AD115: 0.07554574617 | AE115: 12 | AF115: 0 | AG115: =VLOOKUP(AE115,ValidationLists!$M$1:$N$102,2,FALSE) -> 0.6617832983 | AH115: 0 | AI115: 0 | AJ115: 0 | AK115: 0 | AL115: 0 | AM115: 0 | AN115: 0 | AO115: 0 | AP115: 0.001119877569 | AQ115: =IF(OR(AF115=3,AF115=2,AF115=0),SUMIFS(FlatMaint!$Z$2:$Z$10000,FlatMaint!$A$2:$A$10000,D115,FlatMaint!$Y$2:$Y$10000,AE115)*AG115,0) -> 18.02988304 | AR115: =IF(OR(AF115=3,AF115=2,AF115=0),SUMIFS(FlatRepair!$Z$2:$Z$10000,FlatRepair!$A$2:$A$10000,D115,FlatRepair!$Y$2:$Y$10000,AE115)*AG115,0) -> 0 | AS115: 0 | AT115: 18.03100292 | AU115: 0 | AV115: 0 | AW115: 0 | AX115: 0 | AY115: 0 | AZ115: 18.03100292 | BA115: 0 | BB115: =IF($AF115=3,IF($AF$2=2,(R115/SUMIF(Refurb_Poss_Tbl[Refurbishment Possible],I115,Refurb_Poss_Tbl[%]))*AG115,IF($AF$2=3,(R115*AG115)-AV115,R115*AG115)),0) -> 0 | BC115: =IF(AF115=3,IF($AF$2=2,(S115/SUMIF(Refurb_Poss_Tbl[Refurbishment Possible],I115,Refurb_Poss_Tbl[%]))*AG115,IF($AF$2=3,(S115*AG115)-AX115,S115*AG115)),0) -> 0 | BD115: =IF($AF115=3,IF($AF$2=2,(T115/SUMIF(Refurb_Poss_Tbl[Refurbishment Possible],I115,Refurb_Poss_Tbl[%]))*AG115,T115*$AG115),0) -> 0 | BE115: =IF($AF115=3,IF($AF$2=2,(Q115/SUMIF(Refurb_Poss_Tbl[Refurbishment Possible],I115,Refurb_Poss_Tbl[%]))*AG115,Q115*$AG115),0) -> 0 | BF115: =IF($AF115=3,IF($AF$2=2,(U115/SUMIF(Refurb_Poss_Tbl[Refurbishment Possible],I115,Refurb_Poss_Tbl[%]))*AG115,U115*$AG115),0) -> 0 | BG115: =IF($AF115=3,IF($AF$2=2,(V115/SUMIF(Refurb_Poss_Tbl[Refurbishment Possible],I115,Refurb_Poss_Tbl[%]))*AG115,IF($AF$2=3,(V115*AG115)-AW115,V115*AG115)),0) -> 0 | BH115: =IF($AF115=3,IF($AF$2=2,(W115/SUMIF(Refurb_Poss_Tbl[Refurbishment Possible],I115,Refurb_Poss_Tbl[%]))*AG115,W115*$AG115),0) -> 0
A116: BridEA03 | B116: Footbridge | C116: Bridge - Pedestrian | D116: BridEA0334 | E116: Abutment | F116: Headwall | G116: 80 | H116: 60 | I116: Moderate Refurbishment | J116: 40 | K116: New Build | L116: 93 | M116: 133 | N116: 100 | O116: 3 | P116: 27.229104 | Q116: 27.229104 | R116: 0.2282915078 | S116: 0.1510914923 | T116: 0.003989534392 | U116: 0.1698794852 | V116: 0 | W116: 0.07389533489 | X116: 27.85625135 | Y116: 0.001692211894 | Z116: 0 | AA116: 6.964062839 | AB116: 0.418740231 | AC116: 0.001994767196 | AD116: 0.07554574617 | AE116: 13 | AF116: 0 | AG116: =VLOOKUP(AE116,ValidationLists!$M$1:$N$102,2,FALSE) -> 0.6394041529 | AH116: 0 | AI116: 0 | AJ116: 0 | AK116: 0 | AL116: 0 | AM116: 0 | AN116: 0 | AO116: 0 | AP116: 0.001082007313 | AQ116: =IF(OR(AF116=3,AF116=2,AF116=0),SUMIFS(FlatMaint!$Z$2:$Z$10000,FlatMaint!$A$2:$A$10000,D116,FlatMaint!$Y$2:$Y$10000,AE116)*AG116,0) -> 17.42017685 | AR116: =IF(OR(AF116=3,AF116=2,AF116=0),SUMIFS(FlatRepair!$Z$2:$Z$10000,FlatRepair!$A$2:$A$10000,D116,FlatRepair!$Y$2:$Y$10000,AE116)*AG116,0) -> 0 | AS116: 0 | AT116: 17.42125886 | AU116: 0 | AV116: 0 | AW116: 0 | AX116: 0 | AY116: 0 | AZ116: 17.42125886 | BA116: 0 | BB116: =IF($AF116=3,IF($AF$2=2,(R116/SUMIF(Refurb_Poss_Tbl[Refurbishment Possible],I116,Refurb_Poss_Tbl[%]))*AG116,IF($AF$2=3,(R116*AG116)-AV116,R116*AG116)),0) -> 0 | BC116: =IF(AF116=3,IF($AF$2=2,(S116/SUMIF(Refurb_Poss_Tbl[Refurbishment Possible],I116,Refurb_Poss_Tbl[%]))*AG116,IF($AF$2=3,(S116*AG116)-AX116,S116*AG116)),0) -> 0 | BD116: =IF($AF116=3,IF($AF$2=2,(T116/SUMIF(Refurb_Poss_Tbl[Refurbishment Possible],I116,Refurb_Poss_Tbl[%]))*AG116,T116*$AG116),0) -> 0 | BE116: =IF($AF116=3,IF($AF$2=2,(Q116/SUMIF(Refurb_Poss_Tbl[Refurbishment Possible],I116,Refurb_Poss_Tbl[%]))*AG116,Q116*$AG116),0) -> 0 | BF116: =IF($AF116=3,IF($AF$2=2,(U116/SUMIF(Refurb_Poss_Tbl[Refurbishment Possible],I116,Refurb_Poss_Tbl[%]))*AG116,U116*$AG116),0) -> 0 | BG116: =IF($AF116=3,IF($AF$2=2,(V116/SUMIF(Refurb_Poss_Tbl[Refurbishment Possible],I116,Refurb_Poss_Tbl[%]))*AG116,IF($AF$2=3,(V116*AG116)-AW116,V116*AG116)),0) -> 0 | BH116: =IF($AF116=3,IF($AF$2=2,(W116/SUMIF(Refurb_Poss_Tbl[Refurbishment Possible],I116,Refurb_Poss_Tbl[%]))*AG116,W116*$AG116),0) -> 0
A117: BridEA03 | B117: Footbridge | C117: Bridge - Pedestrian | D117: BridEA0334 | E117: Abutment | F117: Headwall | G117: 80 | H117: 60 | I117: Moderate Refurbishment | J117: 40 | K117: New Build | L117: 93 | M117: 133 | N117: 100 | O117: 3 | P117: 27.229104 | Q117: 27.229104 | R117: 0.2282915078 | S117: 0.1510914923 | T117: 0.003989534392 | U117: 0.1698794852 | V117: 0 | W117: 0.07389533489 | X117: 27.85625135 | Y117: 0.001692211894 | Z117: 0 | AA117: 6.964062839 | AB117: 0.418740231 | AC117: 0.001994767196 | AD117: 0.07554574617 | AE117: 14 | AF117: 0 | AG117: =VLOOKUP(AE117,ValidationLists!$M$1:$N$102,2,FALSE) -> 0.6177817903 | AH117: 0 | AI117: 0 | AJ117: 0 | AK117: 0 | AL117: 0 | AM117: 0 | AN117: 0 | AO117: 0 | AP117: 0.001045417693 | AQ117: =IF(OR(AF117=3,AF117=2,AF117=0),SUMIFS(FlatMaint!$Z$2:$Z$10000,FlatMaint!$A$2:$A$10000,D117,FlatMaint!$Y$2:$Y$10000,AE117)*AG117,0) -> 16.83108874 | AR117: =IF(OR(AF117=3,AF117=2,AF117=0),SUMIFS(FlatRepair!$Z$2:$Z$10000,FlatRepair!$A$2:$A$10000,D117,FlatRepair!$Y$2:$Y$10000,AE117)*AG117,0) -> 0 | AS117: 0 | AT117: 16.83213416 | AU117: 0 | AV117: 0 | AW117: 0 | AX117: 0 | AY117: 0 | AZ117: 16.83213416 | BA117: 0 | BB117: =IF($AF117=3,IF($AF$2=2,(R117/SUMIF(Refurb_Poss_Tbl[Refurbishment Possible],I117,Refurb_Poss_Tbl[%]))*AG117,IF($AF$2=3,(R117*AG117)-AV117,R117*AG117)),0) -> 0 | BC117: =IF(AF117=3,IF($AF$2=2,(S117/SUMIF(Refurb_Poss_Tbl[Refurbishment Possible],I117,Refurb_Poss_Tbl[%]))*AG117,IF($AF$2=3,(S117*AG117)-AX117,S117*AG117)),0) -> 0 | BD117: =IF($AF117=3,IF($AF$2=2,(T117/SUMIF(Refurb_Poss_Tbl[Refurbishment Possible],I117,Refurb_Poss_Tbl[%]))*AG117,T117*$AG117),0) -> 0 | BE117: =IF($AF117=3,IF($AF$2=2,(Q117/SUMIF(Refurb_Poss_Tbl[Refurbishment Possible],I117,Refurb_Poss_Tbl[%]))*AG117,Q117*$AG117),0) -> 0 | BF117: =IF($AF117=3,IF($AF$2=2,(U117/SUMIF(Refurb_Poss_Tbl[Refurbishment Possible],I117,Refurb_Poss_Tbl[%]))*AG117,U117*$AG117),0) -> 0 | BG117: =IF($AF117=3,IF($AF$2=2,(V117/SUMIF(Refurb_Poss_Tbl[Refurbishment Possible],I117,Refurb_Poss_Tbl[%]))*AG117,IF($AF$2=3,(V117*AG117)-AW117,V117*AG117)),0) -> 0 | BH117: =IF($AF117=3,IF($AF$2=2,(W117/SUMIF(Refurb_Poss_Tbl[Refurbishment Possible],I117,Refurb_Poss_Tbl[%]))*AG117,W117*$AG117),0) -> 0
A118: BridEA03 | B118: Footbridge | C118: Bridge - Pedestrian | D118: BridEA0334 | E118: Abutment | F118: Headwall | G118: 80 | H118: 60 | I118: Moderate Refurbishment | J118: 40 | K118: New Build | L118: 93 | M118: 133 | N118: 100 | O118: 3 | P118: 27.229104 | Q118: 27.229104 | R118: 0.2282915078 | S118: 0.1510914923 | T118: 0.003989534392 | U118: 0.1698794852 | V118: 0 | W118: 0.07389533489 | X118: 27.85625135 | Y118: 0.001692211894 | Z118: 0 | AA118: 6.964062839 | AB118: 0.418740231 | AC118: 0.001994767196 | AD118: 0.07554574617 | AE118: 15 | AF118: 0 | AG118: =VLOOKUP(AE118,ValidationLists!$M$1:$N$102,2,FALSE) -> 0.5968906186 | AH118: 0 | AI118: 0 | AJ118: 0 | AK118: 0 | AL118: 0 | AM118: 0 | AN118: 0 | AO118: 0 | AP118: 0.001010065404 | AQ118: =IF(OR(AF118=3,AF118=2,AF118=0),SUMIFS(FlatMaint!$Z$2:$Z$10000,FlatMaint!$A$2:$A$10000,D118,FlatMaint!$Y$2:$Y$10000,AE118)*AG118,0) -> 16.26192149 | AR118: =IF(OR(AF118=3,AF118=2,AF118=0),SUMIFS(FlatRepair!$Z$2:$Z$10000,FlatRepair!$A$2:$A$10000,D118,FlatRepair!$Y$2:$Y$10000,AE118)*AG118,0) -> 0 | AS118: 0 | AT118: 16.26293156 | AU118: 0 | AV118: 0 | AW118: 0 | AX118: 0 | AY118: 0 | AZ118: 16.26293156 | BA118: 0 | BB118: =IF($AF118=3,IF($AF$2=2,(R118/SUMIF(Refurb_Poss_Tbl[Refurbishment Possible],I118,Refurb_Poss_Tbl[%]))*AG118,IF($AF$2=3,(R118*AG118)-AV118,R118*AG118)),0) -> 0 | BC118: =IF(AF118=3,IF($AF$2=2,(S118/SUMIF(Refurb_Poss_Tbl[Refurbishment Possible],I118,Refurb_Poss_Tbl[%]))*AG118,IF($AF$2=3,(S118*AG118)-AX118,S118*AG118)),0) -> 0 | BD118: =IF($AF118=3,IF($AF$2=2,(T118/SUMIF(Refurb_Poss_Tbl[Refurbishment Possible],I118,Refurb_Poss_Tbl[%]))*AG118,T118*$AG118),0) -> 0 | BE118: =IF($AF118=3,IF($AF$2=2,(Q118/SUMIF(Refurb_Poss_Tbl[Refurbishment Possible],I118,Refurb_Poss_Tbl[%]))*AG118,Q118*$AG118),0) -> 0 | BF118: =IF($AF118=3,IF($AF$2=2,(U118/SUMIF(Refurb_Poss_Tbl[Refurbishment Possible],I118,Refurb_Poss_Tbl[%]))*AG118,U118*$AG118),0) -> 0 | BG118: =IF($AF118=3,IF($AF$2=2,(V118/SUMIF(Refurb_Poss_Tbl[Refurbishment Possible],I118,Refurb_Poss_Tbl[%]))*AG118,IF($AF$2=3,(V118*AG118)-AW118,V118*AG118)),0) -> 0 | BH118: =IF($AF118=3,IF($AF$2=2,(W118/SUMIF(Refurb_Poss_Tbl[Refurbishment Possible],I118,Refurb_Poss_Tbl[%]))*AG118,W118*$AG118),0) -> 0
A119: BridEA03 | B119: Footbridge | C119: Bridge - Pedestrian | D119: BridEA0334 | E119: Abutment | F119: Headwall | G119: 80 | H119: 60 | I119: Moderate Refurbishment | J119: 40 | K119: New Build | L119: 93 | M119: 133 | N119: 100 | O119: 3 | P119: 27.229104 | Q119: 27.229104 | R119: 0.2282915078 | S119: 0.1510914923 | T119: 0.003989534392 | U119: 0.1698794852 | V119: 0 | W119: 0.07389533489 | X119: 27.85625135 | Y119: 0.001692211894 | Z119: 0 | AA119: 6.964062839 | AB119: 0.418740231 | AC119: 0.001994767196 | AD119: 0.07554574617 | AE119: 16 | AF119: 0 | AG119: =VLOOKUP(AE119,ValidationLists!$M$1:$N$102,2,FALSE) -> 0.5767059117 | AH119: 0 | AI119: 0 | AJ119: 0 | AK119: 0 | AL119: 0 | AM119: 0 | AN119: 0 | AO119: 0 | AP119: 0.0009759086031 | AQ119: =IF(OR(AF119=3,AF119=2,AF119=0),SUMIFS(FlatMaint!$Z$2:$Z$10000,FlatMaint!$A$2:$A$10000,D119,FlatMaint!$Y$2:$Y$10000,AE119)*AG119,0) -> 15.71200144 | AR119: =IF(OR(AF119=3,AF119=2,AF119=0),SUMIFS(FlatRepair!$Z$2:$Z$10000,FlatRepair!$A$2:$A$10000,D119,FlatRepair!$Y$2:$Y$10000,AE119)*AG119,0) -> 0 | AS119: 0 | AT119: 15.71297735 | AU119: 0 | AV119: 0 | AW119: 0 | AX119: 0 | AY119: 0 | AZ119: 15.71297735 | BA119: 0 | BB119: =IF($AF119=3,IF($AF$2=2,(R119/SUMIF(Refurb_Poss_Tbl[Refurbishment Possible],I119,Refurb_Poss_Tbl[%]))*AG119,IF($AF$2=3,(R119*AG119)-AV119,R119*AG119)),0) -> 0 | BC119: =IF(AF119=3,IF($AF$2=2,(S119/SUMIF(Refurb_Poss_Tbl[Refurbishment Possible],I119,Refurb_Poss_Tbl[%]))*AG119,IF($AF$2=3,(S119*AG119)-AX119,S119*AG119)),0) -> 0 | BD119: =IF($AF119=3,IF($AF$2=2,(T119/SUMIF(Refurb_Poss_Tbl[Refurbishment Possible],I119,Refurb_Poss_Tbl[%]))*AG119,T119*$AG119),0) -> 0 | BE119: =IF($AF119=3,IF($AF$2=2,(Q119/SUMIF(Refurb_Poss_Tbl[Refurbishment Possible],I119,Refurb_Poss_Tbl[%]))*AG119,Q119*$AG119),0) -> 0 | BF119: =IF($AF119=3,IF($AF$2=2,(U119/SUMIF(Refurb_Poss_Tbl[Refurbishment Possible],I119,Refurb_Poss_Tbl[%]))*AG119,U119*$AG119),0) -> 0 | BG119: =IF($AF119=3,IF($AF$2=2,(V119/SUMIF(Refurb_Poss_Tbl[Refurbishment Possible],I119,Refurb_Poss_Tbl[%]))*AG119,IF($AF$2=3,(V119*AG119)-AW119,V119*AG119)),0) -> 0 | BH119: =IF($AF119=3,IF($AF$2=2,(W119/SUMIF(Refurb_Poss_Tbl[Refurbishment Possible],I119,Refurb_Poss_Tbl[%]))*AG119,W119*$AG119),0) -> 0
A120: BridEA03 | B120: Footbridge | C120: Bridge - Pedestrian | D120: BridEA0334 | E120: Abutment | F120: Headwall | G120: 80 | H120: 60 | I120: Moderate Refurbishment | J120: 40 | K120: New Build | L120: 93 | M120: 133 | N120: 100 | O120: 3 | P120: 27.229104 | Q120: 27.229104 | R120: 0.2282915078 | S120: 0.1510914923 | T120: 0.003989534392 | U120: 0.1698794852 | V120: 0 | W120: 0.07389533489 | X120: 27.85625135 | Y120: 0.001692211894 | Z120: 0 | AA120: 6.964062839 | AB120: 0.418740231 | AC120: 0.001994767196 | AD120: 0.07554574617 | AE120: 17 | AF120: 0 | AG120: =VLOOKUP(AE120,ValidationLists!$M$1:$N$102,2,FALSE) -> 0.5572037794 | AH120: 0 | AI120: 0 | AJ120: 0 | AK120: 0 | AL120: 0 | AM120: 0 | AN120: 0 | AO120: 0 | AP120: 0.0009429068629 | AQ120: =IF(OR(AF120=3,AF120=2,AF120=0),SUMIFS(FlatMaint!$Z$2:$Z$10000,FlatMaint!$A$2:$A$10000,D120,FlatMaint!$Y$2:$Y$10000,AE120)*AG120,0) -> 15.18067772 | AR120: =IF(OR(AF120=3,AF120=2,AF120=0),SUMIFS(FlatRepair!$Z$2:$Z$10000,FlatRepair!$A$2:$A$10000,D120,FlatRepair!$Y$2:$Y$10000,AE120)*AG120,0) -> 0 | AS120: 0 | AT120: 15.18162063 | AU120: 0 | AV120: 0 | AW120: 0 | AX120: 0 | AY120: 0 | AZ120: 15.18162063 | BA120: 0 | BB120: =IF($AF120=3,IF($AF$2=2,(R120/SUMIF(Refurb_Poss_Tbl[Refurbishment Possible],I120,Refurb_Poss_Tbl[%]))*AG120,IF($AF$2=3,(R120*AG120)-AV120,R120*AG120)),0) -> 0 | BC120: =IF(AF120=3,IF($AF$2=2,(S120/SUMIF(Refurb_Poss_Tbl[Refurbishment Possible],I120,Refurb_Poss_Tbl[%]))*AG120,IF($AF$2=3,(S120*AG120)-AX120,S120*AG120)),0) -> 0 | BD120: =IF($AF120=3,IF($AF$2=2,(T120/SUMIF(Refurb_Poss_Tbl[Refurbishment Possible],I120,Refurb_Poss_Tbl[%]))*AG120,T120*$AG120),0) -> 0 | BE120: =IF($AF120=3,IF($AF$2=2,(Q120/SUMIF(Refurb_Poss_Tbl[Refurbishment Possible],I120,Refurb_Poss_Tbl[%]))*AG120,Q120*$AG120),0) -> 0 | BF120: =IF($AF120=3,IF($AF$2=2,(U120/SUMIF(Refurb_Poss_Tbl[Refurbishment Possible],I120,Refurb_Poss_Tbl[%]))*AG120,U120*$AG120),0) -> 0 | BG120: =IF($AF120=3,IF($AF$2=2,(V120/SUMIF(Refurb_Poss_Tbl[Refurbishment Possible],I120,Refurb_Poss_Tbl[%]))*AG120,IF($AF$2=3,(V120*AG120)-AW120,V120*AG120)),0) -> 0 | BH120: =IF($AF120=3,IF($AF$2=2,(W120/SUMIF(Refurb_Poss_Tbl[Refurbishment Possible],I120,Refurb_Poss_Tbl[%]))*AG120,W120*$AG120),0) -> 0
A121: BridEA03 | B121: Footbridge | C121: Bridge - Pedestrian | D121: BridEA0334 | E121: Abutment | F121: Headwall | G121: 80 | H121: 60 | I121: Moderate Refurbishment | J121: 40 | K121: New Build | L121: 93 | M121: 133 | N121: 100 | O121: 3 | P121: 27.229104 | Q121: 27.229104 | R121: 0.2282915078 | S121: 0.1510914923 | T121: 0.003989534392 | U121: 0.1698794852 | V121: 0 | W121: 0.07389533489 | X121: 27.85625135 | Y121: 0.001692211894 | Z121: 0 | AA121: 6.964062839 | AB121: 0.418740231 | AC121: 0.001994767196 | AD121: 0.07554574617 | AE121: 18 | AF121: 0 | AG121: =VLOOKUP(AE121,ValidationLists!$M$1:$N$102,2,FALSE) -> 0.5383611396 | AH121: 0 | AI121: 0 | AJ121: 0 | AK121: 0 | AL121: 0 | AM121: 0 | AN121: 0 | AO121: 0 | AP121: 0.0009110211236 | AQ121: =IF(OR(AF121=3,AF121=2,AF121=0),SUMIFS(FlatMaint!$Z$2:$Z$10000,FlatMaint!$A$2:$A$10000,D121,FlatMaint!$Y$2:$Y$10000,AE121)*AG121,0) -> 14.66732147 | AR121: =IF(OR(AF121=3,AF121=2,AF121=0),SUMIFS(FlatRepair!$Z$2:$Z$10000,FlatRepair!$A$2:$A$10000,D121,FlatRepair!$Y$2:$Y$10000,AE121)*AG121,0) -> 0 | AS121: 0 | AT121: 14.66823249 | AU121: 0 | AV121: 0 | AW121: 0 | AX121: 0 | AY121: 0 | AZ121: 14.66823249 | BA121: 0 | BB121: =IF($AF121=3,IF($AF$2=2,(R121/SUMIF(Refurb_Poss_Tbl[Refurbishment Possible],I121,Refurb_Poss_Tbl[%]))*AG121,IF($AF$2=3,(R121*AG121)-AV121,R121*AG121)),0) -> 0 | BC121: =IF(AF121=3,IF($AF$2=2,(S121/SUMIF(Refurb_Poss_Tbl[Refurbishment Possible],I121,Refurb_Poss_Tbl[%]))*AG121,IF($AF$2=3,(S121*AG121)-AX121,S121*AG121)),0) -> 0 | BD121: =IF($AF121=3,IF($AF$2=2,(T121/SUMIF(Refurb_Poss_Tbl[Refurbishment Possible],I121,Refurb_Poss_Tbl[%]))*AG121,T121*$AG121),0) -> 0 | BE121: =IF($AF121=3,IF($AF$2=2,(Q121/SUMIF(Refurb_Poss_Tbl[Refurbishment Possible],I121,Refurb_Poss_Tbl[%]))*AG121,Q121*$AG121),0) -> 0 | BF121: =IF($AF121=3,IF($AF$2=2,(U121/SUMIF(Refurb_Poss_Tbl[Refurbishment Possible],I121,Refurb_Poss_Tbl[%]))*AG121,U121*$AG121),0) -> 0 | BG121: =IF($AF121=3,IF($AF$2=2,(V121/SUMIF(Refurb_Poss_Tbl[Refurbishment Possible],I121,Refurb_Poss_Tbl[%]))*AG121,IF($AF$2=3,(V121*AG121)-AW121,V121*AG121)),0) -> 0 | BH121: =IF($AF121=3,IF($AF$2=2,(W121/SUMIF(Refurb_Poss_Tbl[Refurbishment Possible],I121,Refurb_Poss_Tbl[%]))*AG121,W121*$AG121),0) -> 0
A122: BridEA03 | B122: Footbridge | C122: Bridge - Pedestrian | D122: BridEA0334 | E122: Abutment | F122: Headwall | G122: 80 | H122: 60 | I122: Moderate Refurbishment | J122: 40 | K122: New Build | L122: 93 | M122: 133 | N122: 100 | O122: 3 | P122: 27.229104 | Q122: 27.229104 | R122: 0.2282915078 | S122: 0.1510914923 | T122: 0.003989534392 | U122: 0.1698794852 | V122: 0 | W122: 0.07389533489 | X122: 27.85625135 | Y122: 0.001692211894 | Z122: 0 | AA122: 6.964062839 | AB122: 0.418740231 | AC122: 0.001994767196 | AD122: 0.07554574617 | AE122: 19 | AF122: 0 | AG122: =VLOOKUP(AE122,ValidationLists!$M$1:$N$102,2,FALSE) -> 0.5201556904 | AH122: 0 | AI122: 0 | AJ122: 0 | AK122: 0 | AL122: 0 | AM122: 0 | AN122: 0 | AO122: 0 | AP122: 0.000880213646 | AQ122: =IF(OR(AF122=3,AF122=2,AF122=0),SUMIFS(FlatMaint!$Z$2:$Z$10000,FlatMaint!$A$2:$A$10000,D122,FlatMaint!$Y$2:$Y$10000,AE122)*AG122,0) -> 14.17132509 | AR122: =IF(OR(AF122=3,AF122=2,AF122=0),SUMIFS(FlatRepair!$Z$2:$Z$10000,FlatRepair!$A$2:$A$10000,D122,FlatRepair!$Y$2:$Y$10000,AE122)*AG122,0) -> 0 | AS122: 0 | AT122: 14.17220531 | AU122: 0 | AV122: 0 | AW122: 0 | AX122: 0 | AY122: 0 | AZ122: 14.17220531 | BA122: 0 | BB122: =IF($AF122=3,IF($AF$2=2,(R122/SUMIF(Refurb_Poss_Tbl[Refurbishment Possible],I122,Refurb_Poss_Tbl[%]))*AG122,IF($AF$2=3,(R122*AG122)-AV122,R122*AG122)),0) -> 0 | BC122: =IF(AF122=3,IF($AF$2=2,(S122/SUMIF(Refurb_Poss_Tbl[Refurbishment Possible],I122,Refurb_Poss_Tbl[%]))*AG122,IF($AF$2=3,(S122*AG122)-AX122,S122*AG122)),0) -> 0 | BD122: =IF($AF122=3,IF($AF$2=2,(T122/SUMIF(Refurb_Poss_Tbl[Refurbishment Possible],I122,Refurb_Poss_Tbl[%]))*AG122,T122*$AG122),0) -> 0 | BE122: =IF($AF122=3,IF($AF$2=2,(Q122/SUMIF(Refurb_Poss_Tbl[Refurbishment Possible],I122,Refurb_Poss_Tbl[%]))*AG122,Q122*$AG122),0) -> 0 | BF122: =IF($AF122=3,IF($AF$2=2,(U122/SUMIF(Refurb_Poss_Tbl[Refurbishment Possible],I122,Refurb_Poss_Tbl[%]))*AG122,U122*$AG122),0) -> 0 | BG122: =IF($AF122=3,IF($AF$2=2,(V122/SUMIF(Refurb_Poss_Tbl[Refurbishment Possible],I122,Refurb_Poss_Tbl[%]))*AG122,IF($AF$2=3,(V122*AG122)-AW122,V122*AG122)),0) -> 0 | BH122: =IF($AF122=3,IF($AF$2=2,(W122/SUMIF(Refurb_Poss_Tbl[Refurbishment Possible],I122,Refurb_Poss_Tbl[%]))*AG122,W122*$AG122),0) -> 0
A123: BridEA03 | B123: Footbridge | C123: Bridge - Pedestrian | D123: BridEA0334 | E123: Abutment | F123: Headwall | G123: 80 | H123: 60 | I123: Moderate Refurbishment | J123: 40 | K123: New Build | L123: 93 | M123: 133 | N123: 100 | O123: 3 | P123: 27.229104 | Q123: 27.229104 | R123: 0.2282915078 | S123: 0.1510914923 | T123: 0.003989534392 | U123: 0.1698794852 | V123: 0 | W123: 0.07389533489 | X123: 27.85625135 | Y123: 0.001692211894 | Z123: 0 | AA123: 6.964062839 | AB123: 0.418740231 | AC123: 0.001994767196 | AD123: 0.07554574617 | AE123: 20 | AF123: 0 | AG123: =VLOOKUP(AE123,ValidationLists!$M$1:$N$102,2,FALSE) -> 0.5025658844 | AH123: 0 | AI123: 0 | AJ123: 0 | AK123: 0 | AL123: 0 | AM123: 0 | AN123: 0 | AO123: 0 | AP123: 0.0008504479671 | AQ123: =IF(OR(AF123=3,AF123=2,AF123=0),SUMIFS(FlatMaint!$Z$2:$Z$10000,FlatMaint!$A$2:$A$10000,D123,FlatMaint!$Y$2:$Y$10000,AE123)*AG123,0) -> 13.69210154 | AR123: =IF(OR(AF123=3,AF123=2,AF123=0),SUMIFS(FlatRepair!$Z$2:$Z$10000,FlatRepair!$A$2:$A$10000,D123,FlatRepair!$Y$2:$Y$10000,AE123)*AG123,0) -> 0 | AS123: 0 | AT123: 13.69295199 | AU123: 0 | AV123: 0 | AW123: 0 | AX123: 0 | AY123: 0 | AZ123: 13.69295199 | BA123: 0 | BB123: =IF($AF123=3,IF($AF$2=2,(R123/SUMIF(Refurb_Poss_Tbl[Refurbishment Possible],I123,Refurb_Poss_Tbl[%]))*AG123,IF($AF$2=3,(R123*AG123)-AV123,R123*AG123)),0) -> 0 | BC123: =IF(AF123=3,IF($AF$2=2,(S123/SUMIF(Refurb_Poss_Tbl[Refurbishment Possible],I123,Refurb_Poss_Tbl[%]))*AG123,IF($AF$2=3,(S123*AG123)-AX123,S123*AG123)),0) -> 0 | BD123: =IF($AF123=3,IF($AF$2=2,(T123/SUMIF(Refurb_Poss_Tbl[Refurbishment Possible],I123,Refurb_Poss_Tbl[%]))*AG123,T123*$AG123),0) -> 0 | BE123: =IF($AF123=3,IF($AF$2=2,(Q123/SUMIF(Refurb_Poss_Tbl[Refurbishment Possible],I123,Refurb_Poss_Tbl[%]))*AG123,Q123*$AG123),0) -> 0 | BF123: =IF($AF123=3,IF($AF$2=2,(U123/SUMIF(Refurb_Poss_Tbl[Refurbishment Possible],I123,Refurb_Poss_Tbl[%]))*AG123,U123*$AG123),0) -> 0 | BG123: =IF($AF123=3,IF($AF$2=2,(V123/SUMIF(Refurb_Poss_Tbl[Refurbishment Possible],I123,Refurb_Poss_Tbl[%]))*AG123,IF($AF$2=3,(V123*AG123)-AW123,V123*AG123)),0) -> 0 | BH123: =IF($AF123=3,IF($AF$2=2,(W123/SUMIF(Refurb_Poss_Tbl[Refurbishment Possible],I123,Refurb_Poss_Tbl[%]))*AG123,W123*$AG123),0) -> 0
A124: BridEA03 | B124: Footbridge | C124: Bridge - Pedestrian | D124: BridEA0334 | E124: Abutment | F124: Headwall | G124: 80 | H124: 60 | I124: Moderate Refurbishment | J124: 40 | K124: New Build | L124: 93 | M124: 133 | N124: 100 | O124: 3 | P124: 27.229104 | Q124: 27.229104 | R124: 0.2282915078 | S124: 0.1510914923 | T124: 0.003989534392 | U124: 0.1698794852 | V124: 0 | W124: 0.07389533489 | X124: 27.85625135 | Y124: 0.001692211894 | Z124: 0 | AA124: 6.964062839 | AB124: 0.418740231 | AC124: 0.001994767196 | AD124: 0.07554574617 | AE124: 21 | AF124: 0 | AG124: =VLOOKUP(AE124,ValidationLists!$M$1:$N$102,2,FALSE) -> 0.4855709028 | AH124: 0 | AI124: 0 | AJ124: 0 | AK124: 0 | AL124: 0 | AM124: 0 | AN124: 0 | AO124: 0 | AP124: 0.0008216888571 | AQ124: =IF(OR(AF124=3,AF124=2,AF124=0),SUMIFS(FlatMaint!$Z$2:$Z$10000,FlatMaint!$A$2:$A$10000,D124,FlatMaint!$Y$2:$Y$10000,AE124)*AG124,0) -> 13.22908361 | AR124: =IF(OR(AF124=3,AF124=2,AF124=0),SUMIFS(FlatRepair!$Z$2:$Z$10000,FlatRepair!$A$2:$A$10000,D124,FlatRepair!$Y$2:$Y$10000,AE124)*AG124,0) -> 0 | AS124: 0 | AT124: 13.2299053 | AU124: 0 | AV124: 0 | AW124: 0 | AX124: 0 | AY124: 0 | AZ124: 13.2299053 | BA124: 0 | BB124: =IF($AF124=3,IF($AF$2=2,(R124/SUMIF(Refurb_Poss_Tbl[Refurbishment Possible],I124,Refurb_Poss_Tbl[%]))*AG124,IF($AF$2=3,(R124*AG124)-AV124,R124*AG124)),0) -> 0 | BC124: =IF(AF124=3,IF($AF$2=2,(S124/SUMIF(Refurb_Poss_Tbl[Refurbishment Possible],I124,Refurb_Poss_Tbl[%]))*AG124,IF($AF$2=3,(S124*AG124)-AX124,S124*AG124)),0) -> 0 | BD124: =IF($AF124=3,IF($AF$2=2,(T124/SUMIF(Refurb_Poss_Tbl[Refurbishment Possible],I124,Refurb_Poss_Tbl[%]))*AG124,T124*$AG124),0) -> 0 | BE124: =IF($AF124=3,IF($AF$2=2,(Q124/SUMIF(Refurb_Poss_Tbl[Refurbishment Possible],I124,Refurb_Poss_Tbl[%]))*AG124,Q124*$AG124),0) -> 0 | BF124: =IF($AF124=3,IF($AF$2=2,(U124/SUMIF(Refurb_Poss_Tbl[Refurbishment Possible],I124,Refurb_Poss_Tbl[%]))*AG124,U124*$AG124),0) -> 0 | BG124: =IF($AF124=3,IF($AF$2=2,(V124/SUMIF(Refurb_Poss_Tbl[Refurbishment Possible],I124,Refurb_Poss_Tbl[%]))*AG124,IF($AF$2=3,(V124*AG124)-AW124,V124*AG124)),0) -> 0 | BH124: =IF($AF124=3,IF($AF$2=2,(W124/SUMIF(Refurb_Poss_Tbl[Refurbishment Possible],I124,Refurb_Poss_Tbl[%]))*AG124,W124*$AG124),0) -> 0
A125: BridEA03 | B125: Footbridge | C125: Bridge - Pedestrian | D125: BridEA0334 | E125: Abutment | F125: Headwall | G125: 80 | H125: 60 | I125: Moderate Refurbishment | J125: 40 | K125: New Build | L125: 93 | M125: 133 | N125: 100 | O125: 3 | P125: 27.229104 | Q125: 27.229104 | R125: 0.2282915078 | S125: 0.1510914923 | T125: 0.003989534392 | U125: 0.1698794852 | V125: 0 | W125: 0.07389533489 | X125: 27.85625135 | Y125: 0.001692211894 | Z125: 0 | AA125: 6.964062839 | AB125: 0.418740231 | AC125: 0.001994767196 | AD125: 0.07554574617 | AE125: 22 | AF125: 0 | AG125: =VLOOKUP(AE125,ValidationLists!$M$1:$N$102,2,FALSE) -> 0.4691506308 | AH125: 0 | AI125: 0 | AJ125: 0 | AK125: 0 | AL125: 0 | AM125: 0 | AN125: 0 | AO125: 0 | AP125: 0.0007939022774 | AQ125: =IF(OR(AF125=3,AF125=2,AF125=0),SUMIFS(FlatMaint!$Z$2:$Z$10000,FlatMaint!$A$2:$A$10000,D125,FlatMaint!$Y$2:$Y$10000,AE125)*AG125,0) -> 12.7817233 | AR125: =IF(OR(AF125=3,AF125=2,AF125=0),SUMIFS(FlatRepair!$Z$2:$Z$10000,FlatRepair!$A$2:$A$10000,D125,FlatRepair!$Y$2:$Y$10000,AE125)*AG125,0) -> 0 | AS125: 0 | AT125: 12.7825172 | AU125: 0 | AV125: 0 | AW125: 0 | AX125: 0 | AY125: 0 | AZ125: 12.7825172 | BA125: 0 | BB125: =IF($AF125=3,IF($AF$2=2,(R125/SUMIF(Refurb_Poss_Tbl[Refurbishment Possible],I125,Refurb_Poss_Tbl[%]))*AG125,IF($AF$2=3,(R125*AG125)-AV125,R125*AG125)),0) -> 0 | BC125: =IF(AF125=3,IF($AF$2=2,(S125/SUMIF(Refurb_Poss_Tbl[Refurbishment Possible],I125,Refurb_Poss_Tbl[%]))*AG125,IF($AF$2=3,(S125*AG125)-AX125,S125*AG125)),0) -> 0 | BD125: =IF($AF125=3,IF($AF$2=2,(T125/SUMIF(Refurb_Poss_Tbl[Refurbishment Possible],I125,Refurb_Poss_Tbl[%]))*AG125,T125*$AG125),0) -> 0 | BE125: =IF($AF125=3,IF($AF$2=2,(Q125/SUMIF(Refurb_Poss_Tbl[Refurbishment Possible],I125,Refurb_Poss_Tbl[%]))*AG125,Q125*$AG125),0) -> 0 | BF125: =IF($AF125=3,IF($AF$2=2,(U125/SUMIF(Refurb_Poss_Tbl[Refurbishment Possible],I125,Refurb_Poss_Tbl[%]))*AG125,U125*$AG125),0) -> 0 | BG125: =IF($AF125=3,IF($AF$2=2,(V125/SUMIF(Refurb_Poss_Tbl[Refurbishment Possible],I125,Refurb_Poss_Tbl[%]))*AG125,IF($AF$2=3,(V125*AG125)-AW125,V125*AG125)),0) -> 0 | BH125: =IF($AF125=3,IF($AF$2=2,(W125/SUMIF(Refurb_Poss_Tbl[Refurbishment Possible],I125,Refurb_Poss_Tbl[%]))*AG125,W125*$AG125),0) -> 0
A126: BridEA03 | B126: Footbridge | C126: Bridge - Pedestrian | D126: BridEA0334 | E126: Abutment | F126: Headwall | G126: 80 | H126: 60 | I126: Moderate Refurbishment | J126: 40 | K126: New Build | L126: 93 | M126: 133 | N126: 100 | O126: 3 | P126: 27.229104 | Q126: 27.229104 | R126: 0.2282915078 | S126: 0.1510914923 | T126: 0.003989534392 | U126: 0.1698794852 | V126: 0 | W126: 0.07389533489 | X126: 27.85625135 | Y126: 0.001692211894 | Z126: 0 | AA126: 6.964062839 | AB126: 0.418740231 | AC126: 0.001994767196 | AD126: 0.07554574617 | AE126: 23 | AF126: 0 | AG126: =VLOOKUP(AE126,ValidationLists!$M$1:$N$102,2,FALSE) -> 0.4532856336 | AH126: 0 | AI126: 0 | AJ126: 0 | AK126: 0 | AL126: 0 | AM126: 0 | AN126: 0 | AO126: 0 | AP126: 0.0007670553405 | AQ126: =IF(OR(AF126=3,AF126=2,AF126=0),SUMIFS(FlatMaint!$Z$2:$Z$10000,FlatMaint!$A$2:$A$10000,D126,FlatMaint!$Y$2:$Y$10000,AE126)*AG126,0) -> 12.34949111 | AR126: =IF(OR(AF126=3,AF126=2,AF126=0),SUMIFS(FlatRepair!$Z$2:$Z$10000,FlatRepair!$A$2:$A$10000,D126,FlatRepair!$Y$2:$Y$10000,AE126)*AG126,0) -> 0 | AS126: 0 | AT126: 12.35025816 | AU126: 0 | AV126: 0 | AW126: 0 | AX126: 0 | AY126: 0 | AZ126: 12.35025816 | BA126: 0 | BB126: =IF($AF126=3,IF($AF$2=2,(R126/SUMIF(Refurb_Poss_Tbl[Refurbishment Possible],I126,Refurb_Poss_Tbl[%]))*AG126,IF($AF$2=3,(R126*AG126)-AV126,R126*AG126)),0) -> 0 | BC126: =IF(AF126=3,IF($AF$2=2,(S126/SUMIF(Refurb_Poss_Tbl[Refurbishment Possible],I126,Refurb_Poss_Tbl[%]))*AG126,IF($AF$2=3,(S126*AG126)-AX126,S126*AG126)),0) -> 0 | BD126: =IF($AF126=3,IF($AF$2=2,(T126/SUMIF(Refurb_Poss_Tbl[Refurbishment Possible],I126,Refurb_Poss_Tbl[%]))*AG126,T126*$AG126),0) -> 0 | BE126: =IF($AF126=3,IF($AF$2=2,(Q126/SUMIF(Refurb_Poss_Tbl[Refurbishment Possible],I126,Refurb_Poss_Tbl[%]))*AG126,Q126*$AG126),0) -> 0 | BF126: =IF($AF126=3,IF($AF$2=2,(U126/SUMIF(Refurb_Poss_Tbl[Refurbishment Possible],I126,Refurb_Poss_Tbl[%]))*AG126,U126*$AG126),0) -> 0 | BG126: =IF($AF126=3,IF($AF$2=2,(V126/SUMIF(Refurb_Poss_Tbl[Refurbishment Possible],I126,Refurb_Poss_Tbl[%]))*AG126,IF($AF$2=3,(V126*AG126)-AW126,V126*AG126)),0) -> 0 | BH126: =IF($AF126=3,IF($AF$2=2,(W126/SUMIF(Refurb_Poss_Tbl[Refurbishment Possible],I126,Refurb_Poss_Tbl[%]))*AG126,W126*$AG126),0) -> 0
A127: BridEA03 | B127: Footbridge | C127: Bridge - Pedestrian | D127: BridEA0334 | E127: Abutment | F127: Headwall | G127: 80 | H127: 60 | I127: Moderate Refurbishment | J127: 40 | K127: New Build | L127: 93 | M127: 133 | N127: 100 | O127: 3 | P127: 27.229104 | Q127: 27.229104 | R127: 0.2282915078 | S127: 0.1510914923 | T127: 0.003989534392 | U127: 0.1698794852 | V127: 0 | W127: 0.07389533489 | X127: 27.85625135 | Y127: 0.001692211894 | Z127: 0 | AA127: 6.964062839 | AB127: 0.418740231 | AC127: 0.001994767196 | AD127: 0.07554574617 | AE127: 24 | AF127: 0 | AG127: =VLOOKUP(AE127,ValidationLists!$M$1:$N$102,2,FALSE) -> 0.4379571339 | AH127: 0 | AI127: 0 | AJ127: 0 | AK127: 0 | AL127: 0 | AM127: 0 | AN127: 0 | AO127: 0 | AP127: 0.000741116271 | AQ127: =IF(OR(AF127=3,AF127=2,AF127=0),SUMIFS(FlatMaint!$Z$2:$Z$10000,FlatMaint!$A$2:$A$10000,D127,FlatMaint!$Y$2:$Y$10000,AE127)*AG127,0) -> 11.93187547 | AR127: =IF(OR(AF127=3,AF127=2,AF127=0),SUMIFS(FlatRepair!$Z$2:$Z$10000,FlatRepair!$A$2:$A$10000,D127,FlatRepair!$Y$2:$Y$10000,AE127)*AG127,0) -> 0 | AS127: 0 | AT127: 11.93261658 | AU127: 0 | AV127: 0 | AW127: 0 | AX127: 0 | AY127: 0 | AZ127: 11.93261658 | BA127: 0 | BB127: =IF($AF127=3,IF($AF$2=2,(R127/SUMIF(Refurb_Poss_Tbl[Refurbishment Possible],I127,Refurb_Poss_Tbl[%]))*AG127,IF($AF$2=3,(R127*AG127)-AV127,R127*AG127)),0) -> 0 | BC127: =IF(AF127=3,IF($AF$2=2,(S127/SUMIF(Refurb_Poss_Tbl[Refurbishment Possible],I127,Refurb_Poss_Tbl[%]))*AG127,IF($AF$2=3,(S127*AG127)-AX127,S127*AG127)),0) -> 0 | BD127: =IF($AF127=3,IF($AF$2=2,(T127/SUMIF(Refurb_Poss_Tbl[Refurbishment Possible],I127,Refurb_Poss_Tbl[%]))*AG127,T127*$AG127),0) -> 0 | BE127: =IF($AF127=3,IF($AF$2=2,(Q127/SUMIF(Refurb_Poss_Tbl[Refurbishment Possible],I127,Refurb_Poss_Tbl[%]))*AG127,Q127*$AG127),0) -> 0 | BF127: =IF($AF127=3,IF($AF$2=2,(U127/SUMIF(Refurb_Poss_Tbl[Refurbishment Possible],I127,Refurb_Poss_Tbl[%]))*AG127,U127*$AG127),0) -> 0 | BG127: =IF($AF127=3,IF($AF$2=2,(V127/SUMIF(Refurb_Poss_Tbl[Refurbishment Possible],I127,Refurb_Poss_Tbl[%]))*AG127,IF($AF$2=3,(V127*AG127)-AW127,V127*AG127)),0) -> 0 | BH127: =IF($AF127=3,IF($AF$2=2,(W127/SUMIF(Refurb_Poss_Tbl[Refurbishment Possible],I127,Refurb_Poss_Tbl[%]))*AG127,W127*$AG127),0) -> 0
A128: BridEA03 | B128: Footbridge | C128: Bridge - Pedestrian | D128: BridEA0334 | E128: Abutment | F128: Headwall | G128: 80 | H128: 60 | I128: Moderate Refurbishment | J128: 40 | K128: New Build | L128: 93 | M128: 133 | N128: 100 | O128: 3 | P128: 27.229104 | Q128: 27.229104 | R128: 0.2282915078 | S128: 0.1510914923 | T128: 0.003989534392 | U128: 0.1698794852 | V128: 0 | W128: 0.07389533489 | X128: 27.85625135 | Y128: 0.001692211894 | Z128: 0 | AA128: 6.964062839 | AB128: 0.418740231 | AC128: 0.001994767196 | AD128: 0.07554574617 | AE128: 25 | AF128: 0 | AG128: =VLOOKUP(AE128,ValidationLists!$M$1:$N$102,2,FALSE) -> 0.4231469893 | AH128: 0 | AI128: 0 | AJ128: 0 | AK128: 0 | AL128: 0 | AM128: 0 | AN128: 0 | AO128: 0 | AP128: 0.0007160543681 | AQ128: =IF(OR(AF128=3,AF128=2,AF128=0),SUMIFS(FlatMaint!$Z$2:$Z$10000,FlatMaint!$A$2:$A$10000,D128,FlatMaint!$Y$2:$Y$10000,AE128)*AG128,0) -> 11.52838209 | AR128: =IF(OR(AF128=3,AF128=2,AF128=0),SUMIFS(FlatRepair!$Z$2:$Z$10000,FlatRepair!$A$2:$A$10000,D128,FlatRepair!$Y$2:$Y$10000,AE128)*AG128,0) -> 0 | AS128: 0 | AT128: 11.52909815 | AU128: 0 | AV128: 0 | AW128: 0 | AX128: 0 | AY128: 0 | AZ128: 11.52909815 | BA128: 0 | BB128: =IF($AF128=3,IF($AF$2=2,(R128/SUMIF(Refurb_Poss_Tbl[Refurbishment Possible],I128,Refurb_Poss_Tbl[%]))*AG128,IF($AF$2=3,(R128*AG128)-AV128,R128*AG128)),0) -> 0 | BC128: =IF(AF128=3,IF($AF$2=2,(S128/SUMIF(Refurb_Poss_Tbl[Refurbishment Possible],I128,Refurb_Poss_Tbl[%]))*AG128,IF($AF$2=3,(S128*AG128)-AX128,S128*AG128)),0) -> 0 | BD128: =IF($AF128=3,IF($AF$2=2,(T128/SUMIF(Refurb_Poss_Tbl[Refurbishment Possible],I128,Refurb_Poss_Tbl[%]))*AG128,T128*$AG128),0) -> 0 | BE128: =IF($AF128=3,IF($AF$2=2,(Q128/SUMIF(Refurb_Poss_Tbl[Refurbishment Possible],I128,Refurb_Poss_Tbl[%]))*AG128,Q128*$AG128),0) -> 0 | BF128: =IF($AF128=3,IF($AF$2=2,(U128/SUMIF(Refurb_Poss_Tbl[Refurbishment Possible],I128,Refurb_Poss_Tbl[%]))*AG128,U128*$AG128),0) -> 0 | BG128: =IF($AF128=3,IF($AF$2=2,(V128/SUMIF(Refurb_Poss_Tbl[Refurbishment Possible],I128,Refurb_Poss_Tbl[%]))*AG128,IF($AF$2=3,(V128*AG128)-AW128,V128*AG128)),0) -> 0 | BH128: =IF($AF128=3,IF($AF$2=2,(W128/SUMIF(Refurb_Poss_Tbl[Refurbishment Possible],I128,Refurb_Poss_Tbl[%]))*AG128,W128*$AG128),0) -> 0
A129: BridEA03 | B129: Footbridge | C129: Bridge - Pedestrian | D129: BridEA0334 | E129: Abutment | F129: Headwall | G129: 80 | H129: 60 | I129: Moderate Refurbishment | J129: 40 | K129: New Build | L129: 93 | M129: 133 | N129: 100 | O129: 3 | P129: 27.229104 | Q129: 27.229104 | R129: 0.2282915078 | S129: 0.1510914923 | T129: 0.003989534392 | U129: 0.1698794852 | V129: 0 | W129: 0.07389533489 | X129: 27.85625135 | Y129: 0.001692211894 | Z129: 0 | AA129: 6.964062839 | AB129: 0.418740231 | AC129: 0.001994767196 | AD129: 0.07554574617 | AE129: 26 | AF129: 0 | AG129: =VLOOKUP(AE129,ValidationLists!$M$1:$N$102,2,FALSE) -> 0.4088376708 | AH129: 0 | AI129: 0 | AJ129: 0 | AK129: 0 | AL129: 0 | AM129: 0 | AN129: 0 | AO129: 0 | AP129: 0.0006918399692 | AQ129: =IF(OR(AF129=3,AF129=2,AF129=0),SUMIFS(FlatMaint!$Z$2:$Z$10000,FlatMaint!$A$2:$A$10000,D129,FlatMaint!$Y$2:$Y$10000,AE129)*AG129,0) -> 11.13853342 | AR129: =IF(OR(AF129=3,AF129=2,AF129=0),SUMIFS(FlatRepair!$Z$2:$Z$10000,FlatRepair!$A$2:$A$10000,D129,FlatRepair!$Y$2:$Y$10000,AE129)*AG129,0) -> 0 | AS129: 0 | AT129: 11.13922526 | AU129: 0 | AV129: 0 | AW129: 0 | AX129: 0 | AY129: 0 | AZ129: 11.13922526 | BA129: 0 | BB129: =IF($AF129=3,IF($AF$2=2,(R129/SUMIF(Refurb_Poss_Tbl[Refurbishment Possible],I129,Refurb_Poss_Tbl[%]))*AG129,IF($AF$2=3,(R129*AG129)-AV129,R129*AG129)),0) -> 0 | BC129: =IF(AF129=3,IF($AF$2=2,(S129/SUMIF(Refurb_Poss_Tbl[Refurbishment Possible],I129,Refurb_Poss_Tbl[%]))*AG129,IF($AF$2=3,(S129*AG129)-AX129,S129*AG129)),0) -> 0 | BD129: =IF($AF129=3,IF($AF$2=2,(T129/SUMIF(Refurb_Poss_Tbl[Refurbishment Possible],I129,Refurb_Poss_Tbl[%]))*AG129,T129*$AG129),0) -> 0 | BE129: =IF($AF129=3,IF($AF$2=2,(Q129/SUMIF(Refurb_Poss_Tbl[Refurbishment Possible],I129,Refurb_Poss_Tbl[%]))*AG129,Q129*$AG129),0) -> 0 | BF129: =IF($AF129=3,IF($AF$2=2,(U129/SUMIF(Refurb_Poss_Tbl[Refurbishment Possible],I129,Refurb_Poss_Tbl[%]))*AG129,U129*$AG129),0) -> 0 | BG129: =IF($AF129=3,IF($AF$2=2,(V129/SUMIF(Refurb_Poss_Tbl[Refurbishment Possible],I129,Refurb_Poss_Tbl[%]))*AG129,IF($AF$2=3,(V129*AG129)-AW129,V129*AG129)),0) -> 0 | BH129: =IF($AF129=3,IF($AF$2=2,(W129/SUMIF(Refurb_Poss_Tbl[Refurbishment Possible],I129,Refurb_Poss_Tbl[%]))*AG129,W129*$AG129),0) -> 0
A130: BridEA03 | B130: Footbridge | C130: Bridge - Pedestrian | D130: BridEA0334 | E130: Abutment | F130: Headwall | G130: 80 | H130: 60 | I130: Moderate Refurbishment | J130: 40 | K130: New Build | L130: 93 | M130: 133 | N130: 100 | O130: 3 | P130: 27.229104 | Q130: 27.229104 | R130: 0.2282915078 | S130: 0.1510914923 | T130: 0.003989534392 | U130: 0.1698794852 | V130: 0 | W130: 0.07389533489 | X130: 27.85625135 | Y130: 0.001692211894 | Z130: 0 | AA130: 6.964062839 | AB130: 0.418740231 | AC130: 0.001994767196 | AD130: 0.07554574617 | AE130: 27 | AF130: 0 | AG130: =VLOOKUP(AE130,ValidationLists!$M$1:$N$102,2,FALSE) -> 0.3950122423 | AH130: 0 | AI130: 0 | AJ130: 0 | AK130: 0 | AL130: 0 | AM130: 0 | AN130: 0 | AO130: 0 | AP130: 0.0006684444147 | AQ130: =IF(OR(AF130=3,AF130=2,AF130=0),SUMIFS(FlatMaint!$Z$2:$Z$10000,FlatMaint!$A$2:$A$10000,D130,FlatMaint!$Y$2:$Y$10000,AE130)*AG130,0) -> 10.76186804 | AR130: =IF(OR(AF130=3,AF130=2,AF130=0),SUMIFS(FlatRepair!$Z$2:$Z$10000,FlatRepair!$A$2:$A$10000,D130,FlatRepair!$Y$2:$Y$10000,AE130)*AG130,0) -> 0 | AS130: 0 | AT130: 10.76253649 | AU130: 0 | AV130: 0 | AW130: 0 | AX130: 0 | AY130: 0 | AZ130: 10.76253649 | BA130: 0 | BB130: =IF($AF130=3,IF($AF$2=2,(R130/SUMIF(Refurb_Poss_Tbl[Refurbishment Possible],I130,Refurb_Poss_Tbl[%]))*AG130,IF($AF$2=3,(R130*AG130)-AV130,R130*AG130)),0) -> 0 | BC130: =IF(AF130=3,IF($AF$2=2,(S130/SUMIF(Refurb_Poss_Tbl[Refurbishment Possible],I130,Refurb_Poss_Tbl[%]))*AG130,IF($AF$2=3,(S130*AG130)-AX130,S130*AG130)),0) -> 0 | BD130: =IF($AF130=3,IF($AF$2=2,(T130/SUMIF(Refurb_Poss_Tbl[Refurbishment Possible],I130,Refurb_Poss_Tbl[%]))*AG130,T130*$AG130),0) -> 0 | BE130: =IF($AF130=3,IF($AF$2=2,(Q130/SUMIF(Refurb_Poss_Tbl[Refurbishment Possible],I130,Refurb_Poss_Tbl[%]))*AG130,Q130*$AG130),0) -> 0 | BF130: =IF($AF130=3,IF($AF$2=2,(U130/SUMIF(Refurb_Poss_Tbl[Refurbishment Possible],I130,Refurb_Poss_Tbl[%]))*AG130,U130*$AG130),0) -> 0 | BG130: =IF($AF130=3,IF($AF$2=2,(V130/SUMIF(Refurb_Poss_Tbl[Refurbishment Possible],I130,Refurb_Poss_Tbl[%]))*AG130,IF($AF$2=3,(V130*AG130)-AW130,V130*AG130)),0) -> 0 | BH130: =IF($AF130=3,IF($AF$2=2,(W130/SUMIF(Refurb_Poss_Tbl[Refurbishment Possible],I130,Refurb_Poss_Tbl[%]))*AG130,W130*$AG130),0) -> 0
A131: BridEA03 | B131: Footbridge | C131: Bridge - Pedestrian | D131: BridEA0334 | E131: Abutment | F131: Headwall | G131: 80 | H131: 60 | I131: Moderate Refurbishment | J131: 40 | K131: New Build | L131: 93 | M131: 133 | N131: 100 | O131: 3 | P131: 27.229104 | Q131: 27.229104 | R131: 0.2282915078 | S131: 0.1510914923 | T131: 0.003989534392 | U131: 0.1698794852 | V131: 0 | W131: 0.07389533489 | X131: 27.85625135 | Y131: 0.001692211894 | Z131: 0 | AA131: 6.964062839 | AB131: 0.418740231 | AC131: 0.001994767196 | AD131: 0.07554574617 | AE131: 28 | AF131: 0 | AG131: =VLOOKUP(AE131,ValidationLists!$M$1:$N$102,2,FALSE) -> 0.3816543404 | AH131: =IF(AE131=0,Q131*AG131,0) -> 0 | AI131: =IF(AE131=0,R131*AG131,0) -> 0 | AJ131: =IF(AE131=0,S131*AG131,0) -> 0 | AK131: =IF(AE131=0,T131*AG131,0) -> 0 | AL131: =IF(AE131=0,U131*AG131,0) -> 0 | AM131: =IF(AE131=0,V131*AG131,0) -> 0 | AN131: =IF(AE131=0,W131*AG131,0) -> 0 | AO131: =IF(AE131=0,AH131+AI131+AJ131+AK131+AL131+AM131+AN131,0) -> 0 | AP131: =IF(OR(AF131=3,AF131=2,AF131=0),Y131*AG131,0) -> 0.0006458400142 | AQ131: =IF(OR(AF131=3,AF131=2,AF131=0),SUMIFS(FlatMaint!$Z$2:$Z$10000,FlatMaint!$A$2:$A$10000,D131,FlatMaint!$Y$2:$Y$10000,AE131)*AG131,0) -> 10.39794014 | AR131: =IF(OR(AF131=3,AF131=2,AF131=0),SUMIFS(FlatRepair!$Z$2:$Z$10000,FlatRepair!$A$2:$A$10000,D131,FlatRepair!$Y$2:$Y$10000,AE131)*AG131,0) -> 0 | AS131: =IF(OR(AF131=3,AF131=2,AF131=0),Z131*AG131,0) -> 0 | AT131: =AP131+AQ131+AR131+AS131 -> 10.39858598 | AU131: =IF(AF131=2,AA131*AG131,0) -> 0 | AV131: =IF(AF131=3,AB131*AG131,0) -> 0 | AW131: =IF(AF131=3,AC131*AG131,0) -> 0 | AX131: =IF(AF131=3,AD131*AG131,0) -> 0 | AY131: =IF($AF$2=3,BB131+BC131+BD131+BE131+BF131+BG131+BH131,BB131+BC131+BD131+BE131+BF131+BG131+BH131) -> 0 | AZ131: =AO131+AT131+AU131+AV131+AW131+AX131+AY131+BA131 -> 10.39858598 | BA131: =IFERROR(IF(AE131=100,IF(O131=3,(N131/H131)*(X131*AG131)*-1,(N131/M131)*(X131*AG131)*-1),0),0) -> 0 | BB131: =IF($AF131=3,IF($AF$2=2,(R131/SUMIF(Refurb_Poss_Tbl[Refurbishment Possible],I131,Refurb_Poss_Tbl[%]))*AG131,IF($AF$2=3,(R131*AG131)-AV131,R131*AG131)),0) -> 0 | BC131: =IF(AF131=3,IF($AF$2=2,(S131/SUMIF(Refurb_Poss_Tbl[Refurbishment Possible],I131,Refurb_Poss_Tbl[%]))*AG131,IF($AF$2=3,(S131*AG131)-AX131,S131*AG131)),0) -> 0 | BD131: =IF($AF131=3,IF($AF$2=2,(T131/SUMIF(Refurb_Poss_Tbl[Refurbishment Possible],I131,Refurb_Poss_Tbl[%]))*AG131,T131*$AG131),0) -> 0 | BE131: =IF($AF131=3,IF($AF$2=2,(Q131/SUMIF(Refurb_Poss_Tbl[Refurbishment Possible],I131,Refurb_Poss_Tbl[%]))*AG131,Q131*$AG131),0) -> 0 | BF131: =IF($AF131=3,IF($AF$2=2,(U131/SUMIF(Refurb_Poss_Tbl[Refurbishment Possible],I131,Refurb_Poss_Tbl[%]))*AG131,U131*$AG131),0) -> 0 | BG131: =IF($AF131=3,IF($AF$2=2,(V131/SUMIF(Refurb_Poss_Tbl[Refurbishment Possible],I131,Refurb_Poss_Tbl[%]))*AG131,IF($AF$2=3,(V131*AG131)-AW131,V131*AG131)),0) -> 0 | BH131: =IF($AF131=3,IF($AF$2=2,(W131/SUMIF(Refurb_Poss_Tbl[Refurbishment Possible],I131,Refurb_Poss_Tbl[%]))*AG131,W131*$AG131),0) -> 0
A132: BridEA03 | B132: Footbridge | C132: Bridge - Pedestrian | D132: BridEA0334 | E132: Abutment | F132: Headwall | G132: 80 | H132: 60 | I132: Moderate Refurbishment | J132: 40 | K132: New Build | L132: 93 | M132: 133 | N132: 100 | O132: 3 | P132: 27.229104 | Q132: 27.229104 | R132: 0.2282915078 | S132: 0.1510914923 | T132: 0.003989534392 | U132: 0.1698794852 | V132: 0 | W132: 0.07389533489 | X132: 27.85625135 | Y132: 0.001692211894 | Z132: 0 | AA132: 6.964062839 | AB132: 0.418740231 | AC132: 0.001994767196 | AD132: 0.07554574617 | AE132: 29 | AF132: 0 | AG132: =VLOOKUP(AE132,ValidationLists!$M$1:$N$102,2,FALSE) -> 0.368748155 | AH132: 0 | AI132: 0 | AJ132: 0 | AK132: 0 | AL132: 0 | AM132: 0 | AN132: 0 | AO132: 0 | AP132: 0.0006240000137 | AQ132: =IF(OR(AF132=3,AF132=2,AF132=0),SUMIFS(FlatMaint!$Z$2:$Z$10000,FlatMaint!$A$2:$A$10000,D132,FlatMaint!$Y$2:$Y$10000,AE132)*AG132,0) -> 10.04631897 | AR132: =IF(OR(AF132=3,AF132=2,AF132=0),SUMIFS(FlatRepair!$Z$2:$Z$10000,FlatRepair!$A$2:$A$10000,D132,FlatRepair!$Y$2:$Y$10000,AE132)*AG132,0) -> 0 | AS132: 0 | AT132: 10.04694297 | AU132: 0 | AV132: 0 | AW132: 0 | AX132: 0 | AY132: 0 | AZ132: 10.04694297 | BA132: 0 | BB132: =IF($AF132=3,IF($AF$2=2,(R132/SUMIF(Refurb_Poss_Tbl[Refurbishment Possible],I132,Refurb_Poss_Tbl[%]))*AG132,IF($AF$2=3,(R132*AG132)-AV132,R132*AG132)),0) -> 0 | BC132: =IF(AF132=3,IF($AF$2=2,(S132/SUMIF(Refurb_Poss_Tbl[Refurbishment Possible],I132,Refurb_Poss_Tbl[%]))*AG132,IF($AF$2=3,(S132*AG132)-AX132,S132*AG132)),0) -> 0 | BD132: =IF($AF132=3,IF($AF$2=2,(T132/SUMIF(Refurb_Poss_Tbl[Refurbishment Possible],I132,Refurb_Poss_Tbl[%]))*AG132,T132*$AG132),0) -> 0 | BE132: =IF($AF132=3,IF($AF$2=2,(Q132/SUMIF(Refurb_Poss_Tbl[Refurbishment Possible],I132,Refurb_Poss_Tbl[%]))*AG132,Q132*$AG132),0) -> 0 | BF132: =IF($AF132=3,IF($AF$2=2,(U132/SUMIF(Refurb_Poss_Tbl[Refurbishment Possible],I132,Refurb_Poss_Tbl[%]))*AG132,U132*$AG132),0) -> 0 | BG132: =IF($AF132=3,IF($AF$2=2,(V132/SUMIF(Refurb_Poss_Tbl[Refurbishment Possible],I132,Refurb_Poss_Tbl[%]))*AG132,IF($AF$2=3,(V132*AG132)-AW132,V132*AG132)),0) -> 0 | BH132: =IF($AF132=3,IF($AF$2=2,(W132/SUMIF(Refurb_Poss_Tbl[Refurbishment Possible],I132,Refurb_Poss_Tbl[%]))*AG132,W132*$AG132),0) -> 0
A133: BridEA03 | B133: Footbridge | C133: Bridge - Pedestrian | D133: BridEA0334 | E133: Abutment | F133: Headwall | G133: 80 | H133: 60 | I133: Moderate Refurbishment | J133: 40 | K133: New Build | L133: 93 | M133: 133 | N133: 100 | O133: 3 | P133: 27.229104 | Q133: 27.229104 | R133: 0.2282915078 | S133: 0.1510914923 | T133: 0.003989534392 | U133: 0.1698794852 | V133: 0 | W133: 0.07389533489 | X133: 27.85625135 | Y133: 0.001692211894 | Z133: 0 | AA133: 6.964062839 | AB133: 0.418740231 | AC133: 0.001994767196 | AD133: 0.07554574617 | AE133: 30 | AF133: 0 | AG133: =VLOOKUP(AE133,ValidationLists!$M$1:$N$102,2,FALSE) -> 0.3562784106 | AH133: 0 | AI133: 0 | AJ133: 0 | AK133: 0 | AL133: 0 | AM133: 0 | AN133: 0 | AO133: 0 | AP133: 0.000602898564 | AQ133: =IF(OR(AF133=3,AF133=2,AF133=0),SUMIFS(FlatMaint!$Z$2:$Z$10000,FlatMaint!$A$2:$A$10000,D133,FlatMaint!$Y$2:$Y$10000,AE133)*AG133,0) -> 9.70658838 | AR133: =IF(OR(AF133=3,AF133=2,AF133=0),SUMIFS(FlatRepair!$Z$2:$Z$10000,FlatRepair!$A$2:$A$10000,D133,FlatRepair!$Y$2:$Y$10000,AE133)*AG133,0) -> 0 | AS133: 0 | AT133: 9.707191278 | AU133: 0 | AV133: 0 | AW133: 0 | AX133: 0 | AY133: 0 | AZ133: 9.707191278 | BA133: 0 | BB133: =IF($AF133=3,IF($AF$2=2,(R133/SUMIF(Refurb_Poss_Tbl[Refurbishment Possible],I133,Refurb_Poss_Tbl[%]))*AG133,IF($AF$2=3,(R133*AG133)-AV133,R133*AG133)),0) -> 0 | BC133: =IF(AF133=3,IF($AF$2=2,(S133/SUMIF(Refurb_Poss_Tbl[Refurbishment Possible],I133,Refurb_Poss_Tbl[%]))*AG133,IF($AF$2=3,(S133*AG133)-AX133,S133*AG133)),0) -> 0 | BD133: =IF($AF133=3,IF($AF$2=2,(T133/SUMIF(Refurb_Poss_Tbl[Refurbishment Possible],I133,Refurb_Poss_Tbl[%]))*AG133,T133*$AG133),0) -> 0 | BE133: =IF($AF133=3,IF($AF$2=2,(Q133/SUMIF(Refurb_Poss_Tbl[Refurbishment Possible],I133,Refurb_Poss_Tbl[%]))*AG133,Q133*$AG133),0) -> 0 | BF133: =IF($AF133=3,IF($AF$2=2,(U133/SUMIF(Refurb_Poss_Tbl[Refurbishment Possible],I133,Refurb_Poss_Tbl[%]))*AG133,U133*$AG133),0) -> 0 | BG133: =IF($AF133=3,IF($AF$2=2,(V133/SUMIF(Refurb_Poss_Tbl[Refurbishment Possible],I133,Refurb_Poss_Tbl[%]))*AG133,IF($AF$2=3,(V133*AG133)-AW133,V133*AG133)),0) -> 0 | BH133: =IF($AF133=3,IF($AF$2=2,(W133/SUMIF(Refurb_Poss_Tbl[Refurbishment Possible],I133,Refurb_Poss_Tbl[%]))*AG133,W133*$AG133),0) -> 0
A134: BridEA03 | B134: Footbridge | C134: Bridge - Pedestrian | D134: BridEA0334 | E134: Abutment | F134: Headwall | G134: 80 | H134: 60 | I134: Moderate Refurbishment | J134: 40 | K134: New Build | L134: 93 | M134: 133 | N134: 100 | O134: 3 | P134: 27.229104 | Q134: 27.229104 | R134: 0.2282915078 | S134: 0.1510914923 | T134: 0.003989534392 | U134: 0.1698794852 | V134: 0 | W134: 0.07389533489 | X134: 27.85625135 | Y134: 0.001692211894 | Z134: 0 | AA134: 6.964062839 | AB134: 0.418740231 | AC134: 0.001994767196 | AD134: 0.07554574617 | AE134: 31 | AF134: 0 | AG134: =VLOOKUP(AE134,ValidationLists!$M$1:$N$102,2,FALSE) -> 0.3999871452 | AH134: 0 | AI134: 0 | AJ134: 0 | AK134: 0 | AL134: 0 | AM134: 0 | AN134: 0 | AO134: 0 | AP134: 0.0006768630045 | AQ134: =IF(OR(AF134=3,AF134=2,AF134=0),SUMIFS(FlatMaint!$Z$2:$Z$10000,FlatMaint!$A$2:$A$10000,D134,FlatMaint!$Y$2:$Y$10000,AE134)*AG134,0) -> 10.89740624 | AR134: =IF(OR(AF134=3,AF134=2,AF134=0),SUMIFS(FlatRepair!$Z$2:$Z$10000,FlatRepair!$A$2:$A$10000,D134,FlatRepair!$Y$2:$Y$10000,AE134)*AG134,0) -> 0 | AS134: 0 | AT134: 10.8980831 | AU134: 0 | AV134: 0 | AW134: 0 | AX134: 0 | AY134: 0 | AZ134: 10.8980831 | BA134: 0 | BB134: =IF($AF134=3,IF($AF$2=2,(R134/SUMIF(Refurb_Poss_Tbl[Refurbishment Possible],I134,Refurb_Poss_Tbl[%]))*AG134,IF($AF$2=3,(R134*AG134)-AV134,R134*AG134)),0) -> 0 | BC134: =IF(AF134=3,IF($AF$2=2,(S134/SUMIF(Refurb_Poss_Tbl[Refurbishment Possible],I134,Refurb_Poss_Tbl[%]))*AG134,IF($AF$2=3,(S134*AG134)-AX134,S134*AG134)),0) -> 0 | BD134: =IF($AF134=3,IF($AF$2=2,(T134/SUMIF(Refurb_Poss_Tbl[Refurbishment Possible],I134,Refurb_Poss_Tbl[%]))*AG134,T134*$AG134),0) -> 0 | BE134: =IF($AF134=3,IF($AF$2=2,(Q134/SUMIF(Refurb_Poss_Tbl[Refurbishment Possible],I134,Refurb_Poss_Tbl[%]))*AG134,Q134*$AG134),0) -> 0 | BF134: =IF($AF134=3,IF($AF$2=2,(U134/SUMIF(Refurb_Poss_Tbl[Refurbishment Possible],I134,Refurb_Poss_Tbl[%]))*AG134,U134*$AG134),0) -> 0 | BG134: =IF($AF134=3,IF($AF$2=2,(V134/SUMIF(Refurb_Poss_Tbl[Refurbishment Possible],I134,Refurb_Poss_Tbl[%]))*AG134,IF($AF$2=3,(V134*AG134)-AW134,V134*AG134)),0) -> 0 | BH134: =IF($AF134=3,IF($AF$2=2,(W134/SUMIF(Refurb_Poss_Tbl[Refurbishment Possible],I134,Refurb_Poss_Tbl[%]))*AG134,W134*$AG134),0) -> 0
A135: BridEA03 | B135: Footbridge | C135: Bridge - Pedestrian | D135: BridEA0334 | E135: Abutment | F135: Headwall | G135: 80 | H135: 60 | I135: Moderate Refurbishment | J135: 40 | K135: New Build | L135: 93 | M135: 133 | N135: 100 | O135: 3 | P135: 27.229104 | Q135: 27.229104 | R135: 0.2282915078 | S135: 0.1510914923 | T135: 0.003989534392 | U135: 0.1698794852 | V135: 0 | W135: 0.07389533489 | X135: 27.85625135 | Y135: 0.001692211894 | Z135: 0 | AA135: 6.964062839 | AB135: 0.418740231 | AC135: 0.001994767196 | AD135: 0.07554574617 | AE135: 32 | AF135: 0 | AG135: =VLOOKUP(AE135,ValidationLists!$M$1:$N$102,2,FALSE) -> 0.3883370341 | AH135: 0 | AI135: 0 | AJ135: 0 | AK135: 0 | AL135: 0 | AM135: 0 | AN135: 0 | AO135: 0 | AP135: 0.000657148548 | AQ135: =IF(OR(AF135=3,AF135=2,AF135=0),SUMIFS(FlatMaint!$Z$2:$Z$10000,FlatMaint!$A$2:$A$10000,D135,FlatMaint!$Y$2:$Y$10000,AE135)*AG135,0) -> 10.58000606 | AR135: =IF(OR(AF135=3,AF135=2,AF135=0),SUMIFS(FlatRepair!$Z$2:$Z$10000,FlatRepair!$A$2:$A$10000,D135,FlatRepair!$Y$2:$Y$10000,AE135)*AG135,0) -> 0 | AS135: 0 | AT135: 10.58066321 | AU135: 0 | AV135: 0 | AW135: 0 | AX135: 0 | AY135: 0 | AZ135: 10.58066321 | BA135: 0 | BB135: =IF($AF135=3,IF($AF$2=2,(R135/SUMIF(Refurb_Poss_Tbl[Refurbishment Possible],I135,Refurb_Poss_Tbl[%]))*AG135,IF($AF$2=3,(R135*AG135)-AV135,R135*AG135)),0) -> 0 | BC135: =IF(AF135=3,IF($AF$2=2,(S135/SUMIF(Refurb_Poss_Tbl[Refurbishment Possible],I135,Refurb_Poss_Tbl[%]))*AG135,IF($AF$2=3,(S135*AG135)-AX135,S135*AG135)),0) -> 0 | BD135: =IF($AF135=3,IF($AF$2=2,(T135/SUMIF(Refurb_Poss_Tbl[Refurbishment Possible],I135,Refurb_Poss_Tbl[%]))*AG135,T135*$AG135),0) -> 0 | BE135: =IF($AF135=3,IF($AF$2=2,(Q135/SUMIF(Refurb_Poss_Tbl[Refurbishment Possible],I135,Refurb_Poss_Tbl[%]))*AG135,Q135*$AG135),0) -> 0 | BF135: =IF($AF135=3,IF($AF$2=2,(U135/SUMIF(Refurb_Poss_Tbl[Refurbishment Possible],I135,Refurb_Poss_Tbl[%]))*AG135,U135*$AG135),0) -> 0 | BG135: =IF($AF135=3,IF($AF$2=2,(V135/SUMIF(Refurb_Poss_Tbl[Refurbishment Possible],I135,Refurb_Poss_Tbl[%]))*AG135,IF($AF$2=3,(V135*AG135)-AW135,V135*AG135)),0) -> 0 | BH135: =IF($AF135=3,IF($AF$2=2,(W135/SUMIF(Refurb_Poss_Tbl[Refurbishment Possible],I135,Refurb_Poss_Tbl[%]))*AG135,W135*$AG135),0) -> 0
A136: BridEA03 | B136: Footbridge | C136: Bridge - Pedestrian | D136: BridEA0334 | E136: Abutment | F136: Headwall | G136: 80 | H136: 60 | I136: Moderate Refurbishment | J136: 40 | K136: New Build | L136: 93 | M136: 133 | N136: 100 | O136: 3 | P136: 27.229104 | Q136: 27.229104 | R136: 0.2282915078 | S136: 0.1510914923 | T136: 0.003989534392 | U136: 0.1698794852 | V136: 0 | W136: 0.07389533489 | X136: 27.85625135 | Y136: 0.001692211894 | Z136: 0 | AA136: 6.964062839 | AB136: 0.418740231 | AC136: 0.001994767196 | AD136: 0.07554574617 | AE136: 33 | AF136: 0 | AG136: =VLOOKUP(AE136,ValidationLists!$M$1:$N$102,2,FALSE) -> 0.3770262467 | AH136: 0 | AI136: 0 | AJ136: 0 | AK136: 0 | AL136: 0 | AM136: 0 | AN136: 0 | AO136: 0 | AP136: 0.0006380082991 | AQ136: =IF(OR(AF136=3,AF136=2,AF136=0),SUMIFS(FlatMaint!$Z$2:$Z$10000,FlatMaint!$A$2:$A$10000,D136,FlatMaint!$Y$2:$Y$10000,AE136)*AG136,0) -> 10.27185054 | AR136: =IF(OR(AF136=3,AF136=2,AF136=0),SUMIFS(FlatRepair!$Z$2:$Z$10000,FlatRepair!$A$2:$A$10000,D136,FlatRepair!$Y$2:$Y$10000,AE136)*AG136,0) -> 0 | AS136: 0 | AT136: 10.27248855 | AU136: 0 | AV136: 0 | AW136: 0 | AX136: 0 | AY136: 0 | AZ136: 10.27248855 | BA136: 0 | BB136: =IF($AF136=3,IF($AF$2=2,(R136/SUMIF(Refurb_Poss_Tbl[Refurbishment Possible],I136,Refurb_Poss_Tbl[%]))*AG136,IF($AF$2=3,(R136*AG136)-AV136,R136*AG136)),0) -> 0 | BC136: =IF(AF136=3,IF($AF$2=2,(S136/SUMIF(Refurb_Poss_Tbl[Refurbishment Possible],I136,Refurb_Poss_Tbl[%]))*AG136,IF($AF$2=3,(S136*AG136)-AX136,S136*AG136)),0) -> 0 | BD136: =IF($AF136=3,IF($AF$2=2,(T136/SUMIF(Refurb_Poss_Tbl[Refurbishment Possible],I136,Refurb_Poss_Tbl[%]))*AG136,T136*$AG136),0) -> 0 | BE136: =IF($AF136=3,IF($AF$2=2,(Q136/SUMIF(Refurb_Poss_Tbl[Refurbishment Possible],I136,Refurb_Poss_Tbl[%]))*AG136,Q136*$AG136),0) -> 0 | BF136: =IF($AF136=3,IF($AF$2=2,(U136/SUMIF(Refurb_Poss_Tbl[Refurbishment Possible],I136,Refurb_Poss_Tbl[%]))*AG136,U136*$AG136),0) -> 0 | BG136: =IF($AF136=3,IF($AF$2=2,(V136/SUMIF(Refurb_Poss_Tbl[Refurbishment Possible],I136,Refurb_Poss_Tbl[%]))*AG136,IF($AF$2=3,(V136*AG136)-AW136,V136*AG136)),0) -> 0 | BH136: =IF($AF136=3,IF($AF$2=2,(W136/SUMIF(Refurb_Poss_Tbl[Refurbishment Possible],I136,Refurb_Poss_Tbl[%]))*AG136,W136*$AG136),0) -> 0
A137: BridEA03 | B137: Footbridge | C137: Bridge - Pedestrian | D137: BridEA0334 | E137: Abutment | F137: Headwall | G137: 80 | H137: 60 | I137: Moderate Refurbishment | J137: 40 | K137: New Build | L137: 93 | M137: 133 | N137: 100 | O137: 3 | P137: 27.229104 | Q137: 27.229104 | R137: 0.2282915078 | S137: 0.1510914923 | T137: 0.003989534392 | U137: 0.1698794852 | V137: 0 | W137: 0.07389533489 | X137: 27.85625135 | Y137: 0.001692211894 | Z137: 0 | AA137: 6.964062839 | AB137: 0.418740231 | AC137: 0.001994767196 | AD137: 0.07554574617 | AE137: 34 | AF137: 0 | AG137: =VLOOKUP(AE137,ValidationLists!$M$1:$N$102,2,FALSE) -> 0.3660448997 | AH137: 0 | AI137: 0 | AJ137: 0 | AK137: 0 | AL137: 0 | AM137: 0 | AN137: 0 | AO137: 0 | AP137: 0.0006194255331 | AQ137: =IF(OR(AF137=3,AF137=2,AF137=0),SUMIFS(FlatMaint!$Z$2:$Z$10000,FlatMaint!$A$2:$A$10000,D137,FlatMaint!$Y$2:$Y$10000,AE137)*AG137,0) -> 9.97267043 | AR137: =IF(OR(AF137=3,AF137=2,AF137=0),SUMIFS(FlatRepair!$Z$2:$Z$10000,FlatRepair!$A$2:$A$10000,D137,FlatRepair!$Y$2:$Y$10000,AE137)*AG137,0) -> 0 | AS137: 0 | AT137: 9.973289856 | AU137: 0 | AV137: 0 | AW137: 0 | AX137: 0 | AY137: 0 | AZ137: 9.973289856 | BA137: 0 | BB137: =IF($AF137=3,IF($AF$2=2,(R137/SUMIF(Refurb_Poss_Tbl[Refurbishment Possible],I137,Refurb_Poss_Tbl[%]))*AG137,IF($AF$2=3,(R137*AG137)-AV137,R137*AG137)),0) -> 0 | BC137: =IF(AF137=3,IF($AF$2=2,(S137/SUMIF(Refurb_Poss_Tbl[Refurbishment Possible],I137,Refurb_Poss_Tbl[%]))*AG137,IF($AF$2=3,(S137*AG137)-AX137,S137*AG137)),0) -> 0 | BD137: =IF($AF137=3,IF($AF$2=2,(T137/SUMIF(Refurb_Poss_Tbl[Refurbishment Possible],I137,Refurb_Poss_Tbl[%]))*AG137,T137*$AG137),0) -> 0 | BE137: =IF($AF137=3,IF($AF$2=2,(Q137/SUMIF(Refurb_Poss_Tbl[Refurbishment Possible],I137,Refurb_Poss_Tbl[%]))*AG137,Q137*$AG137),0) -> 0 | BF137: =IF($AF137=3,IF($AF$2=2,(U137/SUMIF(Refurb_Poss_Tbl[Refurbishment Possible],I137,Refurb_Poss_Tbl[%]))*AG137,U137*$AG137),0) -> 0 | BG137: =IF($AF137=3,IF($AF$2=2,(V137/SUMIF(Refurb_Poss_Tbl[Refurbishment Possible],I137,Refurb_Poss_Tbl[%]))*AG137,IF($AF$2=3,(V137*AG137)-AW137,V137*AG137)),0) -> 0 | BH137: =IF($AF137=3,IF($AF$2=2,(W137/SUMIF(Refurb_Poss_Tbl[Refurbishment Possible],I137,Refurb_Poss_Tbl[%]))*AG137,W137*$AG137),0) -> 0
A138: BridEA03 | B138: Footbridge | C138: Bridge - Pedestrian | D138: BridEA0334 | E138: Abutment | F138: Headwall | G138: 80 | H138: 60 | I138: Moderate Refurbishment | J138: 40 | K138: New Build | L138: 93 | M138: 133 | N138: 100 | O138: 3 | P138: 27.229104 | Q138: 27.229104 | R138: 0.2282915078 | S138: 0.1510914923 | T138: 0.003989534392 | U138: 0.1698794852 | V138: 0 | W138: 0.07389533489 | X138: 27.85625135 | Y138: 0.001692211894 | Z138: 0 | AA138: 6.964062839 | AB138: 0.418740231 | AC138: 0.001994767196 | AD138: 0.07554574617 | AE138: 35 | AF138: 0 | AG138: =VLOOKUP(AE138,ValidationLists!$M$1:$N$102,2,FALSE) -> 0.3553833978 | AH138: 0 | AI138: 0 | AJ138: 0 | AK138: 0 | AL138: 0 | AM138: 0 | AN138: 0 | AO138: 0 | AP138: 0.0006013840127 | AQ138: =IF(OR(AF138=3,AF138=2,AF138=0),SUMIFS(FlatMaint!$Z$2:$Z$10000,FlatMaint!$A$2:$A$10000,D138,FlatMaint!$Y$2:$Y$10000,AE138)*AG138,0) -> 9.682204301 | AR138: =IF(OR(AF138=3,AF138=2,AF138=0),SUMIFS(FlatRepair!$Z$2:$Z$10000,FlatRepair!$A$2:$A$10000,D138,FlatRepair!$Y$2:$Y$10000,AE138)*AG138,0) -> 0 | AS138: 0 | AT138: 9.682805685 | AU138: 0 | AV138: 0 | AW138: 0 | AX138: 0 | AY138: 0 | AZ138: 9.682805685 | BA138: 0 | BB138: =IF($AF138=3,IF($AF$2=2,(R138/SUMIF(Refurb_Poss_Tbl[Refurbishment Possible],I138,Refurb_Poss_Tbl[%]))*AG138,IF($AF$2=3,(R138*AG138)-AV138,R138*AG138)),0) -> 0 | BC138: =IF(AF138=3,IF($AF$2=2,(S138/SUMIF(Refurb_Poss_Tbl[Refurbishment Possible],I138,Refurb_Poss_Tbl[%]))*AG138,IF($AF$2=3,(S138*AG138)-AX138,S138*AG138)),0) -> 0 | BD138: =IF($AF138=3,IF($AF$2=2,(T138/SUMIF(Refurb_Poss_Tbl[Refurbishment Possible],I138,Refurb_Poss_Tbl[%]))*AG138,T138*$AG138),0) -> 0 | BE138: =IF($AF138=3,IF($AF$2=2,(Q138/SUMIF(Refurb_Poss_Tbl[Refurbishment Possible],I138,Refurb_Poss_Tbl[%]))*AG138,Q138*$AG138),0) -> 0 | BF138: =IF($AF138=3,IF($AF$2=2,(U138/SUMIF(Refurb_Poss_Tbl[Refurbishment Possible],I138,Refurb_Poss_Tbl[%]))*AG138,U138*$AG138),0) -> 0 | BG138: =IF($AF138=3,IF($AF$2=2,(V138/SUMIF(Refurb_Poss_Tbl[Refurbishment Possible],I138,Refurb_Poss_Tbl[%]))*AG138,IF($AF$2=3,(V138*AG138)-AW138,V138*AG138)),0) -> 0 | BH138: =IF($AF138=3,IF($AF$2=2,(W138/SUMIF(Refurb_Poss_Tbl[Refurbishment Possible],I138,Refurb_Poss_Tbl[%]))*AG138,W138*$AG138),0) -> 0
